Workbook

Sheet MainDisplay
E1: =IF(N32=$N$12,R12,IF(N32=$N$14,R14,IF(N32=$N$16,R16,IF(N32=$N$18,R18,IF(N32=$N$20,R20,IF(N32=$N$22,R22,IF(N32=$N$24,R24,IF(N32=$N$26,R26,IF(N32=$N$28,R28,IF(N32=$N$30,R30)))))))))) -> FUS | S1: =Data!C2 -> DD | U1: =Data!D2 -> DSX | V1: =Data!E2 -> PIL | X1: =Data!F2 -> SF6 | Y1: =Data!G2 -> CLE | AA1: =Data!H2 -> HOE | AB1: =Data!I2 -> RBE | AD1: =Data!J2 -> NGE | AE1: =Data!K2 -> TYA | AG1: =Data!L2 -> DXE
B2: 15 | C2: 15 | I2: CQG Correlation Dashboard | AE2: =RTD("cqg.rtd", ,"SystemInfo", "Linetime")+Symbols!L36 -> 43528.40632
C3: 65
A4: =INDIRECT("Data!H"&$B$2) -> 0 | B4: =INDIRECT("Data!J"&$B$2) -> 0 | C4: =INDIRECT("Data!K"&$B$2) -> 0 | D4: =INDIRECT("Data!L"&$B$2) -> 0 | E4: =RTD("cqg.rtd", ,"ContractData",Symbols!B5, "LongDescription",, "T") -> USD/RUB, Mar 19 | H4: =RTD("cqg.rtd", ,"ContractData",Symbols!B6, "LongDescription",, "T") -> Brent Crude, Apr 19 | K4: =RTD("cqg.rtd", ,"ContractData",Symbols!B7, "LongDescription",, "T") -> Sberbank, Mar 19 | N4: =RTD("cqg.rtd", ,"ContractData",Symbols!B8, "LongDescription",, "T") -> Gazprom, Mar 19 | Q4: =RTD("cqg.rtd", ,"ContractData",Symbols!B9, "LongDescription",, "T") -> EUR/USD, Mar 19 | T4: =RTD("cqg.rtd", ,"ContractData",Symbols!B10, "LongDescription",, "T") -> RTS Index, Mar 19 | W4: =RTD("cqg.rtd", ,"ContractData",Symbols!B11, "LongDescription",, "T") -> Euro FX (Globex), Mar 19 | Z4: =RTD("cqg.rtd", ,"ContractData",Symbols!B12, "LongDescription",, "T") -> Japanese Yen (Globex), Mar 19 | AC4: =RTD("cqg.rtd", ,"ContractData",Symbols!B13, "LongDescription",, "T") -> Australian Dollar (Globex), Mar 19 | AF4: =RTD("cqg.rtd", ,"ContractData",Symbols!B14, "LongDescription",, "T") -> British Pound (Globex), Mar 19
A5: =INDIRECT("Data!H"&$B$2+1) -> 0 | B5: =INDIRECT("Data!J"&$B$2+1) -> 0 | C5: =INDIRECT("Data!K"&$B$2+1) -> 0 | D5: =INDIRECT("Data!L"&$B$2+1) -> 0 | E5: =IF(Symbols!C5="B",RTD("cqg.rtd",,"ContractData",Symbols!B5,"LastTrade",,"B"),TEXT(RTD("cqg.rtd",,"ContractData",Symbols!B5,"LastTrade",,"T"),Symbols!D5)) -> 65867 | H5: =IF(Symbols!C6="B",RTD("cqg.rtd",,"ContractData",Symbols!B6,"LastTrade",,"B"),TEXT(RTD("cqg.rtd",,"ContractData",Symbols!B6,"LastTrade",,"T"),Symbols!D6)) -> 66 | K5: =IF(Symbols!C7="B",RTD("cqg.rtd",,"ContractData",Symbols!B7,"LastTrade",,"B"),TEXT(RTD("cqg.rtd",,"ContractData",Symbols!B7,"LastTrade",,"T"),Symbols!D7)) -> 20650 | N5: =IF(Symbols!C8="B",RTD("cqg.rtd",,"ContractData",Symbols!B8,"LastTrade",,"B"),TEXT(RTD("cqg.rtd",,"ContractData",Symbols!B8,"LastTrade",,"T"),Symbols!D8)) -> 15532 | Q5: =IF(Symbols!C9="B",RTD("cqg.rtd",,"ContractData",Symbols!B9,"LastTrade",,"B"),TEXT(RTD("cqg.rtd",,"ContractData",Symbols!B9,"LastTrade",,"T"),Symbols!D9)) -> 1.13350 | T5: =IF(Symbols!C10="B",RTD("cqg.rtd",,"ContractData",Symbols!B10,"LastTrade",,"B"),TEXT(RTD("cqg.rtd",,"ContractData",Symbols!B10,"LastTrade",,"T"),Symbols!D10)) -> 118790 | W5: =IF(Symbols!C11="B",RTD("cqg.rtd",,"ContractData",Symbols!B11,"LastTrade",,"B"),TEXT(RTD("cqg.rtd",,"ContractData",Symbols!B11,"LastTrade",,"T"),Symbols!D11)) -> 1.1329000 | Z5: =IF(Symbols!C12="B",RTD("cqg.rtd",,"ContractData",Symbols!B12,"LastTrade",,"B"),TEXT(RTD("cqg.rtd",,"ContractData",Symbols!B12,"LastTrade",,"T"),Symbols!D12)) -> .0089 | AC5: =IF(Symbols!C13="B",RTD("cqg.rtd",,"ContractData",Symbols!B13,"LastTrade",,"B"),TEXT(RTD("cqg.rtd",,"ContractData",Symbols!B13,"LastTrade",,"T"),Symbols!D13)) -> .7083 | AF5: =IF(Symbols!C14="B",RTD("cqg.rtd",,"ContractData",Symbols!B14,"LastTrade",,"B"),TEXT(RTD("cqg.rtd",,"ContractData",Symbols!B14,"LastTrade",,"T"),Symbols!D14)) -> 1.319400
A6: =INDIRECT("Data!H"&$B$2+2) -> 0 | B6: =INDIRECT("Data!J"&$B$2+2) -> 0 | C6: =INDIRECT("Data!K"&$B$2+2) -> 0 | D6: =INDIRECT("Data!L"&$B$2+2) -> 0
A7: =INDIRECT("Data!H"&$B$2+3) -> 0 | B7: =INDIRECT("Data!J"&$B$2+3) -> 0 | C7: =INDIRECT("Data!K"&$B$2+3) -> 0 | D7: =INDIRECT("Data!L"&$B$2+3) -> 0 | E7: H: | F7: =IF(Symbols!C5="B",RTD("cqg.rtd",,"ContractData",Symbols!B5,"High",,"B"),TEXT(RTD("cqg.rtd",,"ContractData",Symbols!B5,"High",,"T"),Symbols!D5)) -> 66123 | G7: =IF(Symbols!C5="B",RTD("cqg.rtd",,"ContractData",Symbols!B5,"NetLastQuoteToday",,"B"),IF(RTD("cqg.rtd",,"ContractData",Symbols!B5,"NetLastQuoteToday",,"T")>0,"+"&TEXT(RTD("cqg.rtd",,"ContractData",Symbols!B5,"NetLastQuoteToday",,"T"),Symbols!D5),TEXT(RTD("cqg.rtd",,"ContractData",Symbols!B5,"NetLastQuoteToday",,"T"),Symbols!D5))) -> -73 | H7: H: | I7: =IF(Symbols!C6="B",RTD("cqg.rtd",,"ContractData",Symbols!B6,"High",,"B"),TEXT(RTD("cqg.rtd",,"ContractData",Symbols!B6,"High",,"T"),Symbols!D6)) -> 66 | J7: =IF(Symbols!C6="B",RTD("cqg.rtd",,"ContractData",Symbols!B6,"NetLastQuoteToday",,"B"),IF(RTD("cqg.rtd",,"ContractData",Symbols!B6,"NetLastQuoteToday",,"T")>0,"+"&TEXT(RTD("cqg.rtd",,"ContractData",Symbols!B6,"NetLastQuoteToday",,"T"),Symbols!D6),TEXT(RTD("cqg.rtd",,"ContractData",Symbols!B6,"NetLastQuoteToday",,"T"),Symbols!D6))) -> +1 | K7: H: | L7: =IF(Symbols!C7="B",RTD("cqg.rtd",,"ContractData",Symbols!B7,"High",,"B"),TEXT(RTD("cqg.rtd",,"ContractData",Symbols!B7,"High",,"T"),Symbols!D7)) -> 20828 | M7: =IF(Symbols!C7="B",RTD("cqg.rtd",,"ContractData",Symbols!B7,"NetLastQuoteToday",,"B"),IF(RTD("cqg.rtd",,"ContractData",Symbols!B7,"NetLastQuoteToday",,"T")>0,"+"&TEXT(RTD("cqg.rtd",,"ContractData",Symbols!B7,"NetLastQuoteToday",,"T"),Symbols!D7),TEXT(RTD("cqg.rtd",,"ContractData",Symbols!B7,"NetLastQuoteToday",,"T"),Symbols!D7))) -> -70 | N7: H: | O7: =IF(Symbols!C8="B",RTD("cqg.rtd",,"ContractData",Symbols!B8,"High",,"B"),TEXT(RTD("cqg.rtd",,"ContractData",Symbols!B8,"High",,"T"),Symbols!D8)) -> 15729 | P7: =IF(Symbols!C8="B",RTD("cqg.rtd",,"ContractData",Symbols!B8,"NetLastQuoteToday",,"B"),IF(RTD("cqg.rtd",,"ContractData",Symbols!B8,"NetLastQuoteToday",,"T")>0,"+"&TEXT(RTD("cqg.rtd",,"ContractData",Symbols!B8,"NetLastQuoteToday",,"T"),Symbols!D8),TEXT(RTD("cqg.rtd",,"ContractData",Symbols!B8,"NetLastQuoteToday",,"T"),Symbols!D8))) -> -184 | Q7: H: | R7: =IF(Symbols!C9="B",RTD("cqg.rtd",,"ContractData",Symbols!B9,"High",,"B"),TEXT(RTD("cqg.rtd",,"ContractData",Symbols!B9,"High",,"T"),Symbols!D9)) -> 1.14060 | S7: =IF(Symbols!C9="B",RTD("cqg.rtd",,"ContractData",Symbols!B9,"NetLastQuoteToday",,"B"),IF(RTD("cqg.rtd",,"ContractData",Symbols!B9,"NetLastQuoteToday",,"T")>0,"+"&TEXT(RTD("cqg.rtd",,"ContractData",Symbols!B9,"NetLastQuoteToday",,"T"),Symbols!D9),TEXT(RTD("cqg.rtd",,"ContractData",Symbols!B9,"NetLastQuoteToday",,"T"),Symbols!D9))) -> -.00700 | T7: H: | U7: =IF(Symbols!C10="B",RTD("cqg.rtd",,"ContractData",Symbols!B10,"High",,"B"),TEXT(RTD("cqg.rtd",,"ContractData",Symbols!B10,"High",,"T"),Symbols!D10)) -> 119200 | V7: =IF(Symbols!C10="B",RTD("cqg.rtd",,"ContractData",Symbols!B10,"NetLastQuoteToday",,"B"),IF(RTD("cqg.rtd",,"ContractData",Symbols!B10,"NetLastQuoteToday",,"T")>0,"+"&TEXT(RTD("cqg.rtd",,"ContractData",Symbols!B10,"NetLastQuoteToday",,"T"),Symbols!D10),TEXT(RTD("cqg.rtd",,"ContractData",Symbols!B10,"NetLastQuoteToday",,"T"),Symbols!D10))) -> +100 | W7: H: | X7: =IF(Symbols!C8="B",RTD("cqg.rtd",,"ContractData",Symbols!B11,"High",,"B"),TEXT(RTD("cqg.rtd",,"ContractData",Symbols!B11,"High",,"T"),Symbols!D11)) -> 1.1393500 | Y7: =IF(Symbols!C11="B",RTD("cqg.rtd",,"ContractData",Symbols!B11,"NetLastQuoteToday",,"B"),IF(RTD("cqg.rtd",,"ContractData",Symbols!B11,"NetLastQuoteToday",,"T")>0,"+"&TEXT(RTD("cqg.rtd",,"ContractData",Symbols!B11,"NetLastQuoteToday",,"T"),Symbols!D11),TEXT(RTD("cqg.rtd",,"ContractData",Symbols!B11,"NetLastQuoteToday",,"T"),Symbols!D11))) -> -.0042000 | Z7: H: | AA7: =IF(Symbols!C12="B",RTD("cqg.rtd",,"ContractData",Symbols!B12,"High",,"B"),TEXT(RTD("cqg.rtd",,"ContractData",Symbols!B12,"High",,"T"),Symbols!D12)) -> .0090 | AB7: =IF(Symbols!C12="B",RTD("cqg.rtd",,"ContractData",Symbols!B12,"NetLastQuoteToday",,"B"),IF(RTD("cqg.rtd",,"ContractData",Symbols!B12,"NetLastQuoteToday",,"T")>0,"+"&TEXT(RTD("cqg.rtd",,"ContractData",Symbols!B12,"NetLastQuoteToday",,"T"),Symbols!D12),TEXT(RTD("cqg.rtd",,"ContractData",Symbols!B12,"NetLastQuoteToday",,"T"),Symbols!D12))) -> +.0000 | AC7: H: | AD7: =IF(Symbols!C13="B",RTD("cqg.rtd",,"ContractData",Symbols!B13,"High",,"B"),TEXT(RTD("cqg.rtd",,"ContractData",Symbols!B13,"High",,"T"),Symbols!D13)) -> .7110 | AE7: =IF(Symbols!C13="B",RTD("cqg.rtd",,"ContractData",Symbols!B13,"NetLastQuoteToday",,"B"),IF(RTD("cqg.rtd",,"ContractData",Symbols!B13,"NetLastQuoteToday",,"T")>0,"+"&TEXT(RTD("cqg.rtd",,"ContractData",Symbols!B13,"NetLastQuoteToday",,"T"),Symbols!D13),TEXT(RTD("cqg.rtd",,"ContractData",Symbols!B13,"NetLastQuoteToday",,"T"),Symbols!D13))) -> +.0008 | AF7: H: | AG7: =IF(Symbols!C14="B",RTD("cqg.rtd",,"ContractData",Symbols!B14,"High",,"B"),TEXT(RTD("cqg.rtd",,"ContractData",Symbols!B14,"High",,"T"),Symbols!D14)) -> 1.326400 | AH7: =IF(Symbols!C14="B",RTD("cqg.rtd",,"ContractData",Symbols!B14,"NetLastQuoteToday",,"B"),IF(RTD("cqg.rtd",,"ContractData",Symbols!B14,"NetLastQuoteToday",,"T")>0,"+"&TEXT(RTD("cqg.rtd",,"ContractData",Symbols!B14,"NetLastQuoteToday",,"T"),Symbols!D14),TEXT(RTD("cqg.rtd",,"ContractData",Symbols!B14,"NetLastQuoteToday",,"T"),Symbols!D14))) -> -.000600
A8: =INDIRECT("Data!H"&$B$2+4) -> 0 | B8: =INDIRECT("Data!J"&$B$2+4) -> 0 | C8: =INDIRECT("Data!K"&$B$2+4) -> 0 | D8: =INDIRECT("Data!L"&$B$2+4) -> 0 | E8: L: | F8: =IF(Symbols!C5="B",RTD("cqg.rtd",,"ContractData",Symbols!B5,"Low",,"B"),TEXT(RTD("cqg.rtd",,"ContractData",Symbols!B5,"Low",,"T"),Symbols!D5)) -> 65794 | G8: =IFERROR(RTD("cqg.rtd", ,"ContractData",Symbols!B5, "PerCentNetLastQuote",, "T")/100,"") -> -0.001107067031 | H8: L: | I8: =IF(Symbols!C6="B",RTD("cqg.rtd",,"ContractData",Symbols!B6,"Low",,"B"),TEXT(RTD("cqg.rtd",,"ContractData",Symbols!B6,"Low",,"T"),Symbols!D6)) -> 65 | J8: =IFERROR(RTD("cqg.rtd", ,"ContractData",Symbols!B6, "PerCentNetLastQuote",, "T")/100,"") -> 0.01039596392 | K8: L: | L8: =IF(Symbols!C7="B",RTD("cqg.rtd",,"ContractData",Symbols!B7,"Low",,"B"),TEXT(RTD("cqg.rtd",,"ContractData",Symbols!B7,"Low",,"T"),Symbols!D7)) -> 20508 | M8: =IFERROR(RTD("cqg.rtd", ,"ContractData",Symbols!B7, "PerCentNetLastQuote",, "T")/100,"") -> -0.003378378378 | N8: L: | O8: =IF(Symbols!C8="B",RTD("cqg.rtd",,"ContractData",Symbols!B8,"Low",,"B"),TEXT(RTD("cqg.rtd",,"ContractData",Symbols!B8,"Low",,"T"),Symbols!D8)) -> 15515 | P8: =IFERROR(RTD("cqg.rtd", ,"ContractData",Symbols!B8, "PerCentNetLastQuote",, "T")/100,"") -> -0.01170781369 | Q8: L: | R8: =IF(Symbols!C9="B",RTD("cqg.rtd",,"ContractData",Symbols!B9,"Low",,"B"),TEXT(RTD("cqg.rtd",,"ContractData",Symbols!B9,"Low",,"T"),Symbols!D9)) -> 1.13260 | S8: =IFERROR(RTD("cqg.rtd", ,"ContractData",Symbols!B9, "PerCentNetLastQuote",, "T")/100,"") -> -0.006137120814 | T8: L: | U8: =IF(Symbols!C10="B",RTD("cqg.rtd",,"ContractData",Symbols!B10,"Low",,"B"),TEXT(RTD("cqg.rtd",,"ContractData",Symbols!B10,"Low",,"T"),Symbols!D10)) -> 117830 | V8: =IFERROR(RTD("cqg.rtd", ,"ContractData",Symbols!B10, "PerCentNetLastQuote",, "T")/100,"") -> 0.000842530963 | W8: L: | X8: =IF(Symbols!C11="B",RTD("cqg.rtd",,"ContractData",Symbols!B11,"Low",,"B"),TEXT(RTD("cqg.rtd",,"ContractData",Symbols!B11,"Low",,"T"),Symbols!D11)) -> 1.1321000 | Y8: =IFERROR(RTD("cqg.rtd", ,"ContractData",Symbols!B11, "PerCentNetLastQuote",, "T")/100,"") -> -0.003693444137 | Z8: L: | AA8: =IF(Symbols!C12="B",RTD("cqg.rtd",,"ContractData",Symbols!B12,"Low",,"B"),TEXT(RTD("cqg.rtd",,"ContractData",Symbols!B12,"Low",,"T"),Symbols!D12)) -> .0089 | AB8: =IFERROR(RTD("cqg.rtd", ,"ContractData",Symbols!B12, "PerCentNetLastQuote",, "T")/100,"") -> 0.0006153501902 | AC8: L: | AD8: =IF(Symbols!C13="B",RTD("cqg.rtd",,"ContractData",Symbols!B13,"Low",,"B"),TEXT(RTD("cqg.rtd",,"ContractData",Symbols!B13,"Low",,"T"),Symbols!D13)) -> .7077 | AE8: =IFERROR(RTD("cqg.rtd", ,"ContractData",Symbols!B13, "PerCentNetLastQuote",, "T")/100,"") -> 0.001130742049 | AF8: L: | AG8: =IF(Symbols!C14="B",RTD("cqg.rtd",,"ContractData",Symbols!B14,"Low",,"B"),TEXT(RTD("cqg.rtd",,"ContractData",Symbols!B14,"Low",,"T"),Symbols!D14)) -> 1.318600 | AH8: =IFERROR(RTD("cqg.rtd", ,"ContractData",Symbols!B14, "PerCentNetLastQuote",, "T")/100,"") -> -0.0004545110219
A9: =INDIRECT("Data!H"&$B$2+5) -> 0 | B9: =INDIRECT("Data!J"&$B$2+5) -> 0 | C9: =INDIRECT("Data!K"&$B$2+5) -> 0 | D9: =INDIRECT("Data!L"&$B$2+5) -> 0 | E9: =N32 -> USD/RUB, Mar 19 | N9: Correlations
A10: =INDIRECT("Data!H"&$B$2+6) -> 0 | B10: =INDIRECT("Data!J"&$B$2+6) -> 0 | C10: =INDIRECT("Data!K"&$B$2+6) -> 0 | D10: =INDIRECT("Data!L"&$B$2+6) -> 0 | E10: =TEXT(S32,"#.00")&" Correlation to the "&RTD("cqg.rtd", ,"ContractData",'1'!C2, "LongDescription",, "T") -> -.43 Correlation to the DAX Index, Mar 19 | N10: Time Frame | P10: Look Back | U10: =RTD("cqg.rtd", ,"ContractData",Data!D2, "LongDescription",, "T") -> Euro STOXX 50, Mar 19 | X10: =RTD("cqg.rtd", ,"ContractData",Data!F2, "LongDescription",, "T") -> Swiss Franc (Globex), Mar 19 | AA10: =RTD("cqg.rtd", ,"ContractData",Data!H2, "LongDescription",, "T") -> NY Harbor ULSD, Apr 19 | AD10: =RTD("cqg.rtd", ,"ContractData",Data!J2, "LongDescription",, "T") -> Natural Gas (Globex), Apr 19 | AG10: =RTD("cqg.rtd", ,"ContractData",Data!L2, "LongDescription",, "T") -> Dollar Index (ICE), Mar 19
A11: =INDIRECT("Data!H"&$B$2+7) -> 0 | B11: =INDIRECT("Data!J"&$B$2+7) -> 0 | C11: =INDIRECT("Data!K"&$B$2+7) -> 0 | D11: =INDIRECT("Data!L"&$B$2+7) -> 0 | N11: ADC | P11: 20 | S11: =RTD("cqg.rtd", ,"ContractData",Data!C2, "LongDescription",, "T") -> DAX Index, Mar 19 | V11: =RTD("cqg.rtd", ,"ContractData",Data!E2, "LongDescription",, "T") -> CAC40, Mar 19 | Y11: =RTD("cqg.rtd", ,"ContractData",Data!G2, "LongDescription",, "T") -> Crude Light (Globex), Apr 19 | AB11: =RTD("cqg.rtd", ,"ContractData",Data!I2, "LongDescription",, "T") -> RBOB Gasoline (Globex), Apr 19 | AE11: =RTD("cqg.rtd", ,"ContractData",Data!K2, "LongDescription",, "T") -> 10yr US Treasury Notes (Globex), Jun 19
A12: =INDIRECT("Data!H"&$B$2+8) -> 0 | B12: =INDIRECT("Data!J"&$B$2+8) -> 0 | C12: =INDIRECT("Data!K"&$B$2+8) -> 0 | D12: =INDIRECT("Data!L"&$B$2+8) -> 0 | N12: =RTD("cqg.rtd", ,"ContractData",Symbols!B5, "LongDescription",, "T") -> USD/RUB, Mar 19 | R12: =Symbols!B5 -> FUS | S12: =Data!C3 -> -0.4318635251 | U12: =Data!D3 -> -0.3735613345 | V12: =Data!E3 -> -0.3342949882 | X12: =Data!F3 -> -0.3584813945 | Y12: =Data!G3 -> -0.2232703849 | AA12: =Data!H3 -> -0.1206289336 | AB12: =Data!I3 -> -0.149907575 | AD12: =Data!J3 -> -0.498785227 | AE12: =Data!K3 -> 0.2458377669 | AG12: =Data!L3 -> 0.3647844535
A13: =INDIRECT("Data!H"&$B$2+9) -> 0 | B13: =INDIRECT("Data!J"&$B$2+9) -> 0 | C13: =INDIRECT("Data!K"&$B$2+9) -> 0 | D13: =INDIRECT("Data!L"&$B$2+9) -> 0 | N13: =$N$12 -> USD/RUB, Mar 19 | S13: =$S$12 -> -0.4318635251 | U13: =$U$12 -> -0.3735613345 | V13: =$V$12 -> -0.3342949882 | X13: =$X$12 -> -0.3584813945 | Y13: =$Y$12 -> -0.2232703849 | AA13: =$AA$12 -> -0.1206289336 | AB13: =$AB$12 -> -0.149907575 | AD13: =$AD$12 -> -0.498785227 | AE13: =$AE$12 -> 0.2458377669 | AG13: =$AG$12 -> 0.3647844535
A14: =INDIRECT("Data!H"&$B$2+10) -> 0 | B14: =INDIRECT("Data!J"&$B$2+10) -> 0 | C14: =INDIRECT("Data!K"&$B$2+10) -> 0 | D14: =INDIRECT("Data!L"&$B$2+10) -> 0 | E14: =TEXT(U32,"#.00")&" Correlation to the "&RTD("cqg.rtd",,"ContractData",'1'!I2,"LongDescription",,"T") -> -.37 Correlation to the Euro STOXX 50, Mar 19 | N14: =RTD("cqg.rtd", ,"ContractData",Symbols!B6, "LongDescription",, "T") -> Brent Crude, Apr 19 | R14: =Symbols!B6 -> FBR | S14: =Data!C4 -> 0.7029221431 | U14: =Data!D4 -> 0.78205119 | V14: =Data!E4 -> 0.8312112099 | X14: =Data!F4 -> 0.05729276262 | Y14: =Data!G4 -> 0.9295085288 | AA14: =Data!H4 -> 0.9589290762 | AB14: =Data!I4 -> 0.9597256057 | AD14: =Data!J4 -> 0.5253755157 | AE14: =Data!K4 -> -0.09627700065 | AG14: =Data!L4 -> -0.09994112041
A15: =INDIRECT("Data!H"&$B$2+11) -> 0 | B15: =INDIRECT("Data!J"&$B$2+11) -> 0 | C15: =INDIRECT("Data!K"&$B$2+11) -> 0 | D15: =INDIRECT("Data!L"&$B$2+11) -> 0 | N15: =$N$14 -> Brent Crude, Apr 19 | S15: =$S$14 -> 0.7029221431 | U15: =$U$14 -> 0.78205119 | V15: =$V$14 -> 0.8312112099 | X15: =$X$14 -> 0.05729276262 | Y15: =$Y$14 -> 0.9295085288 | AA15: =$AA$14 -> 0.9589290762 | AB15: =$AB$14 -> 0.9597256057 | AD15: =$AD$14 -> 0.5253755157 | AE15: =$AE$14 -> -0.09627700065 | AG15: =$AG$14 -> -0.09994112041
A16: =INDIRECT("Data!H"&$B$2+12) -> 0 | B16: =INDIRECT("Data!J"&$B$2+12) -> 0 | C16: =INDIRECT("Data!K"&$B$2+12) -> 0 | D16: =INDIRECT("Data!L"&$B$2+12) -> 0 | N16: =RTD("cqg.rtd", ,"ContractData",Symbols!B7, "LongDescription",, "T") -> Sberbank, Mar 19 | R16: =Symbols!B7 -> FSR | S16: =Data!C5 -> -0.4861261035 | U16: =Data!D5 -> -0.5975397477 | V16: =Data!E5 -> -0.6851948986 | X16: =Data!F5 -> -0.1144732532 | Y16: =Data!G5 -> -0.7299026967 | AA16: =Data!H5 -> -0.8550591894 | AB16: =Data!I5 -> -0.8671476287 | AD16: =Data!J5 -> -0.3982292153 | AE16: =Data!K5 -> -0.08897752231 | AG16: =Data!L5 -> -0.03044784729
A17: =INDIRECT("Data!H"&$B$2+13) -> 0 | B17: =INDIRECT("Data!J"&$B$2+13) -> 0 | C17: =INDIRECT("Data!K"&$B$2+13) -> 0 | D17: =INDIRECT("Data!L"&$B$2+13) -> 0 | N17: =$N$16 -> Sberbank, Mar 19 | S17: =$S$16 -> -0.4861261035 | U17: =$U$16 -> -0.5975397477 | V17: =$V$16 -> -0.6851948986 | X17: =$X$16 -> -0.1144732532 | Y17: =$Y$16 -> -0.7299026967 | AA17: =$AA$16 -> -0.8550591894 | AB17: =$AB$16 -> -0.8671476287 | AD17: =$AD$16 -> -0.3982292153 | AE17: =$AE$16 -> -0.08897752231 | AG17: =$AG$16 -> -0.03044784729
A18: =INDIRECT("Data!H"&$B$2+14) -> 0 | B18: =INDIRECT("Data!J"&$B$2+14) -> 0 | C18: =INDIRECT("Data!K"&$B$2+14) -> 0 | D18: =INDIRECT("Data!L"&$B$2+14) -> 0 | N18: =RTD("cqg.rtd", ,"ContractData",Symbols!B8, "LongDescription",, "T") -> Gazprom, Mar 19 | R18: =Symbols!B8 -> FGZ | S18: =Data!C6 -> -0.5597302664 | U18: =Data!D6 -> -0.6569588031 | V18: =Data!E6 -> -0.7307907879 | X18: =Data!F6 -> -0.01952339773 | Y18: =Data!G6 -> -0.736124658 | AA18: =Data!H6 -> -0.8549245111 | AB18: =Data!I6 -> -0.8708358707 | AD18: =Data!J6 -> -0.431574731 | AE18: =Data!K6 -> -0.04476343001 | AG18: =Data!L6 -> -0.04082072485
A19: =INDIRECT("Data!H"&$B$2+15) -> 0 | B19: =INDIRECT("Data!J"&$B$2+15) -> 0 | C19: =INDIRECT("Data!K"&$B$2+15) -> 0 | D19: =INDIRECT("Data!L"&$B$2+15) -> 0 | N19: =$N$18 -> Gazprom, Mar 19 | S19: =$S$18 -> -0.5597302664 | U19: =$U$18 -> -0.6569588031 | V19: =$V$18 -> -0.7307907879 | X19: =$X$18 -> -0.01952339773 | Y19: =$Y$18 -> -0.736124658 | AA19: =$AA$18 -> -0.8549245111 | AB19: =$AB$18 -> -0.8708358707 | AD19: =$AD$18 -> -0.431574731 | AE19: =$AE$18 -> -0.04476343001 | AG19: =$AG$18 -> -0.04082072485
A20: =INDIRECT("Data!H"&$B$2+16) -> 0 | B20: =INDIRECT("Data!J"&$B$2+16) -> 0 | C20: =INDIRECT("Data!K"&$B$2+16) -> 0 | D20: =INDIRECT("Data!L"&$B$2+16) -> 0 | E20: =TEXT(V32,"#.00")&" Correlation to the "&RTD("cqg.rtd",,"ContractData",'1'!O2,"LongDescription",,"T") -> -.33 Correlation to the CAC40, Mar 19 | N20: =RTD("cqg.rtd", ,"ContractData",Symbols!B9, "LongDescription",, "T") -> EUR/USD, Mar 19 | R20: =Symbols!B9 -> FFED | S20: =Data!C7 -> 0.3495572648 | U20: =Data!D7 -> 0.1773077918 | V20: =Data!E7 -> 0.1162775233 | X20: =Data!F7 -> 0.74604858 | Y20: =Data!G7 -> 0.04507716566 | AA20: =Data!H7 -> -0.2032546188 | AB20: =Data!I7 -> -0.1653467498 | AD20: =Data!J7 -> 0.2208864506 | AE20: =Data!K7 -> -0.2304493448 | AG20: =Data!L7 -> -0.8366101508
A21: =INDIRECT("Data!H"&$B$2+17) -> 0 | B21: =INDIRECT("Data!J"&$B$2+17) -> 0 | C21: =INDIRECT("Data!K"&$B$2+17) -> 0 | D21: =INDIRECT("Data!L"&$B$2+17) -> 0 | N21: =$N$20 -> EUR/USD, Mar 19 | S21: =$S$20 -> 0.3495572648 | U21: =$U$20 -> 0.1773077918 | V21: =$V$20 -> 0.1162775233 | X21: =$X$20 -> 0.74604858 | Y21: =$Y$20 -> 0.04507716566 | AA21: =$AA$20 -> -0.2032546188 | AB21: =$AB$20 -> -0.1653467498 | AD21: =$AD$20 -> 0.2208864506 | AE21: =$AE$20 -> -0.2304493448 | AG21: =$AG$20 -> -0.8366101508
A22: =INDIRECT("Data!H"&$B$2+18) -> 0 | B22: =INDIRECT("Data!J"&$B$2+18) -> 0 | C22: =INDIRECT("Data!K"&$B$2+18) -> 0 | D22: =INDIRECT("Data!L"&$B$2+18) -> 0 | N22: =RTD("cqg.rtd", ,"ContractData",Symbols!B10, "LongDescription",, "T") -> RTS Index, Mar 19 | R22: =Symbols!B10 -> FRI | S22: =Data!C8 -> -0.08287065769 | U22: =Data!D8 -> -0.2482374225 | V22: =Data!E8 -> -0.3415125018 | X22: =Data!F8 -> 0.3029148127 | Y22: =Data!G8 -> -0.4429494838 | AA22: =Data!H8 -> -0.6253257367 | AB22: =Data!I8 -> -0.6017919749 | AD22: =Data!J8 -> -0.02978714393 | AE22: =Data!K8 -> -0.06432022098 | AG22: =Data!L8 -> -0.4441902518
A23: =INDIRECT("Data!H"&$B$2+19) -> 0 | B23: =INDIRECT("Data!J"&$B$2+19) -> 0 | C23: =INDIRECT("Data!K"&$B$2+19) -> 0 | D23: =INDIRECT("Data!L"&$B$2+19) -> 0 | N23: =$N$22 -> RTS Index, Mar 19 | S23: =$S$22 -> -0.08287065769 | U23: =$U$22 -> -0.2482374225 | V23: =$V$22 -> -0.3415125018 | X23: =$X$22 -> 0.3029148127 | Y23: =$Y$22 -> -0.4429494838 | AA23: =$AA$22 -> -0.6253257367 | AB23: =$AB$22 -> -0.6017919749 | AD23: =$AD$22 -> -0.02978714393 | AE23: =$AE$22 -> -0.06432022098 | AG23: =$AG$22 -> -0.4441902518
A24: =INDIRECT("Data!H"&$B$2+20) -> 0 | B24: =INDIRECT("Data!J"&$B$2+20) -> 0 | C24: =INDIRECT("Data!K"&$B$2+20) -> 0 | D24: =INDIRECT("Data!L"&$B$2+20) -> 0 | N24: =RTD("cqg.rtd", ,"ContractData",Symbols!B11, "LongDescription",, "T") -> Euro FX (Globex), Mar 19 | R24: =Symbols!B11 -> EU6 | S24: =Data!C9 -> 0.1826044091 | U24: =Data!D9 -> -0.02283008277 | V24: =Data!E9 -> -0.04951770355 | X24: =Data!F9 -> 0.7660380624 | Y24: =Data!G9 -> 0.05165462898 | AA24: =Data!H9 -> -0.1125120461 | AB24: =Data!I9 -> -0.05389284262 | AD24: =Data!J9 -> 0.3309710836 | AE24: =Data!K9 -> 0.06539763663 | AG24: =Data!L9 -> -0.9691758759
A25: =INDIRECT("Data!H"&$B$2+21) -> 0 | B25: =INDIRECT("Data!J"&$B$2+21) -> 0 | C25: =INDIRECT("Data!K"&$B$2+21) -> 0 | D25: =INDIRECT("Data!L"&$B$2+21) -> 0 | N25: =$N$24 -> Euro FX (Globex), Mar 19 | S25: =$S$24 -> 0.1826044091 | U25: =$U$24 -> -0.02283008277 | V25: =$V$24 -> -0.04951770355 | X25: =$X$24 -> 0.7660380624 | Y25: =$Y$24 -> 0.05165462898 | AA25: =$AA$24 -> -0.1125120461 | AB25: =$AB$24 -> -0.05389284262 | AD25: =$AD$24 -> 0.3309710836 | AE25: =$AE$24 -> 0.06539763663 | AG25: =$AG$24 -> -0.9691758759
A26: =INDIRECT("Data!H"&$B$2+22) -> 0 | B26: =INDIRECT("Data!J"&$B$2+22) -> 0 | C26: =INDIRECT("Data!K"&$B$2+22) -> 0 | D26: =INDIRECT("Data!L"&$B$2+22) -> 0 | E26: =TEXT(X32,"#.00")&" Correlation to the "&RTD("cqg.rtd",,"ContractData",'1'!U2,"LongDescription",,"T") -> -.36 Correlation to the Swiss Franc (Globex), Mar 19 | N26: =RTD("cqg.rtd", ,"ContractData",Symbols!B12, "LongDescription",, "T") -> Japanese Yen (Globex), Mar 19 | R26: =Symbols!B12 -> JY6 | S26: =Data!C10 -> -0.7500683064 | U26: =Data!D10 -> -0.8515081703 | V26: =Data!E10 -> -0.8587486109 | X26: =Data!F10 -> 0.1298213048 | Y26: =Data!G10 -> -0.6308328933 | AA26: =Data!H10 -> -0.6566080921 | AB26: =Data!I10 -> -0.6418357587 | AD26: =Data!J10 -> -0.7667837534 | AE26: =Data!K10 -> 0.7402654705 | AG26: =Data!L10 -> -0.1180189027
A27: =INDIRECT("Data!H"&$B$2+23) -> 0 | B27: =INDIRECT("Data!J"&$B$2+23) -> 0 | C27: =INDIRECT("Data!K"&$B$2+23) -> 0 | D27: =INDIRECT("Data!L"&$B$2+23) -> 0 | N27: =$N$26 -> Japanese Yen (Globex), Mar 19 | S27: =$S$26 -> -0.7500683064 | U27: =$U$26 -> -0.8515081703 | V27: =$V$26 -> -0.8587486109 | X27: =$X$26 -> 0.1298213048 | Y27: =$Y$26 -> -0.6308328933 | AA27: =$AA$26 -> -0.6566080921 | AB27: =$AB$26 -> -0.6418357587 | AD27: =$AD$26 -> -0.7667837534 | AE27: =$AE$26 -> 0.7402654705 | AG27: =$AG$26 -> -0.1180189027
A28: =INDIRECT("Data!H"&$B$2+24) -> 0 | B28: =INDIRECT("Data!J"&$B$2+24) -> 0 | C28: =INDIRECT("Data!K"&$B$2+24) -> 0 | D28: =INDIRECT("Data!L"&$B$2+24) -> 0 | N28: =RTD("cqg.rtd", ,"ContractData",Symbols!B13, "LongDescription",, "T") -> Australian Dollar (Globex), Mar 19 | R28: =Symbols!B13 -> DA6 | S28: =Data!C11 -> 0.1589978571 | U28: =Data!D11 -> -0.006367567847 | V28: =Data!E11 -> -0.005387177875 | X28: =Data!F11 -> 0.4492320849 | Y28: =Data!G11 -> 0.1899244603 | AA28: =Data!H11 -> 0.08025939912 | AB28: =Data!I11 -> 0.1243613779 | AD28: =Data!J11 -> 0.03206238162 | AE28: =Data!K11 -> 0.3463506156 | AG28: =Data!L11 -> -0.589065775
A29: =INDIRECT("Data!H"&$B$2+25) -> 0 | B29: =INDIRECT("Data!J"&$B$2+25) -> 0 | C29: =INDIRECT("Data!K"&$B$2+25) -> 0 | D29: =INDIRECT("Data!L"&$B$2+25) -> 0 | N29: =$N$28 -> Australian Dollar (Globex), Mar 19 | S29: =$S$28 -> 0.1589978571 | U29: =$U$28 -> -0.006367567847 | V29: =$V$28 -> -0.005387177875 | X29: =$X$28 -> 0.4492320849 | Y29: =$Y$28 -> 0.1899244603 | AA29: =$AA$28 -> 0.08025939912 | AB29: =$AB$28 -> 0.1243613779 | AD29: =$AD$28 -> 0.03206238162 | AE29: =$AE$28 -> 0.3463506156 | AG29: =$AG$28 -> -0.589065775
A30: =INDIRECT("Data!H"&$B$2+26) -> 0 | B30: =INDIRECT("Data!J"&$B$2+26) -> 0 | C30: =INDIRECT("Data!K"&$B$2+26) -> 0 | D30: =INDIRECT("Data!L"&$B$2+26) -> 0 | N30: =RTD("cqg.rtd", ,"ContractData",Symbols!B14, "LongDescription",, "T") -> British Pound (Globex), Mar 19 | R30: =Symbols!B14 -> BP6 | S30: =Data!C12 -> 0.7748585626 | U30: =Data!D12 -> 0.7524765384 | V30: =Data!E12 -> 0.7535907411 | X30: =Data!F12 -> 0.5446454088 | Y30: =Data!G12 -> 0.6117124266 | AA30: =Data!H12 -> 0.5643730617 | AB30: =Data!I12 -> 0.6027255995 | AD30: =Data!J12 -> 0.8320018034 | AE30: =Data!K12 -> -0.3089647839 | AG30: =Data!L12 -> -0.6298063858
A31: =INDIRECT("Data!H"&$B$2+27) -> 0 | B31: =INDIRECT("Data!J"&$B$2+27) -> 0 | C31: =INDIRECT("Data!K"&$B$2+27) -> 0 | D31: =INDIRECT("Data!L"&$B$2+27) -> 0 | N31: =$N$30 -> British Pound (Globex), Mar 19 | S31: =$S$30 -> 0.7748585626 | U31: =$U$30 -> 0.7524765384 | V31: =$V$30 -> 0.7535907411 | X31: =$X$30 -> 0.5446454088 | Y31: =$Y$30 -> 0.6117124266 | AA31: =$AA$30 -> 0.5643730617 | AB31: =$AB$30 -> 0.6027255995 | AD31: =$AD$30 -> 0.8320018034 | AE31: =$AE$30 -> -0.3089647839 | AG31: =$AG$30 -> -0.6298063858
A32: =INDIRECT("Data!H"&$B$2+28) -> 0 | B32: =INDIRECT("Data!J"&$B$2+28) -> 0 | C32: =INDIRECT("Data!K"&$B$2+28) -> 0 | D32: =INDIRECT("Data!L"&$B$2+28) -> 0 | N32: =$N$12 -> USD/RUB, Mar 19 | S32: =$S$12 -> -0.4318635251 | U32: =$U$12 -> -0.3735613345 | V32: =$V$12 -> -0.3342949882 | X32: =$X$12 -> -0.3584813945 | Y32: =$Y$12 -> -0.2232703849 | AA32: =$AA$12 -> -0.1206289336 | AB32: =$AB$12 -> -0.149907575 | AD32: =$AD$12 -> -0.498785227 | AE32: =$AE$12 -> 0.2458377669 | AG32: =$AG$12 -> 0.3647844535
A33: =INDIRECT("Data!H"&$B$2+29) -> 0 | B33: =INDIRECT("Data!J"&$B$2+29) -> 0 | C33: =INDIRECT("Data!K"&$B$2+29) -> 0 | D33: =INDIRECT("Data!L"&$B$2+29) -> 0 | E33: =TEXT(Y32,"#.00")&" Correlation to the "&RTD("cqg.rtd",,"ContractData",'1'!AA2,"LongDescription",,"T") -> -.22 Correlation to the Crude Light (Globex), Apr 19 | N33: ="Correlations relative to the "&N32&" City of Moscow, Russia" -> Correlations relative to the USD/RUB, Mar 19 City of Moscow, Russia
A34: =INDIRECT("Data!H"&$B$2+30) -> 0 | B34: =INDIRECT("Data!J"&$B$2+30) -> 0 | C34: =INDIRECT("Data!K"&$B$2+30) -> 0 | D34: =INDIRECT("Data!L"&$B$2+30) -> 0
A35: =INDIRECT("Data!H"&$B$2+31) -> 0 | B35: =INDIRECT("Data!J"&$B$2+31) -> 0 | C35: =INDIRECT("Data!K"&$B$2+31) -> 0 | D35: =INDIRECT("Data!L"&$B$2+31) -> 0
A36: =INDIRECT("Data!H"&$B$2+32) -> 0 | B36: =INDIRECT("Data!J"&$B$2+32) -> 0 | C36: =INDIRECT("Data!K"&$B$2+32) -> 0 | D36: =INDIRECT("Data!L"&$B$2+32) -> 0 | E36: =TEXT(AA32,"#.00")&" Correlation to the "&RTD("cqg.rtd",,"ContractData",'1'!AG2,"LongDescription",,"T") -> -.12 Correlation to the NY Harbor ULSD, Apr 19
A37: =INDIRECT("Data!H"&$B$2+33) -> 0 | B37: =INDIRECT("Data!J"&$B$2+33) -> 0 | C37: =INDIRECT("Data!K"&$B$2+33) -> 0 | D37: =INDIRECT("Data!L"&$B$2+33) -> 0
A38: =INDIRECT("Data!H"&$B$2+34) -> 0 | B38: =INDIRECT("Data!J"&$B$2+34) -> 0 | C38: =INDIRECT("Data!K"&$B$2+34) -> 0 | D38: =INDIRECT("Data!L"&$B$2+34) -> 0
A39: =INDIRECT("Data!H"&$B$2+35) -> 0 | B39: =INDIRECT("Data!J"&$B$2+35) -> 0 | C39: =INDIRECT("Data!K"&$B$2+35) -> 0 | D39: =INDIRECT("Data!L"&$B$2+35) -> 0 | E39: =TEXT(AB32,"#.00")&" Correlation to the "&RTD("cqg.rtd",,"ContractData",'1'!AM2,"LongDescription",,"T") -> -.15 Correlation to the RBOB Gasoline (Globex), Apr 19
A40: =INDIRECT("Data!H"&$B$2+36) -> 0 | B40: =INDIRECT("Data!J"&$B$2+36) -> 0 | C40: =INDIRECT("Data!K"&$B$2+36) -> 0 | D40: =INDIRECT("Data!L"&$B$2+36) -> 0
A41: =INDIRECT("Data!H"&$B$2+35) -> 0 | B41: =INDIRECT("Data!J"&$B$2+35) -> 0 | C41: =INDIRECT("Data!K"&$B$2+35) -> 0 | D41: =INDIRECT("Data!L"&$B$2+35) -> 0
A42: =INDIRECT("Data!H"&$B$2+38) -> 0 | B42: =INDIRECT("Data!J"&$B$2+38) -> 0 | C42: =INDIRECT("Data!K"&$B$2+38) -> 0 | D42: =INDIRECT("Data!L"&$B$2+38) -> 0 | E42: =TEXT(AD32,"#.00")&" Correlation to the "&RTD("cqg.rtd",,"ContractData",'1'!AS2,"LongDescription",,"T") -> -.50 Correlation to the Natural Gas (Globex), Apr 19
A43: =INDIRECT("Data!H"&$B$2+39) -> 0 | B43: =INDIRECT("Data!J"&$B$2+39) -> 0 | C43: =INDIRECT("Data!K"&$B$2+39) -> 0 | D43: =INDIRECT("Data!L"&$B$2+39) -> 0
A44: =INDIRECT("Data!H"&$B$2+40) -> 0 | B44: =INDIRECT("Data!J"&$B$2+40) -> 0 | C44: =INDIRECT("Data!K"&$B$2+40) -> 0 | D44: =INDIRECT("Data!L"&$B$2+40) -> 0
A45: =INDIRECT("Data!H"&$B$2+41) -> 0 | B45: =INDIRECT("Data!J"&$B$2+41) -> 0 | C45: =INDIRECT("Data!K"&$B$2+41) -> 0 | D45: =INDIRECT("Data!L"&$B$2+41) -> 0 | E45: =TEXT(AE32,"#.00")&" Correlation to the "&RTD("cqg.rtd",,"ContractData",'1'!AY2,"LongDescription",,"T") -> .25 Correlation to the 10yr US Treasury Notes (Globex), Jun 19
A46: =INDIRECT("Data!H"&$B$2+42) -> 0 | B46: =INDIRECT("Data!J"&$B$2+42) -> 0 | C46: =INDIRECT("Data!K"&$B$2+42) -> 0 | D46: =INDIRECT("Data!L"&$B$2+42) -> 0
A47: =INDIRECT("Data!H"&$B$2+43) -> 0 | B47: =INDIRECT("Data!J"&$B$2+43) -> 0 | C47: =INDIRECT("Data!K"&$B$2+43) -> 0 | D47: =INDIRECT("Data!L"&$B$2+43) -> 0
E48: =TEXT(AG32,"#.00")&" Correlation to the "&RTD("cqg.rtd",,"ContractData",'1'!BE2,"LongDescription",,"T") -> .36 Correlation to the Dollar Index (ICE), Mar 19
A51: =INDIRECT("Data!H"&$B$2+47) -> 0 | B51: =INDIRECT("Data!J"&$B$2+47) -> 0 | C51: =INDIRECT("Data!K"&$B$2+47) -> 0 | D51: =INDIRECT("Data!L"&$B$2+47) -> 0 | E51: =RTD("cqg.rtd", ,"ContractData",Symbols!D3, "LongDescription",, "T") -> DAX Index, Mar 19 | H51: =RTD("cqg.rtd", ,"ContractData",Symbols!E3, "LongDescription",, "T") -> Euro STOXX 50, Mar 19 | K51: =RTD("cqg.rtd", ,"ContractData",Symbols!F3, "LongDescription",, "T") -> CAC40, Mar 19 | N51: =RTD("cqg.rtd", ,"ContractData",Symbols!G3, "LongDescription",, "T") -> Swiss Franc (Globex), Mar 19 | Q51: =RTD("cqg.rtd", ,"ContractData",Symbols!H3, "LongDescription",, "T") -> Crude Light (Globex), Apr 19 | T51: =RTD("cqg.rtd", ,"ContractData",Symbols!I3, "LongDescription",, "T") -> NY Harbor ULSD, Apr 19 | W51: =RTD("cqg.rtd", ,"ContractData",Symbols!J3, "LongDescription",, "T") -> RBOB Gasoline (Globex), Apr 19 | Z51: =RTD("cqg.rtd", ,"ContractData",Symbols!K3, "LongDescription",, "T") -> Natural Gas (Globex), Apr 19 | AC51: =RTD("cqg.rtd", ,"ContractData",Symbols!L3, "LongDescription",, "T") -> 10yr US Treasury Notes (Globex), Jun 19 | AF51: =RTD("cqg.rtd", ,"ContractData",Symbols!M3, "LongDescription",, "T") -> Dollar Index (ICE), Mar 19
A52: =INDIRECT("Data!H"&$B$2+48) -> 0 | B52: =INDIRECT("Data!J"&$B$2+48) -> 0 | C52: =INDIRECT("Data!K"&$B$2+48) -> 0 | D52: =INDIRECT("Data!L"&$B$2+48) -> 0 | E52: =IF(Symbols!D4="B",RTD("cqg.rtd",,"ContractData",Symbols!D3,"LastTrade",,"B"),TEXT(RTD("cqg.rtd",,"ContractData",Symbols!D3,"LastTrade",,"T"),Symbols!D2)) -> 11629.50 | H52: =IF(Symbols!E4="B",RTD("cqg.rtd",,"ContractData",Symbols!E3,"LastTrade",,"B"),TEXT(RTD("cqg.rtd",,"ContractData",Symbols!E3,"LastTrade",,"T"),Symbols!E2)) -> 3325 | K52: =IF(Symbols!F4="B",RTD("cqg.rtd",,"ContractData",Symbols!F3,"LastTrade",,"B"),TEXT(RTD("cqg.rtd",,"ContractData",Symbols!F3,"LastTrade",,"T"),Symbols!F2)) -> 5300.00 | N52: =IF(Symbols!G4="B",RTD("cqg.rtd",,"ContractData",Symbols!G3,"LastTrade",,"B"),TEXT(RTD("cqg.rtd",,"ContractData",Symbols!G3,"LastTrade",,"T"),Symbols!G2)) -> 1.0010 | Q52: =IF(Symbols!H4="B",RTD("cqg.rtd",,"ContractData",Symbols!H3,"LastTrade",,"B"),TEXT(RTD("cqg.rtd",,"ContractData",Symbols!H3,"LastTrade",,"T"),Symbols!H2)) -> 56.73 | T52: =IF(Symbols!I4="B",RTD("cqg.rtd",,"ContractData",Symbols!I3,"LastTrade",,"B"),TEXT(RTD("cqg.rtd",,"ContractData",Symbols!I3,"LastTrade",,"T"),Symbols!I2)) -> 2.0274 | W52: =IF(Symbols!J4="B",RTD("cqg.rtd",,"ContractData",Symbols!J3,"LastTrade",,"B"),TEXT(RTD("cqg.rtd",,"ContractData",Symbols!J3,"LastTrade",,"T"),Symbols!J2)) -> 1.7576 | Z52: =IF(Symbols!K4="B",RTD("cqg.rtd",,"ContractData",Symbols!K3,"LastTrade",,"B"),TEXT(RTD("cqg.rtd",,"ContractData",Symbols!K3,"LastTrade",,"T"),Symbols!K2)) -> 2.847 | AC52: =IF(Symbols!L4="B",RTD("cqg.rtd",,"ContractData",Symbols!L3,"LastTrade",,"B"),TEXT(RTD("cqg.rtd",,"ContractData",Symbols!L3,"LastTrade",,"T"),Symbols!L2)) -> 121215 | AF52: =IF(Symbols!M4="B",RTD("cqg.rtd",,"ContractData",Symbols!M3,"LastTrade",,"B"),TEXT(RTD("cqg.rtd",,"ContractData",Symbols!M3,"LastTrade",,"T"),Symbols!M2)) -> 96.69
A53: =INDIRECT("Data!H"&$B$2+49) -> 0 | B53: =INDIRECT("Data!J"&$B$2+49) -> 0 | C53: =INDIRECT("Data!K"&$B$2+49) -> 0 | D53: =INDIRECT("Data!L"&$B$2+49) -> 0
E54: H: | F54: =IF(Symbols!D4="B",RTD("cqg.rtd",,"ContractData",Symbols!D3,"High",,"B"),TEXT(RTD("cqg.rtd",,"ContractData",Symbols!D3,"High",,"T"),Symbols!D2)) -> 11678.50 | G54: =IF(Symbols!D4="B",RTD("cqg.rtd",,"ContractData",Symbols!D3,"NetLastQuoteToday",,"B"),IF(RTD("cqg.rtd",,"ContractData",Symbols!D3,"NetLastQuoteToday",,"T")>0,"+"&TEXT(RTD("cqg.rtd",,"ContractData",Symbols!D3,"NetLastQuoteToday",,"T"),Symbols!D2),TEXT(RTD("cqg.rtd",,"ContractData",Symbols!D3,"NetLastQuoteToday",,"T"),Symbols!D2))) -> +30.50 | H54: H: | I54: =IF(Symbols!E4="B",RTD("cqg.rtd",,"ContractData",Symbols!E3,"High",,"B"),TEXT(RTD("cqg.rtd",,"ContractData",Symbols!E3,"High",,"T"),Symbols!E2)) -> 3333 | J54: =IF(Symbols!E4="B",RTD("cqg.rtd",,"ContractData",Symbols!E3,"NetLastQuoteToday",,"B"),IF(RTD("cqg.rtd",,"ContractData",Symbols!E3,"NetLastQuoteToday",,"T")>0,"+"&TEXT(RTD("cqg.rtd",,"ContractData",Symbols!E3,"NetLastQuoteToday",,"T"),Symbols!E2),TEXT(RTD("cqg.rtd",,"ContractData",Symbols!E3,"NetLastQuoteToday",,"T"),Symbols!E2))) -> +13 | K54: H: | L54: =IF(Symbols!F4="B",RTD("cqg.rtd",,"ContractData",Symbols!F3,"High",,"B"),TEXT(RTD("cqg.rtd",,"ContractData",Symbols!F3,"High",,"T"),Symbols!F2)) -> 5309.50 | M54: =IF(Symbols!F4="B",RTD("cqg.rtd",,"ContractData",Symbols!F3,"NetLastQuoteToday",,"B"),IF(RTD("cqg.rtd",,"ContractData",Symbols!F3,"NetLastQuoteToday",,"T")>0,"+"&TEXT(RTD("cqg.rtd",,"ContractData",Symbols!F3,"NetLastQuoteToday",,"T"),Symbols!F2),TEXT(RTD("cqg.rtd",,"ContractData",Symbols!F3,"NetLastQuoteToday",,"T"),Symbols!F2))) -> +20.00 | N54: H: | O54: =IF(Symbols!M4="B",RTD("cqg.rtd",,"ContractData",Symbols!G3,"High",,"B"),TEXT(RTD("cqg.rtd",,"ContractData",Symbols!G3,"High",,"T"),Symbols!G2)) -> 1.0028 | P54: =IF(Symbols!G4="B",RTD("cqg.rtd",,"ContractData",Symbols!G3,"NetLastQuoteToday",,"B"),IF(RTD("cqg.rtd",,"ContractData",Symbols!G3,"NetLastQuoteToday",,"T")>0,"+"&TEXT(RTD("cqg.rtd",,"ContractData",Symbols!G3,"NetLastQuoteToday",,"T"),Symbols!G2),TEXT(RTD("cqg.rtd",,"ContractData",Symbols!G3,"NetLastQuoteToday",,"T"),Symbols!G2))) -> -.0008 | Q54: H: | R54: =IF(Symbols!H4="B",RTD("cqg.rtd",,"ContractData",Symbols!H3,"High",,"B"),TEXT(RTD("cqg.rtd",,"ContractData",Symbols!H3,"High",,"T"),Symbols!H2)) -> 57.00 | S54: =IF(Symbols!H4="B",RTD("cqg.rtd",,"ContractData",Symbols!H3,"NetLastQuoteToday",,"B"),IF(RTD("cqg.rtd",,"ContractData",Symbols!H3,"NetLastQuoteToday",,"T")>0,"+"&TEXT(RTD("cqg.rtd",,"ContractData",Symbols!H3,"NetLastQuoteToday",,"T"),Symbols!H2),TEXT(RTD("cqg.rtd",,"ContractData",Symbols!H3,"NetLastQuoteToday",,"T"),Symbols!H2))) -> +.94 | T54: H: | U54: =IF(Symbols!I4="B",RTD("cqg.rtd",,"ContractData",Symbols!I3,"High",,"B"),TEXT(RTD("cqg.rtd",,"ContractData",Symbols!I3,"High",,"T"),Symbols!I2)) -> 2.0377 | V54: =IF(Symbols!I4="B",RTD("cqg.rtd",,"ContractData",Symbols!I3,"NetLastQuoteToday",,"B"),IF(RTD("cqg.rtd",,"ContractData",Symbols!I3,"NetLastQuoteToday",,"T")>0,"+"&TEXT(RTD("cqg.rtd",,"ContractData",Symbols!I3,"NetLastQuoteToday",,"T"),Symbols!I2),TEXT(RTD("cqg.rtd",,"ContractData",Symbols!I3,"NetLastQuoteToday",,"T"),Symbols!I2))) -> +.0262 | W54: H: | X54: =IF(Symbols!J4="B",RTD("cqg.rtd",,"ContractData",Symbols!J3,"High",,"B"),TEXT(RTD("cqg.rtd",,"ContractData",Symbols!J3,"High",,"T"),Symbols!J2)) -> 1.7660 | Y54: =IF(Symbols!J4="B",RTD("cqg.rtd",,"ContractData",Symbols!J3,"NetLastQuoteToday",,"B"),IF(RTD("cqg.rtd",,"ContractData",Symbols!J3,"NetLastQuoteToday",,"T")>0,"+"&TEXT(RTD("cqg.rtd",,"ContractData",Symbols!J3,"NetLastQuoteToday",,"T"),Symbols!J2),TEXT(RTD("cqg.rtd",,"ContractData",Symbols!J3,"NetLastQuoteToday",,"T"),Symbols!J2))) -> +.0272 | Z54: H: | AA54: =IF(Symbols!K4="B",RTD("cqg.rtd",,"ContractData",Symbols!K3,"High",,"B"),TEXT(RTD("cqg.rtd",,"ContractData",Symbols!K3,"High",,"T"),Symbols!K2)) -> 2.888 | AB54: =IF(Symbols!K4="B",RTD("cqg.rtd",,"ContractData",Symbols!K3,"NetLastQuoteToday",,"B"),IF(RTD("cqg.rtd",,"ContractData",Symbols!K3,"NetLastQuoteToday",,"T")>0,"+"&TEXT(RTD("cqg.rtd",,"ContractData",Symbols!K3,"NetLastQuoteToday",,"T"),Symbols!K2),TEXT(RTD("cqg.rtd",,"ContractData",Symbols!K3,"NetLastQuoteToday",,"T"),Symbols!K2))) -> -.012 | AC54: H: | AD54: =IF(Symbols!L4="B",RTD("cqg.rtd",,"ContractData",Symbols!L3,"High",,"B"),TEXT(RTD("cqg.rtd",,"ContractData",Symbols!L3,"High",,"T"),Symbols!L2)) -> 121240 | AE54: =IF(Symbols!L4="B",RTD("cqg.rtd",,"ContractData",Symbols!L3,"NetLastQuoteToday",,"B"),IF(RTD("cqg.rtd",,"ContractData",Symbols!L3,"NetLastQuoteToday",,"T")>0,"+"&TEXT(RTD("cqg.rtd",,"ContractData",Symbols!L3,"NetLastQuoteToday",,"T"),Symbols!L2),TEXT(RTD("cqg.rtd",,"ContractData",Symbols!L3,"NetLastQuoteToday",,"T"),Symbols!L2))) -> +5 | AF54: H: | AG54: =IF(Symbols!M4="B",RTD("cqg.rtd",,"ContractData",Symbols!M3,"High",,"B"),TEXT(RTD("cqg.rtd",,"ContractData",Symbols!M3,"High",,"T"),Symbols!M2)) -> 96.75 | AH54: =IF(Symbols!M4="B",RTD("cqg.rtd",,"ContractData",Symbols!M3,"NetLastQuoteToday",,"B"),IF(RTD("cqg.rtd",,"ContractData",Symbols!M3,"NetLastQuoteToday",,"T")>0,"+"&TEXT(RTD("cqg.rtd",,"ContractData",Symbols!M3,"NetLastQuoteToday",,"T"),Symbols!M2),TEXT(RTD("cqg.rtd",,"ContractData",Symbols!M3,"NetLastQuoteToday",,"T"),Symbols!M2))) -> +.25
E55: L: | F55: =IF(Symbols!D4="B",RTD("cqg.rtd",,"ContractData",Symbols!D3,"Low",,"B"),TEXT(RTD("cqg.rtd",,"ContractData",Symbols!D3,"Low",,"T"),Symbols!D2)) -> 11594.00 | G55: =IFERROR(RTD("cqg.rtd", ,"ContractData",Symbols!D3, "PerCentNetLastQuote",, "T")/100,"") -> 0.002629423682 | H55: L: | I55: =IF(Symbols!E4="B",RTD("cqg.rtd",,"ContractData",Symbols!E3,"Low",,"B"),TEXT(RTD("cqg.rtd",,"ContractData",Symbols!E3,"Low",,"T"),Symbols!E2)) -> 3314 | J55: =IFERROR(RTD("cqg.rtd", ,"ContractData",Symbols!E3, "PerCentNetLastQuote",, "T")/100,"") -> 0.003925120773 | K55: L: | L55: =IF(Symbols!F4="B",RTD("cqg.rtd",,"ContractData",Symbols!F3,"Low",,"B"),TEXT(RTD("cqg.rtd",,"ContractData",Symbols!F3,"Low",,"T"),Symbols!F2)) -> 5285.50 | M55: =IFERROR(RTD("cqg.rtd", ,"ContractData",Symbols!F3, "PerCentNetLastQuote",, "T")/100,"") -> 0.003787878788 | N55: L: | O55: =IF(Symbols!G4="B",RTD("cqg.rtd",,"ContractData",Symbols!G3,"Low",,"B"),TEXT(RTD("cqg.rtd",,"ContractData",Symbols!G3,"Low",,"T"),Symbols!G2)) -> .9993 | P55: =IFERROR(RTD("cqg.rtd", ,"ContractData",Symbols!G3, "PerCentNetLastQuote",, "T")/100,"") -> -0.0007985625873 | Q55: L: | R55: =IF(Symbols!H4="B",RTD("cqg.rtd",,"ContractData",Symbols!H3,"Low",,"B"),TEXT(RTD("cqg.rtd",,"ContractData",Symbols!H3,"Low",,"T"),Symbols!H2)) -> 55.81 | S55: =IFERROR(RTD("cqg.rtd", ,"ContractData",Symbols!H3, "PerCentNetLastQuote",, "T")/100,"") -> 0.01684587814 | T55: L: | U55: =IF(Symbols!I4="B",RTD("cqg.rtd",,"ContractData",Symbols!I3,"Low",,"B"),TEXT(RTD("cqg.rtd",,"ContractData",Symbols!I3,"Low",,"T"),Symbols!I2)) -> 1.9995 | V55: =IFERROR(RTD("cqg.rtd", ,"ContractData",Symbols!I3, "PerCentNetLastQuote",, "T")/100,"") -> 0.01309345327 | W55: L: | X55: =IF(Symbols!J4="B",RTD("cqg.rtd",,"ContractData",Symbols!J3,"Low",,"B"),TEXT(RTD("cqg.rtd",,"ContractData",Symbols!J3,"Low",,"T"),Symbols!J2)) -> 1.7285 | Y55: =IFERROR(RTD("cqg.rtd", ,"ContractData",Symbols!J3, "PerCentNetLastQuote",, "T")/100,"") -> 0.01571981737 | Z55: L: | AA55: =IF(Symbols!K4="B",RTD("cqg.rtd",,"ContractData",Symbols!K3,"Low",,"B"),TEXT(RTD("cqg.rtd",,"ContractData",Symbols!K3,"Low",,"T"),Symbols!K2)) -> 2.821 | AB55: =IFERROR(RTD("cqg.rtd", ,"ContractData",Symbols!K3, "PerCentNetLastQuote",, "T")/100,"") -> -0.004197271773 | AC55: L: | AD55: =IF(Symbols!L4="B",RTD("cqg.rtd",,"ContractData",Symbols!L3,"Low",,"B"),TEXT(RTD("cqg.rtd",,"ContractData",Symbols!L3,"Low",,"T"),Symbols!L2)) -> 121155 | AE55: =IFERROR(RTD("cqg.rtd", ,"ContractData",Symbols!L3, "PerCentNetLastQuote",, "T")/100,"") -> 0.0001284521516 | AF55: L: | AG55: =IF(Symbols!M4="B",RTD("cqg.rtd",,"ContractData",Symbols!M3,"Low",,"B"),TEXT(RTD("cqg.rtd",,"ContractData",Symbols!M3,"Low",,"T"),Symbols!M2)) -> 96.26 | AH55: =IFERROR(RTD("cqg.rtd", ,"ContractData",Symbols!M3, "PerCentNetLastQuote",, "T")/100,"") -> 0.002540176257
F56: Copyright © 2017 | J56: Chicago: | L56: =RTD("cqg.rtd", ,"SystemInfo", "Linetime") -> 43528.40632 | O56: Designed by Thom Hartle

Sheet Symbols
D2: =IF(Symbols!D4="B","B",IF(Symbols!D4=0,0,IF(Symbols!D4=1,"#.0",IF(Symbols!D4=2,"#.00",IF(Symbols!D4=3,"#.000",IF(Symbols!D4=4,"#.0000",IF(Symbols!D4=5,"#.00000",IF(Symbols!D4=6,"#.000000",IF(Symbols!D4=7,"#.0000000"))))))))) -> #.00 | E2: =IF(Symbols!E4="B","B",IF(Symbols!E4=0,0,IF(Symbols!E4=1,"#.0",IF(Symbols!E4=2,"#.00",IF(Symbols!E4=3,"#.000",IF(Symbols!E4=4,"#.0000",IF(Symbols!E4=5,"#.00000",IF(Symbols!E4=6,"#.000000",IF(Symbols!E4=7,"#.0000000"))))))))) -> 0 | F2: =IF(Symbols!F4="B","B",IF(Symbols!F4=0,0,IF(Symbols!F4=1,"#.0",IF(Symbols!F4=2,"#.00",IF(Symbols!F4=3,"#.000",IF(Symbols!F4=4,"#.0000",IF(Symbols!F4=5,"#.00000",IF(Symbols!F4=6,"#.000000",IF(Symbols!F4=7,"#.0000000"))))))))) -> #.00 | G2: =IF(Symbols!G4="B","B",IF(Symbols!G4=0,0,IF(Symbols!G4=1,"#.0",IF(Symbols!G4=2,"#.00",IF(Symbols!G4=3,"#.000",IF(Symbols!G4=4,"#.0000",IF(Symbols!G4=5,"#.00000",IF(Symbols!G4=6,"#.000000",IF(Symbols!G4=7,"#.0000000"))))))))) -> #.0000 | H2: =IF(Symbols!H4="B","B",IF(Symbols!H4=0,0,IF(Symbols!H4=1,"#.0",IF(Symbols!H4=2,"#.00",IF(Symbols!H4=3,"#.000",IF(Symbols!H4=4,"#.0000",IF(Symbols!H4=5,"#.00000",IF(Symbols!H4=6,"#.000000",IF(Symbols!H4=7,"#.0000000"))))))))) -> #.00 | I2: =IF(Symbols!I4="B","B",IF(Symbols!I4=0,0,IF(Symbols!I4=1,"#.0",IF(Symbols!I4=2,"#.00",IF(Symbols!I4=3,"#.000",IF(Symbols!I4=4,"#.0000",IF(Symbols!I4=5,"#.00000",IF(Symbols!I4=6,"#.000000",IF(Symbols!I4=7,"#.0000000"))))))))) -> #.0000 | J2: =IF(Symbols!J4="B","B",IF(Symbols!J4=0,0,IF(Symbols!J4=1,"#.0",IF(Symbols!J4=2,"#.00",IF(Symbols!J4=3,"#.000",IF(Symbols!J4=4,"#.0000",IF(Symbols!J4=5,"#.00000",IF(Symbols!J4=6,"#.000000",IF(Symbols!J4=7,"#.0000000"))))))))) -> #.0000 | K2: =IF(Symbols!K4="B","B",IF(Symbols!K4=0,0,IF(Symbols!K4=1,"#.0",IF(Symbols!K4=2,"#.00",IF(Symbols!K4=3,"#.000",IF(Symbols!K4=4,"#.0000",IF(Symbols!K4=5,"#.00000",IF(Symbols!K4=6,"#.000000",IF(Symbols!K4=7,"#.0000000"))))))))) -> #.000 | L2: =IF(Symbols!L4="B","B",IF(Symbols!L4=0,0,IF(Symbols!L4=1,"#.0",IF(Symbols!L4=2,"#.00",IF(Symbols!L4=3,"#.000",IF(Symbols!L4=4,"#.0000",IF(Symbols!L4=5,"#.00000",IF(Symbols!L4=6,"#.000000",IF(Symbols!L4=7,"#.0000000"))))))))) -> B | M2: =IF(Symbols!M4="B","B",IF(Symbols!M4=0,0,IF(Symbols!M4=1,"#.0",IF(Symbols!M4=2,"#.00",IF(Symbols!M4=3,"#.000",IF(Symbols!M4=4,"#.0000",IF(Symbols!M4=5,"#.00000",IF(Symbols!M4=6,"#.000000",IF(Symbols!M4=7,"#.0000000"))))))))) -> #.00 | N2: =IF(Symbols!N4="B","B",IF(Symbols!N4=0,0,IF(Symbols!N4=1,"#.0",IF(Symbols!N4=2,"#.00",IF(Symbols!N4=3,"#.000",IF(Symbols!N4=4,"#.0000",IF(Symbols!N4=5,"#.00000",IF(Symbols!N4=6,"#.000000")))))))) -> 0
B3: Symbols | D3: DD | E3: DSX | F3: PIL | G3: SF6 | H3: CLE | I3: HOE | J3: RBE | K3: NGE | L3: TYA | M3: DXE
C4: Decimals | D4: 2 | E4: 0 | F4: 2 | G4: 4 | H4: 2 | I4: 4 | J4: 4 | K4: 3 | L4: B | M4: 2
B5: FUS | C5: 0 | D5: =IF(Symbols!C5="B","B",IF(Symbols!C5=0,0,IF(Symbols!C5=1,"#.0",IF(Symbols!C5=2,"#.00",IF(Symbols!C5=3,"#.000",IF(Symbols!C5=4,"#.0000",IF(Symbols!C5=5,"#.00000",IF(Symbols!C5=6,"#.000000",IF(Symbols!C5=7,"#.0000000"))))))))) -> 0
B6: FBR | C6: 0 | D6: =IF(Symbols!C6="B","B",IF(Symbols!C6=0,0,IF(Symbols!C6=1,"#.0",IF(Symbols!C6=2,"#.00",IF(Symbols!C6=3,"#.000",IF(Symbols!C6=4,"#.0000",IF(Symbols!C6=5,"#.00000",IF(Symbols!C6=6,"#.000000",IF(Symbols!C6=7,"#.0000000"))))))))) -> 0 | E6: Enter in, using all capitals, the symbols in the column to the left for the symbols in the first column of the Correlation matrix. This will also be the top row
B7: FSR | C7: 0 | D7: =IF(Symbols!C7="B","B",IF(Symbols!C7=0,0,IF(Symbols!C7=1,"#.0",IF(Symbols!C7=2,"#.00",IF(Symbols!C7=3,"#.000",IF(Symbols!C7=4,"#.0000",IF(Symbols!C7=5,"#.00000",IF(Symbols!C7=6,"#.000000",IF(Symbols!C7=7,"#.0000000"))))))))) -> 0 | E7: of market information on the main display. For price formatting, enter in the number of decimals or B for bonds and grains.
B8: FGZ | C8: 0 | D8: =IF(Symbols!C8="B","B",IF(Symbols!C8=0,0,IF(Symbols!C8=1,"#.0",IF(Symbols!C8=2,"#.00",IF(Symbols!C8=3,"#.000",IF(Symbols!C8=4,"#.0000",IF(Symbols!C8=5,"#.00000",IF(Symbols!C8=6,"#.000000",IF(Symbols!C8=7,"#.0000000"))))))))) -> 0
B9: FFED | C9: 5 | D9: =IF(Symbols!C9="B","B",IF(Symbols!C9=0,0,IF(Symbols!C9=1,"#.0",IF(Symbols!C9=2,"#.00",IF(Symbols!C9=3,"#.000",IF(Symbols!C9=4,"#.0000",IF(Symbols!C9=5,"#.00000",IF(Symbols!C9=6,"#.000000",IF(Symbols!C9=7,"#.0000000"))))))))) -> #.00000 | E9: Enter in, using all capitals, the symbols in the the top row above for the symbols along the top of the Correlation matrix. This will also be the bottom row
B10: FRI | C10: 0 | D10: =IF(Symbols!C10="B","B",IF(Symbols!C10=0,0,IF(Symbols!C10=1,"#.0",IF(Symbols!C10=2,"#.00",IF(Symbols!C10=3,"#.000",IF(Symbols!C10=4,"#.0000",IF(Symbols!C10=5,"#.00000",IF(Symbols!C10=6,"#.000000",IF(Symbols!C10=7,"#.0000000"))))))))) -> 0 | E10: of market information on the main display. Enter in the number of decimals or B for bonds and grains.
B11: EU6 | C11: 7 | D11: =IF(Symbols!C11="B","B",IF(Symbols!C11=0,0,IF(Symbols!C11=1,"#.0",IF(Symbols!C11=2,"#.00",IF(Symbols!C11=3,"#.000",IF(Symbols!C11=4,"#.0000",IF(Symbols!C11=5,"#.00000",IF(Symbols!C11=6,"#.000000",IF(Symbols!C11=7,"#.0000000"))))))))) -> #.0000000
B12: JY6 | C12: 4 | D12: =IF(Symbols!C12="B","B",IF(Symbols!C12=0,0,IF(Symbols!C12=1,"#.0",IF(Symbols!C12=2,"#.00",IF(Symbols!C12=3,"#.000",IF(Symbols!C12=4,"#.0000",IF(Symbols!C12=5,"#.00000",IF(Symbols!C12=6,"#.000000",IF(Symbols!C12=7,"#.0000000"))))))))) -> #.0000 | E12: Click the "Chart" toolbar button on the Correlation matrix on the main display to change the scattergram chart to display
B13: DA6 | C13: 4 | D13: =IF(Symbols!C13="B","B",IF(Symbols!C13=0,0,IF(Symbols!C13=1,"#.0",IF(Symbols!C13=2,"#.00",IF(Symbols!C13=3,"#.000",IF(Symbols!C13=4,"#.0000",IF(Symbols!C13=5,"#.00000",IF(Symbols!C13=6,"#.000000",IF(Symbols!C13=7,"#.0000000"))))))))) -> #.0000 | E13: that row of correlation values relative to the market in the same row listed in the first column.
B14: BP6 | C14: 6 | D14: =IF(Symbols!C14="B","B",IF(Symbols!C14=0,0,IF(Symbols!C14=1,"#.0",IF(Symbols!C14=2,"#.00",IF(Symbols!C14=3,"#.000",IF(Symbols!C14=4,"#.0000",IF(Symbols!C14=5,"#.00000",IF(Symbols!C14=6,"#.000000",IF(Symbols!C14=7,"#.0000000"))))))))) -> #.000000
E15: Enter in the time frame and look back period for the correlation analysis. Use ADC for daily bars.
E36: Adjust the time displayed on the main display by: | J36: 0 | K36: hours | L36: =J36/24 -> 0

Sheet Data (hidden)
A1: Lookback: | B1: =MainDisplay!P11 -> 20
A2: Time Frame: | B2: =MainDisplay!N11 -> ADC | C2: =Symbols!D3 -> DD | D2: =Symbols!E3 -> DSX | E2: =Symbols!F3 -> PIL | F2: =Symbols!G3 -> SF6 | G2: =Symbols!H3 -> CLE | H2: =Symbols!I3 -> HOE | I2: =Symbols!J3 -> RBE | J2: =Symbols!K3 -> NGE | K2: =Symbols!L3 -> TYA | L2: =Symbols!M3 -> DXE
A3: =Symbols!B5 -> FUS | C3: =RTD("cqg.rtd",,"StudyData", "Correlation("&$A$3&","&C$2&",Period:="&$B$1&",InputChoice1::=Close,InputChoice2::=Close)", "FG", "", "Close",$B$2, "0", "all","", "","True","T")/100 -> -0.4318635251 | D3: =RTD("cqg.rtd",,"StudyData", "Correlation("&$A$3&","&D$2&",Period:="&$B$1&",InputChoice1:=Close,InputChoice2:=Close)", "FG", "", "Close",$B$2, "0", "all","", "","True","T")/100 -> -0.3735613345 | E3: =RTD("cqg.rtd",,"StudyData", "Correlation("&$A$3&","&E$2&",Period:="&$B$1&",InputChoice1:=Close,InputChoice2:=Close)", "FG", "", "Close",$B$2, "0", "all","", "","True","T")/100 -> -0.3342949882 | F3: =RTD("cqg.rtd",,"StudyData", "Correlation("&$A$3&","&F$2&",Period:="&$B$1&",InputChoice1:=Close,InputChoice2:=Close)", "FG", "", "Close",$B$2, "0", "all","", "","True","T")/100 -> -0.3584813945 | G3: =RTD("cqg.rtd",,"StudyData", "Correlation("&$A$3&","&G$2&",Period:="&$B$1&",InputChoice1:=Close,InputChoice2:=Close)", "FG", "", "Close",$B$2, "0", "all","", "","True","T")/100 -> -0.2232703849 | H3: =RTD("cqg.rtd",,"StudyData", "Correlation("&$A$3&","&H$2&",Period:="&$B$1&",InputChoice1:=Close,InputChoice2:=Close)", "FG", "", "Close",$B$2, "0", "all","", "","True","T")/100 -> -0.1206289336 | I3: =RTD("cqg.rtd",,"StudyData", "Correlation("&$A$3&","&I$2&",Period:="&$B$1&",InputChoice1:=Close,InputChoice2:=Close)", "FG", "", "Close",$B$2, "0", "all","", "","True","T")/100 -> -0.149907575 | J3: =RTD("cqg.rtd",,"StudyData", "Correlation("&$A$3&","&J$2&",Period:="&$B$1&",InputChoice1:=Close,InputChoice2:=Close)", "FG", "", "Close",$B$2, "0", "all","", "","True","T")/100 -> -0.498785227 | K3: =RTD("cqg.rtd",,"StudyData", "Correlation("&$A$3&","&K$2&",Period:="&$B$1&",InputChoice1:=Close,InputChoice2:=Close)", "FG", "", "Close",$B$2, "0", "all","", "","True","T")/100 -> 0.2458377669 | L3: =RTD("cqg.rtd",,"StudyData", "Correlation("&$A$3&","&L$2&",Period:="&$B$1&",InputChoice1:=Close,InputChoice2:=Close)", "FG", "", "Close",$B$2, "0", "all","", "","True","T")/100 -> 0.3647844535
A4: =Symbols!B6 -> FBR | C4: =RTD("cqg.rtd",,"StudyData", "Correlation("&$A$4&","&C$2&",Period:="&$B$1&",InputChoice1::=Close,InputChoice2::=Close)", "FG", "", "Close",$B$2, "0", "all","", "","True","T")/100 -> 0.7029221431 | D4: =RTD("cqg.rtd",,"StudyData", "Correlation("&$A$4&","&D$2&",Period:="&$B$1&",InputChoice1:=Close,InputChoice2:=Close)", "FG", "", "Close",$B$2, "0", "all","", "","True","T")/100 -> 0.78205119 | E4: =RTD("cqg.rtd",,"StudyData", "Correlation("&$A$4&","&E$2&",Period:="&$B$1&",InputChoice1:=Close,InputChoice2:=Close)", "FG", "", "Close",$B$2, "0", "all","", "","True","T")/100 -> 0.8312112099 | F4: =RTD("cqg.rtd",,"StudyData", "Correlation("&$A$4&","&F$2&",Period:="&$B$1&",InputChoice1:=Close,InputChoice2:=Close)", "FG", "", "Close",$B$2, "0", "all","", "","True","T")/100 -> 0.05729276262 | G4: =RTD("cqg.rtd",,"StudyData", "Correlation("&$A$4&","&G$2&",Period:="&$B$1&",InputChoice1:=Close,InputChoice2:=Close)", "FG", "", "Close",$B$2, "0", "all","", "","True","T")/100 -> 0.9295085288 | H4: =RTD("cqg.rtd",,"StudyData", "Correlation("&$A$4&","&H$2&",Period:="&$B$1&",InputChoice1:=Close,InputChoice2:=Close)", "FG", "", "Close",$B$2, "0", "all","", "","True","T")/100 -> 0.9589290762 | I4: =RTD("cqg.rtd",,"StudyData", "Correlation("&$A$4&","&I$2&",Period:="&$B$1&",InputChoice1:=Close,InputChoice2:=Close)", "FG", "", "Close",$B$2, "0", "all","", "","True","T")/100 -> 0.9597256057 | J4: =RTD("cqg.rtd",,"StudyData", "Correlation("&$A$4&","&J$2&",Period:="&$B$1&",InputChoice1:=Close,InputChoice2:=Close)", "FG", "", "Close",$B$2, "0", "all","", "","True","T")/100 -> 0.5253755157 | K4: =RTD("cqg.rtd",,"StudyData", "Correlation("&$A$4&","&K$2&",Period:="&$B$1&",InputChoice1:=Close,InputChoice2:=Close)", "FG", "", "Close",$B$2, "0", "all","", "","True","T")/100 -> -0.09627700065 | L4: =RTD("cqg.rtd",,"StudyData", "Correlation("&$A$4&","&L$2&",Period:="&$B$1&",InputChoice1:=Close,InputChoice2:=Close)", "FG", "", "Close",$B$2, "0", "all","", "","True","T")/100 -> -0.09994112041
A5: =Symbols!B7 -> FSR | C5: =RTD("cqg.rtd",,"StudyData", "Correlation("&$A$5&","&C$2&",Period:="&$B$1&",InputChoice1:=Close,InputChoice2:=Close)", "FG", "", "Close",$B$2, "0", "all","", "","True","T")/100 -> -0.4861261035 | D5: =RTD("cqg.rtd",,"StudyData", "Correlation("&$A$5&","&D$2&",Period:="&$B$1&",InputChoice1:=Close,InputChoice2:=Close)", "FG", "", "Close",$B$2, "0", "all","", "","True","T")/100 -> -0.5975397477 | E5: =RTD("cqg.rtd",,"StudyData", "Correlation("&$A$5&","&E$2&",Period:="&$B$1&",InputChoice1:=Close,InputChoice2:=Close)", "FG", "", "Close",$B$2, "0", "all","", "","True","T")/100 -> -0.6851948986 | F5: =RTD("cqg.rtd",,"StudyData", "Correlation("&$A$5&","&F$2&",Period:="&$B$1&",InputChoice1:=Close,InputChoice2:=Close)", "FG", "", "Close",$B$2, "0", "all","", "","True","T")/100 -> -0.1144732532 | G5: =RTD("cqg.rtd",,"StudyData", "Correlation("&$A$5&","&G$2&",Period:="&$B$1&",InputChoice1:=Close,InputChoice2:=Close)", "FG", "", "Close",$B$2, "0", "all","", "","True","T")/100 -> -0.7299026967 | H5: =RTD("cqg.rtd",,"StudyData", "Correlation("&$A$5&","&H$2&",Period:="&$B$1&",InputChoice1:=Close,InputChoice2:=Close)", "FG", "", "Close",$B$2, "0", "all","", "","True","T")/100 -> -0.8550591894 | I5: =RTD("cqg.rtd",,"StudyData", "Correlation("&$A$5&","&I$2&",Period:="&$B$1&",InputChoice1:=Close,InputChoice2:=Close)", "FG", "", "Close",$B$2, "0", "all","", "","True","T")/100 -> -0.8671476287 | J5: =RTD("cqg.rtd",,"StudyData", "Correlation("&$A$5&","&J$2&",Period:="&$B$1&",InputChoice1:=Close,InputChoice2:=Close)", "FG", "", "Close",$B$2, "0", "all","", "","True","T")/100 -> -0.3982292153 | K5: =RTD("cqg.rtd",,"StudyData", "Correlation("&$A$5&","&K$2&",Period:="&$B$1&",InputChoice1:=Close,InputChoice2:=Close)", "FG", "", "Close",$B$2, "0", "all","", "","True","T")/100 -> -0.08897752231 | L5: =RTD("cqg.rtd",,"StudyData", "Correlation("&$A$5&","&L$2&",Period:="&$B$1&",InputChoice1:=Close,InputChoice2:=Close)", "FG", "", "Close",$B$2, "0", "all","", "","True","T")/100 -> -0.03044784729
A6: =Symbols!B8 -> FGZ | C6: =RTD("cqg.rtd",,"StudyData", "Correlation("&$A$6&","&C$2&",Period:="&$B$1&",InputChoice1:=Close,InputChoice2:=Close)", "FG", "", "Close",$B$2, "0", "all","", "","True","T")/100 -> -0.5597302664 | D6: =RTD("cqg.rtd",,"StudyData", "Correlation("&$A$6&","&D$2&",Period:="&$B$1&",InputChoice1:=Close,InputChoice2:=Close)", "FG", "", "Close",$B$2, "0", "all","", "","True","T")/100 -> -0.6569588031 | E6: =RTD("cqg.rtd",,"StudyData", "Correlation("&$A$6&","&E$2&",Period:="&$B$1&",InputChoice1:=Close,InputChoice2:=Close)", "FG", "", "Close",$B$2, "0", "all","", "","True","T")/100 -> -0.7307907879 | F6: =RTD("cqg.rtd",,"StudyData", "Correlation("&$A$6&","&F$2&",Period:="&$B$1&",InputChoice1:=Close,InputChoice2:=Close)", "FG", "", "Close",$B$2, "0", "all","", "","True","T")/100 -> -0.01952339773 | G6: =RTD("cqg.rtd",,"StudyData", "Correlation("&$A$6&","&G$2&",Period:="&$B$1&",InputChoice1:=Close,InputChoice2:=Close)", "FG", "", "Close",$B$2, "0", "all","", "","True","T")/100 -> -0.736124658 | H6: =RTD("cqg.rtd",,"StudyData", "Correlation("&$A$6&","&H$2&",Period:="&$B$1&",InputChoice1:=Close,InputChoice2:=Close)", "FG", "", "Close",$B$2, "0", "all","", "","True","T")/100 -> -0.8549245111 | I6: =RTD("cqg.rtd",,"StudyData", "Correlation("&$A$6&","&I$2&",Period:="&$B$1&",InputChoice1:=Close,InputChoice2:=Close)", "FG", "", "Close",$B$2, "0", "all","", "","True","T")/100 -> -0.8708358707 | J6: =RTD("cqg.rtd",,"StudyData", "Correlation("&$A$6&","&J$2&",Period:="&$B$1&",InputChoice1:=Close,InputChoice2:=Close)", "FG", "", "Close",$B$2, "0", "all","", "","True","T")/100 -> -0.431574731 | K6: =RTD("cqg.rtd",,"StudyData", "Correlation("&$A$6&","&K$2&",Period:="&$B$1&",InputChoice1:=Close,InputChoice2:=Close)", "FG", "", "Close",$B$2, "0", "all","", "","True","T")/100 -> -0.04476343001 | L6: =RTD("cqg.rtd",,"StudyData", "Correlation("&$A$6&","&L$2&",Period:="&$B$1&",InputChoice1:=Close,InputChoice2:=Close)", "FG", "", "Close",$B$2, "0", "all","", "","True","T")/100 -> -0.04082072485
A7: =Symbols!B9 -> FFED | C7: =RTD("cqg.rtd",,"StudyData", "Correlation("&$A$7&","&C$2&",Period:="&$B$1&",InputChoice1:=Close,InputChoice2:=Close)", "FG", "", "Close",$B$2, "0", "all","", "","True","T")/100 -> 0.3495572648 | D7: =RTD("cqg.rtd",,"StudyData", "Correlation("&$A$7&","&D$2&",Period:="&$B$1&",InputChoice1:=Close,InputChoice2:=Close)", "FG", "", "Close",$B$2, "0", "all","", "","True","T")/100 -> 0.1773077918 | E7: =RTD("cqg.rtd",,"StudyData", "Correlation("&$A$7&","&E$2&",Period:="&$B$1&",InputChoice1:=Close,InputChoice2:=Close)", "FG", "", "Close",$B$2, "0", "all","", "","True","T")/100 -> 0.1162775233 | F7: =RTD("cqg.rtd",,"StudyData", "Correlation("&$A$7&","&F$2&",Period:="&$B$1&",InputChoice1:=Close,InputChoice2:=Close)", "FG", "", "Close",$B$2, "0", "all","", "","True","T")/100 -> 0.74604858 | G7: =RTD("cqg.rtd",,"StudyData", "Correlation("&$A$7&","&G$2&",Period:="&$B$1&",InputChoice1:=Close,InputChoice2:=Close)", "FG", "", "Close",$B$2, "0", "all","", "","True","T")/100 -> 0.04507716566 | H7: =RTD("cqg.rtd",,"StudyData", "Correlation("&$A$7&","&H$2&",Period:="&$B$1&",InputChoice1:=Close,InputChoice2:=Close)", "FG", "", "Close",$B$2, "0", "all","", "","True","T")/100 -> -0.2032546188 | I7: =RTD("cqg.rtd",,"StudyData", "Correlation("&$A$7&","&I$2&",Period:="&$B$1&",InputChoice1:=Close,InputChoice2:=Close)", "FG", "", "Close",$B$2, "0", "all","", "","True","T")/100 -> -0.1653467498 | J7: =RTD("cqg.rtd",,"StudyData", "Correlation("&$A$7&","&J$2&",Period:="&$B$1&",InputChoice1:=Close,InputChoice2:=Close)", "FG", "", "Close",$B$2, "0", "all","", "","True","T")/100 -> 0.2208864506 | K7: =RTD("cqg.rtd",,"StudyData", "Correlation("&$A$7&","&K$2&",Period:="&$B$1&",InputChoice1:=Close,InputChoice2:=Close)", "FG", "", "Close",$B$2, "0", "all","", "","True","T")/100 -> -0.2304493448 | L7: =RTD("cqg.rtd",,"StudyData", "Correlation("&$A$7&","&L$2&",Period:="&$B$1&",InputChoice1:=Close,InputChoice2:=Close)", "FG", "", "Close",$B$2, "0", "all","", "","True","T")/100 -> -0.8366101508
A8: =Symbols!B10 -> FRI | C8: =RTD("cqg.rtd",,"StudyData", "Correlation("&$A$8&","&C$2&",Period:="&$B$1&",InputChoice1:=Close,InputChoice2:=Close)", "FG", "", "Close",$B$2, "0", "all","", "","True","T")/100 -> -0.08287065769 | D8: =RTD("cqg.rtd",,"StudyData", "Correlation("&$A$8&","&D$2&",Period:="&$B$1&",InputChoice1:=Close,InputChoice2:=Close)", "FG", "", "Close",$B$2, "0", "all","", "","True","T")/100 -> -0.2482374225 | E8: =RTD("cqg.rtd",,"StudyData", "Correlation("&$A$8&","&E$2&",Period:="&$B$1&",InputChoice1:=Close,InputChoice2:=Close)", "FG", "", "Close",$B$2, "0", "all","", "","True","T")/100 -> -0.3415125018 | F8: =RTD("cqg.rtd",,"StudyData", "Correlation("&$A$8&","&F$2&",Period:="&$B$1&",InputChoice1:=Close,InputChoice2:=Close)", "FG", "", "Close",$B$2, "0", "all","", "","True","T")/100 -> 0.3029148127 | G8: =RTD("cqg.rtd",,"StudyData", "Correlation("&$A$8&","&G$2&",Period:="&$B$1&",InputChoice1:=Close,InputChoice2:=Close)", "FG", "", "Close",$B$2, "0", "all","", "","True","T")/100 -> -0.4429494838 | H8: =RTD("cqg.rtd",,"StudyData", "Correlation("&$A$8&","&H$2&",Period:="&$B$1&",InputChoice1:=Close,InputChoice2:=Close)", "FG", "", "Close",$B$2, "0", "all","", "","True","T")/100 -> -0.6253257367 | I8: =RTD("cqg.rtd",,"StudyData", "Correlation("&$A$8&","&I$2&",Period:="&$B$1&",InputChoice1:=Close,InputChoice2:=Close)", "FG", "", "Close",$B$2, "0", "all","", "","True","T")/100 -> -0.6017919749 | J8: =RTD("cqg.rtd",,"StudyData", "Correlation("&$A$8&","&J$2&",Period:="&$B$1&",InputChoice1:=Close,InputChoice2:=Close)", "FG", "", "Close",$B$2, "0", "all","", "","True","T")/100 -> -0.02978714393 | K8: =RTD("cqg.rtd",,"StudyData", "Correlation("&$A$8&","&K$2&",Period:="&$B$1&",InputChoice1:=Close,InputChoice2:=Close)", "FG", "", "Close",$B$2, "0", "all","", "","True","T")/100 -> -0.06432022098 | L8: =RTD("cqg.rtd",,"StudyData", "Correlation("&$A$8&","&L$2&",Period:="&$B$1&",InputChoice1:=Close,InputChoice2:=Close)", "FG", "", "Close",$B$2, "0", "all","", "","True","T")/100 -> -0.4441902518
A9: =Symbols!B11 -> EU6 | C9: =RTD("cqg.rtd",,"StudyData", "Correlation("&$A$9&","&C$2&",Period:="&$B$1&",InputChoice1:=Close,InputChoice2:=Close)", "FG", "", "Close",$B$2, "0", "all","", "","True","T")/100 -> 0.1826044091 | D9: =RTD("cqg.rtd",,"StudyData", "Correlation("&$A$9&","&D$2&",Period:="&$B$1&",InputChoice1:=Close,InputChoice2:=Close)", "FG", "", "Close",$B$2, "0", "all","", "","True","T")/100 -> -0.02283008277 | E9: =RTD("cqg.rtd",,"StudyData", "Correlation("&$A$9&","&E$2&",Period:="&$B$1&",InputChoice1:=Close,InputChoice2:=Close)", "FG", "", "Close",$B$2, "0", "all","", "","True","T")/100 -> -0.04951770355 | F9: =RTD("cqg.rtd",,"StudyData", "Correlation("&$A$9&","&F$2&",Period:="&$B$1&",InputChoice1:=Close,InputChoice2:=Close)", "FG", "", "Close",$B$2, "0", "all","", "","True","T")/100 -> 0.7660380624 | G9: =RTD("cqg.rtd",,"StudyData", "Correlation("&$A$9&","&G$2&",Period:="&$B$1&",InputChoice1:=Close,InputChoice2:=Close)", "FG", "", "Close",$B$2, "0", "all","", "","True","T")/100 -> 0.05165462898 | H9: =RTD("cqg.rtd",,"StudyData", "Correlation("&$A$9&","&H$2&",Period:="&$B$1&",InputChoice1:=Close,InputChoice2:=Close)", "FG", "", "Close",$B$2, "0", "all","", "","True","T")/100 -> -0.1125120461 | I9: =RTD("cqg.rtd",,"StudyData", "Correlation("&$A$9&","&I$2&",Period:="&$B$1&",InputChoice1:=Close,InputChoice2:=Close)", "FG", "", "Close",$B$2, "0", "all","", "","True","T")/100 -> -0.05389284262 | J9: =RTD("cqg.rtd",,"StudyData", "Correlation("&$A$9&","&J$2&",Period:="&$B$1&",InputChoice1:=Close,InputChoice2:=Close)", "FG", "", "Close",$B$2, "0", "all","", "","True","T")/100 -> 0.3309710836 | K9: =RTD("cqg.rtd",,"StudyData", "Correlation("&$A$9&","&K$2&",Period:="&$B$1&",InputChoice1:=Close,InputChoice2:=Close)", "FG", "", "Close",$B$2, "0", "all","", "","True","T")/100 -> 0.06539763663 | L9: =RTD("cqg.rtd",,"StudyData", "Correlation("&$A$9&","&L$2&",Period:="&$B$1&",InputChoice1:=Close,InputChoice2:=Close)", "FG", "", "Close",$B$2, "0", "all","", "","True","T")/100 -> -0.9691758759
A10: =Symbols!B12 -> JY6 | C10: =RTD("cqg.rtd",,"StudyData", "Correlation("&$A$10&","&C$2&",Period:="&$B$1&",InputChoice1:=Close,InputChoice2:=Close)", "FG", "", "Close",$B$2, "0", "all","", "","True","T")/100 -> -0.7500683064 | D10: =RTD("cqg.rtd",,"StudyData", "Correlation("&$A$10&","&D$2&",Period:="&$B$1&",InputChoice1:=Close,InputChoice2:=Close)", "FG", "", "Close",$B$2, "0", "all","", "","True","T")/100 -> -0.8515081703 | E10: =RTD("cqg.rtd",,"StudyData", "Correlation("&$A$10&","&E$2&",Period:="&$B$1&",InputChoice1:=Close,InputChoice2:=Close)", "FG", "", "Close",$B$2, "0", "all","", "","True","T")/100 -> -0.8587486109 | F10: =RTD("cqg.rtd",,"StudyData", "Correlation("&$A$10&","&F$2&",Period:="&$B$1&",InputChoice1:=Close,InputChoice2:=Close)", "FG", "", "Close",$B$2, "0", "all","", "","True","T")/100 -> 0.1298213048 | G10: =RTD("cqg.rtd",,"StudyData", "Correlation("&$A$10&","&G$2&",Period:="&$B$1&",InputChoice1:=Close,InputChoice2:=Close)", "FG", "", "Close",$B$2, "0", "all","", "","True","T")/100 -> -0.6308328933 | H10: =RTD("cqg.rtd",,"StudyData", "Correlation("&$A$10&","&H$2&",Period:="&$B$1&",InputChoice1:=Close,InputChoice2:=Close)", "FG", "", "Close",$B$2, "0", "all","", "","True","T")/100 -> -0.6566080921 | I10: =RTD("cqg.rtd",,"StudyData", "Correlation("&$A$10&","&I$2&",Period:="&$B$1&",InputChoice1:=Close,InputChoice2:=Close)", "FG", "", "Close",$B$2, "0", "all","", "","True","T")/100 -> -0.6418357587 | J10: =RTD("cqg.rtd",,"StudyData", "Correlation("&$A$10&","&J$2&",Period:="&$B$1&",InputChoice1:=Close,InputChoice2:=Close)", "FG", "", "Close",$B$2, "0", "all","", "","True","T")/100 -> -0.7667837534 | K10: =RTD("cqg.rtd",,"StudyData", "Correlation("&$A$10&","&K$2&",Period:="&$B$1&",InputChoice1:=Close,InputChoice2:=Close)", "FG", "", "Close",$B$2, "0", "all","", "","True","T")/100 -> 0.7402654705 | L10: =RTD("cqg.rtd",,"StudyData", "Correlation("&$A$10&","&L$2&",Period:="&$B$1&",InputChoice1:=Close,InputChoice2:=Close)", "FG", "", "Close",$B$2, "0", "all","", "","True","T")/100 -> -0.1180189027
A11: =Symbols!B13 -> DA6 | C11: =RTD("cqg.rtd",,"StudyData", "Correlation("&$A$11&","&C$2&",Period:="&$B$1&",InputChoice1:=Close,InputChoice2:=Close)", "FG", "", "Close",$B$2, "0", "all","", "","True","T")/100 -> 0.1589978571 | D11: =RTD("cqg.rtd",,"StudyData", "Correlation("&$A$11&","&D$2&",Period:="&$B$1&",InputChoice1:=Close,InputChoice2:=Close)", "FG", "", "Close",$B$2, "0", "all","", "","True","T")/100 -> -0.006367567847 | E11: =RTD("cqg.rtd",,"StudyData", "Correlation("&$A$11&","&E$2&",Period:="&$B$1&",InputChoice1:=Close,InputChoice2:=Close)", "FG", "", "Close",$B$2, "0", "all","", "","True","T")/100 -> -0.005387177875 | F11: =RTD("cqg.rtd",,"StudyData", "Correlation("&$A$11&","&F$2&",Period:="&$B$1&",InputChoice1:=Close,InputChoice2:=Close)", "FG", "", "Close",$B$2, "0", "all","", "","True","T")/100 -> 0.4492320849 | G11: =RTD("cqg.rtd",,"StudyData", "Correlation("&$A$11&","&G$2&",Period:="&$B$1&",InputChoice1:=Close,InputChoice2:=Close)", "FG", "", "Close",$B$2, "0", "all","", "","True","T")/100 -> 0.1899244603 | H11: =RTD("cqg.rtd",,"StudyData", "Correlation("&$A$11&","&H$2&",Period:="&$B$1&",InputChoice1:=Close,InputChoice2:=Close)", "FG", "", "Close",$B$2, "0", "all","", "","True","T")/100 -> 0.08025939912 | I11: =RTD("cqg.rtd",,"StudyData", "Correlation("&$A$11&","&I$2&",Period:="&$B$1&",InputChoice1:=Close,InputChoice2:=Close)", "FG", "", "Close",$B$2, "0", "all","", "","True","T")/100 -> 0.1243613779 | J11: =RTD("cqg.rtd",,"StudyData", "Correlation("&$A$11&","&J$2&",Period:="&$B$1&",InputChoice1:=Close,InputChoice2:=Close)", "FG", "", "Close",$B$2, "0", "all","", "","True","T")/100 -> 0.03206238162 | K11: =RTD("cqg.rtd",,"StudyData", "Correlation("&$A$11&","&K$2&",Period:="&$B$1&",InputChoice1:=Close,InputChoice2:=Close)", "FG", "", "Close",$B$2, "0", "all","", "","True","T")/100 -> 0.3463506156 | L11: =RTD("cqg.rtd",,"StudyData", "Correlation("&$A$11&","&L$2&",Period:="&$B$1&",InputChoice1:=Close,InputChoice2:=Close)", "FG", "", "Close",$B$2, "0", "all","", "","True","T")/100 -> -0.589065775
A12: =Symbols!B14 -> BP6 | C12: =RTD("cqg.rtd",,"StudyData", "Correlation("&$A$12&","&C$2&",Period:="&$B$1&",InputChoice1:=Close,InputChoice2:=Close)", "FG", "", "Close",$B$2, "0", "all","", "","True","T")/100 -> 0.7748585626 | D12: =RTD("cqg.rtd",,"StudyData", "Correlation("&$A$12&","&D$2&",Period:="&$B$1&",InputChoice1:=Close,InputChoice2:=Close)", "FG", "", "Close",$B$2, "0", "all","", "","True","T")/100 -> 0.7524765384 | E12: =RTD("cqg.rtd",,"StudyData", "Correlation("&$A$12&","&E$2&",Period:="&$B$1&",InputChoice1:=Close,InputChoice2:=Close)", "FG", "", "Close",$B$2, "0", "all","", "","True","T")/100 -> 0.7535907411 | F12: =RTD("cqg.rtd",,"StudyData", "Correlation("&$A$12&","&F$2&",Period:="&$B$1&",InputChoice1:=Close,InputChoice2:=Close)", "FG", "", "Close",$B$2, "0", "all","", "","True","T")/100 -> 0.5446454088 | G12: =RTD("cqg.rtd",,"StudyData", "Correlation("&$A$12&","&G$2&",Period:="&$B$1&",InputChoice1:=Close,InputChoice2:=Close)", "FG", "", "Close",$B$2, "0", "all","", "","True","T")/100 -> 0.6117124266 | H12: =RTD("cqg.rtd",,"StudyData", "Correlation("&$A$12&","&H$2&",Period:="&$B$1&",InputChoice1:=Close,InputChoice2:=Close)", "FG", "", "Close",$B$2, "0", "all","", "","True","T")/100 -> 0.5643730617 | I12: =RTD("cqg.rtd",,"StudyData", "Correlation("&$A$12&","&I$2&",Period:="&$B$1&",InputChoice1:=Close,InputChoice2:=Close)", "FG", "", "Close",$B$2, "0", "all","", "","True","T")/100 -> 0.6027255995 | J12: =RTD("cqg.rtd",,"StudyData", "Correlation("&$A$12&","&J$2&",Period:="&$B$1&",InputChoice1:=Close,InputChoice2:=Close)", "FG", "", "Close",$B$2, "0", "all","", "","True","T")/100 -> 0.8320018034 | K12: =RTD("cqg.rtd",,"StudyData", "Correlation("&$A$12&","&K$2&",Period:="&$B$1&",InputChoice1:=Close,InputChoice2:=Close)", "FG", "", "Close",$B$2, "0", "all","", "","True","T")/100 -> -0.3089647839 | L12: =RTD("cqg.rtd",,"StudyData", "Correlation("&$A$12&","&L$2&",Period:="&$B$1&",InputChoice1:=Close,InputChoice2:=Close)", "FG", "", "Close",$B$2, "0", "all","", "","True","T")/100 -> -0.6298063858

Sheet 1 (hidden)
A1: Lookback | B1: =Data!B1 -> 20
A2: TimeFrame | B2: =Data!B2 -> ADC | C2: =Data!C2 -> DD | I2: =Data!D2 -> DSX | O2: =Data!E2 -> PIL | U2: =Data!F2 -> SF6 | AA2: =Data!G2 -> CLE | AG2: =Data!H2 -> HOE | AM2: =Data!I2 -> RBE | AS2: =Data!J2 -> NGE | AY2: =Data!K2 -> TYA | BE2: =Data!L2 -> DXE
A3: Symbol | B3: =MainDisplay!E1 -> FUS
A4: 0 | C4: =IFERROR(RTD("cqg.rtd",,"StudyData", "Correlation("&$B$3&","&C$2&",Period:="&$B$1&",InputChoice1:=Close,InputChoice2:=Close)", "FG", "", "Close",$B$2,A4, "all","", "","True","T")/100,"") -> -0.4318635251 | E4: -1 | F4: =FREQUENCY(C4:C104,E4:E104) -> 0 | G4: =IF(AND($C$4>=E4,$C$4<E5),IF(F4=0,1,F4),NA()) ->  | I4: =IFERROR(RTD("cqg.rtd",,"StudyData", "Correlation("&$B$3&","&I$2&",Period:="&$B$1&",InputChoice1:=Close,InputChoice2::=Close)", "FG", "", "Close",$B$2,A4, "all","", "","True","T")/100,"") -> -0.3735613345 | K4: -1 | L4: =FREQUENCY(I4:I104,K4:K104) -> 0 | M4: =IF(AND($I$4>=K4,$I$4<K5),IF(L4=0,1,L4),NA()) ->  | O4: =IFERROR(RTD("cqg.rtd",,"StudyData", "Correlation("&$B$3&","&O$2&",Period:="&$B$1&",InputChoice1:=Close,InputChoice2::=Close)", "FG", "", "Close",$B$2,A4, "all","", "","True","T")/100,"") -> -0.3342949882 | Q4: -1 | R4: =FREQUENCY(O4:O104,Q4:Q104) -> 0 | S4: =IF(AND($O$4>=Q4,$O$4<Q5),IF(R4=0,1,R4),NA()) ->  | U4: =IFERROR(RTD("cqg.rtd",,"StudyData", "Correlation("&$B$3&","&U$2&",Period:="&$B$1&",InputChoice1:=Close,InputChoice2::=Close)", "FG", "", "Close",$B$2,A4, "all","", "","True","T")/100,"") -> -0.3584813945 | W4: -1 | X4: =FREQUENCY(U4:U104,W4:W104) -> 0 | Y4: =IF(AND($U$4>=W4,$U$4<W5),IF(X4=0,1,X4),NA()) ->  | AA4: =IFERROR(RTD("cqg.rtd",,"StudyData", "Correlation("&$B$3&","&AA$2&",Period:="&$B$1&",InputChoice1:=Close,InputChoice2::=Close)", "FG", "", "Close",$B$2,A4, "all","", "","True","T")/100,"") -> -0.2232703849 | AC4: -1 | AD4: =FREQUENCY(AA4:AA104,AC4:AC104) -> 0 | AE4: =IF(AND($AA$4>=AC4,$AA$4<AC5),IF(AD4=0,1,AD4),NA()) ->  | AG4: =IFERROR(RTD("cqg.rtd",,"StudyData", "Correlation("&$B$3&","&AG$2&",Period:="&$B$1&",InputChoice1:=Close,InputChoice2::=Close)", "FG", "", "Close",$B$2,A4, "all","", "","True","T")/100,"") -> -0.1206289336 | AI4: -1 | AJ4: =FREQUENCY(AG4:AG104,AI4:AI104) -> 0 | AK4: =IF(AND($AG$4>=AI4,$AG$4<AI5),IF(AJ4=0,1,AJ4),NA()) ->  | AM4: =IFERROR(RTD("cqg.rtd",,"StudyData", "Correlation("&$B$3&","&AM$2&",Period:="&$B$1&",InputChoice1:=Close,InputChoice2::=Close)", "FG", "", "Close",$B$2,A4, "all","", "","True","T")/100,"") -> -0.149907575 | AO4: -1 | AP4: =FREQUENCY(AM4:AM104,AO4:AO104) -> 0 | AQ4: =IF(AND($AM$4>=AO4,$AM$4<AO5),IF(AP4=0,1,AP4),NA()) ->  | AS4: =IFERROR(RTD("cqg.rtd",,"StudyData", "Correlation("&$B$3&","&AS$2&",Period:="&$B$1&",InputChoice1:=Close,InputChoice2::=Close)", "FG", "", "Close",$B$2,A4, "all","", "","True","T")/100,"") -> -0.498785227 | AU4: -1 | AV4: =FREQUENCY(AS4:AS104,AU4:AU104) -> 0 | AW4: =IF(AND($AS$4>=AU4,$AS$4<AU5),IF(AV4=0,1,AV4),NA()) ->  | AY4: =IFERROR(RTD("cqg.rtd",,"StudyData", "Correlation("&$B$3&","&AY$2&",Period:="&$B$1&",InputChoice1:=Close,InputChoice2::=Close)", "FG", "", "Close",$B$2,A4, "all","", "","True","T")/100,"") -> 0.2458377669 | BA4: -1 | BB4: =FREQUENCY(AY4:AY104,BA4:BA104) -> 0 | BC4: =IF(AND($AY$4>=BA4,$AY$4<BA5),IF(BB4=0,1,BB4),NA()) ->  | BE4: =IFERROR(RTD("cqg.rtd",,"StudyData", "Correlation("&$B$3&","&BE$2&",Period:="&$B$1&",InputChoice1:=Close,InputChoice2::=Close)", "FG", "", "Close",$B$2,A4, "all","", "","True","T")/100,"") -> 0.3647844535 | BG4: -1 | BH4: =FREQUENCY(BE4:BE104,BG4:BG104) -> 0 | BI4: =IF(AND($BE$4>=BG4,$BE$4<BG5),IF(BH4=0,1,BH4),NA()) -> 
A5: =A4-1 -> -1 | C5: =IFERROR(RTD("cqg.rtd",,"StudyData", "Correlation("&$B$3&","&C$2&",Period:="&$B$1&",InputChoice1:=Close,InputChoice2:=Close)", "FG", "", "Close",$B$2,A5, "all","", "","True","T")/100,"") -> -0.3934335236 | E5: =E4+0.02 -> -0.98 | F5: 0 | G5: =IF(AND($C$4>=E5,$C$4<E6),IF(F5=0,1,F5),NA()) ->  | I5: =IFERROR(RTD("cqg.rtd",,"StudyData", "Correlation("&$B$3&","&I$2&",Period:="&$B$1&",InputChoice1:=Close,InputChoice2::=Close)", "FG", "", "Close",$B$2,A5, "all","", "","True","T")/100,"") -> -0.3126972342 | K5: =K4+0.02 -> -0.98 | L5: 0 | M5: =IF(AND($I$4>=K5,$I$4<K6),IF(L5=0,1,L5),NA()) ->  | O5: =IFERROR(RTD("cqg.rtd",,"StudyData", "Correlation("&$B$3&","&O$2&",Period:="&$B$1&",InputChoice1:=Close,InputChoice2::=Close)", "FG", "", "Close",$B$2,A5, "all","", "","True","T")/100,"") -> -0.2764419792 | Q5: =Q4+0.02 -> -0.98 | R5: 0 | S5: =IF(AND($O$4>=Q5,$O$4<Q6),IF(R5=0,1,R5),NA()) ->  | U5: =IFERROR(RTD("cqg.rtd",,"StudyData", "Correlation("&$B$3&","&U$2&",Period:="&$B$1&",InputChoice1:=Close,InputChoice2::=Close)", "FG", "", "Close",$B$2,A5, "all","", "","True","T")/100,"") -> -0.3338725822 | W5: =W4+0.02 -> -0.98 | X5: 0 | Y5: =IF(AND($U$4>=W5,$U$4<W6),IF(X5=0,1,X5),NA()) ->  | AA5: =IFERROR(RTD("cqg.rtd",,"StudyData", "Correlation("&$B$3&","&AA$2&",Period:="&$B$1&",InputChoice1:=Close,InputChoice2::=Close)", "FG", "", "Close",$B$2,A5, "all","", "","True","T")/100,"") -> -0.2014400316 | AC5: =AC4+0.02 -> -0.98 | AD5: 0 | AE5: =IF(AND($AA$4>=AC5,$AA$4<AC6),IF(AD5=0,1,AD5),NA()) ->  | AG5: =IFERROR(RTD("cqg.rtd",,"StudyData", "Correlation("&$B$3&","&AG$2&",Period:="&$B$1&",InputChoice1:=Close,InputChoice2::=Close)", "FG", "", "Close",$B$2,A5, "all","", "","True","T")/100,"") -> -0.07288309117 | AI5: =AI4+0.02 -> -0.98 | AJ5: 0 | AK5: =IF(AND($AG$4>=AI5,$AG$4<AI6),IF(AJ5=0,1,AJ5),NA()) ->  | AM5: =IFERROR(RTD("cqg.rtd",,"StudyData", "Correlation("&$B$3&","&AM$2&",Period:="&$B$1&",InputChoice1:=Close,InputChoice2::=Close)", "FG", "", "Close",$B$2,A5, "all","", "","True","T")/100,"") -> -0.1027534158 | AO5: =AO4+0.02 -> -0.98 | AP5: 0 | AQ5: =IF(AND($AM$4>=AO5,$AM$4<AO6),IF(AP5=0,1,AP5),NA()) ->  | AS5: =IFERROR(RTD("cqg.rtd",,"StudyData", "Correlation("&$B$3&","&AS$2&",Period:="&$B$1&",InputChoice1:=Close,InputChoice2::=Close)", "FG", "", "Close",$B$2,A5, "all","", "","True","T")/100,"") -> -0.4870760028 | AU5: =AU4+0.02 -> -0.98 | AV5: 0 | AW5: =IF(AND($AS$4>=AU5,$AS$4<AU6),IF(AV5=0,1,AV5),NA()) ->  | AY5: =IFERROR(RTD("cqg.rtd",,"StudyData", "Correlation("&$B$3&","&AY$2&",Period:="&$B$1&",InputChoice1:=Close,InputChoice2::=Close)", "FG", "", "Close",$B$2,A5, "all","", "","True","T")/100,"") -> 0.2057892421 | BA5: =BA4+0.02 -> -0.98 | BB5: 0 | BC5: =IF(AND($AY$4>=BA5,$AY$4<BA6),IF(BB5=0,1,BB5),NA()) ->  | BE5: =IFERROR(RTD("cqg.rtd",,"StudyData", "Correlation("&$B$3&","&BE$2&",Period:="&$B$1&",InputChoice1:=Close,InputChoice2::=Close)", "FG", "", "Close",$B$2,A5, "all","", "","True","T")/100,"") -> 0.3756537907 | BG5: =BG4+0.02 -> -0.98 | BH5: 0 | BI5: =IF(AND($BE$4>=BG5,$BE$4<BG6),IF(BH5=0,1,BH5),NA()) -> 
A6: =A5-1 -> -2 | C6: =IFERROR(RTD("cqg.rtd",,"StudyData", "Correlation("&$B$3&","&C$2&",Period:="&$B$1&",InputChoice1:=Close,InputChoice2:=Close)", "FG", "", "Close",$B$2,A6, "all","", "","True","T")/100,"") -> -0.3655790362 | E6: =E5+0.02 -> -0.96 | F6: 0 | I6: =IFERROR(RTD("cqg.rtd",,"StudyData", "Correlation("&$B$3&","&I$2&",Period:="&$B$1&",InputChoice1:=Close,InputChoice2::=Close)", "FG", "", "Close",$B$2,A6, "all","", "","True","T")/100,"") -> -0.2648946951 | K6: =K5+0.02 -> -0.96 | L6: 0 | O6: =IFERROR(RTD("cqg.rtd",,"StudyData", "Correlation("&$B$3&","&O$2&",Period:="&$B$1&",InputChoice1:=Close,InputChoice2::=Close)", "FG", "", "Close",$B$2,A6, "all","", "","True","T")/100,"") -> -0.2215496683 | Q6: =Q5+0.02 -> -0.96 | R6: 0 | U6: =IFERROR(RTD("cqg.rtd",,"StudyData", "Correlation("&$B$3&","&U$2&",Period:="&$B$1&",InputChoice1:=Close,InputChoice2::=Close)", "FG", "", "Close",$B$2,A6, "all","", "","True","T")/100,"") -> -0.3616713506 | W6: =W5+0.02 -> -0.96 | X6: 0 | AA6: =IFERROR(RTD("cqg.rtd",,"StudyData", "Correlation("&$B$3&","&AA$2&",Period:="&$B$1&",InputChoice1:=Close,InputChoice2::=Close)", "FG", "", "Close",$B$2,A6, "all","", "","True","T")/100,"") -> -0.1650538757 | AC6: =AC5+0.02 -> -0.96 | AD6: 0 | AG6: =IFERROR(RTD("cqg.rtd",,"StudyData", "Correlation("&$B$3&","&AG$2&",Period:="&$B$1&",InputChoice1:=Close,InputChoice2::=Close)", "FG", "", "Close",$B$2,A6, "all","", "","True","T")/100,"") -> -0.001597353316 | AI6: =AI5+0.02 -> -0.96 | AJ6: 0 | AM6: =IFERROR(RTD("cqg.rtd",,"StudyData", "Correlation("&$B$3&","&AM$2&",Period:="&$B$1&",InputChoice1:=Close,InputChoice2::=Close)", "FG", "", "Close",$B$2,A6, "all","", "","True","T")/100,"") -> -0.01904249169 | AO6: =AO5+0.02 -> -0.96 | AP6: 0 | AS6: =IFERROR(RTD("cqg.rtd",,"StudyData", "Correlation("&$B$3&","&AS$2&",Period:="&$B$1&",InputChoice1:=Close,InputChoice2::=Close)", "FG", "", "Close",$B$2,A6, "all","", "","True","T")/100,"") -> -0.5078984681 | AU6: =AU5+0.02 -> -0.96 | AV6: 0 | AY6: =IFERROR(RTD("cqg.rtd",,"StudyData", "Correlation("&$B$3&","&AY$2&",Period:="&$B$1&",InputChoice1:=Close,InputChoice2::=Close)", "FG", "", "Close",$B$2,A6, "all","", "","True","T")/100,"") -> 0.08813440991 | BA6: =BA5+0.02 -> -0.96 | BB6: 0 | BE6: =IFERROR(RTD("cqg.rtd",,"StudyData", "Correlation("&$B$3&","&BE$2&",Period:="&$B$1&",InputChoice1:=Close,InputChoice2::=Close)", "FG", "", "Close",$B$2,A6, "all","", "","True","T")/100,"") -> 0.3637741835 | BG6: =BG5+0.02 -> -0.96 | BH6: 0
A7: -3 | C7: =IFERROR(RTD("cqg.rtd",,"StudyData", "Correlation("&$B$3&","&C$2&",Period:="&$B$1&",InputChoice1:=Close,InputChoice2:=Close)", "FG", "", "Close",$B$2,A7, "all","", "","True","T")/100,"") -> -0.3410565306 | E7: -0.94 | F7: 0 | I7: =IFERROR(RTD("cqg.rtd",,"StudyData", "Correlation("&$B$3&","&I$2&",Period:="&$B$1&",InputChoice1:=Close,InputChoice2::=Close)", "FG", "", "Close",$B$2,A7, "all","", "","True","T")/100,"") -> -0.2080295705 | K7: -0.94 | L7: 0 | O7: =IFERROR(RTD("cqg.rtd",,"StudyData", "Correlation("&$B$3&","&O$2&",Period:="&$B$1&",InputChoice1:=Close,InputChoice2::=Close)", "FG", "", "Close",$B$2,A7, "all","", "","True","T")/100,"") -> -0.1611693529 | Q7: -0.94 | R7: 0 | U7: =IFERROR(RTD("cqg.rtd",,"StudyData", "Correlation("&$B$3&","&U$2&",Period:="&$B$1&",InputChoice1:=Close,InputChoice2::=Close)", "FG", "", "Close",$B$2,A7, "all","", "","True","T")/100,"") -> -0.2321960349 | W7: -0.94 | X7: 0 | AA7: =IFERROR(RTD("cqg.rtd",,"StudyData", "Correlation("&$B$3&","&AA$2&",Period:="&$B$1&",InputChoice1:=Close,InputChoice2::=Close)", "FG", "", "Close",$B$2,A7, "all","", "","True","T")/100,"") -> -0.1773080496 | AC7: -0.94 | AD7: 2 | AG7: =IFERROR(RTD("cqg.rtd",,"StudyData", "Correlation("&$B$3&","&AG$2&",Period:="&$B$1&",InputChoice1:=Close,InputChoice2::=Close)", "FG", "", "Close",$B$2,A7, "all","", "","True","T")/100,"") -> -0.03739940803 | AI7: -0.94 | AJ7: 5 | AM7: =IFERROR(RTD("cqg.rtd",,"StudyData", "Correlation("&$B$3&","&AM$2&",Period:="&$B$1&",InputChoice1:=Close,InputChoice2::=Close)", "FG", "", "Close",$B$2,A7, "all","", "","True","T")/100,"") -> -0.0645431355 | AO7: -0.94 | AP7: 0 | AS7: =IFERROR(RTD("cqg.rtd",,"StudyData", "Correlation("&$B$3&","&AS$2&",Period:="&$B$1&",InputChoice1:=Close,InputChoice2::=Close)", "FG", "", "Close",$B$2,A7, "all","", "","True","T")/100,"") -> -0.3700747871 | AU7: -0.94 | AV7: 0 | AY7: =IFERROR(RTD("cqg.rtd",,"StudyData", "Correlation("&$B$3&","&AY$2&",Period:="&$B$1&",InputChoice1:=Close,InputChoice2::=Close)", "FG", "", "Close",$B$2,A7, "all","", "","True","T")/100,"") -> 0.07128466948 | BA7: -0.94 | BB7: 0 | BE7: =IFERROR(RTD("cqg.rtd",,"StudyData", "Correlation("&$B$3&","&BE$2&",Period:="&$B$1&",InputChoice1:=Close,InputChoice2::=Close)", "FG", "", "Close",$B$2,A7, "all","", "","True","T")/100,"") -> 0.3916890102 | BG7: -0.94 | BH7: 0
A8: -4 | C8: =IFERROR(RTD("cqg.rtd",,"StudyData", "Correlation("&$B$3&","&C$2&",Period:="&$B$1&",InputChoice1:=Close,InputChoice2:=Close)", "FG", "", "Close",$B$2,A8, "all","", "","True","T")/100,"") -> -0.3596230223 | E8: -0.92 | F8: 3 | I8: =IFERROR(RTD("cqg.rtd",,"StudyData", "Correlation("&$B$3&","&I$2&",Period:="&$B$1&",InputChoice1:=Close,InputChoice2::=Close)", "FG", "", "Close",$B$2,A8, "all","", "","True","T")/100,"") -> -0.2459207352 | K8: -0.92 | L8: 5 | O8: =IFERROR(RTD("cqg.rtd",,"StudyData", "Correlation("&$B$3&","&O$2&",Period:="&$B$1&",InputChoice1:=Close,InputChoice2::=Close)", "FG", "", "Close",$B$2,A8, "all","", "","True","T")/100,"") -> -0.2017347267 | Q8: -0.92 | R8: 1 | U8: =IFERROR(RTD("cqg.rtd",,"StudyData", "Correlation("&$B$3&","&U$2&",Period:="&$B$1&",InputChoice1:=Close,InputChoice2::=Close)", "FG", "", "Close",$B$2,A8, "all","", "","True","T")/100,"") -> -0.1388971799 | W8: -0.92 | X8: 0 | AA8: =IFERROR(RTD("cqg.rtd",,"StudyData", "Correlation("&$B$3&","&AA$2&",Period:="&$B$1&",InputChoice1:=Close,InputChoice2::=Close)", "FG", "", "Close",$B$2,A8, "all","", "","True","T")/100,"") -> -0.2096776017 | AC8: -0.92 | AD8: 2 | AG8: =IFERROR(RTD("cqg.rtd",,"StudyData", "Correlation("&$B$3&","&AG$2&",Period:="&$B$1&",InputChoice1:=Close,InputChoice2::=Close)", "FG", "", "Close",$B$2,A8, "all","", "","True","T")/100,"") -> -0.07078192518 | AI8: -0.92 | AJ8: 4 | AM8: =IFERROR(RTD("cqg.rtd",,"StudyData", "Correlation("&$B$3&","&AM$2&",Period:="&$B$1&",InputChoice1:=Close,InputChoice2::=Close)", "FG", "", "Close",$B$2,A8, "all","", "","True","T")/100,"") -> -0.1200396618 | AO8: -0.92 | AP8: 0 | AS8: =IFERROR(RTD("cqg.rtd",,"StudyData", "Correlation("&$B$3&","&AS$2&",Period:="&$B$1&",InputChoice1:=Close,InputChoice2::=Close)", "FG", "", "Close",$B$2,A8, "all","", "","True","T")/100,"") -> -0.2103945143 | AU8: -0.92 | AV8: 0 | AY8: =IFERROR(RTD("cqg.rtd",,"StudyData", "Correlation("&$B$3&","&AY$2&",Period:="&$B$1&",InputChoice1:=Close,InputChoice2::=Close)", "FG", "", "Close",$B$2,A8, "all","", "","True","T")/100,"") -> 0.002204765252 | BA8: -0.92 | BB8: 0 | BE8: =IFERROR(RTD("cqg.rtd",,"StudyData", "Correlation("&$B$3&","&BE$2&",Period:="&$B$1&",InputChoice1:=Close,InputChoice2::=Close)", "FG", "", "Close",$B$2,A8, "all","", "","True","T")/100,"") -> 0.2482577477 | BG8: -0.92 | BH8: 0
A9: -5 | C9: =IFERROR(RTD("cqg.rtd",,"StudyData", "Correlation("&$B$3&","&C$2&",Period:="&$B$1&",InputChoice1:=Close,InputChoice2:=Close)", "FG", "", "Close",$B$2,A9, "all","", "","True","T")/100,"") -> -0.3705195049 | E9: -0.9 | F9: 3 | I9: =IFERROR(RTD("cqg.rtd",,"StudyData", "Correlation("&$B$3&","&I$2&",Period:="&$B$1&",InputChoice1:=Close,InputChoice2::=Close)", "FG", "", "Close",$B$2,A9, "all","", "","True","T")/100,"") -> -0.2840411102 | K9: -0.9 | L9: 6 | O9: =IFERROR(RTD("cqg.rtd",,"StudyData", "Correlation("&$B$3&","&O$2&",Period:="&$B$1&",InputChoice1:=Close,InputChoice2::=Close)", "FG", "", "Close",$B$2,A9, "all","", "","True","T")/100,"") -> -0.2508989284 | Q9: -0.9 | R9: 5 | U9: =IFERROR(RTD("cqg.rtd",,"StudyData", "Correlation("&$B$3&","&U$2&",Period:="&$B$1&",InputChoice1:=Close,InputChoice2::=Close)", "FG", "", "Close",$B$2,A9, "all","", "","True","T")/100,"") -> -0.003455181069 | W9: -0.9 | X9: 0 | AA9: =IFERROR(RTD("cqg.rtd",,"StudyData", "Correlation("&$B$3&","&AA$2&",Period:="&$B$1&",InputChoice1:=Close,InputChoice2::=Close)", "FG", "", "Close",$B$2,A9, "all","", "","True","T")/100,"") -> -0.2754886398 | AC9: -0.9 | AD9: 1 | AG9: =IFERROR(RTD("cqg.rtd",,"StudyData", "Correlation("&$B$3&","&AG$2&",Period:="&$B$1&",InputChoice1:=Close,InputChoice2::=Close)", "FG", "", "Close",$B$2,A9, "all","", "","True","T")/100,"") -> -0.1516678485 | AI9: -0.9 | AJ9: 1 | AM9: =IFERROR(RTD("cqg.rtd",,"StudyData", "Correlation("&$B$3&","&AM$2&",Period:="&$B$1&",InputChoice1:=Close,InputChoice2::=Close)", "FG", "", "Close",$B$2,A9, "all","", "","True","T")/100,"") -> -0.1869988533 | AO9: -0.9 | AP9: 0 | AS9: =IFERROR(RTD("cqg.rtd",,"StudyData", "Correlation("&$B$3&","&AS$2&",Period:="&$B$1&",InputChoice1:=Close,InputChoice2::=Close)", "FG", "", "Close",$B$2,A9, "all","", "","True","T")/100,"") -> -0.08312787684 | AU9: -0.9 | AV9: 0 | AY9: =IFERROR(RTD("cqg.rtd",,"StudyData", "Correlation("&$B$3&","&AY$2&",Period:="&$B$1&",InputChoice1:=Close,InputChoice2::=Close)", "FG", "", "Close",$B$2,A9, "all","", "","True","T")/100,"") -> -0.1090405626 | BA9: -0.9 | BB9: 0 | BE9: =IFERROR(RTD("cqg.rtd",,"StudyData", "Correlation("&$B$3&","&BE$2&",Period:="&$B$1&",InputChoice1:=Close,InputChoice2::=Close)", "FG", "", "Close",$B$2,A9, "all","", "","True","T")/100,"") -> 0.1790673025 | BG9: -0.9 | BH9: 0
A10: -6 | C10: =IFERROR(RTD("cqg.rtd",,"StudyData", "Correlation("&$B$3&","&C$2&",Period:="&$B$1&",InputChoice1:=Close,InputChoice2:=Close)", "FG", "", "Close",$B$2,A10, "all","", "","True","T")/100,"") -> -0.2730987574 | E10: -0.88 | F10: 5 | I10: =IFERROR(RTD("cqg.rtd",,"StudyData", "Correlation("&$B$3&","&I$2&",Period:="&$B$1&",InputChoice1:=Close,InputChoice2::=Close)", "FG", "", "Close",$B$2,A10, "all","", "","True","T")/100,"") -> -0.2468906211 | K10: -0.88 | L10: 4 | O10: =IFERROR(RTD("cqg.rtd",,"StudyData", "Correlation("&$B$3&","&O$2&",Period:="&$B$1&",InputChoice1:=Close,InputChoice2::=Close)", "FG", "", "Close",$B$2,A10, "all","", "","True","T")/100,"") -> -0.238531126 | Q10: -0.88 | R10: 5 | U10: =IFERROR(RTD("cqg.rtd",,"StudyData", "Correlation("&$B$3&","&U$2&",Period:="&$B$1&",InputChoice1:=Close,InputChoice2::=Close)", "FG", "", "Close",$B$2,A10, "all","", "","True","T")/100,"") -> 0.03701084989 | W10: -0.88 | X10: 0 | AA10: =IFERROR(RTD("cqg.rtd",,"StudyData", "Correlation("&$B$3&","&AA$2&",Period:="&$B$1&",InputChoice1:=Close,InputChoice2::=Close)", "FG", "", "Close",$B$2,A10, "all","", "","True","T")/100,"") -> -0.2636166492 | AC10: -0.88 | AD10: 4 | AG10: =IFERROR(RTD("cqg.rtd",,"StudyData", "Correlation("&$B$3&","&AG$2&",Period:="&$B$1&",InputChoice1:=Close,InputChoice2::=Close)", "FG", "", "Close",$B$2,A10, "all","", "","True","T")/100,"") -> -0.133817234 | AI10: -0.88 | AJ10: 4 | AM10: =IFERROR(RTD("cqg.rtd",,"StudyData", "Correlation("&$B$3&","&AM$2&",Period:="&$B$1&",InputChoice1:=Close,InputChoice2::=Close)", "FG", "", "Close",$B$2,A10, "all","", "","True","T")/100,"") -> -0.1647076902 | AO10: -0.88 | AP10: 0 | AS10: =IFERROR(RTD("cqg.rtd",,"StudyData", "Correlation("&$B$3&","&AS$2&",Period:="&$B$1&",InputChoice1:=Close,InputChoice2::=Close)", "FG", "", "Close",$B$2,A10, "all","", "","True","T")/100,"") -> 0.09039662533 | AU10: -0.88 | AV10: 0 | AY10: =IFERROR(RTD("cqg.rtd",,"StudyData", "Correlation("&$B$3&","&AY$2&",Period:="&$B$1&",InputChoice1:=Close,InputChoice2::=Close)", "FG", "", "Close",$B$2,A10, "all","", "","True","T")/100,"") -> -0.174969102 | BA10: -0.88 | BB10: 0 | BE10: =IFERROR(RTD("cqg.rtd",,"StudyData", "Correlation("&$B$3&","&BE$2&",Period:="&$B$1&",InputChoice1:=Close,InputChoice2::=Close)", "FG", "", "Close",$B$2,A10, "all","", "","True","T")/100,"") -> 0.1209082241 | BG10: -0.88 | BH10: 0
A11: -7 | C11: =IFERROR(RTD("cqg.rtd",,"StudyData", "Correlation("&$B$3&","&C$2&",Period:="&$B$1&",InputChoice1:=Close,InputChoice2:=Close)", "FG", "", "Close",$B$2,A11, "all","", "","True","T")/100,"") -> -0.1429833612 | E11: -0.86 | F11: 3 | I11: =IFERROR(RTD("cqg.rtd",,"StudyData", "Correlation("&$B$3&","&I$2&",Period:="&$B$1&",InputChoice1:=Close,InputChoice2::=Close)", "FG", "", "Close",$B$2,A11, "all","", "","True","T")/100,"") -> -0.1618179138 | K11: -0.86 | L11: 1 | O11: =IFERROR(RTD("cqg.rtd",,"StudyData", "Correlation("&$B$3&","&O$2&",Period:="&$B$1&",InputChoice1:=Close,InputChoice2::=Close)", "FG", "", "Close",$B$2,A11, "all","", "","True","T")/100,"") -> -0.1786082605 | Q11: -0.86 | R11: 3 | U11: =IFERROR(RTD("cqg.rtd",,"StudyData", "Correlation("&$B$3&","&U$2&",Period:="&$B$1&",InputChoice1:=Close,InputChoice2::=Close)", "FG", "", "Close",$B$2,A11, "all","", "","True","T")/100,"") -> 0.0153009971 | W11: -0.86 | X11: 0 | AA11: =IFERROR(RTD("cqg.rtd",,"StudyData", "Correlation("&$B$3&","&AA$2&",Period:="&$B$1&",InputChoice1:=Close,InputChoice2::=Close)", "FG", "", "Close",$B$2,A11, "all","", "","True","T")/100,"") -> -0.1509915972 | AC11: -0.86 | AD11: 2 | AG11: =IFERROR(RTD("cqg.rtd",,"StudyData", "Correlation("&$B$3&","&AG$2&",Period:="&$B$1&",InputChoice1:=Close,InputChoice2::=Close)", "FG", "", "Close",$B$2,A11, "all","", "","True","T")/100,"") -> -0.007193185413 | AI11: -0.86 | AJ11: 5 | AM11: =IFERROR(RTD("cqg.rtd",,"StudyData", "Correlation("&$B$3&","&AM$2&",Period:="&$B$1&",InputChoice1:=Close,InputChoice2::=Close)", "FG", "", "Close",$B$2,A11, "all","", "","True","T")/100,"") -> -0.04509581613 | AO11: -0.86 | AP11: 0 | AS11: =IFERROR(RTD("cqg.rtd",,"StudyData", "Correlation("&$B$3&","&AS$2&",Period:="&$B$1&",InputChoice1:=Close,InputChoice2::=Close)", "FG", "", "Close",$B$2,A11, "all","", "","True","T")/100,"") -> 0.08453879292 | AU11: -0.86 | AV11: 0 | AY11: =IFERROR(RTD("cqg.rtd",,"StudyData", "Correlation("&$B$3&","&AY$2&",Period:="&$B$1&",InputChoice1:=Close,InputChoice2::=Close)", "FG", "", "Close",$B$2,A11, "all","", "","True","T")/100,"") -> -0.137404166 | BA11: -0.86 | BB11: 0 | BE11: =IFERROR(RTD("cqg.rtd",,"StudyData", "Correlation("&$B$3&","&BE$2&",Period:="&$B$1&",InputChoice1:=Close,InputChoice2::=Close)", "FG", "", "Close",$B$2,A11, "all","", "","True","T")/100,"") -> 0.1147599366 | BG11: -0.86 | BH11: 0
A12: -8 | C12: =IFERROR(RTD("cqg.rtd",,"StudyData", "Correlation("&$B$3&","&C$2&",Period:="&$B$1&",InputChoice1:=Close,InputChoice2:=Close)", "FG", "", "Close",$B$2,A12, "all","", "","True","T")/100,"") -> -0.01033729447 | E12: -0.84 | F12: 1 | I12: =IFERROR(RTD("cqg.rtd",,"StudyData", "Correlation("&$B$3&","&I$2&",Period:="&$B$1&",InputChoice1:=Close,InputChoice2::=Close)", "FG", "", "Close",$B$2,A12, "all","", "","True","T")/100,"") -> -0.01657490899 | K12: -0.84 | L12: 4 | O12: =IFERROR(RTD("cqg.rtd",,"StudyData", "Correlation("&$B$3&","&O$2&",Period:="&$B$1&",InputChoice1:=Close,InputChoice2::=Close)", "FG", "", "Close",$B$2,A12, "all","", "","True","T")/100,"") -> -0.04726904161 | Q12: -0.84 | R12: 2 | U12: =IFERROR(RTD("cqg.rtd",,"StudyData", "Correlation("&$B$3&","&U$2&",Period:="&$B$1&",InputChoice1:=Close,InputChoice2::=Close)", "FG", "", "Close",$B$2,A12, "all","", "","True","T")/100,"") -> 0.03685208195 | W12: -0.84 | X12: 0 | AA12: =IFERROR(RTD("cqg.rtd",,"StudyData", "Correlation("&$B$3&","&AA$2&",Period:="&$B$1&",InputChoice1:=Close,InputChoice2::=Close)", "FG", "", "Close",$B$2,A12, "all","", "","True","T")/100,"") -> -0.06862213509 | AC12: -0.84 | AD12: 2 | AG12: =IFERROR(RTD("cqg.rtd",,"StudyData", "Correlation("&$B$3&","&AG$2&",Period:="&$B$1&",InputChoice1:=Close,InputChoice2::=Close)", "FG", "", "Close",$B$2,A12, "all","", "","True","T")/100,"") -> 0.136459123 | AI12: -0.84 | AJ12: 3 | AM12: =IFERROR(RTD("cqg.rtd",,"StudyData", "Correlation("&$B$3&","&AM$2&",Period:="&$B$1&",InputChoice1:=Close,InputChoice2::=Close)", "FG", "", "Close",$B$2,A12, "all","", "","True","T")/100,"") -> 0.08313724271 | AO12: -0.84 | AP12: 4 | AS12: =IFERROR(RTD("cqg.rtd",,"StudyData", "Correlation("&$B$3&","&AS$2&",Period:="&$B$1&",InputChoice1:=Close,InputChoice2::=Close)", "FG", "", "Close",$B$2,A12, "all","", "","True","T")/100,"") -> 0.1285044177 | AU12: -0.84 | AV12: 0 | AY12: =IFERROR(RTD("cqg.rtd",,"StudyData", "Correlation("&$B$3&","&AY$2&",Period:="&$B$1&",InputChoice1:=Close,InputChoice2::=Close)", "FG", "", "Close",$B$2,A12, "all","", "","True","T")/100,"") -> -0.2516971967 | BA12: -0.84 | BB12: 0 | BE12: =IFERROR(RTD("cqg.rtd",,"StudyData", "Correlation("&$B$3&","&BE$2&",Period:="&$B$1&",InputChoice1:=Close,InputChoice2::=Close)", "FG", "", "Close",$B$2,A12, "all","", "","True","T")/100,"") -> 0.1710015793 | BG12: -0.84 | BH12: 0
A13: -9 | C13: =IFERROR(RTD("cqg.rtd",,"StudyData", "Correlation("&$B$3&","&C$2&",Period:="&$B$1&",InputChoice1:=Close,InputChoice2:=Close)", "FG", "", "Close",$B$2,A13, "all","", "","True","T")/100,"") -> 0.05287386456 | E13: -0.82 | F13: 4 | I13: =IFERROR(RTD("cqg.rtd",,"StudyData", "Correlation("&$B$3&","&I$2&",Period:="&$B$1&",InputChoice1:=Close,InputChoice2::=Close)", "FG", "", "Close",$B$2,A13, "all","", "","True","T")/100,"") -> 0.01277268817 | K13: -0.82 | L13: 2 | O13: =IFERROR(RTD("cqg.rtd",,"StudyData", "Correlation("&$B$3&","&O$2&",Period:="&$B$1&",InputChoice1:=Close,InputChoice2::=Close)", "FG", "", "Close",$B$2,A13, "all","", "","True","T")/100,"") -> -0.04389297655 | Q13: -0.82 | R13: 2 | U13: =IFERROR(RTD("cqg.rtd",,"StudyData", "Correlation("&$B$3&","&U$2&",Period:="&$B$1&",InputChoice1:=Close,InputChoice2::=Close)", "FG", "", "Close",$B$2,A13, "all","", "","True","T")/100,"") -> 0.06857209686 | W13: -0.82 | X13: 0 | AA13: =IFERROR(RTD("cqg.rtd",,"StudyData", "Correlation("&$B$3&","&AA$2&",Period:="&$B$1&",InputChoice1:=Close,InputChoice2::=Close)", "FG", "", "Close",$B$2,A13, "all","", "","True","T")/100,"") -> 0.03133892282 | AC13: -0.82 | AD13: 2 | AG13: =IFERROR(RTD("cqg.rtd",,"StudyData", "Correlation("&$B$3&","&AG$2&",Period:="&$B$1&",InputChoice1:=Close,InputChoice2::=Close)", "FG", "", "Close",$B$2,A13, "all","", "","True","T")/100,"") -> 0.2664632082 | AI13: -0.82 | AJ13: 2 | AM13: =IFERROR(RTD("cqg.rtd",,"StudyData", "Correlation("&$B$3&","&AM$2&",Period:="&$B$1&",InputChoice1:=Close,InputChoice2::=Close)", "FG", "", "Close",$B$2,A13, "all","", "","True","T")/100,"") -> 0.2269848208 | AO13: -0.82 | AP13: 6 | AS13: =IFERROR(RTD("cqg.rtd",,"StudyData", "Correlation("&$B$3&","&AS$2&",Period:="&$B$1&",InputChoice1:=Close,InputChoice2::=Close)", "FG", "", "Close",$B$2,A13, "all","", "","True","T")/100,"") -> 0.1921267067 | AU13: -0.82 | AV13: 0 | AY13: =IFERROR(RTD("cqg.rtd",,"StudyData", "Correlation("&$B$3&","&AY$2&",Period:="&$B$1&",InputChoice1:=Close,InputChoice2::=Close)", "FG", "", "Close",$B$2,A13, "all","", "","True","T")/100,"") -> -0.2910004713 | BA13: -0.82 | BB13: 0 | BE13: =IFERROR(RTD("cqg.rtd",,"StudyData", "Correlation("&$B$3&","&BE$2&",Period:="&$B$1&",InputChoice1:=Close,InputChoice2::=Close)", "FG", "", "Close",$B$2,A13, "all","", "","True","T")/100,"") -> 0.1660463206 | BG13: -0.82 | BH13: 0
A14: -10 | C14: =IFERROR(RTD("cqg.rtd",,"StudyData", "Correlation("&$B$3&","&C$2&",Period:="&$B$1&",InputChoice1:=Close,InputChoice2:=Close)", "FG", "", "Close",$B$2,A14, "all","", "","True","T")/100,"") -> -0.00782475443 | E14: -0.8 | F14: 2 | I14: =IFERROR(RTD("cqg.rtd",,"StudyData", "Correlation("&$B$3&","&I$2&",Period:="&$B$1&",InputChoice1:=Close,InputChoice2::=Close)", "FG", "", "Close",$B$2,A14, "all","", "","True","T")/100,"") -> -0.121599567 | K14: -0.8 | L14: 3 | O14: =IFERROR(RTD("cqg.rtd",,"StudyData", "Correlation("&$B$3&","&O$2&",Period:="&$B$1&",InputChoice1:=Close,InputChoice2::=Close)", "FG", "", "Close",$B$2,A14, "all","", "","True","T")/100,"") -> -0.1970286805 | Q14: -0.8 | R14: 1 | U14: =IFERROR(RTD("cqg.rtd",,"StudyData", "Correlation("&$B$3&","&U$2&",Period:="&$B$1&",InputChoice1:=Close,InputChoice2::=Close)", "FG", "", "Close",$B$2,A14, "all","", "","True","T")/100,"") -> 0.1073879887 | W14: -0.8 | X14: 0 | AA14: =IFERROR(RTD("cqg.rtd",,"StudyData", "Correlation("&$B$3&","&AA$2&",Period:="&$B$1&",InputChoice1:=Close,InputChoice2::=Close)", "FG", "", "Close",$B$2,A14, "all","", "","True","T")/100,"") -> 0.0917824296 | AC14: -0.8 | AD14: 5 | AG14: =IFERROR(RTD("cqg.rtd",,"StudyData", "Correlation("&$B$3&","&AG$2&",Period:="&$B$1&",InputChoice1:=Close,InputChoice2::=Close)", "FG", "", "Close",$B$2,A14, "all","", "","True","T")/100,"") -> 0.3203710928 | AI14: -0.8 | AJ14: 0 | AM14: =IFERROR(RTD("cqg.rtd",,"StudyData", "Correlation("&$B$3&","&AM$2&",Period:="&$B$1&",InputChoice1:=Close,InputChoice2::=Close)", "FG", "", "Close",$B$2,A14, "all","", "","True","T")/100,"") -> 0.3322999887 | AO14: -0.8 | AP14: 2 | AS14: =IFERROR(RTD("cqg.rtd",,"StudyData", "Correlation("&$B$3&","&AS$2&",Period:="&$B$1&",InputChoice1:=Close,InputChoice2::=Close)", "FG", "", "Close",$B$2,A14, "all","", "","True","T")/100,"") -> 0.326872317 | AU14: -0.8 | AV14: 0 | AY14: =IFERROR(RTD("cqg.rtd",,"StudyData", "Correlation("&$B$3&","&AY$2&",Period:="&$B$1&",InputChoice1:=Close,InputChoice2::=Close)", "FG", "", "Close",$B$2,A14, "all","", "","True","T")/100,"") -> -0.3522459234 | BA14: -0.8 | BB14: 0 | BE14: =IFERROR(RTD("cqg.rtd",,"StudyData", "Correlation("&$B$3&","&BE$2&",Period:="&$B$1&",InputChoice1:=Close,InputChoice2::=Close)", "FG", "", "Close",$B$2,A14, "all","", "","True","T")/100,"") -> 0.1446671986 | BG14: -0.8 | BH14: 0
A15: -11 | C15: =IFERROR(RTD("cqg.rtd",,"StudyData", "Correlation("&$B$3&","&C$2&",Period:="&$B$1&",InputChoice1:=Close,InputChoice2:=Close)", "FG", "", "Close",$B$2,A15, "all","", "","True","T")/100,"") -> -0.03179630288 | E15: -0.78 | F15: 0 | I15: =IFERROR(RTD("cqg.rtd",,"StudyData", "Correlation("&$B$3&","&I$2&",Period:="&$B$1&",InputChoice1:=Close,InputChoice2::=Close)", "FG", "", "Close",$B$2,A15, "all","", "","True","T")/100,"") -> -0.2186461901 | K15: -0.78 | L15: 1 | O15: =IFERROR(RTD("cqg.rtd",,"StudyData", "Correlation("&$B$3&","&O$2&",Period:="&$B$1&",InputChoice1:=Close,InputChoice2::=Close)", "FG", "", "Close",$B$2,A15, "all","", "","True","T")/100,"") -> -0.2919073954 | Q15: -0.78 | R15: 1 | U15: =IFERROR(RTD("cqg.rtd",,"StudyData", "Correlation("&$B$3&","&U$2&",Period:="&$B$1&",InputChoice1:=Close,InputChoice2::=Close)", "FG", "", "Close",$B$2,A15, "all","", "","True","T")/100,"") -> 0.2870245998 | W15: -0.78 | X15: 0 | AA15: =IFERROR(RTD("cqg.rtd",,"StudyData", "Correlation("&$B$3&","&AA$2&",Period:="&$B$1&",InputChoice1:=Close,InputChoice2::=Close)", "FG", "", "Close",$B$2,A15, "all","", "","True","T")/100,"") -> -0.01544292956 | AC15: -0.78 | AD15: 8 | AG15: =IFERROR(RTD("cqg.rtd",,"StudyData", "Correlation("&$B$3&","&AG$2&",Period:="&$B$1&",InputChoice1:=Close,InputChoice2::=Close)", "FG", "", "Close",$B$2,A15, "all","", "","True","T")/100,"") -> 0.2027339197 | AI15: -0.78 | AJ15: 2 | AM15: =IFERROR(RTD("cqg.rtd",,"StudyData", "Correlation("&$B$3&","&AM$2&",Period:="&$B$1&",InputChoice1:=Close,InputChoice2::=Close)", "FG", "", "Close",$B$2,A15, "all","", "","True","T")/100,"") -> 0.2616493075 | AO15: -0.78 | AP15: 5 | AS15: =IFERROR(RTD("cqg.rtd",,"StudyData", "Correlation("&$B$3&","&AS$2&",Period:="&$B$1&",InputChoice1:=Close,InputChoice2::=Close)", "FG", "", "Close",$B$2,A15, "all","", "","True","T")/100,"") -> 0.4415296369 | AU15: -0.78 | AV15: 0 | AY15: =IFERROR(RTD("cqg.rtd",,"StudyData", "Correlation("&$B$3&","&AY$2&",Period:="&$B$1&",InputChoice1:=Close,InputChoice2::=Close)", "FG", "", "Close",$B$2,A15, "all","", "","True","T")/100,"") -> -0.450988143 | BA15: -0.78 | BB15: 0 | BE15: =IFERROR(RTD("cqg.rtd",,"StudyData", "Correlation("&$B$3&","&BE$2&",Period:="&$B$1&",InputChoice1:=Close,InputChoice2::=Close)", "FG", "", "Close",$B$2,A15, "all","", "","True","T")/100,"") -> 0.1356727625 | BG15: -0.78 | BH15: 0
A16: -12 | C16: =IFERROR(RTD("cqg.rtd",,"StudyData", "Correlation("&$B$3&","&C$2&",Period:="&$B$1&",InputChoice1:=Close,InputChoice2:=Close)", "FG", "", "Close",$B$2,A16, "all","", "","True","T")/100,"") -> -0.09086523664 | E16: -0.76 | F16: 1 | I16: =IFERROR(RTD("cqg.rtd",,"StudyData", "Correlation("&$B$3&","&I$2&",Period:="&$B$1&",InputChoice1:=Close,InputChoice2::=Close)", "FG", "", "Close",$B$2,A16, "all","", "","True","T")/100,"") -> -0.446150614 | K16: -0.76 | L16: 0 | O16: =IFERROR(RTD("cqg.rtd",,"StudyData", "Correlation("&$B$3&","&O$2&",Period:="&$B$1&",InputChoice1:=Close,InputChoice2::=Close)", "FG", "", "Close",$B$2,A16, "all","", "","True","T")/100,"") -> -0.5096787687 | Q16: -0.76 | R16: 1 | U16: =IFERROR(RTD("cqg.rtd",,"StudyData", "Correlation("&$B$3&","&U$2&",Period:="&$B$1&",InputChoice1:=Close,InputChoice2::=Close)", "FG", "", "Close",$B$2,A16, "all","", "","True","T")/100,"") -> 0.6425921147 | W16: -0.76 | X16: 0 | AA16: =IFERROR(RTD("cqg.rtd",,"StudyData", "Correlation("&$B$3&","&AA$2&",Period:="&$B$1&",InputChoice1:=Close,InputChoice2::=Close)", "FG", "", "Close",$B$2,A16, "all","", "","True","T")/100,"") -> -0.3160211505 | AC16: -0.76 | AD16: 1 | AG16: =IFERROR(RTD("cqg.rtd",,"StudyData", "Correlation("&$B$3&","&AG$2&",Period:="&$B$1&",InputChoice1:=Close,InputChoice2::=Close)", "FG", "", "Close",$B$2,A16, "all","", "","True","T")/100,"") -> -0.3306961151 | AI16: -0.76 | AJ16: 2 | AM16: =IFERROR(RTD("cqg.rtd",,"StudyData", "Correlation("&$B$3&","&AM$2&",Period:="&$B$1&",InputChoice1:=Close,InputChoice2::=Close)", "FG", "", "Close",$B$2,A16, "all","", "","True","T")/100,"") -> 0.02902701789 | AO16: -0.76 | AP16: 3 | AS16: =IFERROR(RTD("cqg.rtd",,"StudyData", "Correlation("&$B$3&","&AS$2&",Period:="&$B$1&",InputChoice1:=Close,InputChoice2::=Close)", "FG", "", "Close",$B$2,A16, "all","", "","True","T")/100,"") -> 0.7811059813 | AU16: -0.76 | AV16: 1 | AY16: =IFERROR(RTD("cqg.rtd",,"StudyData", "Correlation("&$B$3&","&AY$2&",Period:="&$B$1&",InputChoice1:=Close,InputChoice2::=Close)", "FG", "", "Close",$B$2,A16, "all","", "","True","T")/100,"") -> -0.6682209107 | BA16: -0.76 | BB16: 0 | BE16: =IFERROR(RTD("cqg.rtd",,"StudyData", "Correlation("&$B$3&","&BE$2&",Period:="&$B$1&",InputChoice1:=Close,InputChoice2::=Close)", "FG", "", "Close",$B$2,A16, "all","", "","True","T")/100,"") -> 0.06266140913 | BG16: -0.76 | BH16: 0
A17: -13 | C17: =IFERROR(RTD("cqg.rtd",,"StudyData", "Correlation("&$B$3&","&C$2&",Period:="&$B$1&",InputChoice1:=Close,InputChoice2:=Close)", "FG", "", "Close",$B$2,A17, "all","", "","True","T")/100,"") -> -0.2461699116 | E17: -0.74 | F17: 0 | I17: =IFERROR(RTD("cqg.rtd",,"StudyData", "Correlation("&$B$3&","&I$2&",Period:="&$B$1&",InputChoice1:=Close,InputChoice2::=Close)", "FG", "", "Close",$B$2,A17, "all","", "","True","T")/100,"") -> -0.7881260265 | K17: -0.74 | L17: 0 | O17: =IFERROR(RTD("cqg.rtd",,"StudyData", "Correlation("&$B$3&","&O$2&",Period:="&$B$1&",InputChoice1:=Close,InputChoice2::=Close)", "FG", "", "Close",$B$2,A17, "all","", "","True","T")/100,"") -> -0.8723382946 | Q17: -0.74 | R17: 1 | U17: =IFERROR(RTD("cqg.rtd",,"StudyData", "Correlation("&$B$3&","&U$2&",Period:="&$B$1&",InputChoice1:=Close,InputChoice2::=Close)", "FG", "", "Close",$B$2,A17, "all","", "","True","T")/100,"") -> 0.7254471887 | W17: -0.74 | X17: 0 | AA17: =IFERROR(RTD("cqg.rtd",,"StudyData", "Correlation("&$B$3&","&AA$2&",Period:="&$B$1&",InputChoice1:=Close,InputChoice2::=Close)", "FG", "", "Close",$B$2,A17, "all","", "","True","T")/100,"") -> -0.3483604234 | AC17: -0.74 | AD17: 3 | AG17: =IFERROR(RTD("cqg.rtd",,"StudyData", "Correlation("&$B$3&","&AG$2&",Period:="&$B$1&",InputChoice1:=Close,InputChoice2::=Close)", "FG", "", "Close",$B$2,A17, "all","", "","True","T")/100,"") -> -0.2864911475 | AI17: -0.74 | AJ17: 0 | AM17: =IFERROR(RTD("cqg.rtd",,"StudyData", "Correlation("&$B$3&","&AM$2&",Period:="&$B$1&",InputChoice1:=Close,InputChoice2::=Close)", "FG", "", "Close",$B$2,A17, "all","", "","True","T")/100,"") -> 0.1165307942 | AO17: -0.74 | AP17: 5 | AS17: =IFERROR(RTD("cqg.rtd",,"StudyData", "Correlation("&$B$3&","&AS$2&",Period:="&$B$1&",InputChoice1:=Close,InputChoice2::=Close)", "FG", "", "Close",$B$2,A17, "all","", "","True","T")/100,"") -> 0.7996132705 | AU17: -0.74 | AV17: 2 | AY17: =IFERROR(RTD("cqg.rtd",,"StudyData", "Correlation("&$B$3&","&AY$2&",Period:="&$B$1&",InputChoice1:=Close,InputChoice2::=Close)", "FG", "", "Close",$B$2,A17, "all","", "","True","T")/100,"") -> -0.546187784 | BA17: -0.74 | BB17: 0 | BE17: =IFERROR(RTD("cqg.rtd",,"StudyData", "Correlation("&$B$3&","&BE$2&",Period:="&$B$1&",InputChoice1:=Close,InputChoice2::=Close)", "FG", "", "Close",$B$2,A17, "all","", "","True","T")/100,"") -> -0.2038943334 | BG17: -0.74 | BH17: 0
A18: -14 | C18: =IFERROR(RTD("cqg.rtd",,"StudyData", "Correlation("&$B$3&","&C$2&",Period:="&$B$1&",InputChoice1:=Close,InputChoice2:=Close)", "FG", "", "Close",$B$2,A18, "all","", "","True","T")/100,"") -> -0.3669550761 | E18: -0.72 | F18: 0 | I18: =IFERROR(RTD("cqg.rtd",,"StudyData", "Correlation("&$B$3&","&I$2&",Period:="&$B$1&",InputChoice1:=Close,InputChoice2::=Close)", "FG", "", "Close",$B$2,A18, "all","", "","True","T")/100,"") -> -0.8246881551 | K18: -0.72 | L18: 1 | O18: =IFERROR(RTD("cqg.rtd",,"StudyData", "Correlation("&$B$3&","&O$2&",Period:="&$B$1&",InputChoice1:=Close,InputChoice2::=Close)", "FG", "", "Close",$B$2,A18, "all","", "","True","T")/100,"") -> -0.8882040673 | Q18: -0.72 | R18: 5 | U18: =IFERROR(RTD("cqg.rtd",,"StudyData", "Correlation("&$B$3&","&U$2&",Period:="&$B$1&",InputChoice1:=Close,InputChoice2::=Close)", "FG", "", "Close",$B$2,A18, "all","", "","True","T")/100,"") -> 0.783903675 | W18: -0.72 | X18: 1 | AA18: =IFERROR(RTD("cqg.rtd",,"StudyData", "Correlation("&$B$3&","&AA$2&",Period:="&$B$1&",InputChoice1:=Close,InputChoice2::=Close)", "FG", "", "Close",$B$2,A18, "all","", "","True","T")/100,"") -> -0.4452857218 | AC18: -0.72 | AD18: 5 | AG18: =IFERROR(RTD("cqg.rtd",,"StudyData", "Correlation("&$B$3&","&AG$2&",Period:="&$B$1&",InputChoice1:=Close,InputChoice2::=Close)", "FG", "", "Close",$B$2,A18, "all","", "","True","T")/100,"") -> -0.3762270964 | AI18: -0.72 | AJ18: 1 | AM18: =IFERROR(RTD("cqg.rtd",,"StudyData", "Correlation("&$B$3&","&AM$2&",Period:="&$B$1&",InputChoice1:=Close,InputChoice2::=Close)", "FG", "", "Close",$B$2,A18, "all","", "","True","T")/100,"") -> 0.1358376383 | AO18: -0.72 | AP18: 5 | AS18: =IFERROR(RTD("cqg.rtd",,"StudyData", "Correlation("&$B$3&","&AS$2&",Period:="&$B$1&",InputChoice1:=Close,InputChoice2::=Close)", "FG", "", "Close",$B$2,A18, "all","", "","True","T")/100,"") -> 0.8256289089 | AU18: -0.72 | AV18: 0 | AY18: =IFERROR(RTD("cqg.rtd",,"StudyData", "Correlation("&$B$3&","&AY$2&",Period:="&$B$1&",InputChoice1:=Close,InputChoice2::=Close)", "FG", "", "Close",$B$2,A18, "all","", "","True","T")/100,"") -> -0.4491026047 | BA18: -0.72 | BB18: 0 | BE18: =IFERROR(RTD("cqg.rtd",,"StudyData", "Correlation("&$B$3&","&BE$2&",Period:="&$B$1&",InputChoice1:=Close,InputChoice2::=Close)", "FG", "", "Close",$B$2,A18, "all","", "","True","T")/100,"") -> -0.1543277566 | BG18: -0.72 | BH18: 0
A19: -15 | C19: =IFERROR(RTD("cqg.rtd",,"StudyData", "Correlation("&$B$3&","&C$2&",Period:="&$B$1&",InputChoice1:=Close,InputChoice2:=Close)", "FG", "", "Close",$B$2,A19, "all","", "","True","T")/100,"") -> -0.440491378 | E19: -0.7 | F19: 0 | I19: =IFERROR(RTD("cqg.rtd",,"StudyData", "Correlation("&$B$3&","&I$2&",Period:="&$B$1&",InputChoice1:=Close,InputChoice2::=Close)", "FG", "", "Close",$B$2,A19, "all","", "","True","T")/100,"") -> -0.831400019 | K19: -0.7 | L19: 1 | O19: =IFERROR(RTD("cqg.rtd",,"StudyData", "Correlation("&$B$3&","&O$2&",Period:="&$B$1&",InputChoice1:=Close,InputChoice2::=Close)", "FG", "", "Close",$B$2,A19, "all","", "","True","T")/100,"") -> -0.8868683025 | Q19: -0.7 | R19: 1 | U19: =IFERROR(RTD("cqg.rtd",,"StudyData", "Correlation("&$B$3&","&U$2&",Period:="&$B$1&",InputChoice1:=Close,InputChoice2::=Close)", "FG", "", "Close",$B$2,A19, "all","", "","True","T")/100,"") -> 0.8286939782 | W19: -0.7 | X19: 4 | AA19: =IFERROR(RTD("cqg.rtd",,"StudyData", "Correlation("&$B$3&","&AA$2&",Period:="&$B$1&",InputChoice1:=Close,InputChoice2::=Close)", "FG", "", "Close",$B$2,A19, "all","", "","True","T")/100,"") -> -0.6304715537 | AC19: -0.7 | AD19: 1 | AG19: =IFERROR(RTD("cqg.rtd",,"StudyData", "Correlation("&$B$3&","&AG$2&",Period:="&$B$1&",InputChoice1:=Close,InputChoice2::=Close)", "FG", "", "Close",$B$2,A19, "all","", "","True","T")/100,"") -> -0.5135426766 | AI19: -0.7 | AJ19: 0 | AM19: =IFERROR(RTD("cqg.rtd",,"StudyData", "Correlation("&$B$3&","&AM$2&",Period:="&$B$1&",InputChoice1:=Close,InputChoice2::=Close)", "FG", "", "Close",$B$2,A19, "all","", "","True","T")/100,"") -> -0.01697902202 | AO19: -0.7 | AP19: 1 | AS19: =IFERROR(RTD("cqg.rtd",,"StudyData", "Correlation("&$B$3&","&AS$2&",Period:="&$B$1&",InputChoice1:=Close,InputChoice2::=Close)", "FG", "", "Close",$B$2,A19, "all","", "","True","T")/100,"") -> 0.8513995239 | AU19: -0.7 | AV19: 1 | AY19: =IFERROR(RTD("cqg.rtd",,"StudyData", "Correlation("&$B$3&","&AY$2&",Period:="&$B$1&",InputChoice1:=Close,InputChoice2::=Close)", "FG", "", "Close",$B$2,A19, "all","", "","True","T")/100,"") -> -0.3419885328 | BA19: -0.7 | BB19: 0 | BE19: =IFERROR(RTD("cqg.rtd",,"StudyData", "Correlation("&$B$3&","&BE$2&",Period:="&$B$1&",InputChoice1:=Close,InputChoice2::=Close)", "FG", "", "Close",$B$2,A19, "all","", "","True","T")/100,"") -> -0.1014486731 | BG19: -0.7 | BH19: 0
A20: -16 | C20: =IFERROR(RTD("cqg.rtd",,"StudyData", "Correlation("&$B$3&","&C$2&",Period:="&$B$1&",InputChoice1:=Close,InputChoice2:=Close)", "FG", "", "Close",$B$2,A20, "all","", "","True","T")/100,"") -> -0.5676290662 | E20: -0.68 | F20: 1 | I20: =IFERROR(RTD("cqg.rtd",,"StudyData", "Correlation("&$B$3&","&I$2&",Period:="&$B$1&",InputChoice1:=Close,InputChoice2::=Close)", "FG", "", "Close",$B$2,A20, "all","", "","True","T")/100,"") -> -0.8506709649 | K20: -0.68 | L20: 1 | O20: =IFERROR(RTD("cqg.rtd",,"StudyData", "Correlation("&$B$3&","&O$2&",Period:="&$B$1&",InputChoice1:=Close,InputChoice2::=Close)", "FG", "", "Close",$B$2,A20, "all","", "","True","T")/100,"") -> -0.9004834059 | Q20: -0.68 | R20: 0 | U20: =IFERROR(RTD("cqg.rtd",,"StudyData", "Correlation("&$B$3&","&U$2&",Period:="&$B$1&",InputChoice1:=Close,InputChoice2::=Close)", "FG", "", "Close",$B$2,A20, "all","", "","True","T")/100,"") -> 0.8461130603 | W20: -0.68 | X20: 1 | AA20: =IFERROR(RTD("cqg.rtd",,"StudyData", "Correlation("&$B$3&","&AA$2&",Period:="&$B$1&",InputChoice1:=Close,InputChoice2::=Close)", "FG", "", "Close",$B$2,A20, "all","", "","True","T")/100,"") -> -0.7203743578 | AC20: -0.68 | AD20: 1 | AG20: =IFERROR(RTD("cqg.rtd",,"StudyData", "Correlation("&$B$3&","&AG$2&",Period:="&$B$1&",InputChoice1:=Close,InputChoice2::=Close)", "FG", "", "Close",$B$2,A20, "all","", "","True","T")/100,"") -> -0.5046793196 | AI20: -0.68 | AJ20: 1 | AM20: =IFERROR(RTD("cqg.rtd",,"StudyData", "Correlation("&$B$3&","&AM$2&",Period:="&$B$1&",InputChoice1:=Close,InputChoice2::=Close)", "FG", "", "Close",$B$2,A20, "all","", "","True","T")/100,"") -> 0.02792745478 | AO20: -0.68 | AP20: 4 | AS20: =IFERROR(RTD("cqg.rtd",,"StudyData", "Correlation("&$B$3&","&AS$2&",Period:="&$B$1&",InputChoice1:=Close,InputChoice2::=Close)", "FG", "", "Close",$B$2,A20, "all","", "","True","T")/100,"") -> 0.7667201232 | AU20: -0.68 | AV20: 1 | AY20: =IFERROR(RTD("cqg.rtd",,"StudyData", "Correlation("&$B$3&","&AY$2&",Period:="&$B$1&",InputChoice1:=Close,InputChoice2::=Close)", "FG", "", "Close",$B$2,A20, "all","", "","True","T")/100,"") -> -0.2668290582 | BA20: -0.68 | BB20: 0 | BE20: =IFERROR(RTD("cqg.rtd",,"StudyData", "Correlation("&$B$3&","&BE$2&",Period:="&$B$1&",InputChoice1:=Close,InputChoice2::=Close)", "FG", "", "Close",$B$2,A20, "all","", "","True","T")/100,"") -> -0.1474009145 | BG20: -0.68 | BH20: 0
A21: -17 | C21: =IFERROR(RTD("cqg.rtd",,"StudyData", "Correlation("&$B$3&","&C$2&",Period:="&$B$1&",InputChoice1:=Close,InputChoice2:=Close)", "FG", "", "Close",$B$2,A21, "all","", "","True","T")/100,"") -> -0.7665629139 | E21: -0.66 | F21: 0 | I21: =IFERROR(RTD("cqg.rtd",,"StudyData", "Correlation("&$B$3&","&I$2&",Period:="&$B$1&",InputChoice1:=Close,InputChoice2::=Close)", "FG", "", "Close",$B$2,A21, "all","", "","True","T")/100,"") -> -0.89432464 | K21: -0.66 | L21: 0 | O21: =IFERROR(RTD("cqg.rtd",,"StudyData", "Correlation("&$B$3&","&O$2&",Period:="&$B$1&",InputChoice1:=Close,InputChoice2::=Close)", "FG", "", "Close",$B$2,A21, "all","", "","True","T")/100,"") -> -0.90673865 | Q21: -0.66 | R21: 3 | U21: =IFERROR(RTD("cqg.rtd",,"StudyData", "Correlation("&$B$3&","&U$2&",Period:="&$B$1&",InputChoice1:=Close,InputChoice2::=Close)", "FG", "", "Close",$B$2,A21, "all","", "","True","T")/100,"") -> 0.8393448438 | W21: -0.66 | X21: 6 | AA21: =IFERROR(RTD("cqg.rtd",,"StudyData", "Correlation("&$B$3&","&AA$2&",Period:="&$B$1&",InputChoice1:=Close,InputChoice2::=Close)", "FG", "", "Close",$B$2,A21, "all","", "","True","T")/100,"") -> -0.7237126968 | AC21: -0.66 | AD21: 1 | AG21: =IFERROR(RTD("cqg.rtd",,"StudyData", "Correlation("&$B$3&","&AG$2&",Period:="&$B$1&",InputChoice1:=Close,InputChoice2::=Close)", "FG", "", "Close",$B$2,A21, "all","", "","True","T")/100,"") -> -0.398371629 | AI21: -0.66 | AJ21: 1 | AM21: =IFERROR(RTD("cqg.rtd",,"StudyData", "Correlation("&$B$3&","&AM$2&",Period:="&$B$1&",InputChoice1:=Close,InputChoice2::=Close)", "FG", "", "Close",$B$2,A21, "all","", "","True","T")/100,"") -> 0.1147953724 | AO21: -0.66 | AP21: 1 | AS21: =IFERROR(RTD("cqg.rtd",,"StudyData", "Correlation("&$B$3&","&AS$2&",Period:="&$B$1&",InputChoice1:=Close,InputChoice2::=Close)", "FG", "", "Close",$B$2,A21, "all","", "","True","T")/100,"") -> 0.6526979287 | AU21: -0.66 | AV21: 2 | AY21: =IFERROR(RTD("cqg.rtd",,"StudyData", "Correlation("&$B$3&","&AY$2&",Period:="&$B$1&",InputChoice1:=Close,InputChoice2::=Close)", "FG", "", "Close",$B$2,A21, "all","", "","True","T")/100,"") -> -0.2159803009 | BA21: -0.66 | BB21: 1 | BE21: =IFERROR(RTD("cqg.rtd",,"StudyData", "Correlation("&$B$3&","&BE$2&",Period:="&$B$1&",InputChoice1:=Close,InputChoice2::=Close)", "FG", "", "Close",$B$2,A21, "all","", "","True","T")/100,"") -> -0.1497531154 | BG21: -0.66 | BH21: 0
A22: -18 | C22: =IFERROR(RTD("cqg.rtd",,"StudyData", "Correlation("&$B$3&","&C$2&",Period:="&$B$1&",InputChoice1:=Close,InputChoice2:=Close)", "FG", "", "Close",$B$2,A22, "all","", "","True","T")/100,"") -> -0.8258054803 | E22: -0.64 | F22: 0 | I22: =IFERROR(RTD("cqg.rtd",,"StudyData", "Correlation("&$B$3&","&I$2&",Period:="&$B$1&",InputChoice1:=Close,InputChoice2::=Close)", "FG", "", "Close",$B$2,A22, "all","", "","True","T")/100,"") -> -0.8990662778 | K22: -0.64 | L22: 1 | O22: =IFERROR(RTD("cqg.rtd",,"StudyData", "Correlation("&$B$3&","&O$2&",Period:="&$B$1&",InputChoice1:=Close,InputChoice2::=Close)", "FG", "", "Close",$B$2,A22, "all","", "","True","T")/100,"") -> -0.8907165056 | Q22: -0.64 | R22: 1 | U22: =IFERROR(RTD("cqg.rtd",,"StudyData", "Correlation("&$B$3&","&U$2&",Period:="&$B$1&",InputChoice1:=Close,InputChoice2::=Close)", "FG", "", "Close",$B$2,A22, "all","", "","True","T")/100,"") -> 0.8531267403 | W22: -0.64 | X22: 2 | AA22: =IFERROR(RTD("cqg.rtd",,"StudyData", "Correlation("&$B$3&","&AA$2&",Period:="&$B$1&",InputChoice1:=Close,InputChoice2::=Close)", "FG", "", "Close",$B$2,A22, "all","", "","True","T")/100,"") -> -0.7079190592 | AC22: -0.64 | AD22: 0 | AG22: =IFERROR(RTD("cqg.rtd",,"StudyData", "Correlation("&$B$3&","&AG$2&",Period:="&$B$1&",InputChoice1:=Close,InputChoice2::=Close)", "FG", "", "Close",$B$2,A22, "all","", "","True","T")/100,"") -> -0.3826657257 | AI22: -0.64 | AJ22: 2 | AM22: =IFERROR(RTD("cqg.rtd",,"StudyData", "Correlation("&$B$3&","&AM$2&",Period:="&$B$1&",InputChoice1:=Close,InputChoice2::=Close)", "FG", "", "Close",$B$2,A22, "all","", "","True","T")/100,"") -> 0.2342640075 | AO22: -0.64 | AP22: 0 | AS22: =IFERROR(RTD("cqg.rtd",,"StudyData", "Correlation("&$B$3&","&AS$2&",Period:="&$B$1&",InputChoice1:=Close,InputChoice2::=Close)", "FG", "", "Close",$B$2,A22, "all","", "","True","T")/100,"") -> 0.5567336604 | AU22: -0.64 | AV22: 1 | AY22: =IFERROR(RTD("cqg.rtd",,"StudyData", "Correlation("&$B$3&","&AY$2&",Period:="&$B$1&",InputChoice1:=Close,InputChoice2::=Close)", "FG", "", "Close",$B$2,A22, "all","", "","True","T")/100,"") -> -0.183272374 | BA22: -0.64 | BB22: 0 | BE22: =IFERROR(RTD("cqg.rtd",,"StudyData", "Correlation("&$B$3&","&BE$2&",Period:="&$B$1&",InputChoice1:=Close,InputChoice2::=Close)", "FG", "", "Close",$B$2,A22, "all","", "","True","T")/100,"") -> -0.208770394 | BG22: -0.64 | BH22: 0
A23: -19 | C23: =IFERROR(RTD("cqg.rtd",,"StudyData", "Correlation("&$B$3&","&C$2&",Period:="&$B$1&",InputChoice1:=Close,InputChoice2:=Close)", "FG", "", "Close",$B$2,A23, "all","", "","True","T")/100,"") -> -0.8328984478 | E23: -0.62 | F23: 2 | I23: =IFERROR(RTD("cqg.rtd",,"StudyData", "Correlation("&$B$3&","&I$2&",Period:="&$B$1&",InputChoice1:=Close,InputChoice2::=Close)", "FG", "", "Close",$B$2,A23, "all","", "","True","T")/100,"") -> -0.9124700739 | K23: -0.62 | L23: 0 | O23: =IFERROR(RTD("cqg.rtd",,"StudyData", "Correlation("&$B$3&","&O$2&",Period:="&$B$1&",InputChoice1:=Close,InputChoice2::=Close)", "FG", "", "Close",$B$2,A23, "all","", "","True","T")/100,"") -> -0.9011048588 | Q23: -0.62 | R23: 2 | U23: =IFERROR(RTD("cqg.rtd",,"StudyData", "Correlation("&$B$3&","&U$2&",Period:="&$B$1&",InputChoice1:=Close,InputChoice2::=Close)", "FG", "", "Close",$B$2,A23, "all","", "","True","T")/100,"") -> 0.8043510248 | W23: -0.62 | X23: 1 | AA23: =IFERROR(RTD("cqg.rtd",,"StudyData", "Correlation("&$B$3&","&AA$2&",Period:="&$B$1&",InputChoice1:=Close,InputChoice2::=Close)", "FG", "", "Close",$B$2,A23, "all","", "","True","T")/100,"") -> -0.733686557 | AC23: -0.62 | AD23: 1 | AG23: =IFERROR(RTD("cqg.rtd",,"StudyData", "Correlation("&$B$3&","&AG$2&",Period:="&$B$1&",InputChoice1:=Close,InputChoice2::=Close)", "FG", "", "Close",$B$2,A23, "all","", "","True","T")/100,"") -> -0.4551253819 | AI23: -0.62 | AJ23: 0 | AM23: =IFERROR(RTD("cqg.rtd",,"StudyData", "Correlation("&$B$3&","&AM$2&",Period:="&$B$1&",InputChoice1:=Close,InputChoice2::=Close)", "FG", "", "Close",$B$2,A23, "all","", "","True","T")/100,"") -> 0.1627992003 | AO23: -0.62 | AP23: 2 | AS23: =IFERROR(RTD("cqg.rtd",,"StudyData", "Correlation("&$B$3&","&AS$2&",Period:="&$B$1&",InputChoice1:=Close,InputChoice2::=Close)", "FG", "", "Close",$B$2,A23, "all","", "","True","T")/100,"") -> 0.4311478457 | AU23: -0.62 | AV23: 0 | AY23: =IFERROR(RTD("cqg.rtd",,"StudyData", "Correlation("&$B$3&","&AY$2&",Period:="&$B$1&",InputChoice1:=Close,InputChoice2::=Close)", "FG", "", "Close",$B$2,A23, "all","", "","True","T")/100,"") -> 0.08602180578 | BA23: -0.62 | BB23: 0 | BE23: =IFERROR(RTD("cqg.rtd",,"StudyData", "Correlation("&$B$3&","&BE$2&",Period:="&$B$1&",InputChoice1:=Close,InputChoice2::=Close)", "FG", "", "Close",$B$2,A23, "all","", "","True","T")/100,"") -> -0.2714374831 | BG23: -0.62 | BH23: 0
A24: -20 | C24: =IFERROR(RTD("cqg.rtd",,"StudyData", "Correlation("&$B$3&","&C$2&",Period:="&$B$1&",InputChoice1:=Close,InputChoice2:=Close)", "FG", "", "Close",$B$2,A24, "all","", "","True","T")/100,"") -> -0.8277787363 | E24: -0.6 | F24: 0 | I24: =IFERROR(RTD("cqg.rtd",,"StudyData", "Correlation("&$B$3&","&I$2&",Period:="&$B$1&",InputChoice1:=Close,InputChoice2::=Close)", "FG", "", "Close",$B$2,A24, "all","", "","True","T")/100,"") -> -0.9174602121 | K24: -0.6 | L24: 2 | O24: =IFERROR(RTD("cqg.rtd",,"StudyData", "Correlation("&$B$3&","&O$2&",Period:="&$B$1&",InputChoice1:=Close,InputChoice2::=Close)", "FG", "", "Close",$B$2,A24, "all","", "","True","T")/100,"") -> -0.9090203298 | Q24: -0.6 | R24: 0 | U24: =IFERROR(RTD("cqg.rtd",,"StudyData", "Correlation("&$B$3&","&U$2&",Period:="&$B$1&",InputChoice1:=Close,InputChoice2::=Close)", "FG", "", "Close",$B$2,A24, "all","", "","True","T")/100,"") -> 0.664856403 | W24: -0.6 | X24: 2 | AA24: =IFERROR(RTD("cqg.rtd",,"StudyData", "Correlation("&$B$3&","&AA$2&",Period:="&$B$1&",InputChoice1:=Close,InputChoice2::=Close)", "FG", "", "Close",$B$2,A24, "all","", "","True","T")/100,"") -> -0.7917008527 | AC24: -0.6 | AD24: 3 | AG24: =IFERROR(RTD("cqg.rtd",,"StudyData", "Correlation("&$B$3&","&AG$2&",Period:="&$B$1&",InputChoice1:=Close,InputChoice2::=Close)", "FG", "", "Close",$B$2,A24, "all","", "","True","T")/100,"") -> -0.6124578165 | AI24: -0.6 | AJ24: 2 | AM24: =IFERROR(RTD("cqg.rtd",,"StudyData", "Correlation("&$B$3&","&AM$2&",Period:="&$B$1&",InputChoice1:=Close,InputChoice2::=Close)", "FG", "", "Close",$B$2,A24, "all","", "","True","T")/100,"") -> 0.004199315162 | AO24: -0.6 | AP24: 2 | AS24: =IFERROR(RTD("cqg.rtd",,"StudyData", "Correlation("&$B$3&","&AS$2&",Period:="&$B$1&",InputChoice1:=Close,InputChoice2::=Close)", "FG", "", "Close",$B$2,A24, "all","", "","True","T")/100,"") -> 0.2573424441 | AU24: -0.6 | AV24: 1 | AY24: =IFERROR(RTD("cqg.rtd",,"StudyData", "Correlation("&$B$3&","&AY$2&",Period:="&$B$1&",InputChoice1:=Close,InputChoice2::=Close)", "FG", "", "Close",$B$2,A24, "all","", "","True","T")/100,"") -> 0.503188694 | BA24: -0.6 | BB24: 1 | BE24: =IFERROR(RTD("cqg.rtd",,"StudyData", "Correlation("&$B$3&","&BE$2&",Period:="&$B$1&",InputChoice1:=Close,InputChoice2::=Close)", "FG", "", "Close",$B$2,A24, "all","", "","True","T")/100,"") -> -0.2314730448 | BG24: -0.6 | BH24: 1
A25: -21 | C25: =IFERROR(RTD("cqg.rtd",,"StudyData", "Correlation("&$B$3&","&C$2&",Period:="&$B$1&",InputChoice1:=Close,InputChoice2:=Close)", "FG", "", "Close",$B$2,A25, "all","", "","True","T")/100,"") -> -0.8497624512 | E25: -0.58 | F25: 1 | I25: =IFERROR(RTD("cqg.rtd",,"StudyData", "Correlation("&$B$3&","&I$2&",Period:="&$B$1&",InputChoice1:=Close,InputChoice2::=Close)", "FG", "", "Close",$B$2,A25, "all","", "","True","T")/100,"") -> -0.9168633705 | K25: =K24+0.02 -> -0.58 | L25: 1 | O25: =IFERROR(RTD("cqg.rtd",,"StudyData", "Correlation("&$B$3&","&O$2&",Period:="&$B$1&",InputChoice1:=Close,InputChoice2::=Close)", "FG", "", "Close",$B$2,A25, "all","", "","True","T")/100,"") -> -0.9019348014 | Q25: -0.58 | R25: 0 | U25: =IFERROR(RTD("cqg.rtd",,"StudyData", "Correlation("&$B$3&","&U$2&",Period:="&$B$1&",InputChoice1:=Close,InputChoice2::=Close)", "FG", "", "Close",$B$2,A25, "all","", "","True","T")/100,"") -> 0.6368781131 | W25: -0.58 | X25: 2 | AA25: =IFERROR(RTD("cqg.rtd",,"StudyData", "Correlation("&$B$3&","&AA$2&",Period:="&$B$1&",InputChoice1:=Close,InputChoice2::=Close)", "FG", "", "Close",$B$2,A25, "all","", "","True","T")/100,"") -> -0.8568477434 | AC25: -0.58 | AD25: 2 | AG25: =IFERROR(RTD("cqg.rtd",,"StudyData", "Correlation("&$B$3&","&AG$2&",Period:="&$B$1&",InputChoice1:=Close,InputChoice2::=Close)", "FG", "", "Close",$B$2,A25, "all","", "","True","T")/100,"") -> -0.7617294026 | AI25: -0.58 | AJ25: 1 | AM25: =IFERROR(RTD("cqg.rtd",,"StudyData", "Correlation("&$B$3&","&AM$2&",Period:="&$B$1&",InputChoice1:=Close,InputChoice2::=Close)", "FG", "", "Close",$B$2,A25, "all","", "","True","T")/100,"") -> -0.1405584938 | AO25: -0.58 | AP25: 1 | AS25: =IFERROR(RTD("cqg.rtd",,"StudyData", "Correlation("&$B$3&","&AS$2&",Period:="&$B$1&",InputChoice1:=Close,InputChoice2::=Close)", "FG", "", "Close",$B$2,A25, "all","", "","True","T")/100,"") -> -0.01528796953 | AU25: -0.58 | AV25: 0 | AY25: =IFERROR(RTD("cqg.rtd",,"StudyData", "Correlation("&$B$3&","&AY$2&",Period:="&$B$1&",InputChoice1:=Close,InputChoice2::=Close)", "FG", "", "Close",$B$2,A25, "all","", "","True","T")/100,"") -> 0.4680447499 | BA25: -0.58 | BB25: 0 | BE25: =IFERROR(RTD("cqg.rtd",,"StudyData", "Correlation("&$B$3&","&BE$2&",Period:="&$B$1&",InputChoice1:=Close,InputChoice2::=Close)", "FG", "", "Close",$B$2,A25, "all","", "","True","T")/100,"") -> -0.1324382086 | BG25: -0.58 | BH25: 2
A26: -22 | C26: =IFERROR(RTD("cqg.rtd",,"StudyData", "Correlation("&$B$3&","&C$2&",Period:="&$B$1&",InputChoice1:=Close,InputChoice2:=Close)", "FG", "", "Close",$B$2,A26, "all","", "","True","T")/100,"") -> -0.870025616 | E26: -0.56 | F26: 1 | I26: =IFERROR(RTD("cqg.rtd",,"StudyData", "Correlation("&$B$3&","&I$2&",Period:="&$B$1&",InputChoice1:=Close,InputChoice2::=Close)", "FG", "", "Close",$B$2,A26, "all","", "","True","T")/100,"") -> -0.9053287035 | K26: -0.56 | L26: 0 | O26: =IFERROR(RTD("cqg.rtd",,"StudyData", "Correlation("&$B$3&","&O$2&",Period:="&$B$1&",InputChoice1:=Close,InputChoice2::=Close)", "FG", "", "Close",$B$2,A26, "all","", "","True","T")/100,"") -> -0.9310200595 | Q26: -0.56 | R26: 0 | U26: =IFERROR(RTD("cqg.rtd",,"StudyData", "Correlation("&$B$3&","&U$2&",Period:="&$B$1&",InputChoice1:=Close,InputChoice2::=Close)", "FG", "", "Close",$B$2,A26, "all","", "","True","T")/100,"") -> 0.592950446 | W26: -0.56 | X26: 1 | AA26: =IFERROR(RTD("cqg.rtd",,"StudyData", "Correlation("&$B$3&","&AA$2&",Period:="&$B$1&",InputChoice1:=Close,InputChoice2::=Close)", "FG", "", "Close",$B$2,A26, "all","", "","True","T")/100,"") -> -0.9193959947 | AC26: -0.56 | AD26: 1 | AG26: =IFERROR(RTD("cqg.rtd",,"StudyData", "Correlation("&$B$3&","&AG$2&",Period:="&$B$1&",InputChoice1:=Close,InputChoice2::=Close)", "FG", "", "Close",$B$2,A26, "all","", "","True","T")/100,"") -> -0.8986456511 | AI26: -0.56 | AJ26: 2 | AM26: =IFERROR(RTD("cqg.rtd",,"StudyData", "Correlation("&$B$3&","&AM$2&",Period:="&$B$1&",InputChoice1:=Close,InputChoice2::=Close)", "FG", "", "Close",$B$2,A26, "all","", "","True","T")/100,"") -> -0.5097899892 | AO26: -0.56 | AP26: 2 | AS26: =IFERROR(RTD("cqg.rtd",,"StudyData", "Correlation("&$B$3&","&AS$2&",Period:="&$B$1&",InputChoice1:=Close,InputChoice2::=Close)", "FG", "", "Close",$B$2,A26, "all","", "","True","T")/100,"") -> 0.0124487039 | AU26: -0.56 | AV26: 0 | AY26: =IFERROR(RTD("cqg.rtd",,"StudyData", "Correlation("&$B$3&","&AY$2&",Period:="&$B$1&",InputChoice1:=Close,InputChoice2::=Close)", "FG", "", "Close",$B$2,A26, "all","", "","True","T")/100,"") -> 0.4862706161 | BA26: -0.56 | BB26: 2 | BE26: =IFERROR(RTD("cqg.rtd",,"StudyData", "Correlation("&$B$3&","&BE$2&",Period:="&$B$1&",InputChoice1:=Close,InputChoice2::=Close)", "FG", "", "Close",$B$2,A26, "all","", "","True","T")/100,"") -> -0.01872783959 | BG26: -0.56 | BH26: 0
A27: -23 | C27: =IFERROR(RTD("cqg.rtd",,"StudyData", "Correlation("&$B$3&","&C$2&",Period:="&$B$1&",InputChoice1:=Close,InputChoice2:=Close)", "FG", "", "Close",$B$2,A27, "all","", "","True","T")/100,"") -> -0.9386627563 | E27: -0.54 | F27: 2 | I27: =IFERROR(RTD("cqg.rtd",,"StudyData", "Correlation("&$B$3&","&I$2&",Period:="&$B$1&",InputChoice1:=Close,InputChoice2::=Close)", "FG", "", "Close",$B$2,A27, "all","", "","True","T")/100,"") -> -0.9374896069 | K27: -0.54 | L27: 0 | O27: =IFERROR(RTD("cqg.rtd",,"StudyData", "Correlation("&$B$3&","&O$2&",Period:="&$B$1&",InputChoice1:=Close,InputChoice2::=Close)", "FG", "", "Close",$B$2,A27, "all","", "","True","T")/100,"") -> -0.8238571301 | Q27: -0.54 | R27: 0 | U27: =IFERROR(RTD("cqg.rtd",,"StudyData", "Correlation("&$B$3&","&U$2&",Period:="&$B$1&",InputChoice1:=Close,InputChoice2::=Close)", "FG", "", "Close",$B$2,A27, "all","", "","True","T")/100,"") -> 0.5727018215 | W27: -0.54 | X27: 0 | AA27: =IFERROR(RTD("cqg.rtd",,"StudyData", "Correlation("&$B$3&","&AA$2&",Period:="&$B$1&",InputChoice1:=Close,InputChoice2::=Close)", "FG", "", "Close",$B$2,A27, "all","", "","True","T")/100,"") -> -0.938352878 | AC27: -0.54 | AD27: 1 | AG27: =IFERROR(RTD("cqg.rtd",,"StudyData", "Correlation("&$B$3&","&AG$2&",Period:="&$B$1&",InputChoice1:=Close,InputChoice2::=Close)", "FG", "", "Close",$B$2,A27, "all","", "","True","T")/100,"") -> -0.9263999884 | AI27: -0.54 | AJ27: 0 | AM27: =IFERROR(RTD("cqg.rtd",,"StudyData", "Correlation("&$B$3&","&AM$2&",Period:="&$B$1&",InputChoice1:=Close,InputChoice2::=Close)", "FG", "", "Close",$B$2,A27, "all","", "","True","T")/100,"") -> -0.6326189413 | AO27: -0.54 | AP27: 1 | AS27: =IFERROR(RTD("cqg.rtd",,"StudyData", "Correlation("&$B$3&","&AS$2&",Period:="&$B$1&",InputChoice1:=Close,InputChoice2::=Close)", "FG", "", "Close",$B$2,A27, "all","", "","True","T")/100,"") -> 0.03381581578 | AU27: -0.54 | AV27: 0 | AY27: =IFERROR(RTD("cqg.rtd",,"StudyData", "Correlation("&$B$3&","&AY$2&",Period:="&$B$1&",InputChoice1:=Close,InputChoice2::=Close)", "FG", "", "Close",$B$2,A27, "all","", "","True","T")/100,"") -> 0.4353357423 | BA27: -0.54 | BB27: 2 | BE27: =IFERROR(RTD("cqg.rtd",,"StudyData", "Correlation("&$B$3&","&BE$2&",Period:="&$B$1&",InputChoice1:=Close,InputChoice2::=Close)", "FG", "", "Close",$B$2,A27, "all","", "","True","T")/100,"") -> 0.001576363235 | BG27: -0.54 | BH27: 0
A28: -24 | C28: =IFERROR(RTD("cqg.rtd",,"StudyData", "Correlation("&$B$3&","&C$2&",Period:="&$B$1&",InputChoice1:=Close,InputChoice2:=Close)", "FG", "", "Close",$B$2,A28, "all","", "","True","T")/100,"") -> -0.8973232531 | E28: -0.52 | F28: 0 | I28: =IFERROR(RTD("cqg.rtd",,"StudyData", "Correlation("&$B$3&","&I$2&",Period:="&$B$1&",InputChoice1:=Close,InputChoice2::=Close)", "FG", "", "Close",$B$2,A28, "all","", "","True","T")/100,"") -> -0.9034021575 | K28: -0.52 | L28: 0 | O28: =IFERROR(RTD("cqg.rtd",,"StudyData", "Correlation("&$B$3&","&O$2&",Period:="&$B$1&",InputChoice1:=Close,InputChoice2::=Close)", "FG", "", "Close",$B$2,A28, "all","", "","True","T")/100,"") -> -0.861355599 | Q28: -0.52 | R28: 0 | U28: =IFERROR(RTD("cqg.rtd",,"StudyData", "Correlation("&$B$3&","&U$2&",Period:="&$B$1&",InputChoice1:=Close,InputChoice2::=Close)", "FG", "", "Close",$B$2,A28, "all","", "","True","T")/100,"") -> 0.55361426 | W28: -0.52 | X28: 0 | AA28: =IFERROR(RTD("cqg.rtd",,"StudyData", "Correlation("&$B$3&","&AA$2&",Period:="&$B$1&",InputChoice1:=Close,InputChoice2::=Close)", "FG", "", "Close",$B$2,A28, "all","", "","True","T")/100,"") -> -0.9468694938 | AC28: -0.52 | AD28: 1 | AG28: =IFERROR(RTD("cqg.rtd",,"StudyData", "Correlation("&$B$3&","&AG$2&",Period:="&$B$1&",InputChoice1:=Close,InputChoice2::=Close)", "FG", "", "Close",$B$2,A28, "all","", "","True","T")/100,"") -> -0.9384821187 | AI28: -0.52 | AJ28: 2 | AM28: =IFERROR(RTD("cqg.rtd",,"StudyData", "Correlation("&$B$3&","&AM$2&",Period:="&$B$1&",InputChoice1:=Close,InputChoice2::=Close)", "FG", "", "Close",$B$2,A28, "all","", "","True","T")/100,"") -> -0.7451925066 | AO28: -0.52 | AP28: 0 | AS28: =IFERROR(RTD("cqg.rtd",,"StudyData", "Correlation("&$B$3&","&AS$2&",Period:="&$B$1&",InputChoice1:=Close,InputChoice2::=Close)", "FG", "", "Close",$B$2,A28, "all","", "","True","T")/100,"") -> 0.1337938998 | AU28: -0.52 | AV28: 1 | AY28: =IFERROR(RTD("cqg.rtd",,"StudyData", "Correlation("&$B$3&","&AY$2&",Period:="&$B$1&",InputChoice1:=Close,InputChoice2::=Close)", "FG", "", "Close",$B$2,A28, "all","", "","True","T")/100,"") -> 0.3694521521 | BA28: -0.52 | BB28: 3 | BE28: =IFERROR(RTD("cqg.rtd",,"StudyData", "Correlation("&$B$3&","&BE$2&",Period:="&$B$1&",InputChoice1:=Close,InputChoice2::=Close)", "FG", "", "Close",$B$2,A28, "all","", "","True","T")/100,"") -> 0.056096461 | BG28: -0.52 | BH28: 0
A29: -25 | C29: =IFERROR(RTD("cqg.rtd",,"StudyData", "Correlation("&$B$3&","&C$2&",Period:="&$B$1&",InputChoice1:=Close,InputChoice2:=Close)", "FG", "", "Close",$B$2,A29, "all","", "","True","T")/100,"") -> -0.899438788 | E29: -0.5 | F29: 0 | I29: =IFERROR(RTD("cqg.rtd",,"StudyData", "Correlation("&$B$3&","&I$2&",Period:="&$B$1&",InputChoice1:=Close,InputChoice2::=Close)", "FG", "", "Close",$B$2,A29, "all","", "","True","T")/100,"") -> -0.9102496715 | K29: -0.5 | L29: 1 | O29: =IFERROR(RTD("cqg.rtd",,"StudyData", "Correlation("&$B$3&","&O$2&",Period:="&$B$1&",InputChoice1:=Close,InputChoice2::=Close)", "FG", "", "Close",$B$2,A29, "all","", "","True","T")/100,"") -> -0.8826913714 | Q29: -0.5 | R29: 1 | U29: =IFERROR(RTD("cqg.rtd",,"StudyData", "Correlation("&$B$3&","&U$2&",Period:="&$B$1&",InputChoice1:=Close,InputChoice2::=Close)", "FG", "", "Close",$B$2,A29, "all","", "","True","T")/100,"") -> 0.4588589177 | W29: -0.5 | X29: 0 | AA29: =IFERROR(RTD("cqg.rtd",,"StudyData", "Correlation("&$B$3&","&AA$2&",Period:="&$B$1&",InputChoice1:=Close,InputChoice2::=Close)", "FG", "", "Close",$B$2,A29, "all","", "","True","T")/100,"") -> -0.9589252905 | AC29: -0.5 | AD29: 0 | AG29: =IFERROR(RTD("cqg.rtd",,"StudyData", "Correlation("&$B$3&","&AG$2&",Period:="&$B$1&",InputChoice1:=Close,InputChoice2::=Close)", "FG", "", "Close",$B$2,A29, "all","", "","True","T")/100,"") -> -0.9590687699 | AI29: -0.5 | AJ29: 4 | AM29: =IFERROR(RTD("cqg.rtd",,"StudyData", "Correlation("&$B$3&","&AM$2&",Period:="&$B$1&",InputChoice1:=Close,InputChoice2::=Close)", "FG", "", "Close",$B$2,A29, "all","", "","True","T")/100,"") -> -0.8403856348 | AO29: -0.5 | AP29: 1 | AS29: =IFERROR(RTD("cqg.rtd",,"StudyData", "Correlation("&$B$3&","&AS$2&",Period:="&$B$1&",InputChoice1:=Close,InputChoice2::=Close)", "FG", "", "Close",$B$2,A29, "all","", "","True","T")/100,"") -> 0.1533491486 | AU29: -0.5 | AV29: 1 | AW29: 1 | AY29: =IFERROR(RTD("cqg.rtd",,"StudyData", "Correlation("&$B$3&","&AY$2&",Period:="&$B$1&",InputChoice1:=Close,InputChoice2::=Close)", "FG", "", "Close",$B$2,A29, "all","", "","True","T")/100,"") -> 0.2085522511 | BA29: -0.5 | BB29: 2 | BE29: =IFERROR(RTD("cqg.rtd",,"StudyData", "Correlation("&$B$3&","&BE$2&",Period:="&$B$1&",InputChoice1:=Close,InputChoice2::=Close)", "FG", "", "Close",$B$2,A29, "all","", "","True","T")/100,"") -> 0.1234337122 | BG29: -0.5 | BH29: 1
A30: -26 | C30: =IFERROR(RTD("cqg.rtd",,"StudyData", "Correlation("&$B$3&","&C$2&",Period:="&$B$1&",InputChoice1:=Close,InputChoice2:=Close)", "FG", "", "Close",$B$2,A30, "all","", "","True","T")/100,"") -> -0.916294972 | E30: -0.48 | F30: 0 | I30: =IFERROR(RTD("cqg.rtd",,"StudyData", "Correlation("&$B$3&","&I$2&",Period:="&$B$1&",InputChoice1:=Close,InputChoice2::=Close)", "FG", "", "Close",$B$2,A30, "all","", "","True","T")/100,"") -> -0.9228653827 | K30: -0.48 | L30: 0 | O30: =IFERROR(RTD("cqg.rtd",,"StudyData", "Correlation("&$B$3&","&O$2&",Period:="&$B$1&",InputChoice1:=Close,InputChoice2::=Close)", "FG", "", "Close",$B$2,A30, "all","", "","True","T")/100,"") -> -0.8953497555 | Q30: -0.48 | R30: 0 | U30: =IFERROR(RTD("cqg.rtd",,"StudyData", "Correlation("&$B$3&","&U$2&",Period:="&$B$1&",InputChoice1:=Close,InputChoice2::=Close)", "FG", "", "Close",$B$2,A30, "all","", "","True","T")/100,"") -> 0.4294910093 | W30: -0.48 | X30: 1 | AA30: =IFERROR(RTD("cqg.rtd",,"StudyData", "Correlation("&$B$3&","&AA$2&",Period:="&$B$1&",InputChoice1:=Close,InputChoice2::=Close)", "FG", "", "Close",$B$2,A30, "all","", "","True","T")/100,"") -> -0.928447915 | AC30: -0.48 | AD30: 1 | AG30: =IFERROR(RTD("cqg.rtd",,"StudyData", "Correlation("&$B$3&","&AG$2&",Period:="&$B$1&",InputChoice1:=Close,InputChoice2::=Close)", "FG", "", "Close",$B$2,A30, "all","", "","True","T")/100,"") -> -0.9525545954 | AI30: -0.48 | AJ30: 1 | AM30: =IFERROR(RTD("cqg.rtd",,"StudyData", "Correlation("&$B$3&","&AM$2&",Period:="&$B$1&",InputChoice1:=Close,InputChoice2::=Close)", "FG", "", "Close",$B$2,A30, "all","", "","True","T")/100,"") -> -0.8354786091 | AO30: -0.48 | AP30: 0 | AS30: =IFERROR(RTD("cqg.rtd",,"StudyData", "Correlation("&$B$3&","&AS$2&",Period:="&$B$1&",InputChoice1:=Close,InputChoice2::=Close)", "FG", "", "Close",$B$2,A30, "all","", "","True","T")/100,"") -> 0.1782786762 | AU30: -0.48 | AV30: 2 | AY30: =IFERROR(RTD("cqg.rtd",,"StudyData", "Correlation("&$B$3&","&AY$2&",Period:="&$B$1&",InputChoice1:=Close,InputChoice2::=Close)", "FG", "", "Close",$B$2,A30, "all","", "","True","T")/100,"") -> 0.1281655338 | BA30: -0.48 | BB30: 2 | BE30: =IFERROR(RTD("cqg.rtd",,"StudyData", "Correlation("&$B$3&","&BE$2&",Period:="&$B$1&",InputChoice1:=Close,InputChoice2::=Close)", "FG", "", "Close",$B$2,A30, "all","", "","True","T")/100,"") -> 0.1587673447 | BG30: -0.48 | BH30: 0
A31: -27 | C31: =IFERROR(RTD("cqg.rtd",,"StudyData", "Correlation("&$B$3&","&C$2&",Period:="&$B$1&",InputChoice1:=Close,InputChoice2:=Close)", "FG", "", "Close",$B$2,A31, "all","", "","True","T")/100,"") -> -0.923736664 | E31: -0.46 | F31: 1 | I31: =IFERROR(RTD("cqg.rtd",,"StudyData", "Correlation("&$B$3&","&I$2&",Period:="&$B$1&",InputChoice1:=Close,InputChoice2::=Close)", "FG", "", "Close",$B$2,A31, "all","", "","True","T")/100,"") -> -0.9317029043 | K31: -0.46 | L31: 0 | O31: =IFERROR(RTD("cqg.rtd",,"StudyData", "Correlation("&$B$3&","&O$2&",Period:="&$B$1&",InputChoice1:=Close,InputChoice2::=Close)", "FG", "", "Close",$B$2,A31, "all","", "","True","T")/100,"") -> -0.8701959363 | Q31: -0.46 | R31: 1 | U31: =IFERROR(RTD("cqg.rtd",,"StudyData", "Correlation("&$B$3&","&U$2&",Period:="&$B$1&",InputChoice1:=Close,InputChoice2::=Close)", "FG", "", "Close",$B$2,A31, "all","", "","True","T")/100,"") -> 0.349164436 | W31: -0.46 | X31: 0 | AA31: =IFERROR(RTD("cqg.rtd",,"StudyData", "Correlation("&$B$3&","&AA$2&",Period:="&$B$1&",InputChoice1:=Close,InputChoice2::=Close)", "FG", "", "Close",$B$2,A31, "all","", "","True","T")/100,"") -> -0.8967152542 | AC31: -0.46 | AD31: 0 | AG31: =IFERROR(RTD("cqg.rtd",,"StudyData", "Correlation("&$B$3&","&AG$2&",Period:="&$B$1&",InputChoice1:=Close,InputChoice2::=Close)", "FG", "", "Close",$B$2,A31, "all","", "","True","T")/100,"") -> -0.9433312796 | AI31: -0.46 | AJ31: 1 | AM31: =IFERROR(RTD("cqg.rtd",,"StudyData", "Correlation("&$B$3&","&AM$2&",Period:="&$B$1&",InputChoice1:=Close,InputChoice2::=Close)", "FG", "", "Close",$B$2,A31, "all","", "","True","T")/100,"") -> -0.8286263373 | AO31: -0.46 | AP31: 0 | AS31: =IFERROR(RTD("cqg.rtd",,"StudyData", "Correlation("&$B$3&","&AS$2&",Period:="&$B$1&",InputChoice1:=Close,InputChoice2::=Close)", "FG", "", "Close",$B$2,A31, "all","", "","True","T")/100,"") -> 0.1576823828 | AU31: -0.46 | AV31: 0 | AY31: =IFERROR(RTD("cqg.rtd",,"StudyData", "Correlation("&$B$3&","&AY$2&",Period:="&$B$1&",InputChoice1:=Close,InputChoice2::=Close)", "FG", "", "Close",$B$2,A31, "all","", "","True","T")/100,"") -> 0.1175400001 | BA31: -0.46 | BB31: 1 | BE31: =IFERROR(RTD("cqg.rtd",,"StudyData", "Correlation("&$B$3&","&BE$2&",Period:="&$B$1&",InputChoice1:=Close,InputChoice2::=Close)", "FG", "", "Close",$B$2,A31, "all","", "","True","T")/100,"") -> 0.2385609906 | BG31: -0.46 | BH31: 0
A32: -28 | C32: =IFERROR(RTD("cqg.rtd",,"StudyData", "Correlation("&$B$3&","&C$2&",Period:="&$B$1&",InputChoice1:=Close,InputChoice2:=Close)", "FG", "", "Close",$B$2,A32, "all","", "","True","T")/100,"") -> -0.9205424859 | E32: -0.44 | F32: 1 | G32: 1 | I32: =IFERROR(RTD("cqg.rtd",,"StudyData", "Correlation("&$B$3&","&I$2&",Period:="&$B$1&",InputChoice1:=Close,InputChoice2::=Close)", "FG", "", "Close",$B$2,A32, "all","", "","True","T")/100,"") -> -0.9286905434 | K32: -0.44 | L32: 1 | O32: =IFERROR(RTD("cqg.rtd",,"StudyData", "Correlation("&$B$3&","&O$2&",Period:="&$B$1&",InputChoice1:=Close,InputChoice2::=Close)", "FG", "", "Close",$B$2,A32, "all","", "","True","T")/100,"") -> -0.8559532751 | Q32: -0.44 | R32: 1 | U32: =IFERROR(RTD("cqg.rtd",,"StudyData", "Correlation("&$B$3&","&U$2&",Period:="&$B$1&",InputChoice1:=Close,InputChoice2::=Close)", "FG", "", "Close",$B$2,A32, "all","", "","True","T")/100,"") -> 0.2333257161 | W32: -0.44 | X32: 0 | AA32: =IFERROR(RTD("cqg.rtd",,"StudyData", "Correlation("&$B$3&","&AA$2&",Period:="&$B$1&",InputChoice1:=Close,InputChoice2::=Close)", "FG", "", "Close",$B$2,A32, "all","", "","True","T")/100,"") -> -0.8986915141 | AC32: -0.44 | AD32: 4 | AG32: =IFERROR(RTD("cqg.rtd",,"StudyData", "Correlation("&$B$3&","&AG$2&",Period:="&$B$1&",InputChoice1:=Close,InputChoice2::=Close)", "FG", "", "Close",$B$2,A32, "all","", "","True","T")/100,"") -> -0.9455673539 | AI32: -0.44 | AJ32: 2 | AM32: =IFERROR(RTD("cqg.rtd",,"StudyData", "Correlation("&$B$3&","&AM$2&",Period:="&$B$1&",InputChoice1:=Close,InputChoice2::=Close)", "FG", "", "Close",$B$2,A32, "all","", "","True","T")/100,"") -> -0.8476763986 | AO32: -0.44 | AP32: 2 | AS32: =IFERROR(RTD("cqg.rtd",,"StudyData", "Correlation("&$B$3&","&AS$2&",Period:="&$B$1&",InputChoice1:=Close,InputChoice2::=Close)", "FG", "", "Close",$B$2,A32, "all","", "","True","T")/100,"") -> 0.1532227761 | AU32: -0.44 | AV32: 2 | AY32: =IFERROR(RTD("cqg.rtd",,"StudyData", "Correlation("&$B$3&","&AY$2&",Period:="&$B$1&",InputChoice1:=Close,InputChoice2::=Close)", "FG", "", "Close",$B$2,A32, "all","", "","True","T")/100,"") -> 0.0189470761 | BA32: -0.44 | BB32: 4 | BE32: =IFERROR(RTD("cqg.rtd",,"StudyData", "Correlation("&$B$3&","&BE$2&",Period:="&$B$1&",InputChoice1:=Close,InputChoice2::=Close)", "FG", "", "Close",$B$2,A32, "all","", "","True","T")/100,"") -> 0.3967052055 | BG32: -0.44 | BH32: 1
A33: -29 | C33: =IFERROR(RTD("cqg.rtd",,"StudyData", "Correlation("&$B$3&","&C$2&",Period:="&$B$1&",InputChoice1:=Close,InputChoice2:=Close)", "FG", "", "Close",$B$2,A33, "all","", "","True","T")/100,"") -> -0.91555862 | E33: -0.42 | F33: 1 | I33: =IFERROR(RTD("cqg.rtd",,"StudyData", "Correlation("&$B$3&","&I$2&",Period:="&$B$1&",InputChoice1:=Close,InputChoice2::=Close)", "FG", "", "Close",$B$2,A33, "all","", "","True","T")/100,"") -> -0.9239443988 | K33: -0.42 | L33: 0 | O33: =IFERROR(RTD("cqg.rtd",,"StudyData", "Correlation("&$B$3&","&O$2&",Period:="&$B$1&",InputChoice1:=Close,InputChoice2::=Close)", "FG", "", "Close",$B$2,A33, "all","", "","True","T")/100,"") -> -0.847058716 | Q33: -0.42 | R33: 0 | U33: =IFERROR(RTD("cqg.rtd",,"StudyData", "Correlation("&$B$3&","&U$2&",Period:="&$B$1&",InputChoice1:=Close,InputChoice2::=Close)", "FG", "", "Close",$B$2,A33, "all","", "","True","T")/100,"") -> 0.0915513485 | W33: -0.42 | X33: 1 | AA33: =IFERROR(RTD("cqg.rtd",,"StudyData", "Correlation("&$B$3&","&AA$2&",Period:="&$B$1&",InputChoice1:=Close,InputChoice2::=Close)", "FG", "", "Close",$B$2,A33, "all","", "","True","T")/100,"") -> -0.8956246507 | AC33: -0.42 | AD33: 1 | AG33: =IFERROR(RTD("cqg.rtd",,"StudyData", "Correlation("&$B$3&","&AG$2&",Period:="&$B$1&",InputChoice1:=Close,InputChoice2::=Close)", "FG", "", "Close",$B$2,A33, "all","", "","True","T")/100,"") -> -0.9437559669 | AI33: -0.42 | AJ33: 1 | AM33: =IFERROR(RTD("cqg.rtd",,"StudyData", "Correlation("&$B$3&","&AM$2&",Period:="&$B$1&",InputChoice1:=Close,InputChoice2::=Close)", "FG", "", "Close",$B$2,A33, "all","", "","True","T")/100,"") -> -0.851941091 | AO33: -0.42 | AP33: 0 | AS33: =IFERROR(RTD("cqg.rtd",,"StudyData", "Correlation("&$B$3&","&AS$2&",Period:="&$B$1&",InputChoice1:=Close,InputChoice2::=Close)", "FG", "", "Close",$B$2,A33, "all","", "","True","T")/100,"") -> 0.1494882568 | AU33: -0.42 | AV33: 1 | AY33: =IFERROR(RTD("cqg.rtd",,"StudyData", "Correlation("&$B$3&","&AY$2&",Period:="&$B$1&",InputChoice1:=Close,InputChoice2::=Close)", "FG", "", "Close",$B$2,A33, "all","", "","True","T")/100,"") -> -0.03589838522 | BA33: -0.42 | BB33: 1 | BE33: =IFERROR(RTD("cqg.rtd",,"StudyData", "Correlation("&$B$3&","&BE$2&",Period:="&$B$1&",InputChoice1:=Close,InputChoice2::=Close)", "FG", "", "Close",$B$2,A33, "all","", "","True","T")/100,"") -> 0.4290716596 | BG33: -0.42 | BH33: 0
A34: -30 | C34: =IFERROR(RTD("cqg.rtd",,"StudyData", "Correlation("&$B$3&","&C$2&",Period:="&$B$1&",InputChoice1:=Close,InputChoice2:=Close)", "FG", "", "Close",$B$2,A34, "all","", "","True","T")/100,"") -> -0.9016502689 | E34: -0.4 | F34: 1 | I34: =IFERROR(RTD("cqg.rtd",,"StudyData", "Correlation("&$B$3&","&I$2&",Period:="&$B$1&",InputChoice1:=Close,InputChoice2::=Close)", "FG", "", "Close",$B$2,A34, "all","", "","True","T")/100,"") -> -0.898878299 | K34: -0.4 | L34: 1 | O34: =IFERROR(RTD("cqg.rtd",,"StudyData", "Correlation("&$B$3&","&O$2&",Period:="&$B$1&",InputChoice1:=Close,InputChoice2::=Close)", "FG", "", "Close",$B$2,A34, "all","", "","True","T")/100,"") -> -0.8341373814 | Q34: -0.4 | R34: 0 | U34: =IFERROR(RTD("cqg.rtd",,"StudyData", "Correlation("&$B$3&","&U$2&",Period:="&$B$1&",InputChoice1:=Close,InputChoice2::=Close)", "FG", "", "Close",$B$2,A34, "all","", "","True","T")/100,"") -> -0.05475827889 | W34: -0.4 | X34: 0 | AA34: =IFERROR(RTD("cqg.rtd",,"StudyData", "Correlation("&$B$3&","&AA$2&",Period:="&$B$1&",InputChoice1:=Close,InputChoice2::=Close)", "FG", "", "Close",$B$2,A34, "all","", "","True","T")/100,"") -> -0.8823538838 | AC34: -0.4 | AD34: 0 | AG34: =IFERROR(RTD("cqg.rtd",,"StudyData", "Correlation("&$B$3&","&AG$2&",Period:="&$B$1&",InputChoice1:=Close,InputChoice2::=Close)", "FG", "", "Close",$B$2,A34, "all","", "","True","T")/100,"") -> -0.9378409366 | AI34: -0.4 | AJ34: 0 | AM34: =IFERROR(RTD("cqg.rtd",,"StudyData", "Correlation("&$B$3&","&AM$2&",Period:="&$B$1&",InputChoice1:=Close,InputChoice2::=Close)", "FG", "", "Close",$B$2,A34, "all","", "","True","T")/100,"") -> -0.8347024945 | AO34: -0.4 | AP34: 0 | AS34: =IFERROR(RTD("cqg.rtd",,"StudyData", "Correlation("&$B$3&","&AS$2&",Period:="&$B$1&",InputChoice1:=Close,InputChoice2::=Close)", "FG", "", "Close",$B$2,A34, "all","", "","True","T")/100,"") -> 0.2046326102 | AU34: -0.4 | AV34: 0 | AY34: =IFERROR(RTD("cqg.rtd",,"StudyData", "Correlation("&$B$3&","&AY$2&",Period:="&$B$1&",InputChoice1:=Close,InputChoice2::=Close)", "FG", "", "Close",$B$2,A34, "all","", "","True","T")/100,"") -> -0.1340978848 | BA34: -0.4 | BB34: 0 | BE34: =IFERROR(RTD("cqg.rtd",,"StudyData", "Correlation("&$B$3&","&BE$2&",Period:="&$B$1&",InputChoice1:=Close,InputChoice2::=Close)", "FG", "", "Close",$B$2,A34, "all","", "","True","T")/100,"") -> 0.4919904614 | BG34: -0.4 | BH34: 0
A35: -31 | C35: =IFERROR(RTD("cqg.rtd",,"StudyData", "Correlation("&$B$3&","&C$2&",Period:="&$B$1&",InputChoice1:=Close,InputChoice2:=Close)", "FG", "", "Close",$B$2,A35, "all","", "","True","T")/100,"") -> -0.8962715121 | E35: -0.38 | F35: 1 | I35: =IFERROR(RTD("cqg.rtd",,"StudyData", "Correlation("&$B$3&","&I$2&",Period:="&$B$1&",InputChoice1:=Close,InputChoice2::=Close)", "FG", "", "Close",$B$2,A35, "all","", "","True","T")/100,"") -> -0.8918503291 | K35: -0.38 | L35: 0 | M35: 1 | O35: =IFERROR(RTD("cqg.rtd",,"StudyData", "Correlation("&$B$3&","&O$2&",Period:="&$B$1&",InputChoice1:=Close,InputChoice2::=Close)", "FG", "", "Close",$B$2,A35, "all","", "","True","T")/100,"") -> -0.8175914298 | Q35: -0.38 | R35: 1 | U35: =IFERROR(RTD("cqg.rtd",,"StudyData", "Correlation("&$B$3&","&U$2&",Period:="&$B$1&",InputChoice1:=Close,InputChoice2::=Close)", "FG", "", "Close",$B$2,A35, "all","", "","True","T")/100,"") -> -0.2087039589 | W35: -0.38 | X35: 3 | AA35: =IFERROR(RTD("cqg.rtd",,"StudyData", "Correlation("&$B$3&","&AA$2&",Period:="&$B$1&",InputChoice1:=Close,InputChoice2::=Close)", "FG", "", "Close",$B$2,A35, "all","", "","True","T")/100,"") -> -0.8613839784 | AC35: -0.38 | AD35: 1 | AG35: =IFERROR(RTD("cqg.rtd",,"StudyData", "Correlation("&$B$3&","&AG$2&",Period:="&$B$1&",InputChoice1:=Close,InputChoice2::=Close)", "FG", "", "Close",$B$2,A35, "all","", "","True","T")/100,"") -> -0.9212863615 | AI35: -0.38 | AJ35: 2 | AM35: =IFERROR(RTD("cqg.rtd",,"StudyData", "Correlation("&$B$3&","&AM$2&",Period:="&$B$1&",InputChoice1:=Close,InputChoice2::=Close)", "FG", "", "Close",$B$2,A35, "all","", "","True","T")/100,"") -> -0.7933235107 | AO35: -0.38 | AP35: 0 | AS35: =IFERROR(RTD("cqg.rtd",,"StudyData", "Correlation("&$B$3&","&AS$2&",Period:="&$B$1&",InputChoice1:=Close,InputChoice2::=Close)", "FG", "", "Close",$B$2,A35, "all","", "","True","T")/100,"") -> 0.279425205 | AU35: -0.38 | AV35: 1 | AY35: =IFERROR(RTD("cqg.rtd",,"StudyData", "Correlation("&$B$3&","&AY$2&",Period:="&$B$1&",InputChoice1:=Close,InputChoice2::=Close)", "FG", "", "Close",$B$2,A35, "all","", "","True","T")/100,"") -> -0.1717474524 | BA35: -0.38 | BB35: 2 | BE35: =IFERROR(RTD("cqg.rtd",,"StudyData", "Correlation("&$B$3&","&BE$2&",Period:="&$B$1&",InputChoice1:=Close,InputChoice2::=Close)", "FG", "", "Close",$B$2,A35, "all","", "","True","T")/100,"") -> 0.5609662664 | BG35: -0.38 | BH35: 3
A36: -32 | C36: =IFERROR(RTD("cqg.rtd",,"StudyData", "Correlation("&$B$3&","&C$2&",Period:="&$B$1&",InputChoice1:=Close,InputChoice2:=Close)", "FG", "", "Close",$B$2,A36, "all","", "","True","T")/100,"") -> -0.8939688288 | E36: -0.36 | F36: 3 | I36: =IFERROR(RTD("cqg.rtd",,"StudyData", "Correlation("&$B$3&","&I$2&",Period:="&$B$1&",InputChoice1:=Close,InputChoice2::=Close)", "FG", "", "Close",$B$2,A36, "all","", "","True","T")/100,"") -> -0.862623793 | K36: -0.36 | L36: 1 | O36: =IFERROR(RTD("cqg.rtd",,"StudyData", "Correlation("&$B$3&","&O$2&",Period:="&$B$1&",InputChoice1:=Close,InputChoice2::=Close)", "FG", "", "Close",$B$2,A36, "all","", "","True","T")/100,"") -> -0.7891621409 | Q36: -0.36 | R36: 0 | U36: =IFERROR(RTD("cqg.rtd",,"StudyData", "Correlation("&$B$3&","&U$2&",Period:="&$B$1&",InputChoice1:=Close,InputChoice2::=Close)", "FG", "", "Close",$B$2,A36, "all","", "","True","T")/100,"") -> -0.301360377 | W36: -0.36 | X36: 2 | Y36: 2 | AA36: =IFERROR(RTD("cqg.rtd",,"StudyData", "Correlation("&$B$3&","&AA$2&",Period:="&$B$1&",InputChoice1:=Close,InputChoice2::=Close)", "FG", "", "Close",$B$2,A36, "all","", "","True","T")/100,"") -> -0.8361699053 | AC36: -0.36 | AD36: 0 | AG36: =IFERROR(RTD("cqg.rtd",,"StudyData", "Correlation("&$B$3&","&AG$2&",Period:="&$B$1&",InputChoice1:=Close,InputChoice2::=Close)", "FG", "", "Close",$B$2,A36, "all","", "","True","T")/100,"") -> -0.9043257121 | AI36: -0.36 | AJ36: 2 | AM36: =IFERROR(RTD("cqg.rtd",,"StudyData", "Correlation("&$B$3&","&AM$2&",Period:="&$B$1&",InputChoice1:=Close,InputChoice2::=Close)", "FG", "", "Close",$B$2,A36, "all","", "","True","T")/100,"") -> -0.7655916097 | AO36: -0.36 | AP36: 0 | AS36: =IFERROR(RTD("cqg.rtd",,"StudyData", "Correlation("&$B$3&","&AS$2&",Period:="&$B$1&",InputChoice1:=Close,InputChoice2::=Close)", "FG", "", "Close",$B$2,A36, "all","", "","True","T")/100,"") -> 0.2636172089 | AU36: -0.36 | AV36: 2 | AY36: =IFERROR(RTD("cqg.rtd",,"StudyData", "Correlation("&$B$3&","&AY$2&",Period:="&$B$1&",InputChoice1:=Close,InputChoice2::=Close)", "FG", "", "Close",$B$2,A36, "all","", "","True","T")/100,"") -> -0.1224583954 | BA36: -0.36 | BB36: 1 | BE36: =IFERROR(RTD("cqg.rtd",,"StudyData", "Correlation("&$B$3&","&BE$2&",Period:="&$B$1&",InputChoice1:=Close,InputChoice2::=Close)", "FG", "", "Close",$B$2,A36, "all","", "","True","T")/100,"") -> 0.6415786074 | BG36: -0.36 | BH36: 1
A37: -33 | C37: =IFERROR(RTD("cqg.rtd",,"StudyData", "Correlation("&$B$3&","&C$2&",Period:="&$B$1&",InputChoice1:=Close,InputChoice2:=Close)", "FG", "", "Close",$B$2,A37, "all","", "","True","T")/100,"") -> -0.8878521447 | E37: -0.34 | F37: 2 | I37: =IFERROR(RTD("cqg.rtd",,"StudyData", "Correlation("&$B$3&","&I$2&",Period:="&$B$1&",InputChoice1:=Close,InputChoice2::=Close)", "FG", "", "Close",$B$2,A37, "all","", "","True","T")/100,"") -> -0.8499318153 | K37: -0.34 | L37: 0 | O37: =IFERROR(RTD("cqg.rtd",,"StudyData", "Correlation("&$B$3&","&O$2&",Period:="&$B$1&",InputChoice1:=Close,InputChoice2::=Close)", "FG", "", "Close",$B$2,A37, "all","", "","True","T")/100,"") -> -0.7713588356 | Q37: -0.34 | R37: 0 | S37: 1 | U37: =IFERROR(RTD("cqg.rtd",,"StudyData", "Correlation("&$B$3&","&U$2&",Period:="&$B$1&",InputChoice1:=Close,InputChoice2::=Close)", "FG", "", "Close",$B$2,A37, "all","", "","True","T")/100,"") -> -0.3201529367 | W37: -0.34 | X37: 1 | AA37: =IFERROR(RTD("cqg.rtd",,"StudyData", "Correlation("&$B$3&","&AA$2&",Period:="&$B$1&",InputChoice1:=Close,InputChoice2::=Close)", "FG", "", "Close",$B$2,A37, "all","", "","True","T")/100,"") -> -0.8174244574 | AC37: -0.34 | AD37: 1 | AG37: =IFERROR(RTD("cqg.rtd",,"StudyData", "Correlation("&$B$3&","&AG$2&",Period:="&$B$1&",InputChoice1:=Close,InputChoice2::=Close)", "FG", "", "Close",$B$2,A37, "all","", "","True","T")/100,"") -> -0.893513517 | AI37: -0.34 | AJ37: 1 | AM37: =IFERROR(RTD("cqg.rtd",,"StudyData", "Correlation("&$B$3&","&AM$2&",Period:="&$B$1&",InputChoice1:=Close,InputChoice2::=Close)", "FG", "", "Close",$B$2,A37, "all","", "","True","T")/100,"") -> -0.7411742656 | AO37: -0.34 | AP37: 1 | AS37: =IFERROR(RTD("cqg.rtd",,"StudyData", "Correlation("&$B$3&","&AS$2&",Period:="&$B$1&",InputChoice1:=Close,InputChoice2::=Close)", "FG", "", "Close",$B$2,A37, "all","", "","True","T")/100,"") -> 0.2725663243 | AU37: -0.34 | AV37: 1 | AY37: =IFERROR(RTD("cqg.rtd",,"StudyData", "Correlation("&$B$3&","&AY$2&",Period:="&$B$1&",InputChoice1:=Close,InputChoice2::=Close)", "FG", "", "Close",$B$2,A37, "all","", "","True","T")/100,"") -> -0.02107749339 | BA37: -0.34 | BB37: 4 | BE37: =IFERROR(RTD("cqg.rtd",,"StudyData", "Correlation("&$B$3&","&BE$2&",Period:="&$B$1&",InputChoice1:=Close,InputChoice2::=Close)", "FG", "", "Close",$B$2,A37, "all","", "","True","T")/100,"") -> 0.6429318617 | BG37: -0.34 | BH37: 3
A38: -34 | C38: =IFERROR(RTD("cqg.rtd",,"StudyData", "Correlation("&$B$3&","&C$2&",Period:="&$B$1&",InputChoice1:=Close,InputChoice2:=Close)", "FG", "", "Close",$B$2,A38, "all","", "","True","T")/100,"") -> -0.8797042039 | E38: -0.32 | F38: 1 | I38: =IFERROR(RTD("cqg.rtd",,"StudyData", "Correlation("&$B$3&","&I$2&",Period:="&$B$1&",InputChoice1:=Close,InputChoice2::=Close)", "FG", "", "Close",$B$2,A38, "all","", "","True","T")/100,"") -> -0.8422500314 | K38: -0.32 | L38: 0 | O38: =IFERROR(RTD("cqg.rtd",,"StudyData", "Correlation("&$B$3&","&O$2&",Period:="&$B$1&",InputChoice1:=Close,InputChoice2::=Close)", "FG", "", "Close",$B$2,A38, "all","", "","True","T")/100,"") -> -0.7396469719 | Q38: -0.32 | R38: 1 | U38: =IFERROR(RTD("cqg.rtd",,"StudyData", "Correlation("&$B$3&","&U$2&",Period:="&$B$1&",InputChoice1:=Close,InputChoice2::=Close)", "FG", "", "Close",$B$2,A38, "all","", "","True","T")/100,"") -> -0.1725525461 | W38: -0.32 | X38: 3 | AA38: =IFERROR(RTD("cqg.rtd",,"StudyData", "Correlation("&$B$3&","&AA$2&",Period:="&$B$1&",InputChoice1:=Close,InputChoice2::=Close)", "FG", "", "Close",$B$2,A38, "all","", "","True","T")/100,"") -> -0.7972447992 | AC38: -0.32 | AD38: 0 | AG38: =IFERROR(RTD("cqg.rtd",,"StudyData", "Correlation("&$B$3&","&AG$2&",Period:="&$B$1&",InputChoice1:=Close,InputChoice2::=Close)", "FG", "", "Close",$B$2,A38, "all","", "","True","T")/100,"") -> -0.8847729654 | AI38: -0.32 | AJ38: 1 | AM38: =IFERROR(RTD("cqg.rtd",,"StudyData", "Correlation("&$B$3&","&AM$2&",Period:="&$B$1&",InputChoice1:=Close,InputChoice2::=Close)", "FG", "", "Close",$B$2,A38, "all","", "","True","T")/100,"") -> -0.7164426599 | AO38: -0.32 | AP38: 1 | AS38: =IFERROR(RTD("cqg.rtd",,"StudyData", "Correlation("&$B$3&","&AS$2&",Period:="&$B$1&",InputChoice1:=Close,InputChoice2::=Close)", "FG", "", "Close",$B$2,A38, "all","", "","True","T")/100,"") -> 0.2557812783 | AU38: -0.32 | AV38: 0 | AY38: =IFERROR(RTD("cqg.rtd",,"StudyData", "Correlation("&$B$3&","&AY$2&",Period:="&$B$1&",InputChoice1:=Close,InputChoice2::=Close)", "FG", "", "Close",$B$2,A38, "all","", "","True","T")/100,"") -> 0.09873627918 | BA38: -0.32 | BB38: 3 | BE38: =IFERROR(RTD("cqg.rtd",,"StudyData", "Correlation("&$B$3&","&BE$2&",Period:="&$B$1&",InputChoice1:=Close,InputChoice2::=Close)", "FG", "", "Close",$B$2,A38, "all","", "","True","T")/100,"") -> 0.5852910042 | BG38: -0.32 | BH38: 0
A39: -35 | C39: =IFERROR(RTD("cqg.rtd",,"StudyData", "Correlation("&$B$3&","&C$2&",Period:="&$B$1&",InputChoice1:=Close,InputChoice2:=Close)", "FG", "", "Close",$B$2,A39, "all","", "","True","T")/100,"") -> -0.8756489101 | E39: -0.3 | F39: 0 | I39: =IFERROR(RTD("cqg.rtd",,"StudyData", "Correlation("&$B$3&","&I$2&",Period:="&$B$1&",InputChoice1:=Close,InputChoice2::=Close)", "FG", "", "Close",$B$2,A39, "all","", "","True","T")/100,"") -> -0.8426148428 | K39: -0.3 | L39: 2 | O39: =IFERROR(RTD("cqg.rtd",,"StudyData", "Correlation("&$B$3&","&O$2&",Period:="&$B$1&",InputChoice1:=Close,InputChoice2::=Close)", "FG", "", "Close",$B$2,A39, "all","", "","True","T")/100,"") -> -0.7228885078 | Q39: -0.3 | R39: 0 | U39: =IFERROR(RTD("cqg.rtd",,"StudyData", "Correlation("&$B$3&","&U$2&",Period:="&$B$1&",InputChoice1:=Close,InputChoice2::=Close)", "FG", "", "Close",$B$2,A39, "all","", "","True","T")/100,"") -> -0.09561652865 | W39: -0.3 | X39: 2 | AA39: =IFERROR(RTD("cqg.rtd",,"StudyData", "Correlation("&$B$3&","&AA$2&",Period:="&$B$1&",InputChoice1:=Close,InputChoice2::=Close)", "FG", "", "Close",$B$2,A39, "all","", "","True","T")/100,"") -> -0.7988396623 | AC39: -0.3 | AD39: 1 | AG39: =IFERROR(RTD("cqg.rtd",,"StudyData", "Correlation("&$B$3&","&AG$2&",Period:="&$B$1&",InputChoice1:=Close,InputChoice2::=Close)", "FG", "", "Close",$B$2,A39, "all","", "","True","T")/100,"") -> -0.8843846368 | AI39: -0.3 | AJ39: 1 | AM39: =IFERROR(RTD("cqg.rtd",,"StudyData", "Correlation("&$B$3&","&AM$2&",Period:="&$B$1&",InputChoice1:=Close,InputChoice2::=Close)", "FG", "", "Close",$B$2,A39, "all","", "","True","T")/100,"") -> -0.7401707363 | AO39: -0.3 | AP39: 1 | AS39: =IFERROR(RTD("cqg.rtd",,"StudyData", "Correlation("&$B$3&","&AS$2&",Period:="&$B$1&",InputChoice1:=Close,InputChoice2::=Close)", "FG", "", "Close",$B$2,A39, "all","", "","True","T")/100,"") -> 0.1655950622 | AU39: -0.3 | AV39: 0 | AY39: =IFERROR(RTD("cqg.rtd",,"StudyData", "Correlation("&$B$3&","&AY$2&",Period:="&$B$1&",InputChoice1:=Close,InputChoice2::=Close)", "FG", "", "Close",$B$2,A39, "all","", "","True","T")/100,"") -> 0.2618938221 | BA39: -0.3 | BB39: 0 | BE39: =IFERROR(RTD("cqg.rtd",,"StudyData", "Correlation("&$B$3&","&BE$2&",Period:="&$B$1&",InputChoice1:=Close,InputChoice2::=Close)", "FG", "", "Close",$B$2,A39, "all","", "","True","T")/100,"") -> 0.510226528 | BG39: -0.3 | BH39: 2
A40: -36 | C40: =IFERROR(RTD("cqg.rtd",,"StudyData", "Correlation("&$B$3&","&C$2&",Period:="&$B$1&",InputChoice1:=Close,InputChoice2:=Close)", "FG", "", "Close",$B$2,A40, "all","", "","True","T")/100,"") -> -0.8216626507 | E40: -0.28 | F40: 0 | I40: =IFERROR(RTD("cqg.rtd",,"StudyData", "Correlation("&$B$3&","&I$2&",Period:="&$B$1&",InputChoice1:=Close,InputChoice2::=Close)", "FG", "", "Close",$B$2,A40, "all","", "","True","T")/100,"") -> -0.8110546565 | K40: -0.28 | L40: 1 | O40: =IFERROR(RTD("cqg.rtd",,"StudyData", "Correlation("&$B$3&","&O$2&",Period:="&$B$1&",InputChoice1:=Close,InputChoice2::=Close)", "FG", "", "Close",$B$2,A40, "all","", "","True","T")/100,"") -> -0.7319686872 | Q40: -0.28 | R40: 1 | U40: =IFERROR(RTD("cqg.rtd",,"StudyData", "Correlation("&$B$3&","&U$2&",Period:="&$B$1&",InputChoice1:=Close,InputChoice2::=Close)", "FG", "", "Close",$B$2,A40, "all","", "","True","T")/100,"") -> -0.02249006142 | W40: -0.28 | X40: 1 | AA40: =IFERROR(RTD("cqg.rtd",,"StudyData", "Correlation("&$B$3&","&AA$2&",Period:="&$B$1&",InputChoice1:=Close,InputChoice2::=Close)", "FG", "", "Close",$B$2,A40, "all","", "","True","T")/100,"") -> -0.7948775088 | AC40: -0.28 | AD40: 1 | AG40: =IFERROR(RTD("cqg.rtd",,"StudyData", "Correlation("&$B$3&","&AG$2&",Period:="&$B$1&",InputChoice1:=Close,InputChoice2::=Close)", "FG", "", "Close",$B$2,A40, "all","", "","True","T")/100,"") -> -0.8787341689 | AI40: -0.28 | AJ40: 2 | AM40: =IFERROR(RTD("cqg.rtd",,"StudyData", "Correlation("&$B$3&","&AM$2&",Period:="&$B$1&",InputChoice1:=Close,InputChoice2::=Close)", "FG", "", "Close",$B$2,A40, "all","", "","True","T")/100,"") -> -0.7425786173 | AO40: -0.28 | AP40: 0 | AS40: =IFERROR(RTD("cqg.rtd",,"StudyData", "Correlation("&$B$3&","&AS$2&",Period:="&$B$1&",InputChoice1:=Close,InputChoice2::=Close)", "FG", "", "Close",$B$2,A40, "all","", "","True","T")/100,"") -> -0.01129106415 | AU40: -0.28 | AV40: 1 | AY40: =IFERROR(RTD("cqg.rtd",,"StudyData", "Correlation("&$B$3&","&AY$2&",Period:="&$B$1&",InputChoice1:=Close,InputChoice2::=Close)", "FG", "", "Close",$B$2,A40, "all","", "","True","T")/100,"") -> 0.3843752426 | BA40: -0.28 | BB40: 2 | BE40: =IFERROR(RTD("cqg.rtd",,"StudyData", "Correlation("&$B$3&","&BE$2&",Period:="&$B$1&",InputChoice1:=Close,InputChoice2::=Close)", "FG", "", "Close",$B$2,A40, "all","", "","True","T")/100,"") -> 0.3401947948 | BG40: -0.28 | BH40: 1
A41: -37 | C41: =IFERROR(RTD("cqg.rtd",,"StudyData", "Correlation("&$B$3&","&C$2&",Period:="&$B$1&",InputChoice1:=Close,InputChoice2:=Close)", "FG", "", "Close",$B$2,A41, "all","", "","True","T")/100,"") -> -0.813509881 | E41: -0.26 | F41: 1 | I41: =IFERROR(RTD("cqg.rtd",,"StudyData", "Correlation("&$B$3&","&I$2&",Period:="&$B$1&",InputChoice1:=Close,InputChoice2::=Close)", "FG", "", "Close",$B$2,A41, "all","", "","True","T")/100,"") -> -0.8085501512 | K41: -0.26 | L41: 2 | O41: =IFERROR(RTD("cqg.rtd",,"StudyData", "Correlation("&$B$3&","&O$2&",Period:="&$B$1&",InputChoice1:=Close,InputChoice2::=Close)", "FG", "", "Close",$B$2,A41, "all","", "","True","T")/100,"") -> -0.7443609716 | Q41: -0.26 | R41: 1 | U41: =IFERROR(RTD("cqg.rtd",,"StudyData", "Correlation("&$B$3&","&U$2&",Period:="&$B$1&",InputChoice1:=Close,InputChoice2::=Close)", "FG", "", "Close",$B$2,A41, "all","", "","True","T")/100,"") -> 0.2653638269 | W41: -0.26 | X41: 0 | AA41: =IFERROR(RTD("cqg.rtd",,"StudyData", "Correlation("&$B$3&","&AA$2&",Period:="&$B$1&",InputChoice1:=Close,InputChoice2::=Close)", "FG", "", "Close",$B$2,A41, "all","", "","True","T")/100,"") -> -0.784873372 | AC41: -0.26 | AD41: 3 | AG41: =IFERROR(RTD("cqg.rtd",,"StudyData", "Correlation("&$B$3&","&AG$2&",Period:="&$B$1&",InputChoice1:=Close,InputChoice2::=Close)", "FG", "", "Close",$B$2,A41, "all","", "","True","T")/100,"") -> -0.8768082301 | AI41: -0.26 | AJ41: 1 | AM41: =IFERROR(RTD("cqg.rtd",,"StudyData", "Correlation("&$B$3&","&AM$2&",Period:="&$B$1&",InputChoice1:=Close,InputChoice2::=Close)", "FG", "", "Close",$B$2,A41, "all","", "","True","T")/100,"") -> -0.7329722263 | AO41: -0.26 | AP41: 0 | AS41: =IFERROR(RTD("cqg.rtd",,"StudyData", "Correlation("&$B$3&","&AS$2&",Period:="&$B$1&",InputChoice1:=Close,InputChoice2::=Close)", "FG", "", "Close",$B$2,A41, "all","", "","True","T")/100,"") -> -0.2125948403 | AU41: -0.26 | AV41: 1 | AY41: =IFERROR(RTD("cqg.rtd",,"StudyData", "Correlation("&$B$3&","&AY$2&",Period:="&$B$1&",InputChoice1:=Close,InputChoice2::=Close)", "FG", "", "Close",$B$2,A41, "all","", "","True","T")/100,"") -> 0.5009525471 | BA41: -0.26 | BB41: 4 | BE41: =IFERROR(RTD("cqg.rtd",,"StudyData", "Correlation("&$B$3&","&BE$2&",Period:="&$B$1&",InputChoice1:=Close,InputChoice2::=Close)", "FG", "", "Close",$B$2,A41, "all","", "","True","T")/100,"") -> 0.189152407 | BG41: -0.26 | BH41: 2
A42: -38 | C42: =IFERROR(RTD("cqg.rtd",,"StudyData", "Correlation("&$B$3&","&C$2&",Period:="&$B$1&",InputChoice1:=Close,InputChoice2:=Close)", "FG", "", "Close",$B$2,A42, "all","", "","True","T")/100,"") -> -0.8004857407 | E42: -0.24 | F42: 2 | I42: =IFERROR(RTD("cqg.rtd",,"StudyData", "Correlation("&$B$3&","&I$2&",Period:="&$B$1&",InputChoice1:=Close,InputChoice2::=Close)", "FG", "", "Close",$B$2,A42, "all","", "","True","T")/100,"") -> -0.8011610049 | K42: -0.24 | L42: 2 | O42: =IFERROR(RTD("cqg.rtd",,"StudyData", "Correlation("&$B$3&","&O$2&",Period:="&$B$1&",InputChoice1:=Close,InputChoice2::=Close)", "FG", "", "Close",$B$2,A42, "all","", "","True","T")/100,"") -> -0.7311917438 | Q42: -0.24 | R42: 1 | U42: =IFERROR(RTD("cqg.rtd",,"StudyData", "Correlation("&$B$3&","&U$2&",Period:="&$B$1&",InputChoice1:=Close,InputChoice2::=Close)", "FG", "", "Close",$B$2,A42, "all","", "","True","T")/100,"") -> 0.4379951341 | W42: -0.24 | X42: 0 | AA42: =IFERROR(RTD("cqg.rtd",,"StudyData", "Correlation("&$B$3&","&AA$2&",Period:="&$B$1&",InputChoice1:=Close,InputChoice2::=Close)", "FG", "", "Close",$B$2,A42, "all","", "","True","T")/100,"") -> -0.7727715959 | AC42: -0.24 | AD42: 0 | AE42: 1 | AG42: =IFERROR(RTD("cqg.rtd",,"StudyData", "Correlation("&$B$3&","&AG$2&",Period:="&$B$1&",InputChoice1:=Close,InputChoice2::=Close)", "FG", "", "Close",$B$2,A42, "all","", "","True","T")/100,"") -> -0.8686604225 | AI42: -0.24 | AJ42: 0 | AM42: =IFERROR(RTD("cqg.rtd",,"StudyData", "Correlation("&$B$3&","&AM$2&",Period:="&$B$1&",InputChoice1:=Close,InputChoice2::=Close)", "FG", "", "Close",$B$2,A42, "all","", "","True","T")/100,"") -> -0.7208199262 | AO42: -0.24 | AP42: 2 | AS42: =IFERROR(RTD("cqg.rtd",,"StudyData", "Correlation("&$B$3&","&AS$2&",Period:="&$B$1&",InputChoice1:=Close,InputChoice2::=Close)", "FG", "", "Close",$B$2,A42, "all","", "","True","T")/100,"") -> -0.4279569893 | AU42: -0.24 | AV42: 0 | AY42: =IFERROR(RTD("cqg.rtd",,"StudyData", "Correlation("&$B$3&","&AY$2&",Period:="&$B$1&",InputChoice1:=Close,InputChoice2::=Close)", "FG", "", "Close",$B$2,A42, "all","", "","True","T")/100,"") -> 0.6193465251 | BA42: -0.24 | BB42: 4 | BE42: =IFERROR(RTD("cqg.rtd",,"StudyData", "Correlation("&$B$3&","&BE$2&",Period:="&$B$1&",InputChoice1:=Close,InputChoice2::=Close)", "FG", "", "Close",$B$2,A42, "all","", "","True","T")/100,"") -> 0.01344436106 | BG42: -0.24 | BH42: 1
A43: -39 | C43: =IFERROR(RTD("cqg.rtd",,"StudyData", "Correlation("&$B$3&","&C$2&",Period:="&$B$1&",InputChoice1:=Close,InputChoice2:=Close)", "FG", "", "Close",$B$2,A43, "all","", "","True","T")/100,"") -> -0.6804772047 | E43: -0.22 | F43: 0 | I43: =IFERROR(RTD("cqg.rtd",,"StudyData", "Correlation("&$B$3&","&I$2&",Period:="&$B$1&",InputChoice1:=Close,InputChoice2::=Close)", "FG", "", "Close",$B$2,A43, "all","", "","True","T")/100,"") -> -0.7273277926 | K43: -0.22 | L43: 0 | O43: =IFERROR(RTD("cqg.rtd",,"StudyData", "Correlation("&$B$3&","&O$2&",Period:="&$B$1&",InputChoice1:=Close,InputChoice2::=Close)", "FG", "", "Close",$B$2,A43, "all","", "","True","T")/100,"") -> -0.7205212143 | Q43: -0.22 | R43: 3 | U43: =IFERROR(RTD("cqg.rtd",,"StudyData", "Correlation("&$B$3&","&U$2&",Period:="&$B$1&",InputChoice1:=Close,InputChoice2::=Close)", "FG", "", "Close",$B$2,A43, "all","", "","True","T")/100,"") -> 0.3959991107 | W43: -0.22 | X43: 1 | AA43: =IFERROR(RTD("cqg.rtd",,"StudyData", "Correlation("&$B$3&","&AA$2&",Period:="&$B$1&",InputChoice1:=Close,InputChoice2::=Close)", "FG", "", "Close",$B$2,A43, "all","", "","True","T")/100,"") -> -0.7966913903 | AC43: -0.22 | AD43: 5 | AG43: =IFERROR(RTD("cqg.rtd",,"StudyData", "Correlation("&$B$3&","&AG$2&",Period:="&$B$1&",InputChoice1:=Close,InputChoice2::=Close)", "FG", "", "Close",$B$2,A43, "all","", "","True","T")/100,"") -> -0.8772371118 | AI43: -0.22 | AJ43: 0 | AM43: =IFERROR(RTD("cqg.rtd",,"StudyData", "Correlation("&$B$3&","&AM$2&",Period:="&$B$1&",InputChoice1:=Close,InputChoice2::=Close)", "FG", "", "Close",$B$2,A43, "all","", "","True","T")/100,"") -> -0.7707244933 | AO43: -0.22 | AP43: 2 | AS43: =IFERROR(RTD("cqg.rtd",,"StudyData", "Correlation("&$B$3&","&AS$2&",Period:="&$B$1&",InputChoice1:=Close,InputChoice2::=Close)", "FG", "", "Close",$B$2,A43, "all","", "","True","T")/100,"") -> -0.6673447105 | AU43: -0.22 | AV43: 0 | AY43: =IFERROR(RTD("cqg.rtd",,"StudyData", "Correlation("&$B$3&","&AY$2&",Period:="&$B$1&",InputChoice1:=Close,InputChoice2::=Close)", "FG", "", "Close",$B$2,A43, "all","", "","True","T")/100,"") -> 0.7332789348 | BA43: -0.22 | BB43: 0 | BE43: =IFERROR(RTD("cqg.rtd",,"StudyData", "Correlation("&$B$3&","&BE$2&",Period:="&$B$1&",InputChoice1:=Close,InputChoice2::=Close)", "FG", "", "Close",$B$2,A43, "all","", "","True","T")/100,"") -> -0.3480435386 | BG43: -0.22 | BH43: 1
A44: -40 | C44: =IFERROR(RTD("cqg.rtd",,"StudyData", "Correlation("&$B$3&","&C$2&",Period:="&$B$1&",InputChoice1:=Close,InputChoice2:=Close)", "FG", "", "Close",$B$2,A44, "all","", "","True","T")/100,"") -> -0.6275412501 | E44: -0.2 | F44: 0 | I44: =IFERROR(RTD("cqg.rtd",,"StudyData", "Correlation("&$B$3&","&I$2&",Period:="&$B$1&",InputChoice1:=Close,InputChoice2::=Close)", "FG", "", "Close",$B$2,A44, "all","", "","True","T")/100,"") -> -0.6873714766 | K44: -0.2 | L44: 2 | O44: =IFERROR(RTD("cqg.rtd",,"StudyData", "Correlation("&$B$3&","&O$2&",Period:="&$B$1&",InputChoice1:=Close,InputChoice2::=Close)", "FG", "", "Close",$B$2,A44, "all","", "","True","T")/100,"") -> -0.7038693455 | Q44: -0.2 | R44: 1 | U44: =IFERROR(RTD("cqg.rtd",,"StudyData", "Correlation("&$B$3&","&U$2&",Period:="&$B$1&",InputChoice1:=Close,InputChoice2::=Close)", "FG", "", "Close",$B$2,A44, "all","", "","True","T")/100,"") -> 0.3982899257 | W44: -0.2 | X44: 1 | AA44: =IFERROR(RTD("cqg.rtd",,"StudyData", "Correlation("&$B$3&","&AA$2&",Period:="&$B$1&",InputChoice1:=Close,InputChoice2::=Close)", "FG", "", "Close",$B$2,A44, "all","", "","True","T")/100,"") -> -0.7922215654 | AC44: -0.2 | AD44: 3 | AG44: =IFERROR(RTD("cqg.rtd",,"StudyData", "Correlation("&$B$3&","&AG$2&",Period:="&$B$1&",InputChoice1:=Close,InputChoice2::=Close)", "FG", "", "Close",$B$2,A44, "all","", "","True","T")/100,"") -> -0.868813001 | AI44: -0.2 | AJ44: 1 | AM44: =IFERROR(RTD("cqg.rtd",,"StudyData", "Correlation("&$B$3&","&AM$2&",Period:="&$B$1&",InputChoice1:=Close,InputChoice2::=Close)", "FG", "", "Close",$B$2,A44, "all","", "","True","T")/100,"") -> -0.7742395104 | AO44: -0.2 | AP44: 1 | AS44: =IFERROR(RTD("cqg.rtd",,"StudyData", "Correlation("&$B$3&","&AS$2&",Period:="&$B$1&",InputChoice1:=Close,InputChoice2::=Close)", "FG", "", "Close",$B$2,A44, "all","", "","True","T")/100,"") -> -0.7543042913 | AU44: -0.2 | AV44: 3 | AY44: =IFERROR(RTD("cqg.rtd",,"StudyData", "Correlation("&$B$3&","&AY$2&",Period:="&$B$1&",InputChoice1:=Close,InputChoice2::=Close)", "FG", "", "Close",$B$2,A44, "all","", "","True","T")/100,"") -> 0.90270827 | BA44: -0.2 | BB44: 3 | BE44: =IFERROR(RTD("cqg.rtd",,"StudyData", "Correlation("&$B$3&","&BE$2&",Period:="&$B$1&",InputChoice1:=Close,InputChoice2::=Close)", "FG", "", "Close",$B$2,A44, "all","", "","True","T")/100,"") -> -0.6131016568 | BG44: -0.2 | BH44: 2
A45: -41 | C45: =IFERROR(RTD("cqg.rtd",,"StudyData", "Correlation("&$B$3&","&C$2&",Period:="&$B$1&",InputChoice1:=Close,InputChoice2:=Close)", "FG", "", "Close",$B$2,A45, "all","", "","True","T")/100,"") -> -0.5895159345 | E45: -0.18 | F45: 0 | I45: =IFERROR(RTD("cqg.rtd",,"StudyData", "Correlation("&$B$3&","&I$2&",Period:="&$B$1&",InputChoice1:=Close,InputChoice2::=Close)", "FG", "", "Close",$B$2,A45, "all","", "","True","T")/100,"") -> -0.6554846742 | K45: -0.18 | L45: 1 | O45: =IFERROR(RTD("cqg.rtd",,"StudyData", "Correlation("&$B$3&","&O$2&",Period:="&$B$1&",InputChoice1:=Close,InputChoice2::=Close)", "FG", "", "Close",$B$2,A45, "all","", "","True","T")/100,"") -> -0.678816932 | Q45: -0.18 | R45: 2 | U45: =IFERROR(RTD("cqg.rtd",,"StudyData", "Correlation("&$B$3&","&U$2&",Period:="&$B$1&",InputChoice1:=Close,InputChoice2::=Close)", "FG", "", "Close",$B$2,A45, "all","", "","True","T")/100,"") -> 0.3015010382 | W45: -0.18 | X45: 0 | AA45: =IFERROR(RTD("cqg.rtd",,"StudyData", "Correlation("&$B$3&","&AA$2&",Period:="&$B$1&",InputChoice1:=Close,InputChoice2::=Close)", "FG", "", "Close",$B$2,A45, "all","", "","True","T")/100,"") -> -0.7848135993 | AC45: -0.18 | AD45: 0 | AG45: =IFERROR(RTD("cqg.rtd",,"StudyData", "Correlation("&$B$3&","&AG$2&",Period:="&$B$1&",InputChoice1:=Close,InputChoice2::=Close)", "FG", "", "Close",$B$2,A45, "all","", "","True","T")/100,"") -> -0.8583438729 | AI45: -0.18 | AJ45: 0 | AM45: =IFERROR(RTD("cqg.rtd",,"StudyData", "Correlation("&$B$3&","&AM$2&",Period:="&$B$1&",InputChoice1:=Close,InputChoice2::=Close)", "FG", "", "Close",$B$2,A45, "all","", "","True","T")/100,"") -> -0.781148453 | AO45: -0.18 | AP45: 1 | AS45: =IFERROR(RTD("cqg.rtd",,"StudyData", "Correlation("&$B$3&","&AS$2&",Period:="&$B$1&",InputChoice1:=Close,InputChoice2::=Close)", "FG", "", "Close",$B$2,A45, "all","", "","True","T")/100,"") -> -0.7636585274 | AU45: -0.18 | AV45: 1 | AY45: =IFERROR(RTD("cqg.rtd",,"StudyData", "Correlation("&$B$3&","&AY$2&",Period:="&$B$1&",InputChoice1:=Close,InputChoice2::=Close)", "FG", "", "Close",$B$2,A45, "all","", "","True","T")/100,"") -> 0.864566385 | BA45: -0.18 | BB45: 2 | BE45: =IFERROR(RTD("cqg.rtd",,"StudyData", "Correlation("&$B$3&","&BE$2&",Period:="&$B$1&",InputChoice1:=Close,InputChoice2::=Close)", "FG", "", "Close",$B$2,A45, "all","", "","True","T")/100,"") -> -0.5979294517 | BG45: -0.18 | BH45: 1
A46: -42 | C46: =IFERROR(RTD("cqg.rtd",,"StudyData", "Correlation("&$B$3&","&C$2&",Period:="&$B$1&",InputChoice1:=Close,InputChoice2:=Close)", "FG", "", "Close",$B$2,A46, "all","", "","True","T")/100,"") -> -0.5427976467 | E46: -0.16 | F46: 0 | I46: =IFERROR(RTD("cqg.rtd",,"StudyData", "Correlation("&$B$3&","&I$2&",Period:="&$B$1&",InputChoice1:=Close,InputChoice2::=Close)", "FG", "", "Close",$B$2,A46, "all","", "","True","T")/100,"") -> -0.6130547785 | K46: -0.16 | L46: 1 | O46: =IFERROR(RTD("cqg.rtd",,"StudyData", "Correlation("&$B$3&","&O$2&",Period:="&$B$1&",InputChoice1:=Close,InputChoice2::=Close)", "FG", "", "Close",$B$2,A46, "all","", "","True","T")/100,"") -> -0.6726572742 | Q46: -0.16 | R46: 2 | U46: =IFERROR(RTD("cqg.rtd",,"StudyData", "Correlation("&$B$3&","&U$2&",Period:="&$B$1&",InputChoice1:=Close,InputChoice2::=Close)", "FG", "", "Close",$B$2,A46, "all","", "","True","T")/100,"") -> 0.2288359137 | W46: -0.16 | X46: 2 | AA46: =IFERROR(RTD("cqg.rtd",,"StudyData", "Correlation("&$B$3&","&AA$2&",Period:="&$B$1&",InputChoice1:=Close,InputChoice2::=Close)", "FG", "", "Close",$B$2,A46, "all","", "","True","T")/100,"") -> -0.8001744199 | AC46: -0.16 | AD46: 3 | AG46: =IFERROR(RTD("cqg.rtd",,"StudyData", "Correlation("&$B$3&","&AG$2&",Period:="&$B$1&",InputChoice1:=Close,InputChoice2::=Close)", "FG", "", "Close",$B$2,A46, "all","", "","True","T")/100,"") -> -0.8434667509 | AI46: -0.16 | AJ46: 0 | AM46: =IFERROR(RTD("cqg.rtd",,"StudyData", "Correlation("&$B$3&","&AM$2&",Period:="&$B$1&",InputChoice1:=Close,InputChoice2::=Close)", "FG", "", "Close",$B$2,A46, "all","", "","True","T")/100,"") -> -0.8032772747 | AO46: -0.16 | AP46: 2 | AQ46: 2 | AS46: =IFERROR(RTD("cqg.rtd",,"StudyData", "Correlation("&$B$3&","&AS$2&",Period:="&$B$1&",InputChoice1:=Close,InputChoice2::=Close)", "FG", "", "Close",$B$2,A46, "all","", "","True","T")/100,"") -> -0.7423568198 | AU46: -0.16 | AV46: 3 | AY46: =IFERROR(RTD("cqg.rtd",,"StudyData", "Correlation("&$B$3&","&AY$2&",Period:="&$B$1&",InputChoice1:=Close,InputChoice2::=Close)", "FG", "", "Close",$B$2,A46, "all","", "","True","T")/100,"") -> 0.7920438135 | BA46: -0.16 | BB46: 3 | BE46: =IFERROR(RTD("cqg.rtd",,"StudyData", "Correlation("&$B$3&","&BE$2&",Period:="&$B$1&",InputChoice1:=Close,InputChoice2::=Close)", "FG", "", "Close",$B$2,A46, "all","", "","True","T")/100,"") -> -0.5861171073 | BG46: -0.16 | BH46: 1
A47: -43 | C47: =IFERROR(RTD("cqg.rtd",,"StudyData", "Correlation("&$B$3&","&C$2&",Period:="&$B$1&",InputChoice1:=Close,InputChoice2:=Close)", "FG", "", "Close",$B$2,A47, "all","", "","True","T")/100,"") -> -0.5513593611 | E47: -0.14 | F47: 3 | I47: =IFERROR(RTD("cqg.rtd",,"StudyData", "Correlation("&$B$3&","&I$2&",Period:="&$B$1&",InputChoice1:=Close,InputChoice2::=Close)", "FG", "", "Close",$B$2,A47, "all","", "","True","T")/100,"") -> -0.6199194421 | K47: -0.14 | L47: 1 | O47: =IFERROR(RTD("cqg.rtd",,"StudyData", "Correlation("&$B$3&","&O$2&",Period:="&$B$1&",InputChoice1:=Close,InputChoice2::=Close)", "FG", "", "Close",$B$2,A47, "all","", "","True","T")/100,"") -> -0.6680252352 | Q47: -0.14 | R47: 0 | U47: =IFERROR(RTD("cqg.rtd",,"StudyData", "Correlation("&$B$3&","&U$2&",Period:="&$B$1&",InputChoice1:=Close,InputChoice2::=Close)", "FG", "", "Close",$B$2,A47, "all","", "","True","T")/100,"") -> 0.1255560295 | W47: -0.14 | X47: 1 | AA47: =IFERROR(RTD("cqg.rtd",,"StudyData", "Correlation("&$B$3&","&AA$2&",Period:="&$B$1&",InputChoice1:=Close,InputChoice2::=Close)", "FG", "", "Close",$B$2,A47, "all","", "","True","T")/100,"") -> -0.8145054445 | AC47: -0.14 | AD47: 1 | AG47: =IFERROR(RTD("cqg.rtd",,"StudyData", "Correlation("&$B$3&","&AG$2&",Period:="&$B$1&",InputChoice1:=Close,InputChoice2::=Close)", "FG", "", "Close",$B$2,A47, "all","", "","True","T")/100,"") -> -0.822644211 | AI47: -0.14 | AJ47: 3 | AK47: 3 | AM47: =IFERROR(RTD("cqg.rtd",,"StudyData", "Correlation("&$B$3&","&AM$2&",Period:="&$B$1&",InputChoice1:=Close,InputChoice2::=Close)", "FG", "", "Close",$B$2,A47, "all","", "","True","T")/100,"") -> -0.8241005362 | AO47: -0.14 | AP47: 3 | AS47: =IFERROR(RTD("cqg.rtd",,"StudyData", "Correlation("&$B$3&","&AS$2&",Period:="&$B$1&",InputChoice1:=Close,InputChoice2::=Close)", "FG", "", "Close",$B$2,A47, "all","", "","True","T")/100,"") -> -0.7105004383 | AU47: -0.14 | AV47: 0 | AY47: =IFERROR(RTD("cqg.rtd",,"StudyData", "Correlation("&$B$3&","&AY$2&",Period:="&$B$1&",InputChoice1:=Close,InputChoice2::=Close)", "FG", "", "Close",$B$2,A47, "all","", "","True","T")/100,"") -> 0.6710672222 | BA47: -0.14 | BB47: 2 | BE47: =IFERROR(RTD("cqg.rtd",,"StudyData", "Correlation("&$B$3&","&BE$2&",Period:="&$B$1&",InputChoice1:=Close,InputChoice2::=Close)", "FG", "", "Close",$B$2,A47, "all","", "","True","T")/100,"") -> -0.5192402057 | BG47: -0.14 | BH47: 4
A48: -44 | C48: =IFERROR(RTD("cqg.rtd",,"StudyData", "Correlation("&$B$3&","&C$2&",Period:="&$B$1&",InputChoice1:=Close,InputChoice2:=Close)", "FG", "", "Close",$B$2,A48, "all","", "","True","T")/100,"") -> -0.412422116 | E48: -0.12 | F48: 0 | I48: =IFERROR(RTD("cqg.rtd",,"StudyData", "Correlation("&$B$3&","&I$2&",Period:="&$B$1&",InputChoice1:=Close,InputChoice2::=Close)", "FG", "", "Close",$B$2,A48, "all","", "","True","T")/100,"") -> -0.5009067261 | K48: -0.12 | L48: 1 | O48: =IFERROR(RTD("cqg.rtd",,"StudyData", "Correlation("&$B$3&","&O$2&",Period:="&$B$1&",InputChoice1:=Close,InputChoice2::=Close)", "FG", "", "Close",$B$2,A48, "all","", "","True","T")/100,"") -> -0.6229219989 | Q48: -0.12 | R48: 1 | U48: =IFERROR(RTD("cqg.rtd",,"StudyData", "Correlation("&$B$3&","&U$2&",Period:="&$B$1&",InputChoice1:=Close,InputChoice2::=Close)", "FG", "", "Close",$B$2,A48, "all","", "","True","T")/100,"") -> -0.06342971406 | W48: -0.12 | X48: 1 | AA48: =IFERROR(RTD("cqg.rtd",,"StudyData", "Correlation("&$B$3&","&AA$2&",Period:="&$B$1&",InputChoice1:=Close,InputChoice2::=Close)", "FG", "", "Close",$B$2,A48, "all","", "","True","T")/100,"") -> -0.8056980387 | AC48: -0.12 | AD48: 0 | AG48: =IFERROR(RTD("cqg.rtd",,"StudyData", "Correlation("&$B$3&","&AG$2&",Period:="&$B$1&",InputChoice1:=Close,InputChoice2::=Close)", "FG", "", "Close",$B$2,A48, "all","", "","True","T")/100,"") -> -0.7959139333 | AI48: -0.12 | AJ48: 2 | AM48: =IFERROR(RTD("cqg.rtd",,"StudyData", "Correlation("&$B$3&","&AM$2&",Period:="&$B$1&",InputChoice1:=Close,InputChoice2::=Close)", "FG", "", "Close",$B$2,A48, "all","", "","True","T")/100,"") -> -0.8209878865 | AO48: -0.12 | AP48: 1 | AS48: =IFERROR(RTD("cqg.rtd",,"StudyData", "Correlation("&$B$3&","&AS$2&",Period:="&$B$1&",InputChoice1:=Close,InputChoice2::=Close)", "FG", "", "Close",$B$2,A48, "all","", "","True","T")/100,"") -> -0.6659302751 | AU48: -0.12 | AV48: 0 | AY48: =IFERROR(RTD("cqg.rtd",,"StudyData", "Correlation("&$B$3&","&AY$2&",Period:="&$B$1&",InputChoice1:=Close,InputChoice2::=Close)", "FG", "", "Close",$B$2,A48, "all","", "","True","T")/100,"") -> 0.6419241044 | BA48: -0.12 | BB48: 3 | BE48: =IFERROR(RTD("cqg.rtd",,"StudyData", "Correlation("&$B$3&","&BE$2&",Period:="&$B$1&",InputChoice1:=Close,InputChoice2::=Close)", "FG", "", "Close",$B$2,A48, "all","", "","True","T")/100,"") -> -0.4588889288 | BG48: -0.12 | BH48: 3
A49: -45 | C49: =IFERROR(RTD("cqg.rtd",,"StudyData", "Correlation("&$B$3&","&C$2&",Period:="&$B$1&",InputChoice1:=Close,InputChoice2:=Close)", "FG", "", "Close",$B$2,A49, "all","", "","True","T")/100,"") -> -0.1588570761 | E49: -0.1 | F49: 0 | I49: =IFERROR(RTD("cqg.rtd",,"StudyData", "Correlation("&$B$3&","&I$2&",Period:="&$B$1&",InputChoice1:=Close,InputChoice2::=Close)", "FG", "", "Close",$B$2,A49, "all","", "","True","T")/100,"") -> -0.2690546863 | K49: -0.1 | L49: 0 | O49: =IFERROR(RTD("cqg.rtd",,"StudyData", "Correlation("&$B$3&","&O$2&",Period:="&$B$1&",InputChoice1:=Close,InputChoice2::=Close)", "FG", "", "Close",$B$2,A49, "all","", "","True","T")/100,"") -> -0.6456806471 | Q49: -0.1 | R49: 0 | U49: =IFERROR(RTD("cqg.rtd",,"StudyData", "Correlation("&$B$3&","&U$2&",Period:="&$B$1&",InputChoice1:=Close,InputChoice2::=Close)", "FG", "", "Close",$B$2,A49, "all","", "","True","T")/100,"") -> 0.06048926584 | W49: -0.1 | X49: 0 | AA49: =IFERROR(RTD("cqg.rtd",,"StudyData", "Correlation("&$B$3&","&AA$2&",Period:="&$B$1&",InputChoice1:=Close,InputChoice2::=Close)", "FG", "", "Close",$B$2,A49, "all","", "","True","T")/100,"") -> -0.8229230982 | AC49: -0.1 | AD49: 1 | AG49: =IFERROR(RTD("cqg.rtd",,"StudyData", "Correlation("&$B$3&","&AG$2&",Period:="&$B$1&",InputChoice1:=Close,InputChoice2::=Close)", "FG", "", "Close",$B$2,A49, "all","", "","True","T")/100,"") -> -0.794814247 | AI49: -0.1 | AJ49: 2 | AM49: =IFERROR(RTD("cqg.rtd",,"StudyData", "Correlation("&$B$3&","&AM$2&",Period:="&$B$1&",InputChoice1:=Close,InputChoice2::=Close)", "FG", "", "Close",$B$2,A49, "all","", "","True","T")/100,"") -> -0.8441673739 | AO49: -0.1 | AP49: 1 | AS49: =IFERROR(RTD("cqg.rtd",,"StudyData", "Correlation("&$B$3&","&AS$2&",Period:="&$B$1&",InputChoice1:=Close,InputChoice2::=Close)", "FG", "", "Close",$B$2,A49, "all","", "","True","T")/100,"") -> -0.654519607 | AU49: -0.1 | AV49: 0 | AY49: =IFERROR(RTD("cqg.rtd",,"StudyData", "Correlation("&$B$3&","&AY$2&",Period:="&$B$1&",InputChoice1:=Close,InputChoice2::=Close)", "FG", "", "Close",$B$2,A49, "all","", "","True","T")/100,"") -> 0.4599413741 | BA49: -0.1 | BB49: 2 | BE49: =IFERROR(RTD("cqg.rtd",,"StudyData", "Correlation("&$B$3&","&BE$2&",Period:="&$B$1&",InputChoice1:=Close,InputChoice2::=Close)", "FG", "", "Close",$B$2,A49, "all","", "","True","T")/100,"") -> -0.3814220376 | BG49: -0.1 | BH49: 1
A50: -46 | C50: =IFERROR(RTD("cqg.rtd",,"StudyData", "Correlation("&$B$3&","&C$2&",Period:="&$B$1&",InputChoice1:=Close,InputChoice2:=Close)", "FG", "", "Close",$B$2,A50, "all","", "","True","T")/100,"") -> -0.02902582037 | E50: -0.08 | F50: 2 | I50: =IFERROR(RTD("cqg.rtd",,"StudyData", "Correlation("&$B$3&","&I$2&",Period:="&$B$1&",InputChoice1:=Close,InputChoice2::=Close)", "FG", "", "Close",$B$2,A50, "all","", "","True","T")/100,"") -> -0.1421509057 | K50: -0.08 | L50: 1 | O50: =IFERROR(RTD("cqg.rtd",,"StudyData", "Correlation("&$B$3&","&O$2&",Period:="&$B$1&",InputChoice1:=Close,InputChoice2::=Close)", "FG", "", "Close",$B$2,A50, "all","", "","True","T")/100,"") -> -0.4578979596 | Q50: -0.08 | R50: 0 | U50: =IFERROR(RTD("cqg.rtd",,"StudyData", "Correlation("&$B$3&","&U$2&",Period:="&$B$1&",InputChoice1:=Close,InputChoice2::=Close)", "FG", "", "Close",$B$2,A50, "all","", "","True","T")/100,"") -> -0.04640554463 | W50: -0.08 | X50: 1 | AA50: =IFERROR(RTD("cqg.rtd",,"StudyData", "Correlation("&$B$3&","&AA$2&",Period:="&$B$1&",InputChoice1:=Close,InputChoice2::=Close)", "FG", "", "Close",$B$2,A50, "all","", "","True","T")/100,"") -> -0.7303368727 | AC50: -0.08 | AD50: 0 | AG50: =IFERROR(RTD("cqg.rtd",,"StudyData", "Correlation("&$B$3&","&AG$2&",Period:="&$B$1&",InputChoice1:=Close,InputChoice2::=Close)", "FG", "", "Close",$B$2,A50, "all","", "","True","T")/100,"") -> -0.6908142369 | AI50: -0.08 | AJ50: 0 | AM50: =IFERROR(RTD("cqg.rtd",,"StudyData", "Correlation("&$B$3&","&AM$2&",Period:="&$B$1&",InputChoice1:=Close,InputChoice2::=Close)", "FG", "", "Close",$B$2,A50, "all","", "","True","T")/100,"") -> -0.7878105303 | AO50: -0.08 | AP50: 1 | AS50: =IFERROR(RTD("cqg.rtd",,"StudyData", "Correlation("&$B$3&","&AS$2&",Period:="&$B$1&",InputChoice1:=Close,InputChoice2::=Close)", "FG", "", "Close",$B$2,A50, "all","", "","True","T")/100,"") -> -0.4419148502 | AU50: -0.08 | AV50: 4 | AY50: =IFERROR(RTD("cqg.rtd",,"StudyData", "Correlation("&$B$3&","&AY$2&",Period:="&$B$1&",InputChoice1:=Close,InputChoice2::=Close)", "FG", "", "Close",$B$2,A50, "all","", "","True","T")/100,"") -> 0.2868638297 | BA50: -0.08 | BB50: 1 | BE50: =IFERROR(RTD("cqg.rtd",,"StudyData", "Correlation("&$B$3&","&BE$2&",Period:="&$B$1&",InputChoice1:=Close,InputChoice2::=Close)", "FG", "", "Close",$B$2,A50, "all","", "","True","T")/100,"") -> -0.2772686608 | BG50: -0.08 | BH50: 1
A51: -47 | C51: =IFERROR(RTD("cqg.rtd",,"StudyData", "Correlation("&$B$3&","&C$2&",Period:="&$B$1&",InputChoice1:=Close,InputChoice2:=Close)", "FG", "", "Close",$B$2,A51, "all","", "","True","T")/100,"") -> 0.09346532207 | E51: -0.06 | F51: 1 | I51: =IFERROR(RTD("cqg.rtd",,"StudyData", "Correlation("&$B$3&","&I$2&",Period:="&$B$1&",InputChoice1:=Close,InputChoice2::=Close)", "FG", "", "Close",$B$2,A51, "all","", "","True","T")/100,"") -> 0.01220365227 | K51: -0.06 | L51: 0 | O51: =IFERROR(RTD("cqg.rtd",,"StudyData", "Correlation("&$B$3&","&O$2&",Period:="&$B$1&",InputChoice1:=Close,InputChoice2::=Close)", "FG", "", "Close",$B$2,A51, "all","", "","True","T")/100,"") -> -0.1852517573 | Q51: -0.06 | R51: 0 | U51: =IFERROR(RTD("cqg.rtd",,"StudyData", "Correlation("&$B$3&","&U$2&",Period:="&$B$1&",InputChoice1:=Close,InputChoice2::=Close)", "FG", "", "Close",$B$2,A51, "all","", "","True","T")/100,"") -> -0.1621196019 | W51: -0.06 | X51: 3 | AA51: =IFERROR(RTD("cqg.rtd",,"StudyData", "Correlation("&$B$3&","&AA$2&",Period:="&$B$1&",InputChoice1:=Close,InputChoice2::=Close)", "FG", "", "Close",$B$2,A51, "all","", "","True","T")/100,"") -> -0.603191382 | AC51: -0.06 | AD51: 1 | AG51: =IFERROR(RTD("cqg.rtd",,"StudyData", "Correlation("&$B$3&","&AG$2&",Period:="&$B$1&",InputChoice1:=Close,InputChoice2::=Close)", "FG", "", "Close",$B$2,A51, "all","", "","True","T")/100,"") -> -0.4907618414 | AI51: -0.06 | AJ51: 4 | AM51: =IFERROR(RTD("cqg.rtd",,"StudyData", "Correlation("&$B$3&","&AM$2&",Period:="&$B$1&",InputChoice1:=Close,InputChoice2::=Close)", "FG", "", "Close",$B$2,A51, "all","", "","True","T")/100,"") -> -0.7368754119 | AO51: -0.06 | AP51: 1 | AS51: =IFERROR(RTD("cqg.rtd",,"StudyData", "Correlation("&$B$3&","&AS$2&",Period:="&$B$1&",InputChoice1:=Close,InputChoice2::=Close)", "FG", "", "Close",$B$2,A51, "all","", "","True","T")/100,"") -> -0.2909228726 | AU51: -0.06 | AV51: 1 | AY51: =IFERROR(RTD("cqg.rtd",,"StudyData", "Correlation("&$B$3&","&AY$2&",Period:="&$B$1&",InputChoice1:=Close,InputChoice2::=Close)", "FG", "", "Close",$B$2,A51, "all","", "","True","T")/100,"") -> 0.1050807144 | BA51: -0.06 | BB51: 1 | BE51: =IFERROR(RTD("cqg.rtd",,"StudyData", "Correlation("&$B$3&","&BE$2&",Period:="&$B$1&",InputChoice1:=Close,InputChoice2::=Close)", "FG", "", "Close",$B$2,A51, "all","", "","True","T")/100,"") -> -0.314983098 | BG51: -0.06 | BH51: 1
A52: -48 | C52: =IFERROR(RTD("cqg.rtd",,"StudyData", "Correlation("&$B$3&","&C$2&",Period:="&$B$1&",InputChoice1:=Close,InputChoice2:=Close)", "FG", "", "Close",$B$2,A52, "all","", "","True","T")/100,"") -> 0.1518580314 | E52: -0.04 | F52: 1 | I52: =IFERROR(RTD("cqg.rtd",,"StudyData", "Correlation("&$B$3&","&I$2&",Period:="&$B$1&",InputChoice1:=Close,InputChoice2::=Close)", "FG", "", "Close",$B$2,A52, "all","", "","True","T")/100,"") -> 0.1198750368 | K52: -0.04 | L52: 1 | O52: =IFERROR(RTD("cqg.rtd",,"StudyData", "Correlation("&$B$3&","&O$2&",Period:="&$B$1&",InputChoice1:=Close,InputChoice2::=Close)", "FG", "", "Close",$B$2,A52, "all","", "","True","T")/100,"") -> -0.01015039082 | Q52: -0.04 | R52: 5 | U52: =IFERROR(RTD("cqg.rtd",,"StudyData", "Correlation("&$B$3&","&U$2&",Period:="&$B$1&",InputChoice1:=Close,InputChoice2::=Close)", "FG", "", "Close",$B$2,A52, "all","", "","True","T")/100,"") -> -0.07738341929 | W52: -0.04 | X52: 4 | AA52: =IFERROR(RTD("cqg.rtd",,"StudyData", "Correlation("&$B$3&","&AA$2&",Period:="&$B$1&",InputChoice1:=Close,InputChoice2::=Close)", "FG", "", "Close",$B$2,A52, "all","", "","True","T")/100,"") -> -0.4568071407 | AC52: -0.04 | AD52: 1 | AG52: =IFERROR(RTD("cqg.rtd",,"StudyData", "Correlation("&$B$3&","&AG$2&",Period:="&$B$1&",InputChoice1:=Close,InputChoice2::=Close)", "FG", "", "Close",$B$2,A52, "all","", "","True","T")/100,"") -> -0.3463519951 | AI52: -0.04 | AJ52: 1 | AM52: =IFERROR(RTD("cqg.rtd",,"StudyData", "Correlation("&$B$3&","&AM$2&",Period:="&$B$1&",InputChoice1:=Close,InputChoice2::=Close)", "FG", "", "Close",$B$2,A52, "all","", "","True","T")/100,"") -> -0.5730470762 | AO52: -0.04 | AP52: 1 | AS52: =IFERROR(RTD("cqg.rtd",,"StudyData", "Correlation("&$B$3&","&AS$2&",Period:="&$B$1&",InputChoice1:=Close,InputChoice2::=Close)", "FG", "", "Close",$B$2,A52, "all","", "","True","T")/100,"") -> -0.2148815991 | AU52: -0.04 | AV52: 0 | AY52: =IFERROR(RTD("cqg.rtd",,"StudyData", "Correlation("&$B$3&","&AY$2&",Period:="&$B$1&",InputChoice1:=Close,InputChoice2::=Close)", "FG", "", "Close",$B$2,A52, "all","", "","True","T")/100,"") -> 0.120929687 | BA52: -0.04 | BB52: 0 | BE52: =IFERROR(RTD("cqg.rtd",,"StudyData", "Correlation("&$B$3&","&BE$2&",Period:="&$B$1&",InputChoice1:=Close,InputChoice2::=Close)", "FG", "", "Close",$B$2,A52, "all","", "","True","T")/100,"") -> -0.2516753004 | BG52: -0.04 | BH52: 0
A53: -49 | C53: =IFERROR(RTD("cqg.rtd",,"StudyData", "Correlation("&$B$3&","&C$2&",Period:="&$B$1&",InputChoice1:=Close,InputChoice2:=Close)", "FG", "", "Close",$B$2,A53, "all","", "","True","T")/100,"") -> 0.2093644555 | E53: -0.02 | F53: 4 | I53: =IFERROR(RTD("cqg.rtd",,"StudyData", "Correlation("&$B$3&","&I$2&",Period:="&$B$1&",InputChoice1:=Close,InputChoice2::=Close)", "FG", "", "Close",$B$2,A53, "all","", "","True","T")/100,"") -> 0.1845637399 | K53: -0.02 | L53: 2 | O53: =IFERROR(RTD("cqg.rtd",,"StudyData", "Correlation("&$B$3&","&O$2&",Period:="&$B$1&",InputChoice1:=Close,InputChoice2::=Close)", "FG", "", "Close",$B$2,A53, "all","", "","True","T")/100,"") -> 0.08553975924 | Q53: -0.02 | R53: 0 | U53: =IFERROR(RTD("cqg.rtd",,"StudyData", "Correlation("&$B$3&","&U$2&",Period:="&$B$1&",InputChoice1:=Close,InputChoice2::=Close)", "FG", "", "Close",$B$2,A53, "all","", "","True","T")/100,"") -> -0.3126149007 | W53: -0.02 | X53: 1 | AA53: =IFERROR(RTD("cqg.rtd",,"StudyData", "Correlation("&$B$3&","&AA$2&",Period:="&$B$1&",InputChoice1:=Close,InputChoice2::=Close)", "FG", "", "Close",$B$2,A53, "all","", "","True","T")/100,"") -> -0.4944058664 | AC53: -0.02 | AD53: 0 | AG53: =IFERROR(RTD("cqg.rtd",,"StudyData", "Correlation("&$B$3&","&AG$2&",Period:="&$B$1&",InputChoice1:=Close,InputChoice2::=Close)", "FG", "", "Close",$B$2,A53, "all","", "","True","T")/100,"") -> -0.4469210103 | AI53: -0.02 | AJ53: 2 | AM53: =IFERROR(RTD("cqg.rtd",,"StudyData", "Correlation("&$B$3&","&AM$2&",Period:="&$B$1&",InputChoice1:=Close,InputChoice2::=Close)", "FG", "", "Close",$B$2,A53, "all","", "","True","T")/100,"") -> -0.6186002425 | AO53: -0.02 | AP53: 0 | AS53: =IFERROR(RTD("cqg.rtd",,"StudyData", "Correlation("&$B$3&","&AS$2&",Period:="&$B$1&",InputChoice1:=Close,InputChoice2::=Close)", "FG", "", "Close",$B$2,A53, "all","", "","True","T")/100,"") -> -0.1613972026 | AU53: -0.02 | AV53: 4 | AY53: =IFERROR(RTD("cqg.rtd",,"StudyData", "Correlation("&$B$3&","&AY$2&",Period:="&$B$1&",InputChoice1:=Close,InputChoice2::=Close)", "FG", "", "Close",$B$2,A53, "all","", "","True","T")/100,"") -> 0.1102028753 | BA53: -0.02 | BB53: 4 | BE53: =IFERROR(RTD("cqg.rtd",,"StudyData", "Correlation("&$B$3&","&BE$2&",Period:="&$B$1&",InputChoice1:=Close,InputChoice2::=Close)", "FG", "", "Close",$B$2,A53, "all","", "","True","T")/100,"") -> -0.1476222005 | BG53: -0.02 | BH53: 1
A54: -50 | C54: =IFERROR(RTD("cqg.rtd",,"StudyData", "Correlation("&$B$3&","&C$2&",Period:="&$B$1&",InputChoice1:=Close,InputChoice2:=Close)", "FG", "", "Close",$B$2,A54, "all","", "","True","T")/100,"") -> 0.2472850166 | E54: 6.175615574e-16 | F54: 2 | I54: =IFERROR(RTD("cqg.rtd",,"StudyData", "Correlation("&$B$3&","&I$2&",Period:="&$B$1&",InputChoice1:=Close,InputChoice2::=Close)", "FG", "", "Close",$B$2,A54, "all","", "","True","T")/100,"") -> 0.2284687236 | K54: 6.175615574e-16 | L54: 1 | O54: =IFERROR(RTD("cqg.rtd",,"StudyData", "Correlation("&$B$3&","&O$2&",Period:="&$B$1&",InputChoice1:=Close,InputChoice2::=Close)", "FG", "", "Close",$B$2,A54, "all","", "","True","T")/100,"") -> 0.2533685096 | Q54: 6.175615574e-16 | R54: 1 | U54: =IFERROR(RTD("cqg.rtd",,"StudyData", "Correlation("&$B$3&","&U$2&",Period:="&$B$1&",InputChoice1:=Close,InputChoice2::=Close)", "FG", "", "Close",$B$2,A54, "all","", "","True","T")/100,"") -> -0.3687650265 | W54: 6.175615574e-16 | X54: 3 | AA54: =IFERROR(RTD("cqg.rtd",,"StudyData", "Correlation("&$B$3&","&AA$2&",Period:="&$B$1&",InputChoice1:=Close,InputChoice2::=Close)", "FG", "", "Close",$B$2,A54, "all","", "","True","T")/100,"") -> -0.4598996415 | AC54: 6.175615574e-16 | AD54: 2 | AG54: =IFERROR(RTD("cqg.rtd",,"StudyData", "Correlation("&$B$3&","&AG$2&",Period:="&$B$1&",InputChoice1:=Close,InputChoice2::=Close)", "FG", "", "Close",$B$2,A54, "all","", "","True","T")/100,"") -> -0.4675777702 | AI54: 6.175615574e-16 | AJ54: 2 | AM54: =IFERROR(RTD("cqg.rtd",,"StudyData", "Correlation("&$B$3&","&AM$2&",Period:="&$B$1&",InputChoice1:=Close,InputChoice2::=Close)", "FG", "", "Close",$B$2,A54, "all","", "","True","T")/100,"") -> -0.6387394402 | AO54: 6.175615574e-16 | AP54: 3 | AS54: =IFERROR(RTD("cqg.rtd",,"StudyData", "Correlation("&$B$3&","&AS$2&",Period:="&$B$1&",InputChoice1:=Close,InputChoice2::=Close)", "FG", "", "Close",$B$2,A54, "all","", "","True","T")/100,"") -> -0.03687488204 | AU54: 6.175615574e-16 | AV54: 2 | AY54: =IFERROR(RTD("cqg.rtd",,"StudyData", "Correlation("&$B$3&","&AY$2&",Period:="&$B$1&",InputChoice1:=Close,InputChoice2::=Close)", "FG", "", "Close",$B$2,A54, "all","", "","True","T")/100,"") -> -0.03106872998 | BA54: 6.175615574e-16 | BB54: 3 | BE54: =IFERROR(RTD("cqg.rtd",,"StudyData", "Correlation("&$B$3&","&BE$2&",Period:="&$B$1&",InputChoice1:=Close,InputChoice2::=Close)", "FG", "", "Close",$B$2,A54, "all","", "","True","T")/100,"") -> -0.1386642964 | BG54: 6.175615574e-16 | BH54: 3
A55: -51 | C55: =IFERROR(RTD("cqg.rtd",,"StudyData", "Correlation("&$B$3&","&C$2&",Period:="&$B$1&",InputChoice1:=Close,InputChoice2:=Close)", "FG", "", "Close",$B$2,A55, "all","", "","True","T")/100,"") -> 0.2322203819 | E55: 0.02 | F55: 1 | I55: =IFERROR(RTD("cqg.rtd",,"StudyData", "Correlation("&$B$3&","&I$2&",Period:="&$B$1&",InputChoice1:=Close,InputChoice2::=Close)", "FG", "", "Close",$B$2,A55, "all","", "","True","T")/100,"") -> 0.2100485179 | K55: 0.02 | L55: 2 | O55: =IFERROR(RTD("cqg.rtd",,"StudyData", "Correlation("&$B$3&","&O$2&",Period:="&$B$1&",InputChoice1:=Close,InputChoice2::=Close)", "FG", "", "Close",$B$2,A55, "all","", "","True","T")/100,"") -> 0.3068957715 | Q55: 0.02 | R55: 0 | U55: =IFERROR(RTD("cqg.rtd",,"StudyData", "Correlation("&$B$3&","&U$2&",Period:="&$B$1&",InputChoice1:=Close,InputChoice2::=Close)", "FG", "", "Close",$B$2,A55, "all","", "","True","T")/100,"") -> -0.394567103 | W55: 0.02 | X55: 1 | AA55: =IFERROR(RTD("cqg.rtd",,"StudyData", "Correlation("&$B$3&","&AA$2&",Period:="&$B$1&",InputChoice1:=Close,InputChoice2::=Close)", "FG", "", "Close",$B$2,A55, "all","", "","True","T")/100,"") -> -0.5659100624 | AC55: 0.02 | AD55: 1 | AG55: =IFERROR(RTD("cqg.rtd",,"StudyData", "Correlation("&$B$3&","&AG$2&",Period:="&$B$1&",InputChoice1:=Close,InputChoice2::=Close)", "FG", "", "Close",$B$2,A55, "all","", "","True","T")/100,"") -> -0.5169501967 | AI55: 0.02 | AJ55: 1 | AM55: =IFERROR(RTD("cqg.rtd",,"StudyData", "Correlation("&$B$3&","&AM$2&",Period:="&$B$1&",InputChoice1:=Close,InputChoice2::=Close)", "FG", "", "Close",$B$2,A55, "all","", "","True","T")/100,"") -> -0.6918170893 | AO55: 0.02 | AP55: 3 | AS55: =IFERROR(RTD("cqg.rtd",,"StudyData", "Correlation("&$B$3&","&AS$2&",Period:="&$B$1&",InputChoice1:=Close,InputChoice2::=Close)", "FG", "", "Close",$B$2,A55, "all","", "","True","T")/100,"") -> -0.03315651675 | AU55: 0.02 | AV55: 1 | AY55: =IFERROR(RTD("cqg.rtd",,"StudyData", "Correlation("&$B$3&","&AY$2&",Period:="&$B$1&",InputChoice1:=Close,InputChoice2::=Close)", "FG", "", "Close",$B$2,A55, "all","", "","True","T")/100,"") -> -0.02148650975 | BA55: 0.02 | BB55: 3 | BE55: =IFERROR(RTD("cqg.rtd",,"StudyData", "Correlation("&$B$3&","&BE$2&",Period:="&$B$1&",InputChoice1:=Close,InputChoice2::=Close)", "FG", "", "Close",$B$2,A55, "all","", "","True","T")/100,"") -> 0.231457267 | BG55: 0.02 | BH55: 3
A56: -52 | C56: =IFERROR(RTD("cqg.rtd",,"StudyData", "Correlation("&$B$3&","&C$2&",Period:="&$B$1&",InputChoice1:=Close,InputChoice2:=Close)", "FG", "", "Close",$B$2,A56, "all","", "","True","T")/100,"") -> 0.1832503467 | E56: 0.04 | F56: 1 | I56: =IFERROR(RTD("cqg.rtd",,"StudyData", "Correlation("&$B$3&","&I$2&",Period:="&$B$1&",InputChoice1:=Close,InputChoice2::=Close)", "FG", "", "Close",$B$2,A56, "all","", "","True","T")/100,"") -> 0.1570262444 | K56: 0.04 | L56: 0 | O56: =IFERROR(RTD("cqg.rtd",,"StudyData", "Correlation("&$B$3&","&O$2&",Period:="&$B$1&",InputChoice1:=Close,InputChoice2::=Close)", "FG", "", "Close",$B$2,A56, "all","", "","True","T")/100,"") -> 0.3124574495 | Q56: 0.04 | R56: 0 | U56: =IFERROR(RTD("cqg.rtd",,"StudyData", "Correlation("&$B$3&","&U$2&",Period:="&$B$1&",InputChoice1:=Close,InputChoice2::=Close)", "FG", "", "Close",$B$2,A56, "all","", "","True","T")/100,"") -> -0.4349130421 | W56: 0.04 | X56: 3 | AA56: =IFERROR(RTD("cqg.rtd",,"StudyData", "Correlation("&$B$3&","&AA$2&",Period:="&$B$1&",InputChoice1:=Close,InputChoice2::=Close)", "FG", "", "Close",$B$2,A56, "all","", "","True","T")/100,"") -> -0.5848228995 | AC56: 0.04 | AD56: 1 | AG56: =IFERROR(RTD("cqg.rtd",,"StudyData", "Correlation("&$B$3&","&AG$2&",Period:="&$B$1&",InputChoice1:=Close,InputChoice2::=Close)", "FG", "", "Close",$B$2,A56, "all","", "","True","T")/100,"") -> -0.529720744 | AI56: 0.04 | AJ56: 0 | AM56: =IFERROR(RTD("cqg.rtd",,"StudyData", "Correlation("&$B$3&","&AM$2&",Period:="&$B$1&",InputChoice1:=Close,InputChoice2::=Close)", "FG", "", "Close",$B$2,A56, "all","", "","True","T")/100,"") -> -0.6680360905 | AO56: 0.04 | AP56: 2 | AS56: =IFERROR(RTD("cqg.rtd",,"StudyData", "Correlation("&$B$3&","&AS$2&",Period:="&$B$1&",InputChoice1:=Close,InputChoice2::=Close)", "FG", "", "Close",$B$2,A56, "all","", "","True","T")/100,"") -> -0.08716040388 | AU56: 0.04 | AV56: 3 | AY56: =IFERROR(RTD("cqg.rtd",,"StudyData", "Correlation("&$B$3&","&AY$2&",Period:="&$B$1&",InputChoice1:=Close,InputChoice2::=Close)", "FG", "", "Close",$B$2,A56, "all","", "","True","T")/100,"") -> 0.02091965628 | BA56: 0.04 | BB56: 1 | BE56: =IFERROR(RTD("cqg.rtd",,"StudyData", "Correlation("&$B$3&","&BE$2&",Period:="&$B$1&",InputChoice1:=Close,InputChoice2::=Close)", "FG", "", "Close",$B$2,A56, "all","", "","True","T")/100,"") -> 0.3280999227 | BG56: 0.04 | BH56: 1
A57: -53 | C57: =IFERROR(RTD("cqg.rtd",,"StudyData", "Correlation("&$B$3&","&C$2&",Period:="&$B$1&",InputChoice1:=Close,InputChoice2:=Close)", "FG", "", "Close",$B$2,A57, "all","", "","True","T")/100,"") -> 0.1694455084 | E57: 0.06 | F57: 2 | I57: =IFERROR(RTD("cqg.rtd",,"StudyData", "Correlation("&$B$3&","&I$2&",Period:="&$B$1&",InputChoice1:=Close,InputChoice2::=Close)", "FG", "", "Close",$B$2,A57, "all","", "","True","T")/100,"") -> 0.1532128118 | K57: 0.06 | L57: 0 | O57: =IFERROR(RTD("cqg.rtd",,"StudyData", "Correlation("&$B$3&","&O$2&",Period:="&$B$1&",InputChoice1:=Close,InputChoice2::=Close)", "FG", "", "Close",$B$2,A57, "all","", "","True","T")/100,"") -> 0.2439760438 | Q57: 0.06 | R57: 0 | U57: =IFERROR(RTD("cqg.rtd",,"StudyData", "Correlation("&$B$3&","&U$2&",Period:="&$B$1&",InputChoice1:=Close,InputChoice2::=Close)", "FG", "", "Close",$B$2,A57, "all","", "","True","T")/100,"") -> -0.3363448381 | W57: 0.06 | X57: 1 | AA57: =IFERROR(RTD("cqg.rtd",,"StudyData", "Correlation("&$B$3&","&AA$2&",Period:="&$B$1&",InputChoice1:=Close,InputChoice2::=Close)", "FG", "", "Close",$B$2,A57, "all","", "","True","T")/100,"") -> -0.6192327477 | AC57: 0.06 | AD57: 0 | AG57: =IFERROR(RTD("cqg.rtd",,"StudyData", "Correlation("&$B$3&","&AG$2&",Period:="&$B$1&",InputChoice1:=Close,InputChoice2::=Close)", "FG", "", "Close",$B$2,A57, "all","", "","True","T")/100,"") -> -0.570898801 | AI57: 0.06 | AJ57: 1 | AM57: =IFERROR(RTD("cqg.rtd",,"StudyData", "Correlation("&$B$3&","&AM$2&",Period:="&$B$1&",InputChoice1:=Close,InputChoice2::=Close)", "FG", "", "Close",$B$2,A57, "all","", "","True","T")/100,"") -> -0.6864091485 | AO57: 0.06 | AP57: 0 | AS57: =IFERROR(RTD("cqg.rtd",,"StudyData", "Correlation("&$B$3&","&AS$2&",Period:="&$B$1&",InputChoice1:=Close,InputChoice2::=Close)", "FG", "", "Close",$B$2,A57, "all","", "","True","T")/100,"") -> -0.02016815755 | AU57: 0.06 | AV57: 1 | AY57: =IFERROR(RTD("cqg.rtd",,"StudyData", "Correlation("&$B$3&","&AY$2&",Period:="&$B$1&",InputChoice1:=Close,InputChoice2::=Close)", "FG", "", "Close",$B$2,A57, "all","", "","True","T")/100,"") -> -0.01962754819 | BA57: 0.06 | BB57: 0 | BE57: =IFERROR(RTD("cqg.rtd",,"StudyData", "Correlation("&$B$3&","&BE$2&",Period:="&$B$1&",InputChoice1:=Close,InputChoice2::=Close)", "FG", "", "Close",$B$2,A57, "all","", "","True","T")/100,"") -> 0.3799218535 | BG57: 0.06 | BH57: 1
A58: -54 | C58: =IFERROR(RTD("cqg.rtd",,"StudyData", "Correlation("&$B$3&","&C$2&",Period:="&$B$1&",InputChoice1:=Close,InputChoice2:=Close)", "FG", "", "Close",$B$2,A58, "all","", "","True","T")/100,"") -> 0.2127260364 | E58: 0.08 | F58: 2 | I58: =IFERROR(RTD("cqg.rtd",,"StudyData", "Correlation("&$B$3&","&I$2&",Period:="&$B$1&",InputChoice1:=Close,InputChoice2::=Close)", "FG", "", "Close",$B$2,A58, "all","", "","True","T")/100,"") -> 0.2162817603 | K58: 0.08 | L58: 0 | O58: =IFERROR(RTD("cqg.rtd",,"StudyData", "Correlation("&$B$3&","&O$2&",Period:="&$B$1&",InputChoice1:=Close,InputChoice2::=Close)", "FG", "", "Close",$B$2,A58, "all","", "","True","T")/100,"") -> 0.2326836601 | Q58: 0.08 | R58: 1 | U58: =IFERROR(RTD("cqg.rtd",,"StudyData", "Correlation("&$B$3&","&U$2&",Period:="&$B$1&",InputChoice1:=Close,InputChoice2::=Close)", "FG", "", "Close",$B$2,A58, "all","", "","True","T")/100,"") -> -0.2987943359 | W58: 0.08 | X58: 2 | AA58: =IFERROR(RTD("cqg.rtd",,"StudyData", "Correlation("&$B$3&","&AA$2&",Period:="&$B$1&",InputChoice1:=Close,InputChoice2::=Close)", "FG", "", "Close",$B$2,A58, "all","", "","True","T")/100,"") -> -0.5448803093 | AC58: 0.08 | AD58: 1 | AG58: =IFERROR(RTD("cqg.rtd",,"StudyData", "Correlation("&$B$3&","&AG$2&",Period:="&$B$1&",InputChoice1:=Close,InputChoice2::=Close)", "FG", "", "Close",$B$2,A58, "all","", "","True","T")/100,"") -> -0.5019861993 | AI58: 0.08 | AJ58: 1 | AM58: =IFERROR(RTD("cqg.rtd",,"StudyData", "Correlation("&$B$3&","&AM$2&",Period:="&$B$1&",InputChoice1:=Close,InputChoice2::=Close)", "FG", "", "Close",$B$2,A58, "all","", "","True","T")/100,"") -> -0.6144194631 | AO58: 0.08 | AP58: 1 | AS58: =IFERROR(RTD("cqg.rtd",,"StudyData", "Correlation("&$B$3&","&AS$2&",Period:="&$B$1&",InputChoice1:=Close,InputChoice2::=Close)", "FG", "", "Close",$B$2,A58, "all","", "","True","T")/100,"") -> -0.0889101726 | AU58: 0.08 | AV58: 0 | AY58: =IFERROR(RTD("cqg.rtd",,"StudyData", "Correlation("&$B$3&","&AY$2&",Period:="&$B$1&",InputChoice1:=Close,InputChoice2::=Close)", "FG", "", "Close",$B$2,A58, "all","", "","True","T")/100,"") -> -0.108957311 | BA58: 0.08 | BB58: 1 | BE58: =IFERROR(RTD("cqg.rtd",,"StudyData", "Correlation("&$B$3&","&BE$2&",Period:="&$B$1&",InputChoice1:=Close,InputChoice2::=Close)", "FG", "", "Close",$B$2,A58, "all","", "","True","T")/100,"") -> 0.3938539317 | BG58: 0.08 | BH58: 2
A59: -55 | C59: =IFERROR(RTD("cqg.rtd",,"StudyData", "Correlation("&$B$3&","&C$2&",Period:="&$B$1&",InputChoice1:=Close,InputChoice2:=Close)", "FG", "", "Close",$B$2,A59, "all","", "","True","T")/100,"") -> 0.3202025376 | E59: 0.1 | F59: 1 | I59: =IFERROR(RTD("cqg.rtd",,"StudyData", "Correlation("&$B$3&","&I$2&",Period:="&$B$1&",InputChoice1:=Close,InputChoice2::=Close)", "FG", "", "Close",$B$2,A59, "all","", "","True","T")/100,"") -> 0.3394549537 | K59: 0.1 | L59: 1 | O59: =IFERROR(RTD("cqg.rtd",,"StudyData", "Correlation("&$B$3&","&O$2&",Period:="&$B$1&",InputChoice1:=Close,InputChoice2::=Close)", "FG", "", "Close",$B$2,A59, "all","", "","True","T")/100,"") -> 0.2952399633 | Q59: 0.1 | R59: 1 | U59: =IFERROR(RTD("cqg.rtd",,"StudyData", "Correlation("&$B$3&","&U$2&",Period:="&$B$1&",InputChoice1:=Close,InputChoice2::=Close)", "FG", "", "Close",$B$2,A59, "all","", "","True","T")/100,"") -> -0.3876529988 | W59: 0.1 | X59: 2 | AA59: =IFERROR(RTD("cqg.rtd",,"StudyData", "Correlation("&$B$3&","&AA$2&",Period:="&$B$1&",InputChoice1:=Close,InputChoice2::=Close)", "FG", "", "Close",$B$2,A59, "all","", "","True","T")/100,"") -> -0.3893971083 | AC59: 0.1 | AD59: 2 | AG59: =IFERROR(RTD("cqg.rtd",,"StudyData", "Correlation("&$B$3&","&AG$2&",Period:="&$B$1&",InputChoice1:=Close,InputChoice2::=Close)", "FG", "", "Close",$B$2,A59, "all","", "","True","T")/100,"") -> -0.3022166264 | AI59: 0.1 | AJ59: 0 | AM59: =IFERROR(RTD("cqg.rtd",,"StudyData", "Correlation("&$B$3&","&AM$2&",Period:="&$B$1&",InputChoice1:=Close,InputChoice2::=Close)", "FG", "", "Close",$B$2,A59, "all","", "","True","T")/100,"") -> -0.447027946 | AO59: 0.1 | AP59: 2 | AS59: =IFERROR(RTD("cqg.rtd",,"StudyData", "Correlation("&$B$3&","&AS$2&",Period:="&$B$1&",InputChoice1:=Close,InputChoice2::=Close)", "FG", "", "Close",$B$2,A59, "all","", "","True","T")/100,"") -> 0.05464229089 | AU59: 0.1 | AV59: 2 | AY59: =IFERROR(RTD("cqg.rtd",,"StudyData", "Correlation("&$B$3&","&AY$2&",Period:="&$B$1&",InputChoice1:=Close,InputChoice2::=Close)", "FG", "", "Close",$B$2,A59, "all","", "","True","T")/100,"") -> -0.2724037323 | BA59: 0.1 | BB59: 3 | BE59: =IFERROR(RTD("cqg.rtd",,"StudyData", "Correlation("&$B$3&","&BE$2&",Period:="&$B$1&",InputChoice1:=Close,InputChoice2::=Close)", "FG", "", "Close",$B$2,A59, "all","", "","True","T")/100,"") -> 0.4506227908 | BG59: 0.1 | BH59: 0
A60: -56 | C60: =IFERROR(RTD("cqg.rtd",,"StudyData", "Correlation("&$B$3&","&C$2&",Period:="&$B$1&",InputChoice1:=Close,InputChoice2:=Close)", "FG", "", "Close",$B$2,A60, "all","", "","True","T")/100,"") -> 0.3395816782 | E60: 0.12 | F60: 1 | I60: =IFERROR(RTD("cqg.rtd",,"StudyData", "Correlation("&$B$3&","&I$2&",Period:="&$B$1&",InputChoice1:=Close,InputChoice2::=Close)", "FG", "", "Close",$B$2,A60, "all","", "","True","T")/100,"") -> 0.3776075489 | K60: 0.12 | L60: 1 | O60: =IFERROR(RTD("cqg.rtd",,"StudyData", "Correlation("&$B$3&","&O$2&",Period:="&$B$1&",InputChoice1:=Close,InputChoice2::=Close)", "FG", "", "Close",$B$2,A60, "all","", "","True","T")/100,"") -> 0.3812643918 | Q60: 0.12 | R60: 1 | U60: =IFERROR(RTD("cqg.rtd",,"StudyData", "Correlation("&$B$3&","&U$2&",Period:="&$B$1&",InputChoice1:=Close,InputChoice2::=Close)", "FG", "", "Close",$B$2,A60, "all","", "","True","T")/100,"") -> -0.5653657953 | W60: 0.12 | X60: 1 | AA60: =IFERROR(RTD("cqg.rtd",,"StudyData", "Correlation("&$B$3&","&AA$2&",Period:="&$B$1&",InputChoice1:=Close,InputChoice2::=Close)", "FG", "", "Close",$B$2,A60, "all","", "","True","T")/100,"") -> -0.1643581875 | AC60: 0.12 | AD60: 1 | AG60: =IFERROR(RTD("cqg.rtd",,"StudyData", "Correlation("&$B$3&","&AG$2&",Period:="&$B$1&",InputChoice1:=Close,InputChoice2::=Close)", "FG", "", "Close",$B$2,A60, "all","", "","True","T")/100,"") -> -0.06962161327 | AI60: 0.12 | AJ60: 1 | AM60: =IFERROR(RTD("cqg.rtd",,"StudyData", "Correlation("&$B$3&","&AM$2&",Period:="&$B$1&",InputChoice1:=Close,InputChoice2::=Close)", "FG", "", "Close",$B$2,A60, "all","", "","True","T")/100,"") -> -0.2134709653 | AO60: 0.12 | AP60: 2 | AS60: =IFERROR(RTD("cqg.rtd",,"StudyData", "Correlation("&$B$3&","&AS$2&",Period:="&$B$1&",InputChoice1:=Close,InputChoice2::=Close)", "FG", "", "Close",$B$2,A60, "all","", "","True","T")/100,"") -> -0.176602594 | AU60: 0.12 | AV60: 1 | AY60: =IFERROR(RTD("cqg.rtd",,"StudyData", "Correlation("&$B$3&","&AY$2&",Period:="&$B$1&",InputChoice1:=Close,InputChoice2::=Close)", "FG", "", "Close",$B$2,A60, "all","", "","True","T")/100,"") -> -0.3701424116 | BA60: 0.12 | BB60: 3 | BE60: =IFERROR(RTD("cqg.rtd",,"StudyData", "Correlation("&$B$3&","&BE$2&",Period:="&$B$1&",InputChoice1:=Close,InputChoice2::=Close)", "FG", "", "Close",$B$2,A60, "all","", "","True","T")/100,"") -> 0.5191960417 | BG60: 0.12 | BH60: 1
A61: -57 | C61: =IFERROR(RTD("cqg.rtd",,"StudyData", "Correlation("&$B$3&","&C$2&",Period:="&$B$1&",InputChoice1:=Close,InputChoice2:=Close)", "FG", "", "Close",$B$2,A61, "all","", "","True","T")/100,"") -> 0.3559318977 | E61: 0.14 | F61: 0 | I61: =IFERROR(RTD("cqg.rtd",,"StudyData", "Correlation("&$B$3&","&I$2&",Period:="&$B$1&",InputChoice1:=Close,InputChoice2::=Close)", "FG", "", "Close",$B$2,A61, "all","", "","True","T")/100,"") -> 0.3942367731 | K61: 0.14 | L61: 2 | O61: =IFERROR(RTD("cqg.rtd",,"StudyData", "Correlation("&$B$3&","&O$2&",Period:="&$B$1&",InputChoice1:=Close,InputChoice2::=Close)", "FG", "", "Close",$B$2,A61, "all","", "","True","T")/100,"") -> 0.4327291632 | Q61: 0.14 | R61: 0 | U61: =IFERROR(RTD("cqg.rtd",,"StudyData", "Correlation("&$B$3&","&U$2&",Period:="&$B$1&",InputChoice1:=Close,InputChoice2::=Close)", "FG", "", "Close",$B$2,A61, "all","", "","True","T")/100,"") -> -0.6488225186 | W61: 0.14 | X61: 1 | AA61: =IFERROR(RTD("cqg.rtd",,"StudyData", "Correlation("&$B$3&","&AA$2&",Period:="&$B$1&",InputChoice1:=Close,InputChoice2::=Close)", "FG", "", "Close",$B$2,A61, "all","", "","True","T")/100,"") -> 0.07335543132 | AC61: 0.14 | AD61: 0 | AG61: =IFERROR(RTD("cqg.rtd",,"StudyData", "Correlation("&$B$3&","&AG$2&",Period:="&$B$1&",InputChoice1:=Close,InputChoice2::=Close)", "FG", "", "Close",$B$2,A61, "all","", "","True","T")/100,"") -> 0.107132463 | AI61: 0.14 | AJ61: 2 | AM61: =IFERROR(RTD("cqg.rtd",,"StudyData", "Correlation("&$B$3&","&AM$2&",Period:="&$B$1&",InputChoice1:=Close,InputChoice2::=Close)", "FG", "", "Close",$B$2,A61, "all","", "","True","T")/100,"") -> 0.01030349816 | AO61: 0.14 | AP61: 3 | AS61: =IFERROR(RTD("cqg.rtd",,"StudyData", "Correlation("&$B$3&","&AS$2&",Period:="&$B$1&",InputChoice1:=Close,InputChoice2::=Close)", "FG", "", "Close",$B$2,A61, "all","", "","True","T")/100,"") -> -0.3542189986 | AU61: 0.14 | AV61: 5 | AY61: =IFERROR(RTD("cqg.rtd",,"StudyData", "Correlation("&$B$3&","&AY$2&",Period:="&$B$1&",InputChoice1:=Close,InputChoice2::=Close)", "FG", "", "Close",$B$2,A61, "all","", "","True","T")/100,"") -> -0.4435112408 | BA61: 0.14 | BB61: 2 | BE61: =IFERROR(RTD("cqg.rtd",,"StudyData", "Correlation("&$B$3&","&BE$2&",Period:="&$B$1&",InputChoice1:=Close,InputChoice2::=Close)", "FG", "", "Close",$B$2,A61, "all","", "","True","T")/100,"") -> 0.5415549077 | BG61: 0.14 | BH61: 3
A62: -58 | C62: =IFERROR(RTD("cqg.rtd",,"StudyData", "Correlation("&$B$3&","&C$2&",Period:="&$B$1&",InputChoice1:=Close,InputChoice2:=Close)", "FG", "", "Close",$B$2,A62, "all","", "","True","T")/100,"") -> 0.570990743 | E62: 0.16 | F62: 3 | I62: =IFERROR(RTD("cqg.rtd",,"StudyData", "Correlation("&$B$3&","&I$2&",Period:="&$B$1&",InputChoice1:=Close,InputChoice2::=Close)", "FG", "", "Close",$B$2,A62, "all","", "","True","T")/100,"") -> 0.6007099481 | K62: 0.16 | L62: 2 | O62: =IFERROR(RTD("cqg.rtd",,"StudyData", "Correlation("&$B$3&","&O$2&",Period:="&$B$1&",InputChoice1:=Close,InputChoice2::=Close)", "FG", "", "Close",$B$2,A62, "all","", "","True","T")/100,"") -> 0.4708437504 | Q62: 0.16 | R62: 1 | U62: =IFERROR(RTD("cqg.rtd",,"StudyData", "Correlation("&$B$3&","&U$2&",Period:="&$B$1&",InputChoice1:=Close,InputChoice2::=Close)", "FG", "", "Close",$B$2,A62, "all","", "","True","T")/100,"") -> -0.6621759627 | W62: 0.16 | X62: 1 | AA62: =IFERROR(RTD("cqg.rtd",,"StudyData", "Correlation("&$B$3&","&AA$2&",Period:="&$B$1&",InputChoice1:=Close,InputChoice2::=Close)", "FG", "", "Close",$B$2,A62, "all","", "","True","T")/100,"") -> 0.1924350964 | AC62: 0.16 | AD62: 0 | AG62: =IFERROR(RTD("cqg.rtd",,"StudyData", "Correlation("&$B$3&","&AG$2&",Period:="&$B$1&",InputChoice1:=Close,InputChoice2::=Close)", "FG", "", "Close",$B$2,A62, "all","", "","True","T")/100,"") -> 0.2008135171 | AI62: 0.16 | AJ62: 0 | AM62: =IFERROR(RTD("cqg.rtd",,"StudyData", "Correlation("&$B$3&","&AM$2&",Period:="&$B$1&",InputChoice1:=Close,InputChoice2::=Close)", "FG", "", "Close",$B$2,A62, "all","", "","True","T")/100,"") -> 0.1347262515 | AO62: 0.16 | AP62: 1 | AS62: =IFERROR(RTD("cqg.rtd",,"StudyData", "Correlation("&$B$3&","&AS$2&",Period:="&$B$1&",InputChoice1:=Close,InputChoice2::=Close)", "FG", "", "Close",$B$2,A62, "all","", "","True","T")/100,"") -> -0.4432716119 | AU62: 0.16 | AV62: 8 | AY62: =IFERROR(RTD("cqg.rtd",,"StudyData", "Correlation("&$B$3&","&AY$2&",Period:="&$B$1&",InputChoice1:=Close,InputChoice2::=Close)", "FG", "", "Close",$B$2,A62, "all","", "","True","T")/100,"") -> -0.3481305596 | BA62: 0.16 | BB62: 1 | BE62: =IFERROR(RTD("cqg.rtd",,"StudyData", "Correlation("&$B$3&","&BE$2&",Period:="&$B$1&",InputChoice1:=Close,InputChoice2::=Close)", "FG", "", "Close",$B$2,A62, "all","", "","True","T")/100,"") -> 0.5422105055 | BG62: 0.16 | BH62: 2
A63: -59 | C63: =IFERROR(RTD("cqg.rtd",,"StudyData", "Correlation("&$B$3&","&C$2&",Period:="&$B$1&",InputChoice1:=Close,InputChoice2:=Close)", "FG", "", "Close",$B$2,A63, "all","", "","True","T")/100,"") -> 0.4692281541 | E63: 0.18 | F63: 2 | I63: =IFERROR(RTD("cqg.rtd",,"StudyData", "Correlation("&$B$3&","&I$2&",Period:="&$B$1&",InputChoice1:=Close,InputChoice2::=Close)", "FG", "", "Close",$B$2,A63, "all","", "","True","T")/100,"") -> 0.4990382154 | K63: 0.18 | L63: 1 | O63: =IFERROR(RTD("cqg.rtd",,"StudyData", "Correlation("&$B$3&","&O$2&",Period:="&$B$1&",InputChoice1:=Close,InputChoice2::=Close)", "FG", "", "Close",$B$2,A63, "all","", "","True","T")/100,"") -> 0.5557216517 | Q63: 0.18 | R63: 1 | U63: =IFERROR(RTD("cqg.rtd",,"StudyData", "Correlation("&$B$3&","&U$2&",Period:="&$B$1&",InputChoice1:=Close,InputChoice2::=Close)", "FG", "", "Close",$B$2,A63, "all","", "","True","T")/100,"") -> -0.673579957 | W63: 0.18 | X63: 1 | AA63: =IFERROR(RTD("cqg.rtd",,"StudyData", "Correlation("&$B$3&","&AA$2&",Period:="&$B$1&",InputChoice1:=Close,InputChoice2::=Close)", "FG", "", "Close",$B$2,A63, "all","", "","True","T")/100,"") -> 0.1915579502 | AC63: 0.18 | AD63: 1 | AG63: =IFERROR(RTD("cqg.rtd",,"StudyData", "Correlation("&$B$3&","&AG$2&",Period:="&$B$1&",InputChoice1:=Close,InputChoice2::=Close)", "FG", "", "Close",$B$2,A63, "all","", "","True","T")/100,"") -> 0.208814943 | AI63: 0.18 | AJ63: 0 | AM63: =IFERROR(RTD("cqg.rtd",,"StudyData", "Correlation("&$B$3&","&AM$2&",Period:="&$B$1&",InputChoice1:=Close,InputChoice2::=Close)", "FG", "", "Close",$B$2,A63, "all","", "","True","T")/100,"") -> 0.1357281056 | AO63: 0.18 | AP63: 2 | AS63: =IFERROR(RTD("cqg.rtd",,"StudyData", "Correlation("&$B$3&","&AS$2&",Period:="&$B$1&",InputChoice1:=Close,InputChoice2::=Close)", "FG", "", "Close",$B$2,A63, "all","", "","True","T")/100,"") -> -0.3705139587 | AU63: 0.18 | AV63: 5 | AY63: =IFERROR(RTD("cqg.rtd",,"StudyData", "Correlation("&$B$3&","&AY$2&",Period:="&$B$1&",InputChoice1:=Close,InputChoice2::=Close)", "FG", "", "Close",$B$2,A63, "all","", "","True","T")/100,"") -> -0.3497130039 | BA63: 0.18 | BB63: 0 | BE63: =IFERROR(RTD("cqg.rtd",,"StudyData", "Correlation("&$B$3&","&BE$2&",Period:="&$B$1&",InputChoice1:=Close,InputChoice2::=Close)", "FG", "", "Close",$B$2,A63, "all","", "","True","T")/100,"") -> 0.6434006975 | BG63: 0.18 | BH63: 4
A64: -60 | C64: =IFERROR(RTD("cqg.rtd",,"StudyData", "Correlation("&$B$3&","&C$2&",Period:="&$B$1&",InputChoice1:=Close,InputChoice2:=Close)", "FG", "", "Close",$B$2,A64, "all","", "","True","T")/100,"") -> 0.4003160211 | E64: 0.2 | F64: 1 | I64: =IFERROR(RTD("cqg.rtd",,"StudyData", "Correlation("&$B$3&","&I$2&",Period:="&$B$1&",InputChoice1:=Close,InputChoice2::=Close)", "FG", "", "Close",$B$2,A64, "all","", "","True","T")/100,"") -> 0.4551344935 | K64: 0.2 | L64: 1 | O64: =IFERROR(RTD("cqg.rtd",,"StudyData", "Correlation("&$B$3&","&O$2&",Period:="&$B$1&",InputChoice1:=Close,InputChoice2::=Close)", "FG", "", "Close",$B$2,A64, "all","", "","True","T")/100,"") -> 0.4350697435 | Q64: 0.2 | R64: 1 | U64: =IFERROR(RTD("cqg.rtd",,"StudyData", "Correlation("&$B$3&","&U$2&",Period:="&$B$1&",InputChoice1:=Close,InputChoice2::=Close)", "FG", "", "Close",$B$2,A64, "all","", "","True","T")/100,"") -> -0.6728667445 | W64: 0.2 | X64: 0 | AA64: =IFERROR(RTD("cqg.rtd",,"StudyData", "Correlation("&$B$3&","&AA$2&",Period:="&$B$1&",InputChoice1:=Close,InputChoice2::=Close)", "FG", "", "Close",$B$2,A64, "all","", "","True","T")/100,"") -> 0.1080239966 | AC64: 0.2 | AD64: 2 | AG64: =IFERROR(RTD("cqg.rtd",,"StudyData", "Correlation("&$B$3&","&AG$2&",Period:="&$B$1&",InputChoice1:=Close,InputChoice2::=Close)", "FG", "", "Close",$B$2,A64, "all","", "","True","T")/100,"") -> 0.1262607339 | AI64: 0.2 | AJ64: 0 | AM64: =IFERROR(RTD("cqg.rtd",,"StudyData", "Correlation("&$B$3&","&AM$2&",Period:="&$B$1&",InputChoice1:=Close,InputChoice2::=Close)", "FG", "", "Close",$B$2,A64, "all","", "","True","T")/100,"") -> 0.07431479514 | AO64: 0.2 | AP64: 0 | AS64: =IFERROR(RTD("cqg.rtd",,"StudyData", "Correlation("&$B$3&","&AS$2&",Period:="&$B$1&",InputChoice1:=Close,InputChoice2::=Close)", "FG", "", "Close",$B$2,A64, "all","", "","True","T")/100,"") -> -0.2627621209 | AU64: 0.2 | AV64: 1 | AY64: =IFERROR(RTD("cqg.rtd",,"StudyData", "Correlation("&$B$3&","&AY$2&",Period:="&$B$1&",InputChoice1:=Close,InputChoice2::=Close)", "FG", "", "Close",$B$2,A64, "all","", "","True","T")/100,"") -> -0.2684588113 | BA64: 0.2 | BB64: 0 | BE64: =IFERROR(RTD("cqg.rtd",,"StudyData", "Correlation("&$B$3&","&BE$2&",Period:="&$B$1&",InputChoice1:=Close,InputChoice2::=Close)", "FG", "", "Close",$B$2,A64, "all","", "","True","T")/100,"") -> 0.6915748785 | BG64: 0.2 | BH64: 1
A65: -61 | C65: =IFERROR(RTD("cqg.rtd",,"StudyData", "Correlation("&$B$3&","&C$2&",Period:="&$B$1&",InputChoice1:=Close,InputChoice2:=Close)", "FG", "", "Close",$B$2,A65, "all","", "","True","T")/100,"") -> 0.3558849331 | E65: 0.22 | F65: 4 | I65: =IFERROR(RTD("cqg.rtd",,"StudyData", "Correlation("&$B$3&","&I$2&",Period:="&$B$1&",InputChoice1:=Close,InputChoice2::=Close)", "FG", "", "Close",$B$2,A65, "all","", "","True","T")/100,"") -> 0.4203928146 | K65: 0.22 | L65: 4 | O65: =IFERROR(RTD("cqg.rtd",,"StudyData", "Correlation("&$B$3&","&O$2&",Period:="&$B$1&",InputChoice1:=Close,InputChoice2::=Close)", "FG", "", "Close",$B$2,A65, "all","", "","True","T")/100,"") -> 0.3801462522 | Q65: 0.22 | R65: 1 | U65: =IFERROR(RTD("cqg.rtd",,"StudyData", "Correlation("&$B$3&","&U$2&",Period:="&$B$1&",InputChoice1:=Close,InputChoice2::=Close)", "FG", "", "Close",$B$2,A65, "all","", "","True","T")/100,"") -> -0.6423057098 | W65: 0.22 | X65: 0 | AA65: =IFERROR(RTD("cqg.rtd",,"StudyData", "Correlation("&$B$3&","&AA$2&",Period:="&$B$1&",InputChoice1:=Close,InputChoice2::=Close)", "FG", "", "Close",$B$2,A65, "all","", "","True","T")/100,"") -> 0.01911930636 | AC65: 0.22 | AD65: 0 | AG65: =IFERROR(RTD("cqg.rtd",,"StudyData", "Correlation("&$B$3&","&AG$2&",Period:="&$B$1&",InputChoice1:=Close,InputChoice2::=Close)", "FG", "", "Close",$B$2,A65, "all","", "","True","T")/100,"") -> 0.05649523241 | AI65: 0.22 | AJ65: 3 | AM65: =IFERROR(RTD("cqg.rtd",,"StudyData", "Correlation("&$B$3&","&AM$2&",Period:="&$B$1&",InputChoice1:=Close,InputChoice2::=Close)", "FG", "", "Close",$B$2,A65, "all","", "","True","T")/100,"") -> -0.01468917255 | AO65: 0.22 | AP65: 0 | AS65: =IFERROR(RTD("cqg.rtd",,"StudyData", "Correlation("&$B$3&","&AS$2&",Period:="&$B$1&",InputChoice1:=Close,InputChoice2::=Close)", "FG", "", "Close",$B$2,A65, "all","", "","True","T")/100,"") -> -0.164829622 | AU65: 0.22 | AV65: 2 | AY65: =IFERROR(RTD("cqg.rtd",,"StudyData", "Correlation("&$B$3&","&AY$2&",Period:="&$B$1&",InputChoice1:=Close,InputChoice2::=Close)", "FG", "", "Close",$B$2,A65, "all","", "","True","T")/100,"") -> -0.2034915941 | BA65: 0.22 | BB65: 2 | BE65: =IFERROR(RTD("cqg.rtd",,"StudyData", "Correlation("&$B$3&","&BE$2&",Period:="&$B$1&",InputChoice1:=Close,InputChoice2::=Close)", "FG", "", "Close",$B$2,A65, "all","", "","True","T")/100,"") -> 0.6475405806 | BG65: 0.22 | BH65: 0
A66: -62 | C66: =IFERROR(RTD("cqg.rtd",,"StudyData", "Correlation("&$B$3&","&C$2&",Period:="&$B$1&",InputChoice1:=Close,InputChoice2:=Close)", "FG", "", "Close",$B$2,A66, "all","", "","True","T")/100,"") -> 0.3112447142 | E66: 0.24 | F66: 2 | I66: =IFERROR(RTD("cqg.rtd",,"StudyData", "Correlation("&$B$3&","&I$2&",Period:="&$B$1&",InputChoice1:=Close,InputChoice2::=Close)", "FG", "", "Close",$B$2,A66, "all","", "","True","T")/100,"") -> 0.3860506776 | K66: 0.24 | L66: 2 | O66: =IFERROR(RTD("cqg.rtd",,"StudyData", "Correlation("&$B$3&","&O$2&",Period:="&$B$1&",InputChoice1:=Close,InputChoice2::=Close)", "FG", "", "Close",$B$2,A66, "all","", "","True","T")/100,"") -> 0.3290272499 | Q66: 0.24 | R66: 4 | U66: =IFERROR(RTD("cqg.rtd",,"StudyData", "Correlation("&$B$3&","&U$2&",Period:="&$B$1&",InputChoice1:=Close,InputChoice2::=Close)", "FG", "", "Close",$B$2,A66, "all","", "","True","T")/100,"") -> -0.6006202454 | W66: 0.24 | X66: 2 | AA66: =IFERROR(RTD("cqg.rtd",,"StudyData", "Correlation("&$B$3&","&AA$2&",Period:="&$B$1&",InputChoice1:=Close,InputChoice2::=Close)", "FG", "", "Close",$B$2,A66, "all","", "","True","T")/100,"") -> -0.05300789384 | AC66: 0.24 | AD66: 1 | AG66: =IFERROR(RTD("cqg.rtd",,"StudyData", "Correlation("&$B$3&","&AG$2&",Period:="&$B$1&",InputChoice1:=Close,InputChoice2::=Close)", "FG", "", "Close",$B$2,A66, "all","", "","True","T")/100,"") -> 0.007033724556 | AI66: 0.24 | AJ66: 1 | AM66: =IFERROR(RTD("cqg.rtd",,"StudyData", "Correlation("&$B$3&","&AM$2&",Period:="&$B$1&",InputChoice1:=Close,InputChoice2::=Close)", "FG", "", "Close",$B$2,A66, "all","", "","True","T")/100,"") -> -0.08433189767 | AO66: 0.24 | AP66: 2 | AS66: =IFERROR(RTD("cqg.rtd",,"StudyData", "Correlation("&$B$3&","&AS$2&",Period:="&$B$1&",InputChoice1:=Close,InputChoice2::=Close)", "FG", "", "Close",$B$2,A66, "all","", "","True","T")/100,"") -> -0.06670443601 | AU66: 0.24 | AV66: 2 | AY66: =IFERROR(RTD("cqg.rtd",,"StudyData", "Correlation("&$B$3&","&AY$2&",Period:="&$B$1&",InputChoice1:=Close,InputChoice2::=Close)", "FG", "", "Close",$B$2,A66, "all","", "","True","T")/100,"") -> -0.2109028426 | BA66: 0.24 | BB66: 0 | BC66: 1 | BE66: =IFERROR(RTD("cqg.rtd",,"StudyData", "Correlation("&$B$3&","&BE$2&",Period:="&$B$1&",InputChoice1:=Close,InputChoice2::=Close)", "FG", "", "Close",$B$2,A66, "all","", "","True","T")/100,"") -> 0.6387412249 | BG66: 0.24 | BH66: 2
A67: -63 | C67: =IFERROR(RTD("cqg.rtd",,"StudyData", "Correlation("&$B$3&","&C$2&",Period:="&$B$1&",InputChoice1:=Close,InputChoice2:=Close)", "FG", "", "Close",$B$2,A67, "all","", "","True","T")/100,"") -> 0.2671888597 | E67: 0.26 | F67: 1 | I67: =IFERROR(RTD("cqg.rtd",,"StudyData", "Correlation("&$B$3&","&I$2&",Period:="&$B$1&",InputChoice1:=Close,InputChoice2::=Close)", "FG", "", "Close",$B$2,A67, "all","", "","True","T")/100,"") -> 0.3580523201 | K67: 0.26 | L67: 0 | O67: =IFERROR(RTD("cqg.rtd",,"StudyData", "Correlation("&$B$3&","&O$2&",Period:="&$B$1&",InputChoice1:=Close,InputChoice2::=Close)", "FG", "", "Close",$B$2,A67, "all","", "","True","T")/100,"") -> 0.2834389168 | Q67: 0.26 | R67: 3 | U67: =IFERROR(RTD("cqg.rtd",,"StudyData", "Correlation("&$B$3&","&U$2&",Period:="&$B$1&",InputChoice1:=Close,InputChoice2::=Close)", "FG", "", "Close",$B$2,A67, "all","", "","True","T")/100,"") -> -0.5825551544 | W67: 0.26 | X67: 1 | AA67: =IFERROR(RTD("cqg.rtd",,"StudyData", "Correlation("&$B$3&","&AA$2&",Period:="&$B$1&",InputChoice1:=Close,InputChoice2::=Close)", "FG", "", "Close",$B$2,A67, "all","", "","True","T")/100,"") -> -0.118592458 | AC67: 0.26 | AD67: 0 | AG67: =IFERROR(RTD("cqg.rtd",,"StudyData", "Correlation("&$B$3&","&AG$2&",Period:="&$B$1&",InputChoice1:=Close,InputChoice2::=Close)", "FG", "", "Close",$B$2,A67, "all","", "","True","T")/100,"") -> -0.03079163671 | AI67: 0.26 | AJ67: 0 | AM67: =IFERROR(RTD("cqg.rtd",,"StudyData", "Correlation("&$B$3&","&AM$2&",Period:="&$B$1&",InputChoice1:=Close,InputChoice2::=Close)", "FG", "", "Close",$B$2,A67, "all","", "","True","T")/100,"") -> -0.14467796 | AO67: 0.26 | AP67: 0 | AS67: =IFERROR(RTD("cqg.rtd",,"StudyData", "Correlation("&$B$3&","&AS$2&",Period:="&$B$1&",InputChoice1:=Close,InputChoice2::=Close)", "FG", "", "Close",$B$2,A67, "all","", "","True","T")/100,"") -> 0.02411572746 | AU67: 0.26 | AV67: 3 | AY67: =IFERROR(RTD("cqg.rtd",,"StudyData", "Correlation("&$B$3&","&AY$2&",Period:="&$B$1&",InputChoice1:=Close,InputChoice2::=Close)", "FG", "", "Close",$B$2,A67, "all","", "","True","T")/100,"") -> -0.1554526851 | BA67: 0.26 | BB67: 1 | BE67: =IFERROR(RTD("cqg.rtd",,"StudyData", "Correlation("&$B$3&","&BE$2&",Period:="&$B$1&",InputChoice1:=Close,InputChoice2::=Close)", "FG", "", "Close",$B$2,A67, "all","", "","True","T")/100,"") -> 0.6035516338 | BG67: 0.26 | BH67: 1
A68: -64 | C68: =IFERROR(RTD("cqg.rtd",,"StudyData", "Correlation("&$B$3&","&C$2&",Period:="&$B$1&",InputChoice1:=Close,InputChoice2:=Close)", "FG", "", "Close",$B$2,A68, "all","", "","True","T")/100,"") -> 0.2786867976 | E68: 0.28 | F68: 2 | I68: =IFERROR(RTD("cqg.rtd",,"StudyData", "Correlation("&$B$3&","&I$2&",Period:="&$B$1&",InputChoice1:=Close,InputChoice2::=Close)", "FG", "", "Close",$B$2,A68, "all","", "","True","T")/100,"") -> 0.3858034613 | K68: 0.28 | L68: 0 | O68: =IFERROR(RTD("cqg.rtd",,"StudyData", "Correlation("&$B$3&","&O$2&",Period:="&$B$1&",InputChoice1:=Close,InputChoice2::=Close)", "FG", "", "Close",$B$2,A68, "all","", "","True","T")/100,"") -> 0.2300295404 | Q68: 0.28 | R68: 1 | U68: =IFERROR(RTD("cqg.rtd",,"StudyData", "Correlation("&$B$3&","&U$2&",Period:="&$B$1&",InputChoice1:=Close,InputChoice2::=Close)", "FG", "", "Close",$B$2,A68, "all","", "","True","T")/100,"") -> -0.4939107694 | W68: 0.28 | X68: 2 | AA68: =IFERROR(RTD("cqg.rtd",,"StudyData", "Correlation("&$B$3&","&AA$2&",Period:="&$B$1&",InputChoice1:=Close,InputChoice2::=Close)", "FG", "", "Close",$B$2,A68, "all","", "","True","T")/100,"") -> -0.2206330025 | AC68: 0.28 | AD68: 0 | AG68: =IFERROR(RTD("cqg.rtd",,"StudyData", "Correlation("&$B$3&","&AG$2&",Period:="&$B$1&",InputChoice1:=Close,InputChoice2::=Close)", "FG", "", "Close",$B$2,A68, "all","", "","True","T")/100,"") -> -0.1410549303 | AI68: 0.28 | AJ68: 1 | AM68: =IFERROR(RTD("cqg.rtd",,"StudyData", "Correlation("&$B$3&","&AM$2&",Period:="&$B$1&",InputChoice1:=Close,InputChoice2::=Close)", "FG", "", "Close",$B$2,A68, "all","", "","True","T")/100,"") -> -0.2390526366 | AO68: 0.28 | AP68: 2 | AS68: =IFERROR(RTD("cqg.rtd",,"StudyData", "Correlation("&$B$3&","&AS$2&",Period:="&$B$1&",InputChoice1:=Close,InputChoice2::=Close)", "FG", "", "Close",$B$2,A68, "all","", "","True","T")/100,"") -> 0.1183645027 | AU68: 0.28 | AV68: 5 | AY68: =IFERROR(RTD("cqg.rtd",,"StudyData", "Correlation("&$B$3&","&AY$2&",Period:="&$B$1&",InputChoice1:=Close,InputChoice2::=Close)", "FG", "", "Close",$B$2,A68, "all","", "","True","T")/100,"") -> -0.251585772 | BA68: 0.28 | BB68: 1 | BE68: =IFERROR(RTD("cqg.rtd",,"StudyData", "Correlation("&$B$3&","&BE$2&",Period:="&$B$1&",InputChoice1:=Close,InputChoice2::=Close)", "FG", "", "Close",$B$2,A68, "all","", "","True","T")/100,"") -> 0.6260239568 | BG68: 0.28 | BH68: 0
A69: -65 | C69: =IFERROR(RTD("cqg.rtd",,"StudyData", "Correlation("&$B$3&","&C$2&",Period:="&$B$1&",InputChoice1:=Close,InputChoice2:=Close)", "FG", "", "Close",$B$2,A69, "all","", "","True","T")/100,"") -> 0.3205761112 | E69: 0.3 | F69: 1 | G69: =IF(AND($C$4>=E69,$C$4<E70),IF(F69=0,1,F69),NA()) ->  | I69: =IFERROR(RTD("cqg.rtd",,"StudyData", "Correlation("&$B$3&","&I$2&",Period:="&$B$1&",InputChoice1:=Close,InputChoice2::=Close)", "FG", "", "Close",$B$2,A69, "all","", "","True","T")/100,"") -> 0.453022718 | K69: 0.3 | L69: 2 | M69: =IF(AND($I$4>=K69,$I$4<K70),IF(L69=0,1,L69),NA()) ->  | O69: =IFERROR(RTD("cqg.rtd",,"StudyData", "Correlation("&$B$3&","&O$2&",Period:="&$B$1&",InputChoice1:=Close,InputChoice2::=Close)", "FG", "", "Close",$B$2,A69, "all","", "","True","T")/100,"") -> 0.2283185861 | Q69: 0.3 | R69: 5 | S69: =IF(AND($O$4>=Q69,$O$4<Q70),IF(R69=0,1,R69),NA()) ->  | U69: =IFERROR(RTD("cqg.rtd",,"StudyData", "Correlation("&$B$3&","&U$2&",Period:="&$B$1&",InputChoice1:=Close,InputChoice2::=Close)", "FG", "", "Close",$B$2,A69, "all","", "","True","T")/100,"") -> -0.5998943056 | W69: 0.3 | X69: 1 | Y69: =IF(AND($U$4>=W69,$U$4<W70),IF(X69=0,1,X69),NA()) ->  | AA69: =IFERROR(RTD("cqg.rtd",,"StudyData", "Correlation("&$B$3&","&AA$2&",Period:="&$B$1&",InputChoice1:=Close,InputChoice2::=Close)", "FG", "", "Close",$B$2,A69, "all","", "","True","T")/100,"") -> -0.2226315885 | AC69: 0.3 | AD69: 0 | AE69: =IF(AND($AA$4>=AC69,$AA$4<AC70),IF(AD69=0,1,AD69),NA()) ->  | AG69: =IFERROR(RTD("cqg.rtd",,"StudyData", "Correlation("&$B$3&","&AG$2&",Period:="&$B$1&",InputChoice1:=Close,InputChoice2::=Close)", "FG", "", "Close",$B$2,A69, "all","", "","True","T")/100,"") -> -0.1103755061 | AI69: 0.3 | AJ69: 0 | AK69: =IF(AND($AG$4>=AI69,$AG$4<AI70),IF(AJ69=0,1,AJ69),NA()) ->  | AM69: =IFERROR(RTD("cqg.rtd",,"StudyData", "Correlation("&$B$3&","&AM$2&",Period:="&$B$1&",InputChoice1:=Close,InputChoice2::=Close)", "FG", "", "Close",$B$2,A69, "all","", "","True","T")/100,"") -> -0.2425743 | AO69: 0.3 | AP69: 0 | AQ69: =IF(AND($AM$4>=AO69,$AM$4<AO70),IF(AP69=0,1,AP69),NA()) ->  | AS69: =IFERROR(RTD("cqg.rtd",,"StudyData", "Correlation("&$B$3&","&AS$2&",Period:="&$B$1&",InputChoice1:=Close,InputChoice2::=Close)", "FG", "", "Close",$B$2,A69, "all","", "","True","T")/100,"") -> 0.1288127312 | AU69: 0.3 | AV69: 0 | AW69: =IF(AND($AS$4>=AU69,$AS$4<AU70),IF(AV69=0,1,AV69),NA()) ->  | AY69: =IFERROR(RTD("cqg.rtd",,"StudyData", "Correlation("&$B$3&","&AY$2&",Period:="&$B$1&",InputChoice1:=Close,InputChoice2::=Close)", "FG", "", "Close",$B$2,A69, "all","", "","True","T")/100,"") -> -0.3268573785 | BA69: 0.3 | BB69: 1 | BC69: =IF(AND($AY$4>=BA69,$AY$4<BA70),IF(BB69=0,1,BB69),NA()) ->  | BE69: =IFERROR(RTD("cqg.rtd",,"StudyData", "Correlation("&$B$3&","&BE$2&",Period:="&$B$1&",InputChoice1:=Close,InputChoice2::=Close)", "FG", "", "Close",$B$2,A69, "all","", "","True","T")/100,"") -> 0.6409764306 | BG69: 0.3 | BH69: 1 | BI69: =IF(AND($BE$4>=BG69,$BE$4<BG70),IF(BH69=0,1,BH69),NA()) -> 
A70: =A69-1 -> -66 | C70: =IFERROR(RTD("cqg.rtd",,"StudyData", "Correlation("&$B$3&","&C$2&",Period:="&$B$1&",InputChoice1:=Close,InputChoice2:=Close)", "FG", "", "Close",$B$2,A70, "all","", "","True","T")/100,"") -> 0.3350435665 | E70: =E69+0.02 -> 0.32 | F70: 2 | I70: =IFERROR(RTD("cqg.rtd",,"StudyData", "Correlation("&$B$3&","&I$2&",Period:="&$B$1&",InputChoice1:=Close,InputChoice2::=Close)", "FG", "", "Close",$B$2,A70, "all","", "","True","T")/100,"") -> 0.5004622655 | K70: =K69+0.02 -> 0.32 | L70: 0 | O70: =IFERROR(RTD("cqg.rtd",,"StudyData", "Correlation("&$B$3&","&O$2&",Period:="&$B$1&",InputChoice1:=Close,InputChoice2::=Close)", "FG", "", "Close",$B$2,A70, "all","", "","True","T")/100,"") -> 0.2826421861 | Q70: =Q69+0.02 -> 0.32 | R70: 4 | U70: =IFERROR(RTD("cqg.rtd",,"StudyData", "Correlation("&$B$3&","&U$2&",Period:="&$B$1&",InputChoice1:=Close,InputChoice2::=Close)", "FG", "", "Close",$B$2,A70, "all","", "","True","T")/100,"") -> -0.6390367358 | W70: =W69+0.02 -> 0.32 | X70: 2 | AA70: =IFERROR(RTD("cqg.rtd",,"StudyData", "Correlation("&$B$3&","&AA$2&",Period:="&$B$1&",InputChoice1:=Close,InputChoice2::=Close)", "FG", "", "Close",$B$2,A70, "all","", "","True","T")/100,"") -> -0.2389022509 | AC70: =AC69+0.02 -> 0.32 | AD70: 0 | AG70: =IFERROR(RTD("cqg.rtd",,"StudyData", "Correlation("&$B$3&","&AG$2&",Period:="&$B$1&",InputChoice1:=Close,InputChoice2::=Close)", "FG", "", "Close",$B$2,A70, "all","", "","True","T")/100,"") -> -0.1109314046 | AI70: =AI69+0.02 -> 0.32 | AJ70: 1 | AM70: =IFERROR(RTD("cqg.rtd",,"StudyData", "Correlation("&$B$3&","&AM$2&",Period:="&$B$1&",InputChoice1:=Close,InputChoice2::=Close)", "FG", "", "Close",$B$2,A70, "all","", "","True","T")/100,"") -> -0.2581175474 | AO70: =AO69+0.02 -> 0.32 | AP70: 1 | AS70: =IFERROR(RTD("cqg.rtd",,"StudyData", "Correlation("&$B$3&","&AS$2&",Period:="&$B$1&",InputChoice1:=Close,InputChoice2::=Close)", "FG", "", "Close",$B$2,A70, "all","", "","True","T")/100,"") -> 0.1649646588 | AU70: =AU69+0.02 -> 0.32 | AV70: 0 | AY70: =IFERROR(RTD("cqg.rtd",,"StudyData", "Correlation("&$B$3&","&AY$2&",Period:="&$B$1&",InputChoice1:=Close,InputChoice2::=Close)", "FG", "", "Close",$B$2,A70, "all","", "","True","T")/100,"") -> -0.3955497804 | BA70: =BA69+0.02 -> 0.32 | BB70: 0 | BE70: =IFERROR(RTD("cqg.rtd",,"StudyData", "Correlation("&$B$3&","&BE$2&",Period:="&$B$1&",InputChoice1:=Close,InputChoice2::=Close)", "FG", "", "Close",$B$2,A70, "all","", "","True","T")/100,"") -> 0.6738826891 | BG70: =BG69+0.02 -> 0.32 | BH70: 0
A71: -67 | C71: =IFERROR(RTD("cqg.rtd",,"StudyData", "Correlation("&$B$3&","&C$2&",Period:="&$B$1&",InputChoice1:=Close,InputChoice2:=Close)", "FG", "", "Close",$B$2,A71, "all","", "","True","T")/100,"") -> 0.3562893421 | E71: 0.34 | F71: 5 | I71: =IFERROR(RTD("cqg.rtd",,"StudyData", "Correlation("&$B$3&","&I$2&",Period:="&$B$1&",InputChoice1:=Close,InputChoice2::=Close)", "FG", "", "Close",$B$2,A71, "all","", "","True","T")/100,"") -> 0.5134576001 | K71: 0.34 | L71: 2 | O71: =IFERROR(RTD("cqg.rtd",,"StudyData", "Correlation("&$B$3&","&O$2&",Period:="&$B$1&",InputChoice1:=Close,InputChoice2::=Close)", "FG", "", "Close",$B$2,A71, "all","", "","True","T")/100,"") -> 0.3600771392 | Q71: 0.34 | R71: 2 | U71: =IFERROR(RTD("cqg.rtd",,"StudyData", "Correlation("&$B$3&","&U$2&",Period:="&$B$1&",InputChoice1:=Close,InputChoice2::=Close)", "FG", "", "Close",$B$2,A71, "all","", "","True","T")/100,"") -> -0.6722668305 | W71: 0.34 | X71: 2 | AA71: =IFERROR(RTD("cqg.rtd",,"StudyData", "Correlation("&$B$3&","&AA$2&",Period:="&$B$1&",InputChoice1:=Close,InputChoice2::=Close)", "FG", "", "Close",$B$2,A71, "all","", "","True","T")/100,"") -> -0.2110724089 | AC71: 0.34 | AD71: 1 | AG71: =IFERROR(RTD("cqg.rtd",,"StudyData", "Correlation("&$B$3&","&AG$2&",Period:="&$B$1&",InputChoice1:=Close,InputChoice2::=Close)", "FG", "", "Close",$B$2,A71, "all","", "","True","T")/100,"") -> -0.06670068397 | AI71: 0.34 | AJ71: 1 | AM71: =IFERROR(RTD("cqg.rtd",,"StudyData", "Correlation("&$B$3&","&AM$2&",Period:="&$B$1&",InputChoice1:=Close,InputChoice2::=Close)", "FG", "", "Close",$B$2,A71, "all","", "","True","T")/100,"") -> -0.2299257325 | AO71: 0.34 | AP71: 2 | AS71: =IFERROR(RTD("cqg.rtd",,"StudyData", "Correlation("&$B$3&","&AS$2&",Period:="&$B$1&",InputChoice1:=Close,InputChoice2::=Close)", "FG", "", "Close",$B$2,A71, "all","", "","True","T")/100,"") -> 0.1643623383 | AU71: 0.34 | AV71: 2 | AY71: =IFERROR(RTD("cqg.rtd",,"StudyData", "Correlation("&$B$3&","&AY$2&",Period:="&$B$1&",InputChoice1:=Close,InputChoice2::=Close)", "FG", "", "Close",$B$2,A71, "all","", "","True","T")/100,"") -> -0.3847837468 | BA71: 0.34 | BB71: 1 | BE71: =IFERROR(RTD("cqg.rtd",,"StudyData", "Correlation("&$B$3&","&BE$2&",Period:="&$B$1&",InputChoice1:=Close,InputChoice2::=Close)", "FG", "", "Close",$B$2,A71, "all","", "","True","T")/100,"") -> 0.6463407911 | BG71: 0.34 | BH71: 1
A72: -68 | C72: =IFERROR(RTD("cqg.rtd",,"StudyData", "Correlation("&$B$3&","&C$2&",Period:="&$B$1&",InputChoice1:=Close,InputChoice2:=Close)", "FG", "", "Close",$B$2,A72, "all","", "","True","T")/100,"") -> 0.306688989 | E72: 0.36 | F72: 4 | I72: =IFERROR(RTD("cqg.rtd",,"StudyData", "Correlation("&$B$3&","&I$2&",Period:="&$B$1&",InputChoice1:=Close,InputChoice2::=Close)", "FG", "", "Close",$B$2,A72, "all","", "","True","T")/100,"") -> 0.4837690592 | K72: 0.36 | L72: 1 | O72: =IFERROR(RTD("cqg.rtd",,"StudyData", "Correlation("&$B$3&","&O$2&",Period:="&$B$1&",InputChoice1:=Close,InputChoice2::=Close)", "FG", "", "Close",$B$2,A72, "all","", "","True","T")/100,"") -> 0.3857191021 | Q72: 0.36 | R72: 1 | U72: =IFERROR(RTD("cqg.rtd",,"StudyData", "Correlation("&$B$3&","&U$2&",Period:="&$B$1&",InputChoice1:=Close,InputChoice2::=Close)", "FG", "", "Close",$B$2,A72, "all","", "","True","T")/100,"") -> -0.6835708893 | W72: 0.36 | X72: 1 | AA72: =IFERROR(RTD("cqg.rtd",,"StudyData", "Correlation("&$B$3&","&AA$2&",Period:="&$B$1&",InputChoice1:=Close,InputChoice2::=Close)", "FG", "", "Close",$B$2,A72, "all","", "","True","T")/100,"") -> -0.2947179779 | AC72: 0.36 | AD72: 1 | AG72: =IFERROR(RTD("cqg.rtd",,"StudyData", "Correlation("&$B$3&","&AG$2&",Period:="&$B$1&",InputChoice1:=Close,InputChoice2::=Close)", "FG", "", "Close",$B$2,A72, "all","", "","True","T")/100,"") -> -0.1433274137 | AI72: 0.36 | AJ72: 1 | AM72: =IFERROR(RTD("cqg.rtd",,"StudyData", "Correlation("&$B$3&","&AM$2&",Period:="&$B$1&",InputChoice1:=Close,InputChoice2::=Close)", "FG", "", "Close",$B$2,A72, "all","", "","True","T")/100,"") -> -0.3213724725 | AO72: 0.36 | AP72: 0 | AS72: =IFERROR(RTD("cqg.rtd",,"StudyData", "Correlation("&$B$3&","&AS$2&",Period:="&$B$1&",InputChoice1:=Close,InputChoice2::=Close)", "FG", "", "Close",$B$2,A72, "all","", "","True","T")/100,"") -> 0.2085455414 | AU72: 0.36 | AV72: 0 | AY72: =IFERROR(RTD("cqg.rtd",,"StudyData", "Correlation("&$B$3&","&AY$2&",Period:="&$B$1&",InputChoice1:=Close,InputChoice2::=Close)", "FG", "", "Close",$B$2,A72, "all","", "","True","T")/100,"") -> -0.3349121684 | BA72: 0.36 | BB72: 0 | BE72: =IFERROR(RTD("cqg.rtd",,"StudyData", "Correlation("&$B$3&","&BE$2&",Period:="&$B$1&",InputChoice1:=Close,InputChoice2::=Close)", "FG", "", "Close",$B$2,A72, "all","", "","True","T")/100,"") -> 0.5849737484 | BG72: 0.36 | BH72: 1 | BI72: 1
A73: -69 | C73: =IFERROR(RTD("cqg.rtd",,"StudyData", "Correlation("&$B$3&","&C$2&",Period:="&$B$1&",InputChoice1:=Close,InputChoice2:=Close)", "FG", "", "Close",$B$2,A73, "all","", "","True","T")/100,"") -> 0.324031288 | E73: 0.38 | F73: 1 | I73: =IFERROR(RTD("cqg.rtd",,"StudyData", "Correlation("&$B$3&","&I$2&",Period:="&$B$1&",InputChoice1:=Close,InputChoice2::=Close)", "FG", "", "Close",$B$2,A73, "all","", "","True","T")/100,"") -> 0.4956092447 | K73: 0.38 | L73: 2 | O73: =IFERROR(RTD("cqg.rtd",,"StudyData", "Correlation("&$B$3&","&O$2&",Period:="&$B$1&",InputChoice1:=Close,InputChoice2::=Close)", "FG", "", "Close",$B$2,A73, "all","", "","True","T")/100,"") -> 0.3466000568 | Q73: 0.38 | R73: 3 | U73: =IFERROR(RTD("cqg.rtd",,"StudyData", "Correlation("&$B$3&","&U$2&",Period:="&$B$1&",InputChoice1:=Close,InputChoice2::=Close)", "FG", "", "Close",$B$2,A73, "all","", "","True","T")/100,"") -> -0.6734339541 | W73: 0.38 | X73: 1 | AA73: =IFERROR(RTD("cqg.rtd",,"StudyData", "Correlation("&$B$3&","&AA$2&",Period:="&$B$1&",InputChoice1:=Close,InputChoice2::=Close)", "FG", "", "Close",$B$2,A73, "all","", "","True","T")/100,"") -> -0.4255607771 | AC73: 0.38 | AD73: 0 | AG73: =IFERROR(RTD("cqg.rtd",,"StudyData", "Correlation("&$B$3&","&AG$2&",Period:="&$B$1&",InputChoice1:=Close,InputChoice2::=Close)", "FG", "", "Close",$B$2,A73, "all","", "","True","T")/100,"") -> -0.2983925845 | AI73: 0.38 | AJ73: 0 | AM73: =IFERROR(RTD("cqg.rtd",,"StudyData", "Correlation("&$B$3&","&AM$2&",Period:="&$B$1&",InputChoice1:=Close,InputChoice2::=Close)", "FG", "", "Close",$B$2,A73, "all","", "","True","T")/100,"") -> -0.4585505408 | AO73: 0.38 | AP73: 1 | AS73: =IFERROR(RTD("cqg.rtd",,"StudyData", "Correlation("&$B$3&","&AS$2&",Period:="&$B$1&",InputChoice1:=Close,InputChoice2::=Close)", "FG", "", "Close",$B$2,A73, "all","", "","True","T")/100,"") -> 0.3209529722 | AU73: 0.38 | AV73: 0 | AY73: =IFERROR(RTD("cqg.rtd",,"StudyData", "Correlation("&$B$3&","&AY$2&",Period:="&$B$1&",InputChoice1:=Close,InputChoice2::=Close)", "FG", "", "Close",$B$2,A73, "all","", "","True","T")/100,"") -> -0.2724138248 | BA73: 0.38 | BB73: 1 | BE73: =IFERROR(RTD("cqg.rtd",,"StudyData", "Correlation("&$B$3&","&BE$2&",Period:="&$B$1&",InputChoice1:=Close,InputChoice2::=Close)", "FG", "", "Close",$B$2,A73, "all","", "","True","T")/100,"") -> 0.5750634219 | BG73: 0.38 | BH73: 4
A74: -70 | C74: =IFERROR(RTD("cqg.rtd",,"StudyData", "Correlation("&$B$3&","&C$2&",Period:="&$B$1&",InputChoice1:=Close,InputChoice2:=Close)", "FG", "", "Close",$B$2,A74, "all","", "","True","T")/100,"") -> 0.3538047908 | E74: 0.4 | F74: 0 | I74: =IFERROR(RTD("cqg.rtd",,"StudyData", "Correlation("&$B$3&","&I$2&",Period:="&$B$1&",InputChoice1:=Close,InputChoice2::=Close)", "FG", "", "Close",$B$2,A74, "all","", "","True","T")/100,"") -> 0.5314114748 | K74: 0.4 | L74: 3 | O74: =IFERROR(RTD("cqg.rtd",,"StudyData", "Correlation("&$B$3&","&O$2&",Period:="&$B$1&",InputChoice1:=Close,InputChoice2::=Close)", "FG", "", "Close",$B$2,A74, "all","", "","True","T")/100,"") -> 0.3636744485 | Q74: 0.4 | R74: 3 | U74: =IFERROR(RTD("cqg.rtd",,"StudyData", "Correlation("&$B$3&","&U$2&",Period:="&$B$1&",InputChoice1:=Close,InputChoice2::=Close)", "FG", "", "Close",$B$2,A74, "all","", "","True","T")/100,"") -> -0.6717978011 | W74: 0.4 | X74: 4 | AA74: =IFERROR(RTD("cqg.rtd",,"StudyData", "Correlation("&$B$3&","&AA$2&",Period:="&$B$1&",InputChoice1:=Close,InputChoice2::=Close)", "FG", "", "Close",$B$2,A74, "all","", "","True","T")/100,"") -> -0.5277444727 | AC74: 0.4 | AD74: 2 | AG74: =IFERROR(RTD("cqg.rtd",,"StudyData", "Correlation("&$B$3&","&AG$2&",Period:="&$B$1&",InputChoice1:=Close,InputChoice2::=Close)", "FG", "", "Close",$B$2,A74, "all","", "","True","T")/100,"") -> -0.4377357225 | AI74: 0.4 | AJ74: 1 | AM74: =IFERROR(RTD("cqg.rtd",,"StudyData", "Correlation("&$B$3&","&AM$2&",Period:="&$B$1&",InputChoice1:=Close,InputChoice2::=Close)", "FG", "", "Close",$B$2,A74, "all","", "","True","T")/100,"") -> -0.5652183644 | AO74: 0.4 | AP74: 1 | AS74: =IFERROR(RTD("cqg.rtd",,"StudyData", "Correlation("&$B$3&","&AS$2&",Period:="&$B$1&",InputChoice1:=Close,InputChoice2::=Close)", "FG", "", "Close",$B$2,A74, "all","", "","True","T")/100,"") -> 0.4061111054 | AU74: 0.4 | AV74: 0 | AY74: =IFERROR(RTD("cqg.rtd",,"StudyData", "Correlation("&$B$3&","&AY$2&",Period:="&$B$1&",InputChoice1:=Close,InputChoice2::=Close)", "FG", "", "Close",$B$2,A74, "all","", "","True","T")/100,"") -> -0.1589149983 | BA74: 0.4 | BB74: 1 | BE74: =IFERROR(RTD("cqg.rtd",,"StudyData", "Correlation("&$B$3&","&BE$2&",Period:="&$B$1&",InputChoice1:=Close,InputChoice2::=Close)", "FG", "", "Close",$B$2,A74, "all","", "","True","T")/100,"") -> 0.5920169059 | BG74: 0.4 | BH74: 3
A75: -71 | C75: =IFERROR(RTD("cqg.rtd",,"StudyData", "Correlation("&$B$3&","&C$2&",Period:="&$B$1&",InputChoice1:=Close,InputChoice2:=Close)", "FG", "", "Close",$B$2,A75, "all","", "","True","T")/100,"") -> 0.2355684388 | E75: 0.42 | F75: 2 | I75: =IFERROR(RTD("cqg.rtd",,"StudyData", "Correlation("&$B$3&","&I$2&",Period:="&$B$1&",InputChoice1:=Close,InputChoice2::=Close)", "FG", "", "Close",$B$2,A75, "all","", "","True","T")/100,"") -> 0.4957282152 | K75: 0.42 | L75: 0 | O75: =IFERROR(RTD("cqg.rtd",,"StudyData", "Correlation("&$B$3&","&O$2&",Period:="&$B$1&",InputChoice1:=Close,InputChoice2::=Close)", "FG", "", "Close",$B$2,A75, "all","", "","True","T")/100,"") -> 0.3739783136 | Q75: 0.42 | R75: 0 | U75: =IFERROR(RTD("cqg.rtd",,"StudyData", "Correlation("&$B$3&","&U$2&",Period:="&$B$1&",InputChoice1:=Close,InputChoice2::=Close)", "FG", "", "Close",$B$2,A75, "all","", "","True","T")/100,"") -> -0.7144450674 | W75: 0.42 | X75: 0 | AA75: =IFERROR(RTD("cqg.rtd",,"StudyData", "Correlation("&$B$3&","&AA$2&",Period:="&$B$1&",InputChoice1:=Close,InputChoice2::=Close)", "FG", "", "Close",$B$2,A75, "all","", "","True","T")/100,"") -> -0.6629934987 | AC75: 0.42 | AD75: 1 | AG75: =IFERROR(RTD("cqg.rtd",,"StudyData", "Correlation("&$B$3&","&AG$2&",Period:="&$B$1&",InputChoice1:=Close,InputChoice2::=Close)", "FG", "", "Close",$B$2,A75, "all","", "","True","T")/100,"") -> -0.5977062121 | AI75: 0.42 | AJ75: 1 | AM75: =IFERROR(RTD("cqg.rtd",,"StudyData", "Correlation("&$B$3&","&AM$2&",Period:="&$B$1&",InputChoice1:=Close,InputChoice2::=Close)", "FG", "", "Close",$B$2,A75, "all","", "","True","T")/100,"") -> -0.6940998931 | AO75: 0.42 | AP75: 1 | AS75: =IFERROR(RTD("cqg.rtd",,"StudyData", "Correlation("&$B$3&","&AS$2&",Period:="&$B$1&",InputChoice1:=Close,InputChoice2::=Close)", "FG", "", "Close",$B$2,A75, "all","", "","True","T")/100,"") -> 0.4950541861 | AU75: 0.42 | AV75: 2 | AY75: =IFERROR(RTD("cqg.rtd",,"StudyData", "Correlation("&$B$3&","&AY$2&",Period:="&$B$1&",InputChoice1:=Close,InputChoice2::=Close)", "FG", "", "Close",$B$2,A75, "all","", "","True","T")/100,"") -> -0.08116705753 | BA75: 0.42 | BB75: 0 | BE75: =IFERROR(RTD("cqg.rtd",,"StudyData", "Correlation("&$B$3&","&BE$2&",Period:="&$B$1&",InputChoice1:=Close,InputChoice2::=Close)", "FG", "", "Close",$B$2,A75, "all","", "","True","T")/100,"") -> 0.6416114751 | BG75: 0.42 | BH75: 0
A76: -72 | C76: =IFERROR(RTD("cqg.rtd",,"StudyData", "Correlation("&$B$3&","&C$2&",Period:="&$B$1&",InputChoice1:=Close,InputChoice2:=Close)", "FG", "", "Close",$B$2,A76, "all","", "","True","T")/100,"") -> 0.1780252676 | E76: 0.44 | F76: 0 | I76: =IFERROR(RTD("cqg.rtd",,"StudyData", "Correlation("&$B$3&","&I$2&",Period:="&$B$1&",InputChoice1:=Close,InputChoice2::=Close)", "FG", "", "Close",$B$2,A76, "all","", "","True","T")/100,"") -> 0.4687372416 | K76: 0.44 | L76: 1 | O76: =IFERROR(RTD("cqg.rtd",,"StudyData", "Correlation("&$B$3&","&O$2&",Period:="&$B$1&",InputChoice1:=Close,InputChoice2::=Close)", "FG", "", "Close",$B$2,A76, "all","", "","True","T")/100,"") -> 0.3337258987 | Q76: 0.44 | R76: 3 | U76: =IFERROR(RTD("cqg.rtd",,"StudyData", "Correlation("&$B$3&","&U$2&",Period:="&$B$1&",InputChoice1:=Close,InputChoice2::=Close)", "FG", "", "Close",$B$2,A76, "all","", "","True","T")/100,"") -> -0.7270231093 | W76: 0.44 | X76: 2 | AA76: =IFERROR(RTD("cqg.rtd",,"StudyData", "Correlation("&$B$3&","&AA$2&",Period:="&$B$1&",InputChoice1:=Close,InputChoice2::=Close)", "FG", "", "Close",$B$2,A76, "all","", "","True","T")/100,"") -> -0.7274622106 | AC76: 0.44 | AD76: 1 | AG76: =IFERROR(RTD("cqg.rtd",,"StudyData", "Correlation("&$B$3&","&AG$2&",Period:="&$B$1&",InputChoice1:=Close,InputChoice2::=Close)", "FG", "", "Close",$B$2,A76, "all","", "","True","T")/100,"") -> -0.6730487061 | AI76: 0.44 | AJ76: 1 | AM76: =IFERROR(RTD("cqg.rtd",,"StudyData", "Correlation("&$B$3&","&AM$2&",Period:="&$B$1&",InputChoice1:=Close,InputChoice2::=Close)", "FG", "", "Close",$B$2,A76, "all","", "","True","T")/100,"") -> -0.7382424099 | AO76: 0.44 | AP76: 0 | AS76: =IFERROR(RTD("cqg.rtd",,"StudyData", "Correlation("&$B$3&","&AS$2&",Period:="&$B$1&",InputChoice1:=Close,InputChoice2::=Close)", "FG", "", "Close",$B$2,A76, "all","", "","True","T")/100,"") -> 0.6380145021 | AU76: 0.44 | AV76: 2 | AY76: =IFERROR(RTD("cqg.rtd",,"StudyData", "Correlation("&$B$3&","&AY$2&",Period:="&$B$1&",InputChoice1:=Close,InputChoice2::=Close)", "FG", "", "Close",$B$2,A76, "all","", "","True","T")/100,"") -> -0.01766008244 | BA76: 0.44 | BB76: 1 | BE76: =IFERROR(RTD("cqg.rtd",,"StudyData", "Correlation("&$B$3&","&BE$2&",Period:="&$B$1&",InputChoice1:=Close,InputChoice2::=Close)", "FG", "", "Close",$B$2,A76, "all","", "","True","T")/100,"") -> 0.6586117283 | BG76: 0.44 | BH76: 1
A77: -73 | C77: =IFERROR(RTD("cqg.rtd",,"StudyData", "Correlation("&$B$3&","&C$2&",Period:="&$B$1&",InputChoice1:=Close,InputChoice2:=Close)", "FG", "", "Close",$B$2,A77, "all","", "","True","T")/100,"") -> 0.1580302129 | E77: 0.46 | F77: 0 | I77: =IFERROR(RTD("cqg.rtd",,"StudyData", "Correlation("&$B$3&","&I$2&",Period:="&$B$1&",InputChoice1:=Close,InputChoice2::=Close)", "FG", "", "Close",$B$2,A77, "all","", "","True","T")/100,"") -> 0.45723476 | K77: 0.46 | L77: 4 | O77: =IFERROR(RTD("cqg.rtd",,"StudyData", "Correlation("&$B$3&","&O$2&",Period:="&$B$1&",InputChoice1:=Close,InputChoice2::=Close)", "FG", "", "Close",$B$2,A77, "all","", "","True","T")/100,"") -> 0.311205786 | Q77: 0.46 | R77: 0 | U77: =IFERROR(RTD("cqg.rtd",,"StudyData", "Correlation("&$B$3&","&U$2&",Period:="&$B$1&",InputChoice1:=Close,InputChoice2::=Close)", "FG", "", "Close",$B$2,A77, "all","", "","True","T")/100,"") -> -0.7039247588 | W77: 0.46 | X77: 1 | AA77: =IFERROR(RTD("cqg.rtd",,"StudyData", "Correlation("&$B$3&","&AA$2&",Period:="&$B$1&",InputChoice1:=Close,InputChoice2::=Close)", "FG", "", "Close",$B$2,A77, "all","", "","True","T")/100,"") -> -0.8171783293 | AC77: 0.46 | AD77: 0 | AG77: =IFERROR(RTD("cqg.rtd",,"StudyData", "Correlation("&$B$3&","&AG$2&",Period:="&$B$1&",InputChoice1:=Close,InputChoice2::=Close)", "FG", "", "Close",$B$2,A77, "all","", "","True","T")/100,"") -> -0.7792581401 | AI77: 0.46 | AJ77: 1 | AM77: =IFERROR(RTD("cqg.rtd",,"StudyData", "Correlation("&$B$3&","&AM$2&",Period:="&$B$1&",InputChoice1:=Close,InputChoice2::=Close)", "FG", "", "Close",$B$2,A77, "all","", "","True","T")/100,"") -> -0.7959051993 | AO77: 0.46 | AP77: 0 | AS77: =IFERROR(RTD("cqg.rtd",,"StudyData", "Correlation("&$B$3&","&AS$2&",Period:="&$B$1&",InputChoice1:=Close,InputChoice2::=Close)", "FG", "", "Close",$B$2,A77, "all","", "","True","T")/100,"") -> 0.7480561424 | AU77: 0.46 | AV77: 1 | AY77: =IFERROR(RTD("cqg.rtd",,"StudyData", "Correlation("&$B$3&","&AY$2&",Period:="&$B$1&",InputChoice1:=Close,InputChoice2::=Close)", "FG", "", "Close",$B$2,A77, "all","", "","True","T")/100,"") -> 0.002538856363 | BA77: 0.46 | BB77: 1 | BE77: =IFERROR(RTD("cqg.rtd",,"StudyData", "Correlation("&$B$3&","&BE$2&",Period:="&$B$1&",InputChoice1:=Close,InputChoice2::=Close)", "FG", "", "Close",$B$2,A77, "all","", "","True","T")/100,"") -> 0.7106086501 | BG77: 0.46 | BH77: 1
A78: -74 | C78: =IFERROR(RTD("cqg.rtd",,"StudyData", "Correlation("&$B$3&","&C$2&",Period:="&$B$1&",InputChoice1:=Close,InputChoice2:=Close)", "FG", "", "Close",$B$2,A78, "all","", "","True","T")/100,"") -> 0.06963387277 | E78: 0.48 | F78: 1 | I78: =IFERROR(RTD("cqg.rtd",,"StudyData", "Correlation("&$B$3&","&I$2&",Period:="&$B$1&",InputChoice1:=Close,InputChoice2::=Close)", "FG", "", "Close",$B$2,A78, "all","", "","True","T")/100,"") -> 0.3728758533 | K78: 0.48 | L78: 2 | O78: =IFERROR(RTD("cqg.rtd",,"StudyData", "Correlation("&$B$3&","&O$2&",Period:="&$B$1&",InputChoice1:=Close,InputChoice2::=Close)", "FG", "", "Close",$B$2,A78, "all","", "","True","T")/100,"") -> 0.2964477523 | Q78: 0.48 | R78: 2 | U78: =IFERROR(RTD("cqg.rtd",,"StudyData", "Correlation("&$B$3&","&U$2&",Period:="&$B$1&",InputChoice1:=Close,InputChoice2::=Close)", "FG", "", "Close",$B$2,A78, "all","", "","True","T")/100,"") -> -0.7185543439 | W78: 0.48 | X78: 1 | AA78: =IFERROR(RTD("cqg.rtd",,"StudyData", "Correlation("&$B$3&","&AA$2&",Period:="&$B$1&",InputChoice1:=Close,InputChoice2::=Close)", "FG", "", "Close",$B$2,A78, "all","", "","True","T")/100,"") -> -0.8644942999 | AC78: 0.48 | AD78: 0 | AG78: =IFERROR(RTD("cqg.rtd",,"StudyData", "Correlation("&$B$3&","&AG$2&",Period:="&$B$1&",InputChoice1:=Close,InputChoice2::=Close)", "FG", "", "Close",$B$2,A78, "all","", "","True","T")/100,"") -> -0.8404328563 | AI78: 0.48 | AJ78: 1 | AM78: =IFERROR(RTD("cqg.rtd",,"StudyData", "Correlation("&$B$3&","&AM$2&",Period:="&$B$1&",InputChoice1:=Close,InputChoice2::=Close)", "FG", "", "Close",$B$2,A78, "all","", "","True","T")/100,"") -> -0.8312580862 | AO78: 0.48 | AP78: 0 | AS78: =IFERROR(RTD("cqg.rtd",,"StudyData", "Correlation("&$B$3&","&AS$2&",Period:="&$B$1&",InputChoice1:=Close,InputChoice2::=Close)", "FG", "", "Close",$B$2,A78, "all","", "","True","T")/100,"") -> 0.7606784038 | AU78: 0.48 | AV78: 0 | AY78: =IFERROR(RTD("cqg.rtd",,"StudyData", "Correlation("&$B$3&","&AY$2&",Period:="&$B$1&",InputChoice1:=Close,InputChoice2::=Close)", "FG", "", "Close",$B$2,A78, "all","", "","True","T")/100,"") -> -0.06209060973 | BA78: 0.48 | BB78: 1 | BE78: =IFERROR(RTD("cqg.rtd",,"StudyData", "Correlation("&$B$3&","&BE$2&",Period:="&$B$1&",InputChoice1:=Close,InputChoice2::=Close)", "FG", "", "Close",$B$2,A78, "all","", "","True","T")/100,"") -> 0.689787584 | BG78: 0.48 | BH78: 0
A79: -75 | C79: =IFERROR(RTD("cqg.rtd",,"StudyData", "Correlation("&$B$3&","&C$2&",Period:="&$B$1&",InputChoice1:=Close,InputChoice2:=Close)", "FG", "", "Close",$B$2,A79, "all","", "","True","T")/100,"") -> -0.07527989331 | E79: 0.5 | F79: 0 | I79: =IFERROR(RTD("cqg.rtd",,"StudyData", "Correlation("&$B$3&","&I$2&",Period:="&$B$1&",InputChoice1:=Close,InputChoice2::=Close)", "FG", "", "Close",$B$2,A79, "all","", "","True","T")/100,"") -> 0.2174658588 | K79: 0.5 | L79: 4 | O79: =IFERROR(RTD("cqg.rtd",,"StudyData", "Correlation("&$B$3&","&O$2&",Period:="&$B$1&",InputChoice1:=Close,InputChoice2::=Close)", "FG", "", "Close",$B$2,A79, "all","", "","True","T")/100,"") -> 0.221838613 | Q79: 0.5 | R79: 0 | U79: =IFERROR(RTD("cqg.rtd",,"StudyData", "Correlation("&$B$3&","&U$2&",Period:="&$B$1&",InputChoice1:=Close,InputChoice2::=Close)", "FG", "", "Close",$B$2,A79, "all","", "","True","T")/100,"") -> -0.7053518446 | W79: 0.5 | X79: 1 | AA79: =IFERROR(RTD("cqg.rtd",,"StudyData", "Correlation("&$B$3&","&AA$2&",Period:="&$B$1&",InputChoice1:=Close,InputChoice2::=Close)", "FG", "", "Close",$B$2,A79, "all","", "","True","T")/100,"") -> -0.8546818933 | AC79: 0.5 | AD79: 0 | AG79: =IFERROR(RTD("cqg.rtd",,"StudyData", "Correlation("&$B$3&","&AG$2&",Period:="&$B$1&",InputChoice1:=Close,InputChoice2::=Close)", "FG", "", "Close",$B$2,A79, "all","", "","True","T")/100,"") -> -0.8322964632 | AI79: 0.5 | AJ79: 0 | AM79: =IFERROR(RTD("cqg.rtd",,"StudyData", "Correlation("&$B$3&","&AM$2&",Period:="&$B$1&",InputChoice1:=Close,InputChoice2::=Close)", "FG", "", "Close",$B$2,A79, "all","", "","True","T")/100,"") -> -0.8118344833 | AO79: 0.5 | AP79: 0 | AS79: =IFERROR(RTD("cqg.rtd",,"StudyData", "Correlation("&$B$3&","&AS$2&",Period:="&$B$1&",InputChoice1:=Close,InputChoice2::=Close)", "FG", "", "Close",$B$2,A79, "all","", "","True","T")/100,"") -> 0.9183437089 | AU79: 0.5 | AV79: 1 | AY79: =IFERROR(RTD("cqg.rtd",,"StudyData", "Correlation("&$B$3&","&AY$2&",Period:="&$B$1&",InputChoice1:=Close,InputChoice2::=Close)", "FG", "", "Close",$B$2,A79, "all","", "","True","T")/100,"") -> -0.1640914114 | BA79: 0.5 | BB79: 2 | BE79: =IFERROR(RTD("cqg.rtd",,"StudyData", "Correlation("&$B$3&","&BE$2&",Period:="&$B$1&",InputChoice1:=Close,InputChoice2::=Close)", "FG", "", "Close",$B$2,A79, "all","", "","True","T")/100,"") -> 0.6788464669 | BG79: 0.5 | BH79: 1
A80: -76 | C80: =IFERROR(RTD("cqg.rtd",,"StudyData", "Correlation("&$B$3&","&C$2&",Period:="&$B$1&",InputChoice1:=Close,InputChoice2:=Close)", "FG", "", "Close",$B$2,A80, "all","", "","True","T")/100,"") -> 0.0453383497 | E80: 0.52 | F80: 1 | I80: =IFERROR(RTD("cqg.rtd",,"StudyData", "Correlation("&$B$3&","&I$2&",Period:="&$B$1&",InputChoice1:=Close,InputChoice2::=Close)", "FG", "", "Close",$B$2,A80, "all","", "","True","T")/100,"") -> 0.2890975525 | K80: 0.52 | L80: 2 | O80: =IFERROR(RTD("cqg.rtd",,"StudyData", "Correlation("&$B$3&","&O$2&",Period:="&$B$1&",InputChoice1:=Close,InputChoice2::=Close)", "FG", "", "Close",$B$2,A80, "all","", "","True","T")/100,"") -> 0.1662255001 | Q80: 0.52 | R80: 0 | U80: =IFERROR(RTD("cqg.rtd",,"StudyData", "Correlation("&$B$3&","&U$2&",Period:="&$B$1&",InputChoice1:=Close,InputChoice2::=Close)", "FG", "", "Close",$B$2,A80, "all","", "","True","T")/100,"") -> -0.616160683 | W80: 0.52 | X80: 1 | AA80: =IFERROR(RTD("cqg.rtd",,"StudyData", "Correlation("&$B$3&","&AA$2&",Period:="&$B$1&",InputChoice1:=Close,InputChoice2::=Close)", "FG", "", "Close",$B$2,A80, "all","", "","True","T")/100,"") -> -0.7580958024 | AC80: 0.52 | AD80: 0 | AG80: =IFERROR(RTD("cqg.rtd",,"StudyData", "Correlation("&$B$3&","&AG$2&",Period:="&$B$1&",InputChoice1:=Close,InputChoice2::=Close)", "FG", "", "Close",$B$2,A80, "all","", "","True","T")/100,"") -> -0.7292227162 | AI80: 0.52 | AJ80: 0 | AM80: =IFERROR(RTD("cqg.rtd",,"StudyData", "Correlation("&$B$3&","&AM$2&",Period:="&$B$1&",InputChoice1:=Close,InputChoice2::=Close)", "FG", "", "Close",$B$2,A80, "all","", "","True","T")/100,"") -> -0.7351652666 | AO80: 0.52 | AP80: 0 | AS80: =IFERROR(RTD("cqg.rtd",,"StudyData", "Correlation("&$B$3&","&AS$2&",Period:="&$B$1&",InputChoice1:=Close,InputChoice2::=Close)", "FG", "", "Close",$B$2,A80, "all","", "","True","T")/100,"") -> 0.8761576861 | AU80: 0.52 | AV80: 0 | AY80: =IFERROR(RTD("cqg.rtd",,"StudyData", "Correlation("&$B$3&","&AY$2&",Period:="&$B$1&",InputChoice1:=Close,InputChoice2::=Close)", "FG", "", "Close",$B$2,A80, "all","", "","True","T")/100,"") -> -0.2480167449 | BA80: 0.52 | BB80: 2 | BE80: =IFERROR(RTD("cqg.rtd",,"StudyData", "Correlation("&$B$3&","&BE$2&",Period:="&$B$1&",InputChoice1:=Close,InputChoice2::=Close)", "FG", "", "Close",$B$2,A80, "all","", "","True","T")/100,"") -> 0.6890072267 | BG80: 0.52 | BH80: 2
A81: -77 | C81: =IFERROR(RTD("cqg.rtd",,"StudyData", "Correlation("&$B$3&","&C$2&",Period:="&$B$1&",InputChoice1:=Close,InputChoice2:=Close)", "FG", "", "Close",$B$2,A81, "all","", "","True","T")/100,"") -> 0.004183812389 | E81: 0.54 | F81: 0 | I81: =IFERROR(RTD("cqg.rtd",,"StudyData", "Correlation("&$B$3&","&I$2&",Period:="&$B$1&",InputChoice1:=Close,InputChoice2::=Close)", "FG", "", "Close",$B$2,A81, "all","", "","True","T")/100,"") -> 0.2019855377 | K81: 0.54 | L81: 1 | O81: =IFERROR(RTD("cqg.rtd",,"StudyData", "Correlation("&$B$3&","&O$2&",Period:="&$B$1&",InputChoice1:=Close,InputChoice2::=Close)", "FG", "", "Close",$B$2,A81, "all","", "","True","T")/100,"") -> 0.2473905798 | Q81: 0.54 | R81: 0 | U81: =IFERROR(RTD("cqg.rtd",,"StudyData", "Correlation("&$B$3&","&U$2&",Period:="&$B$1&",InputChoice1:=Close,InputChoice2::=Close)", "FG", "", "Close",$B$2,A81, "all","", "","True","T")/100,"") -> -0.3880351223 | W81: 0.54 | X81: 0 | AA81: =IFERROR(RTD("cqg.rtd",,"StudyData", "Correlation("&$B$3&","&AA$2&",Period:="&$B$1&",InputChoice1:=Close,InputChoice2::=Close)", "FG", "", "Close",$B$2,A81, "all","", "","True","T")/100,"") -> -0.5893716592 | AC81: 0.54 | AD81: 0 | AG81: =IFERROR(RTD("cqg.rtd",,"StudyData", "Correlation("&$B$3&","&AG$2&",Period:="&$B$1&",InputChoice1:=Close,InputChoice2::=Close)", "FG", "", "Close",$B$2,A81, "all","", "","True","T")/100,"") -> -0.5721462258 | AI81: 0.54 | AJ81: 0 | AM81: =IFERROR(RTD("cqg.rtd",,"StudyData", "Correlation("&$B$3&","&AM$2&",Period:="&$B$1&",InputChoice1:=Close,InputChoice2::=Close)", "FG", "", "Close",$B$2,A81, "all","", "","True","T")/100,"") -> -0.598116081 | AO81: 0.54 | AP81: 1 | AS81: =IFERROR(RTD("cqg.rtd",,"StudyData", "Correlation("&$B$3&","&AS$2&",Period:="&$B$1&",InputChoice1:=Close,InputChoice2::=Close)", "FG", "", "Close",$B$2,A81, "all","", "","True","T")/100,"") -> 0.7309127485 | AU81: 0.54 | AV81: 0 | AY81: =IFERROR(RTD("cqg.rtd",,"StudyData", "Correlation("&$B$3&","&AY$2&",Period:="&$B$1&",InputChoice1:=Close,InputChoice2::=Close)", "FG", "", "Close",$B$2,A81, "all","", "","True","T")/100,"") -> -0.1925338894 | BA81: 0.54 | BB81: 0 | BE81: =IFERROR(RTD("cqg.rtd",,"StudyData", "Correlation("&$B$3&","&BE$2&",Period:="&$B$1&",InputChoice1:=Close,InputChoice2::=Close)", "FG", "", "Close",$B$2,A81, "all","", "","True","T")/100,"") -> 0.6735001072 | BG81: 0.54 | BH81: 0
A82: -78 | C82: =IFERROR(RTD("cqg.rtd",,"StudyData", "Correlation("&$B$3&","&C$2&",Period:="&$B$1&",InputChoice1:=Close,InputChoice2:=Close)", "FG", "", "Close",$B$2,A82, "all","", "","True","T")/100,"") -> 0.0310553127 | E82: 0.56 | F82: 0 | I82: =IFERROR(RTD("cqg.rtd",,"StudyData", "Correlation("&$B$3&","&I$2&",Period:="&$B$1&",InputChoice1:=Close,InputChoice2::=Close)", "FG", "", "Close",$B$2,A82, "all","", "","True","T")/100,"") -> 0.1348421615 | K82: 0.56 | L82: 0 | O82: =IFERROR(RTD("cqg.rtd",,"StudyData", "Correlation("&$B$3&","&O$2&",Period:="&$B$1&",InputChoice1:=Close,InputChoice2::=Close)", "FG", "", "Close",$B$2,A82, "all","", "","True","T")/100,"") -> 0.2635498417 | Q82: 0.56 | R82: 1 | U82: =IFERROR(RTD("cqg.rtd",,"StudyData", "Correlation("&$B$3&","&U$2&",Period:="&$B$1&",InputChoice1:=Close,InputChoice2::=Close)", "FG", "", "Close",$B$2,A82, "all","", "","True","T")/100,"") -> -0.06183522404 | W82: 0.56 | X82: 1 | AA82: =IFERROR(RTD("cqg.rtd",,"StudyData", "Correlation("&$B$3&","&AA$2&",Period:="&$B$1&",InputChoice1:=Close,InputChoice2::=Close)", "FG", "", "Close",$B$2,A82, "all","", "","True","T")/100,"") -> -0.2723422004 | AC82: 0.56 | AD82: 2 | AG82: =IFERROR(RTD("cqg.rtd",,"StudyData", "Correlation("&$B$3&","&AG$2&",Period:="&$B$1&",InputChoice1:=Close,InputChoice2::=Close)", "FG", "", "Close",$B$2,A82, "all","", "","True","T")/100,"") -> -0.276933296 | AI82: 0.56 | AJ82: 1 | AM82: =IFERROR(RTD("cqg.rtd",,"StudyData", "Correlation("&$B$3&","&AM$2&",Period:="&$B$1&",InputChoice1:=Close,InputChoice2::=Close)", "FG", "", "Close",$B$2,A82, "all","", "","True","T")/100,"") -> -0.3032823378 | AO82: 0.56 | AP82: 1 | AS82: =IFERROR(RTD("cqg.rtd",,"StudyData", "Correlation("&$B$3&","&AS$2&",Period:="&$B$1&",InputChoice1:=Close,InputChoice2::=Close)", "FG", "", "Close",$B$2,A82, "all","", "","True","T")/100,"") -> 0.4221160924 | AU82: 0.56 | AV82: 1 | AY82: =IFERROR(RTD("cqg.rtd",,"StudyData", "Correlation("&$B$3&","&AY$2&",Period:="&$B$1&",InputChoice1:=Close,InputChoice2::=Close)", "FG", "", "Close",$B$2,A82, "all","", "","True","T")/100,"") -> -0.2503465959 | BA82: 0.56 | BB82: 1 | BE82: =IFERROR(RTD("cqg.rtd",,"StudyData", "Correlation("&$B$3&","&BE$2&",Period:="&$B$1&",InputChoice1:=Close,InputChoice2::=Close)", "FG", "", "Close",$B$2,A82, "all","", "","True","T")/100,"") -> 0.5818518704 | BG82: 0.56 | BH82: 2
A83: -79 | C83: =IFERROR(RTD("cqg.rtd",,"StudyData", "Correlation("&$B$3&","&C$2&",Period:="&$B$1&",InputChoice1:=Close,InputChoice2:=Close)", "FG", "", "Close",$B$2,A83, "all","", "","True","T")/100,"") -> 0.2114678351 | E83: 0.58 | F83: 2 | I83: =IFERROR(RTD("cqg.rtd",,"StudyData", "Correlation("&$B$3&","&I$2&",Period:="&$B$1&",InputChoice1:=Close,InputChoice2::=Close)", "FG", "", "Close",$B$2,A83, "all","", "","True","T")/100,"") -> 0.3213970308 | K83: 0.58 | L83: 1 | O83: =IFERROR(RTD("cqg.rtd",,"StudyData", "Correlation("&$B$3&","&O$2&",Period:="&$B$1&",InputChoice1:=Close,InputChoice2::=Close)", "FG", "", "Close",$B$2,A83, "all","", "","True","T")/100,"") -> 0.1992571954 | Q83: 0.58 | R83: 0 | U83: =IFERROR(RTD("cqg.rtd",,"StudyData", "Correlation("&$B$3&","&U$2&",Period:="&$B$1&",InputChoice1:=Close,InputChoice2::=Close)", "FG", "", "Close",$B$2,A83, "all","", "","True","T")/100,"") -> 0.2458146397 | W83: 0.58 | X83: 1 | AA83: =IFERROR(RTD("cqg.rtd",,"StudyData", "Correlation("&$B$3&","&AA$2&",Period:="&$B$1&",InputChoice1:=Close,InputChoice2::=Close)", "FG", "", "Close",$B$2,A83, "all","", "","True","T")/100,"") -> 0.1767319325 | AC83: 0.58 | AD83: 0 | AG83: =IFERROR(RTD("cqg.rtd",,"StudyData", "Correlation("&$B$3&","&AG$2&",Period:="&$B$1&",InputChoice1:=Close,InputChoice2::=Close)", "FG", "", "Close",$B$2,A83, "all","", "","True","T")/100,"") -> 0.2383017394 | AI83: 0.58 | AJ83: 1 | AM83: =IFERROR(RTD("cqg.rtd",,"StudyData", "Correlation("&$B$3&","&AM$2&",Period:="&$B$1&",InputChoice1:=Close,InputChoice2::=Close)", "FG", "", "Close",$B$2,A83, "all","", "","True","T")/100,"") -> 0.1509850178 | AO83: 0.58 | AP83: 0 | AS83: =IFERROR(RTD("cqg.rtd",,"StudyData", "Correlation("&$B$3&","&AS$2&",Period:="&$B$1&",InputChoice1:=Close,InputChoice2::=Close)", "FG", "", "Close",$B$2,A83, "all","", "","True","T")/100,"") -> 0.2626922301 | AU83: 0.58 | AV83: 0 | AY83: =IFERROR(RTD("cqg.rtd",,"StudyData", "Correlation("&$B$3&","&AY$2&",Period:="&$B$1&",InputChoice1:=Close,InputChoice2::=Close)", "FG", "", "Close",$B$2,A83, "all","", "","True","T")/100,"") -> -0.3216322771 | BA83: 0.58 | BB83: 0 | BE83: =IFERROR(RTD("cqg.rtd",,"StudyData", "Correlation("&$B$3&","&BE$2&",Period:="&$B$1&",InputChoice1:=Close,InputChoice2::=Close)", "FG", "", "Close",$B$2,A83, "all","", "","True","T")/100,"") -> 0.2900735282 | BG83: 0.58 | BH83: 2
A84: -80 | C84: =IFERROR(RTD("cqg.rtd",,"StudyData", "Correlation("&$B$3&","&C$2&",Period:="&$B$1&",InputChoice1:=Close,InputChoice2:=Close)", "FG", "", "Close",$B$2,A84, "all","", "","True","T")/100,"") -> 0.3740522478 | E84: 0.6 | F84: 1 | I84: =IFERROR(RTD("cqg.rtd",,"StudyData", "Correlation("&$B$3&","&I$2&",Period:="&$B$1&",InputChoice1:=Close,InputChoice2::=Close)", "FG", "", "Close",$B$2,A84, "all","", "","True","T")/100,"") -> 0.4619773305 | K84: 0.6 | L84: 1 | O84: =IFERROR(RTD("cqg.rtd",,"StudyData", "Correlation("&$B$3&","&O$2&",Period:="&$B$1&",InputChoice1:=Close,InputChoice2::=Close)", "FG", "", "Close",$B$2,A84, "all","", "","True","T")/100,"") -> 0.3103216113 | Q84: 0.6 | R84: 1 | U84: =IFERROR(RTD("cqg.rtd",,"StudyData", "Correlation("&$B$3&","&U$2&",Period:="&$B$1&",InputChoice1:=Close,InputChoice2::=Close)", "FG", "", "Close",$B$2,A84, "all","", "","True","T")/100,"") -> 0.3320425181 | W84: 0.6 | X84: 1 | AA84: =IFERROR(RTD("cqg.rtd",,"StudyData", "Correlation("&$B$3&","&AA$2&",Period:="&$B$1&",InputChoice1:=Close,InputChoice2::=Close)", "FG", "", "Close",$B$2,A84, "all","", "","True","T")/100,"") -> 0.3951814209 | AC84: 0.6 | AD84: 0 | AG84: =IFERROR(RTD("cqg.rtd",,"StudyData", "Correlation("&$B$3&","&AG$2&",Period:="&$B$1&",InputChoice1:=Close,InputChoice2::=Close)", "FG", "", "Close",$B$2,A84, "all","", "","True","T")/100,"") -> 0.4121460222 | AI84: 0.6 | AJ84: 0 | AM84: =IFERROR(RTD("cqg.rtd",,"StudyData", "Correlation("&$B$3&","&AM$2&",Period:="&$B$1&",InputChoice1:=Close,InputChoice2::=Close)", "FG", "", "Close",$B$2,A84, "all","", "","True","T")/100,"") -> 0.3834547845 | AO84: 0.6 | AP84: 0 | AS84: =IFERROR(RTD("cqg.rtd",,"StudyData", "Correlation("&$B$3&","&AS$2&",Period:="&$B$1&",InputChoice1:=Close,InputChoice2::=Close)", "FG", "", "Close",$B$2,A84, "all","", "","True","T")/100,"") -> 0.2504135638 | AU84: 0.6 | AV84: 0 | AY84: =IFERROR(RTD("cqg.rtd",,"StudyData", "Correlation("&$B$3&","&AY$2&",Period:="&$B$1&",InputChoice1:=Close,InputChoice2::=Close)", "FG", "", "Close",$B$2,A84, "all","", "","True","T")/100,"") -> -0.4311364292 | BA84: 0.6 | BB84: 0 | BE84: =IFERROR(RTD("cqg.rtd",,"StudyData", "Correlation("&$B$3&","&BE$2&",Period:="&$B$1&",InputChoice1:=Close,InputChoice2::=Close)", "FG", "", "Close",$B$2,A84, "all","", "","True","T")/100,"") -> -0.09056374818 | BG84: 0.6 | BH84: 4
A85: -81 | C85: =IFERROR(RTD("cqg.rtd",,"StudyData", "Correlation("&$B$3&","&C$2&",Period:="&$B$1&",InputChoice1:=Close,InputChoice2:=Close)", "FG", "", "Close",$B$2,A85, "all","", "","True","T")/100,"") -> 0.500219621 | E85: 0.62 | F85: 0 | I85: =IFERROR(RTD("cqg.rtd",,"StudyData", "Correlation("&$B$3&","&I$2&",Period:="&$B$1&",InputChoice1:=Close,InputChoice2::=Close)", "FG", "", "Close",$B$2,A85, "all","", "","True","T")/100,"") -> 0.5678359248 | K85: 0.62 | L85: 1 | O85: =IFERROR(RTD("cqg.rtd",,"StudyData", "Correlation("&$B$3&","&O$2&",Period:="&$B$1&",InputChoice1:=Close,InputChoice2::=Close)", "FG", "", "Close",$B$2,A85, "all","", "","True","T")/100,"") -> 0.4612200307 | Q85: 0.62 | R85: 1 | U85: =IFERROR(RTD("cqg.rtd",,"StudyData", "Correlation("&$B$3&","&U$2&",Period:="&$B$1&",InputChoice1:=Close,InputChoice2::=Close)", "FG", "", "Close",$B$2,A85, "all","", "","True","T")/100,"") -> 0.3982408889 | W85: 0.62 | X85: 0 | AA85: =IFERROR(RTD("cqg.rtd",,"StudyData", "Correlation("&$B$3&","&AA$2&",Period:="&$B$1&",InputChoice1:=Close,InputChoice2::=Close)", "FG", "", "Close",$B$2,A85, "all","", "","True","T")/100,"") -> 0.5549283121 | AC85: 0.62 | AD85: 0 | AG85: =IFERROR(RTD("cqg.rtd",,"StudyData", "Correlation("&$B$3&","&AG$2&",Period:="&$B$1&",InputChoice1:=Close,InputChoice2::=Close)", "FG", "", "Close",$B$2,A85, "all","", "","True","T")/100,"") -> 0.5537570934 | AI85: 0.62 | AJ85: 0 | AM85: =IFERROR(RTD("cqg.rtd",,"StudyData", "Correlation("&$B$3&","&AM$2&",Period:="&$B$1&",InputChoice1:=Close,InputChoice2::=Close)", "FG", "", "Close",$B$2,A85, "all","", "","True","T")/100,"") -> 0.5574052336 | AO85: 0.62 | AP85: 0 | AS85: =IFERROR(RTD("cqg.rtd",,"StudyData", "Correlation("&$B$3&","&AS$2&",Period:="&$B$1&",InputChoice1:=Close,InputChoice2::=Close)", "FG", "", "Close",$B$2,A85, "all","", "","True","T")/100,"") -> 0.4116039151 | AU85: 0.62 | AV85: 0 | AY85: =IFERROR(RTD("cqg.rtd",,"StudyData", "Correlation("&$B$3&","&AY$2&",Period:="&$B$1&",InputChoice1:=Close,InputChoice2::=Close)", "FG", "", "Close",$B$2,A85, "all","", "","True","T")/100,"") -> -0.5031212254 | BA85: 0.62 | BB85: 1 | BE85: =IFERROR(RTD("cqg.rtd",,"StudyData", "Correlation("&$B$3&","&BE$2&",Period:="&$B$1&",InputChoice1:=Close,InputChoice2::=Close)", "FG", "", "Close",$B$2,A85, "all","", "","True","T")/100,"") -> -0.3146513417 | BG85: 0.62 | BH85: 1
A86: -82 | C86: =IFERROR(RTD("cqg.rtd",,"StudyData", "Correlation("&$B$3&","&C$2&",Period:="&$B$1&",InputChoice1:=Close,InputChoice2:=Close)", "FG", "", "Close",$B$2,A86, "all","", "","True","T")/100,"") -> 0.5837132421 | E86: 0.64 | F86: 0 | I86: =IFERROR(RTD("cqg.rtd",,"StudyData", "Correlation("&$B$3&","&I$2&",Period:="&$B$1&",InputChoice1:=Close,InputChoice2::=Close)", "FG", "", "Close",$B$2,A86, "all","", "","True","T")/100,"") -> 0.6376907522 | K86: 0.64 | L86: 1 | O86: =IFERROR(RTD("cqg.rtd",,"StudyData", "Correlation("&$B$3&","&O$2&",Period:="&$B$1&",InputChoice1:=Close,InputChoice2::=Close)", "FG", "", "Close",$B$2,A86, "all","", "","True","T")/100,"") -> 0.587012373 | Q86: 0.64 | R86: 0 | U86: =IFERROR(RTD("cqg.rtd",,"StudyData", "Correlation("&$B$3&","&U$2&",Period:="&$B$1&",InputChoice1:=Close,InputChoice2::=Close)", "FG", "", "Close",$B$2,A86, "all","", "","True","T")/100,"") -> 0.476789243 | W86: 0.64 | X86: 1 | AA86: =IFERROR(RTD("cqg.rtd",,"StudyData", "Correlation("&$B$3&","&AA$2&",Period:="&$B$1&",InputChoice1:=Close,InputChoice2::=Close)", "FG", "", "Close",$B$2,A86, "all","", "","True","T")/100,"") -> 0.6717990402 | AC86: 0.64 | AD86: 0 | AG86: =IFERROR(RTD("cqg.rtd",,"StudyData", "Correlation("&$B$3&","&AG$2&",Period:="&$B$1&",InputChoice1:=Close,InputChoice2::=Close)", "FG", "", "Close",$B$2,A86, "all","", "","True","T")/100,"") -> 0.693317211 | AI86: 0.64 | AJ86: 0 | AM86: =IFERROR(RTD("cqg.rtd",,"StudyData", "Correlation("&$B$3&","&AM$2&",Period:="&$B$1&",InputChoice1:=Close,InputChoice2::=Close)", "FG", "", "Close",$B$2,A86, "all","", "","True","T")/100,"") -> 0.6714167054 | AO86: 0.64 | AP86: 0 | AS86: =IFERROR(RTD("cqg.rtd",,"StudyData", "Correlation("&$B$3&","&AS$2&",Period:="&$B$1&",InputChoice1:=Close,InputChoice2::=Close)", "FG", "", "Close",$B$2,A86, "all","", "","True","T")/100,"") -> 0.2646640302 | AU86: 0.64 | AV86: 1 | AY86: =IFERROR(RTD("cqg.rtd",,"StudyData", "Correlation("&$B$3&","&AY$2&",Period:="&$B$1&",InputChoice1:=Close,InputChoice2::=Close)", "FG", "", "Close",$B$2,A86, "all","", "","True","T")/100,"") -> -0.5285703467 | BA86: 0.64 | BB86: 0 | BE86: =IFERROR(RTD("cqg.rtd",,"StudyData", "Correlation("&$B$3&","&BE$2&",Period:="&$B$1&",InputChoice1:=Close,InputChoice2::=Close)", "FG", "", "Close",$B$2,A86, "all","", "","True","T")/100,"") -> -0.3454919766 | BG86: 0.64 | BH86: 2
A87: -83 | C87: =IFERROR(RTD("cqg.rtd",,"StudyData", "Correlation("&$B$3&","&C$2&",Period:="&$B$1&",InputChoice1:=Close,InputChoice2:=Close)", "FG", "", "Close",$B$2,A87, "all","", "","True","T")/100,"") -> 0.6686117441 | E87: 0.66 | F87: 0 | I87: =IFERROR(RTD("cqg.rtd",,"StudyData", "Correlation("&$B$3&","&I$2&",Period:="&$B$1&",InputChoice1:=Close,InputChoice2::=Close)", "FG", "", "Close",$B$2,A87, "all","", "","True","T")/100,"") -> 0.7134551224 | K87: 0.66 | L87: 0 | O87: =IFERROR(RTD("cqg.rtd",,"StudyData", "Correlation("&$B$3&","&O$2&",Period:="&$B$1&",InputChoice1:=Close,InputChoice2::=Close)", "FG", "", "Close",$B$2,A87, "all","", "","True","T")/100,"") -> 0.6532124556 | Q87: 0.66 | R87: 1 | U87: =IFERROR(RTD("cqg.rtd",,"StudyData", "Correlation("&$B$3&","&U$2&",Period:="&$B$1&",InputChoice1:=Close,InputChoice2::=Close)", "FG", "", "Close",$B$2,A87, "all","", "","True","T")/100,"") -> 0.4954985425 | W87: 0.66 | X87: 1 | AA87: =IFERROR(RTD("cqg.rtd",,"StudyData", "Correlation("&$B$3&","&AA$2&",Period:="&$B$1&",InputChoice1:=Close,InputChoice2::=Close)", "FG", "", "Close",$B$2,A87, "all","", "","True","T")/100,"") -> 0.7305630526 | AC87: 0.66 | AD87: 0 | AG87: =IFERROR(RTD("cqg.rtd",,"StudyData", "Correlation("&$B$3&","&AG$2&",Period:="&$B$1&",InputChoice1:=Close,InputChoice2::=Close)", "FG", "", "Close",$B$2,A87, "all","", "","True","T")/100,"") -> 0.7604967372 | AI87: 0.66 | AJ87: 0 | AM87: =IFERROR(RTD("cqg.rtd",,"StudyData", "Correlation("&$B$3&","&AM$2&",Period:="&$B$1&",InputChoice1:=Close,InputChoice2::=Close)", "FG", "", "Close",$B$2,A87, "all","", "","True","T")/100,"") -> 0.7385947882 | AO87: 0.66 | AP87: 0 | AS87: =IFERROR(RTD("cqg.rtd",,"StudyData", "Correlation("&$B$3&","&AS$2&",Period:="&$B$1&",InputChoice1:=Close,InputChoice2::=Close)", "FG", "", "Close",$B$2,A87, "all","", "","True","T")/100,"") -> 0.1485042275 | AU87: 0.66 | AV87: 1 | AY87: =IFERROR(RTD("cqg.rtd",,"StudyData", "Correlation("&$B$3&","&AY$2&",Period:="&$B$1&",InputChoice1:=Close,InputChoice2::=Close)", "FG", "", "Close",$B$2,A87, "all","", "","True","T")/100,"") -> -0.5220848296 | BA87: 0.66 | BB87: 1 | BE87: =IFERROR(RTD("cqg.rtd",,"StudyData", "Correlation("&$B$3&","&BE$2&",Period:="&$B$1&",InputChoice1:=Close,InputChoice2::=Close)", "FG", "", "Close",$B$2,A87, "all","", "","True","T")/100,"") -> -0.3574592531 | BG87: 0.66 | BH87: 8
A88: -84 | C88: =IFERROR(RTD("cqg.rtd",,"StudyData", "Correlation("&$B$3&","&C$2&",Period:="&$B$1&",InputChoice1:=Close,InputChoice2:=Close)", "FG", "", "Close",$B$2,A88, "all","", "","True","T")/100,"") -> 0.5778489446 | E88: 0.68 | F88: 1 | I88: =IFERROR(RTD("cqg.rtd",,"StudyData", "Correlation("&$B$3&","&I$2&",Period:="&$B$1&",InputChoice1:=Close,InputChoice2::=Close)", "FG", "", "Close",$B$2,A88, "all","", "","True","T")/100,"") -> 0.5944168591 | K88: 0.68 | L88: 0 | O88: =IFERROR(RTD("cqg.rtd",,"StudyData", "Correlation("&$B$3&","&O$2&",Period:="&$B$1&",InputChoice1:=Close,InputChoice2::=Close)", "FG", "", "Close",$B$2,A88, "all","", "","True","T")/100,"") -> 0.7267036338 | Q88: 0.68 | R88: 0 | U88: =IFERROR(RTD("cqg.rtd",,"StudyData", "Correlation("&$B$3&","&U$2&",Period:="&$B$1&",InputChoice1:=Close,InputChoice2::=Close)", "FG", "", "Close",$B$2,A88, "all","", "","True","T")/100,"") -> 0.51974811 | W88: 0.68 | X88: 1 | AA88: =IFERROR(RTD("cqg.rtd",,"StudyData", "Correlation("&$B$3&","&AA$2&",Period:="&$B$1&",InputChoice1:=Close,InputChoice2::=Close)", "FG", "", "Close",$B$2,A88, "all","", "","True","T")/100,"") -> 0.6687214981 | AC88: 0.68 | AD88: 2 | AG88: =IFERROR(RTD("cqg.rtd",,"StudyData", "Correlation("&$B$3&","&AG$2&",Period:="&$B$1&",InputChoice1:=Close,InputChoice2::=Close)", "FG", "", "Close",$B$2,A88, "all","", "","True","T")/100,"") -> 0.6840153071 | AI88: 0.68 | AJ88: 0 | AM88: =IFERROR(RTD("cqg.rtd",,"StudyData", "Correlation("&$B$3&","&AM$2&",Period:="&$B$1&",InputChoice1:=Close,InputChoice2::=Close)", "FG", "", "Close",$B$2,A88, "all","", "","True","T")/100,"") -> 0.6831257383 | AO88: 0.68 | AP88: 1 | AS88: =IFERROR(RTD("cqg.rtd",,"StudyData", "Correlation("&$B$3&","&AS$2&",Period:="&$B$1&",InputChoice1:=Close,InputChoice2::=Close)", "FG", "", "Close",$B$2,A88, "all","", "","True","T")/100,"") -> 0.1446388397 | AU88: 0.68 | AV88: 0 | AY88: =IFERROR(RTD("cqg.rtd",,"StudyData", "Correlation("&$B$3&","&AY$2&",Period:="&$B$1&",InputChoice1:=Close,InputChoice2::=Close)", "FG", "", "Close",$B$2,A88, "all","", "","True","T")/100,"") -> -0.5270130247 | BA88: 0.68 | BB88: 1 | BE88: =IFERROR(RTD("cqg.rtd",,"StudyData", "Correlation("&$B$3&","&BE$2&",Period:="&$B$1&",InputChoice1:=Close,InputChoice2::=Close)", "FG", "", "Close",$B$2,A88, "all","", "","True","T")/100,"") -> -0.3911659936 | BG88: 0.68 | BH88: 3
A89: -85 | C89: =IFERROR(RTD("cqg.rtd",,"StudyData", "Correlation("&$B$3&","&C$2&",Period:="&$B$1&",InputChoice1:=Close,InputChoice2:=Close)", "FG", "", "Close",$B$2,A89, "all","", "","True","T")/100,"") -> 0.4196796358 | E89: 0.7 | F89: 0 | I89: =IFERROR(RTD("cqg.rtd",,"StudyData", "Correlation("&$B$3&","&I$2&",Period:="&$B$1&",InputChoice1:=Close,InputChoice2::=Close)", "FG", "", "Close",$B$2,A89, "all","", "","True","T")/100,"") -> 0.4414722922 | K89: 0.7 | L89: 0 | O89: =IFERROR(RTD("cqg.rtd",,"StudyData", "Correlation("&$B$3&","&O$2&",Period:="&$B$1&",InputChoice1:=Close,InputChoice2::=Close)", "FG", "", "Close",$B$2,A89, "all","", "","True","T")/100,"") -> 0.6004793742 | Q89: 0.7 | R89: 0 | U89: =IFERROR(RTD("cqg.rtd",,"StudyData", "Correlation("&$B$3&","&U$2&",Period:="&$B$1&",InputChoice1:=Close,InputChoice2::=Close)", "FG", "", "Close",$B$2,A89, "all","", "","True","T")/100,"") -> 0.3348835123 | W89: 0.7 | X89: 0 | AA89: =IFERROR(RTD("cqg.rtd",,"StudyData", "Correlation("&$B$3&","&AA$2&",Period:="&$B$1&",InputChoice1:=Close,InputChoice2::=Close)", "FG", "", "Close",$B$2,A89, "all","", "","True","T")/100,"") -> 0.5430031533 | AC89: 0.7 | AD89: 0 | AG89: =IFERROR(RTD("cqg.rtd",,"StudyData", "Correlation("&$B$3&","&AG$2&",Period:="&$B$1&",InputChoice1:=Close,InputChoice2::=Close)", "FG", "", "Close",$B$2,A89, "all","", "","True","T")/100,"") -> 0.5676372852 | AI89: 0.7 | AJ89: 2 | AM89: =IFERROR(RTD("cqg.rtd",,"StudyData", "Correlation("&$B$3&","&AM$2&",Period:="&$B$1&",InputChoice1:=Close,InputChoice2::=Close)", "FG", "", "Close",$B$2,A89, "all","", "","True","T")/100,"") -> 0.537581614 | AO89: 0.7 | AP89: 1 | AS89: =IFERROR(RTD("cqg.rtd",,"StudyData", "Correlation("&$B$3&","&AS$2&",Period:="&$B$1&",InputChoice1:=Close,InputChoice2::=Close)", "FG", "", "Close",$B$2,A89, "all","", "","True","T")/100,"") -> 0.1263034716 | AU89: 0.7 | AV89: 0 | AY89: =IFERROR(RTD("cqg.rtd",,"StudyData", "Correlation("&$B$3&","&AY$2&",Period:="&$B$1&",InputChoice1:=Close,InputChoice2::=Close)", "FG", "", "Close",$B$2,A89, "all","", "","True","T")/100,"") -> -0.5411077609 | BA89: 0.7 | BB89: 0 | BE89: =IFERROR(RTD("cqg.rtd",,"StudyData", "Correlation("&$B$3&","&BE$2&",Period:="&$B$1&",InputChoice1:=Close,InputChoice2::=Close)", "FG", "", "Close",$B$2,A89, "all","", "","True","T")/100,"") -> -0.3747129937 | BG89: 0.7 | BH89: 3
A90: -86 | C90: =IFERROR(RTD("cqg.rtd",,"StudyData", "Correlation("&$B$3&","&C$2&",Period:="&$B$1&",InputChoice1:=Close,InputChoice2:=Close)", "FG", "", "Close",$B$2,A90, "all","", "","True","T")/100,"") -> 0.2809571858 | E90: 0.72 | F90: 0 | I90: =IFERROR(RTD("cqg.rtd",,"StudyData", "Correlation("&$B$3&","&I$2&",Period:="&$B$1&",InputChoice1:=Close,InputChoice2::=Close)", "FG", "", "Close",$B$2,A90, "all","", "","True","T")/100,"") -> 0.2959853935 | K90: 0.72 | L90: 1 | O90: =IFERROR(RTD("cqg.rtd",,"StudyData", "Correlation("&$B$3&","&O$2&",Period:="&$B$1&",InputChoice1:=Close,InputChoice2::=Close)", "FG", "", "Close",$B$2,A90, "all","", "","True","T")/100,"") -> 0.4352089921 | Q90: 0.72 | R90: 0 | U90: =IFERROR(RTD("cqg.rtd",,"StudyData", "Correlation("&$B$3&","&U$2&",Period:="&$B$1&",InputChoice1:=Close,InputChoice2::=Close)", "FG", "", "Close",$B$2,A90, "all","", "","True","T")/100,"") -> 0.1613498887 | W90: 0.72 | X90: 0 | AA90: =IFERROR(RTD("cqg.rtd",,"StudyData", "Correlation("&$B$3&","&AA$2&",Period:="&$B$1&",InputChoice1:=Close,InputChoice2::=Close)", "FG", "", "Close",$B$2,A90, "all","", "","True","T")/100,"") -> 0.4330816336 | AC90: 0.72 | AD90: 0 | AG90: =IFERROR(RTD("cqg.rtd",,"StudyData", "Correlation("&$B$3&","&AG$2&",Period:="&$B$1&",InputChoice1:=Close,InputChoice2::=Close)", "FG", "", "Close",$B$2,A90, "all","", "","True","T")/100,"") -> 0.468180122 | AI90: 0.72 | AJ90: 0 | AM90: =IFERROR(RTD("cqg.rtd",,"StudyData", "Correlation("&$B$3&","&AM$2&",Period:="&$B$1&",InputChoice1:=Close,InputChoice2::=Close)", "FG", "", "Close",$B$2,A90, "all","", "","True","T")/100,"") -> 0.4152453387 | AO90: 0.72 | AP90: 0 | AS90: =IFERROR(RTD("cqg.rtd",,"StudyData", "Correlation("&$B$3&","&AS$2&",Period:="&$B$1&",InputChoice1:=Close,InputChoice2::=Close)", "FG", "", "Close",$B$2,A90, "all","", "","True","T")/100,"") -> 0.1705104322 | AU90: 0.72 | AV90: 0 | AY90: =IFERROR(RTD("cqg.rtd",,"StudyData", "Correlation("&$B$3&","&AY$2&",Period:="&$B$1&",InputChoice1:=Close,InputChoice2::=Close)", "FG", "", "Close",$B$2,A90, "all","", "","True","T")/100,"") -> -0.6023514249 | BA90: 0.72 | BB90: 0 | BE90: =IFERROR(RTD("cqg.rtd",,"StudyData", "Correlation("&$B$3&","&BE$2&",Period:="&$B$1&",InputChoice1:=Close,InputChoice2::=Close)", "FG", "", "Close",$B$2,A90, "all","", "","True","T")/100,"") -> -0.3830434896 | BG90: 0.72 | BH90: 1
A91: -87 | C91: =IFERROR(RTD("cqg.rtd",,"StudyData", "Correlation("&$B$3&","&C$2&",Period:="&$B$1&",InputChoice1:=Close,InputChoice2:=Close)", "FG", "", "Close",$B$2,A91, "all","", "","True","T")/100,"") -> 0.217843229 | E91: 0.74 | F91: 0 | I91: =IFERROR(RTD("cqg.rtd",,"StudyData", "Correlation("&$B$3&","&I$2&",Period:="&$B$1&",InputChoice1:=Close,InputChoice2::=Close)", "FG", "", "Close",$B$2,A91, "all","", "","True","T")/100,"") -> 0.2253444957 | K91: 0.74 | L91: 0 | O91: =IFERROR(RTD("cqg.rtd",,"StudyData", "Correlation("&$B$3&","&O$2&",Period:="&$B$1&",InputChoice1:=Close,InputChoice2::=Close)", "FG", "", "Close",$B$2,A91, "all","", "","True","T")/100,"") -> 0.2874833817 | Q91: 0.74 | R91: 1 | U91: =IFERROR(RTD("cqg.rtd",,"StudyData", "Correlation("&$B$3&","&U$2&",Period:="&$B$1&",InputChoice1:=Close,InputChoice2::=Close)", "FG", "", "Close",$B$2,A91, "all","", "","True","T")/100,"") -> 0.03605328851 | W91: 0.74 | X91: 1 | AA91: =IFERROR(RTD("cqg.rtd",,"StudyData", "Correlation("&$B$3&","&AA$2&",Period:="&$B$1&",InputChoice1:=Close,InputChoice2::=Close)", "FG", "", "Close",$B$2,A91, "all","", "","True","T")/100,"") -> 0.4098559941 | AC91: 0.74 | AD91: 1 | AG91: =IFERROR(RTD("cqg.rtd",,"StudyData", "Correlation("&$B$3&","&AG$2&",Period:="&$B$1&",InputChoice1:=Close,InputChoice2::=Close)", "FG", "", "Close",$B$2,A91, "all","", "","True","T")/100,"") -> 0.4591177765 | AI91: 0.74 | AJ91: 0 | AM91: =IFERROR(RTD("cqg.rtd",,"StudyData", "Correlation("&$B$3&","&AM$2&",Period:="&$B$1&",InputChoice1:=Close,InputChoice2::=Close)", "FG", "", "Close",$B$2,A91, "all","", "","True","T")/100,"") -> 0.3738349088 | AO91: 0.74 | AP91: 1 | AS91: =IFERROR(RTD("cqg.rtd",,"StudyData", "Correlation("&$B$3&","&AS$2&",Period:="&$B$1&",InputChoice1:=Close,InputChoice2::=Close)", "FG", "", "Close",$B$2,A91, "all","", "","True","T")/100,"") -> 0.2229463646 | AU91: 0.74 | AV91: 1 | AY91: =IFERROR(RTD("cqg.rtd",,"StudyData", "Correlation("&$B$3&","&AY$2&",Period:="&$B$1&",InputChoice1:=Close,InputChoice2::=Close)", "FG", "", "Close",$B$2,A91, "all","", "","True","T")/100,"") -> -0.5654696951 | BA91: 0.74 | BB91: 1 | BE91: =IFERROR(RTD("cqg.rtd",,"StudyData", "Correlation("&$B$3&","&BE$2&",Period:="&$B$1&",InputChoice1:=Close,InputChoice2::=Close)", "FG", "", "Close",$B$2,A91, "all","", "","True","T")/100,"") -> -0.2959119695 | BG91: 0.74 | BH91: 0
A92: -88 | C92: =IFERROR(RTD("cqg.rtd",,"StudyData", "Correlation("&$B$3&","&C$2&",Period:="&$B$1&",InputChoice1:=Close,InputChoice2:=Close)", "FG", "", "Close",$B$2,A92, "all","", "","True","T")/100,"") -> 0.1537985226 | E92: 0.76 | F92: 0 | I92: =IFERROR(RTD("cqg.rtd",,"StudyData", "Correlation("&$B$3&","&I$2&",Period:="&$B$1&",InputChoice1:=Close,InputChoice2::=Close)", "FG", "", "Close",$B$2,A92, "all","", "","True","T")/100,"") -> 0.1621402561 | K92: 0.76 | L92: 0 | O92: =IFERROR(RTD("cqg.rtd",,"StudyData", "Correlation("&$B$3&","&O$2&",Period:="&$B$1&",InputChoice1:=Close,InputChoice2::=Close)", "FG", "", "Close",$B$2,A92, "all","", "","True","T")/100,"") -> 0.2090717783 | Q92: 0.76 | R92: 0 | U92: =IFERROR(RTD("cqg.rtd",,"StudyData", "Correlation("&$B$3&","&U$2&",Period:="&$B$1&",InputChoice1:=Close,InputChoice2::=Close)", "FG", "", "Close",$B$2,A92, "all","", "","True","T")/100,"") -> -0.04507134291 | W92: 0.76 | X92: 0 | AA92: =IFERROR(RTD("cqg.rtd",,"StudyData", "Correlation("&$B$3&","&AA$2&",Period:="&$B$1&",InputChoice1:=Close,InputChoice2::=Close)", "FG", "", "Close",$B$2,A92, "all","", "","True","T")/100,"") -> 0.3832918844 | AC92: 0.76 | AD92: 0 | AG92: =IFERROR(RTD("cqg.rtd",,"StudyData", "Correlation("&$B$3&","&AG$2&",Period:="&$B$1&",InputChoice1:=Close,InputChoice2::=Close)", "FG", "", "Close",$B$2,A92, "all","", "","True","T")/100,"") -> 0.4391558662 | AI92: 0.76 | AJ92: 0 | AM92: =IFERROR(RTD("cqg.rtd",,"StudyData", "Correlation("&$B$3&","&AM$2&",Period:="&$B$1&",InputChoice1:=Close,InputChoice2::=Close)", "FG", "", "Close",$B$2,A92, "all","", "","True","T")/100,"") -> 0.3337133483 | AO92: 0.76 | AP92: 0 | AS92: =IFERROR(RTD("cqg.rtd",,"StudyData", "Correlation("&$B$3&","&AS$2&",Period:="&$B$1&",InputChoice1:=Close,InputChoice2::=Close)", "FG", "", "Close",$B$2,A92, "all","", "","True","T")/100,"") -> 0.2230922208 | AU92: 0.76 | AV92: 1 | AY92: =IFERROR(RTD("cqg.rtd",,"StudyData", "Correlation("&$B$3&","&AY$2&",Period:="&$B$1&",InputChoice1:=Close,InputChoice2::=Close)", "FG", "", "Close",$B$2,A92, "all","", "","True","T")/100,"") -> -0.4935567876 | BA92: 0.76 | BB92: 0 | BE92: =IFERROR(RTD("cqg.rtd",,"StudyData", "Correlation("&$B$3&","&BE$2&",Period:="&$B$1&",InputChoice1:=Close,InputChoice2::=Close)", "FG", "", "Close",$B$2,A92, "all","", "","True","T")/100,"") -> -0.1963166246 | BG92: 0.76 | BH92: 0
A93: -89 | C93: =IFERROR(RTD("cqg.rtd",,"StudyData", "Correlation("&$B$3&","&C$2&",Period:="&$B$1&",InputChoice1:=Close,InputChoice2:=Close)", "FG", "", "Close",$B$2,A93, "all","", "","True","T")/100,"") -> 0.1192594192 | E93: 0.78 | F93: 0 | I93: =IFERROR(RTD("cqg.rtd",,"StudyData", "Correlation("&$B$3&","&I$2&",Period:="&$B$1&",InputChoice1:=Close,InputChoice2::=Close)", "FG", "", "Close",$B$2,A93, "all","", "","True","T")/100,"") -> 0.1331187518 | K93: 0.78 | L93: 0 | O93: =IFERROR(RTD("cqg.rtd",,"StudyData", "Correlation("&$B$3&","&O$2&",Period:="&$B$1&",InputChoice1:=Close,InputChoice2::=Close)", "FG", "", "Close",$B$2,A93, "all","", "","True","T")/100,"") -> 0.1523695904 | Q93: 0.78 | R93: 0 | U93: =IFERROR(RTD("cqg.rtd",,"StudyData", "Correlation("&$B$3&","&U$2&",Period:="&$B$1&",InputChoice1:=Close,InputChoice2::=Close)", "FG", "", "Close",$B$2,A93, "all","", "","True","T")/100,"") -> -0.0121627097 | W93: 0.78 | X93: 0 | AA93: =IFERROR(RTD("cqg.rtd",,"StudyData", "Correlation("&$B$3&","&AA$2&",Period:="&$B$1&",InputChoice1:=Close,InputChoice2::=Close)", "FG", "", "Close",$B$2,A93, "all","", "","True","T")/100,"") -> 0.3490914999 | AC93: 0.78 | AD93: 0 | AG93: =IFERROR(RTD("cqg.rtd",,"StudyData", "Correlation("&$B$3&","&AG$2&",Period:="&$B$1&",InputChoice1:=Close,InputChoice2::=Close)", "FG", "", "Close",$B$2,A93, "all","", "","True","T")/100,"") -> 0.3892187854 | AI93: 0.78 | AJ93: 1 | AM93: =IFERROR(RTD("cqg.rtd",,"StudyData", "Correlation("&$B$3&","&AM$2&",Period:="&$B$1&",InputChoice1:=Close,InputChoice2::=Close)", "FG", "", "Close",$B$2,A93, "all","", "","True","T")/100,"") -> 0.3050522801 | AO93: 0.78 | AP93: 0 | AS93: =IFERROR(RTD("cqg.rtd",,"StudyData", "Correlation("&$B$3&","&AS$2&",Period:="&$B$1&",InputChoice1:=Close,InputChoice2::=Close)", "FG", "", "Close",$B$2,A93, "all","", "","True","T")/100,"") -> 0.1425995032 | AU93: 0.78 | AV93: 2 | AY93: =IFERROR(RTD("cqg.rtd",,"StudyData", "Correlation("&$B$3&","&AY$2&",Period:="&$B$1&",InputChoice1:=Close,InputChoice2::=Close)", "FG", "", "Close",$B$2,A93, "all","", "","True","T")/100,"") -> -0.4894026275 | BA93: 0.78 | BB93: 0 | BE93: =IFERROR(RTD("cqg.rtd",,"StudyData", "Correlation("&$B$3&","&BE$2&",Period:="&$B$1&",InputChoice1:=Close,InputChoice2::=Close)", "FG", "", "Close",$B$2,A93, "all","", "","True","T")/100,"") -> -0.1331739607 | BG93: 0.78 | BH93: 0
A94: -90 | C94: =IFERROR(RTD("cqg.rtd",,"StudyData", "Correlation("&$B$3&","&C$2&",Period:="&$B$1&",InputChoice1:=Close,InputChoice2:=Close)", "FG", "", "Close",$B$2,A94, "all","", "","True","T")/100,"") -> 0.0637355463 | E94: 0.8 | F94: 0 | I94: =IFERROR(RTD("cqg.rtd",,"StudyData", "Correlation("&$B$3&","&I$2&",Period:="&$B$1&",InputChoice1:=Close,InputChoice2::=Close)", "FG", "", "Close",$B$2,A94, "all","", "","True","T")/100,"") -> 0.08203762697 | K94: 0.8 | L94: 0 | O94: =IFERROR(RTD("cqg.rtd",,"StudyData", "Correlation("&$B$3&","&O$2&",Period:="&$B$1&",InputChoice1:=Close,InputChoice2::=Close)", "FG", "", "Close",$B$2,A94, "all","", "","True","T")/100,"") -> 0.1166984829 | Q94: 0.8 | R94: 0 | U94: =IFERROR(RTD("cqg.rtd",,"StudyData", "Correlation("&$B$3&","&U$2&",Period:="&$B$1&",InputChoice1:=Close,InputChoice2::=Close)", "FG", "", "Close",$B$2,A94, "all","", "","True","T")/100,"") -> -0.04035623519 | W94: 0.8 | X94: 1 | AA94: =IFERROR(RTD("cqg.rtd",,"StudyData", "Correlation("&$B$3&","&AA$2&",Period:="&$B$1&",InputChoice1:=Close,InputChoice2::=Close)", "FG", "", "Close",$B$2,A94, "all","", "","True","T")/100,"") -> 0.324920694 | AC94: 0.8 | AD94: 0 | AG94: =IFERROR(RTD("cqg.rtd",,"StudyData", "Correlation("&$B$3&","&AG$2&",Period:="&$B$1&",InputChoice1:=Close,InputChoice2::=Close)", "FG", "", "Close",$B$2,A94, "all","", "","True","T")/100,"") -> 0.3599425481 | AI94: 0.8 | AJ94: 0 | AM94: =IFERROR(RTD("cqg.rtd",,"StudyData", "Correlation("&$B$3&","&AM$2&",Period:="&$B$1&",InputChoice1:=Close,InputChoice2::=Close)", "FG", "", "Close",$B$2,A94, "all","", "","True","T")/100,"") -> 0.2708817881 | AO94: 0.8 | AP94: 0 | AS94: =IFERROR(RTD("cqg.rtd",,"StudyData", "Correlation("&$B$3&","&AS$2&",Period:="&$B$1&",InputChoice1:=Close,InputChoice2::=Close)", "FG", "", "Close",$B$2,A94, "all","", "","True","T")/100,"") -> 0.1504353487 | AU94: 0.8 | AV94: 2 | AY94: =IFERROR(RTD("cqg.rtd",,"StudyData", "Correlation("&$B$3&","&AY$2&",Period:="&$B$1&",InputChoice1:=Close,InputChoice2::=Close)", "FG", "", "Close",$B$2,A94, "all","", "","True","T")/100,"") -> -0.5788939906 | BA94: 0.8 | BB94: 1 | BE94: =IFERROR(RTD("cqg.rtd",,"StudyData", "Correlation("&$B$3&","&BE$2&",Period:="&$B$1&",InputChoice1:=Close,InputChoice2::=Close)", "FG", "", "Close",$B$2,A94, "all","", "","True","T")/100,"") -> -0.03604669018 | BG94: 0.8 | BH94: 0
A95: -91 | C95: =IFERROR(RTD("cqg.rtd",,"StudyData", "Correlation("&$B$3&","&C$2&",Period:="&$B$1&",InputChoice1:=Close,InputChoice2:=Close)", "FG", "", "Close",$B$2,A95, "all","", "","True","T")/100,"") -> -0.05978331909 | E95: 0.82 | F95: 0 | I95: =IFERROR(RTD("cqg.rtd",,"StudyData", "Correlation("&$B$3&","&I$2&",Period:="&$B$1&",InputChoice1:=Close,InputChoice2::=Close)", "FG", "", "Close",$B$2,A95, "all","", "","True","T")/100,"") -> -0.04459319485 | K95: 0.82 | L95: 0 | O95: =IFERROR(RTD("cqg.rtd",,"StudyData", "Correlation("&$B$3&","&O$2&",Period:="&$B$1&",InputChoice1:=Close,InputChoice2::=Close)", "FG", "", "Close",$B$2,A95, "all","", "","True","T")/100,"") -> 0.07252873159 | Q95: 0.82 | R95: 0 | U95: =IFERROR(RTD("cqg.rtd",,"StudyData", "Correlation("&$B$3&","&U$2&",Period:="&$B$1&",InputChoice1:=Close,InputChoice2::=Close)", "FG", "", "Close",$B$2,A95, "all","", "","True","T")/100,"") -> -0.1402089372 | W95: 0.82 | X95: 1 | AA95: =IFERROR(RTD("cqg.rtd",,"StudyData", "Correlation("&$B$3&","&AA$2&",Period:="&$B$1&",InputChoice1:=Close,InputChoice2::=Close)", "FG", "", "Close",$B$2,A95, "all","", "","True","T")/100,"") -> 0.2331892364 | AC95: 0.82 | AD95: 0 | AG95: =IFERROR(RTD("cqg.rtd",,"StudyData", "Correlation("&$B$3&","&AG$2&",Period:="&$B$1&",InputChoice1:=Close,InputChoice2::=Close)", "FG", "", "Close",$B$2,A95, "all","", "","True","T")/100,"") -> 0.3158430412 | AI95: 0.82 | AJ95: 0 | AM95: =IFERROR(RTD("cqg.rtd",,"StudyData", "Correlation("&$B$3&","&AM$2&",Period:="&$B$1&",InputChoice1:=Close,InputChoice2::=Close)", "FG", "", "Close",$B$2,A95, "all","", "","True","T")/100,"") -> 0.1717670329 | AO95: 0.82 | AP95: 0 | AS95: =IFERROR(RTD("cqg.rtd",,"StudyData", "Correlation("&$B$3&","&AS$2&",Period:="&$B$1&",InputChoice1:=Close,InputChoice2::=Close)", "FG", "", "Close",$B$2,A95, "all","", "","True","T")/100,"") -> 0.1319168568 | AU95: 0.82 | AV95: 0 | AY95: =IFERROR(RTD("cqg.rtd",,"StudyData", "Correlation("&$B$3&","&AY$2&",Period:="&$B$1&",InputChoice1:=Close,InputChoice2::=Close)", "FG", "", "Close",$B$2,A95, "all","", "","True","T")/100,"") -> -0.5160972169 | BA95: 0.82 | BB95: 0 | BE95: =IFERROR(RTD("cqg.rtd",,"StudyData", "Correlation("&$B$3&","&BE$2&",Period:="&$B$1&",InputChoice1:=Close,InputChoice2::=Close)", "FG", "", "Close",$B$2,A95, "all","", "","True","T")/100,"") -> -0.01036004223 | BG95: 0.82 | BH95: 0
A96: -92 | C96: =IFERROR(RTD("cqg.rtd",,"StudyData", "Correlation("&$B$3&","&C$2&",Period:="&$B$1&",InputChoice1:=Close,InputChoice2:=Close)", "FG", "", "Close",$B$2,A96, "all","", "","True","T")/100,"") -> -0.03626958481 | E96: 0.84 | F96: 0 | I96: =IFERROR(RTD("cqg.rtd",,"StudyData", "Correlation("&$B$3&","&I$2&",Period:="&$B$1&",InputChoice1:=Close,InputChoice2::=Close)", "FG", "", "Close",$B$2,A96, "all","", "","True","T")/100,"") -> -0.02296378751 | K96: 0.84 | L96: 0 | O96: =IFERROR(RTD("cqg.rtd",,"StudyData", "Correlation("&$B$3&","&O$2&",Period:="&$B$1&",InputChoice1:=Close,InputChoice2::=Close)", "FG", "", "Close",$B$2,A96, "all","", "","True","T")/100,"") -> -0.0538668461 | Q96: 0.84 | R96: 0 | U96: =IFERROR(RTD("cqg.rtd",,"StudyData", "Correlation("&$B$3&","&U$2&",Period:="&$B$1&",InputChoice1:=Close,InputChoice2::=Close)", "FG", "", "Close",$B$2,A96, "all","", "","True","T")/100,"") -> -0.009759660437 | W96: 0.84 | X96: 2 | AA96: =IFERROR(RTD("cqg.rtd",,"StudyData", "Correlation("&$B$3&","&AA$2&",Period:="&$B$1&",InputChoice1:=Close,InputChoice2::=Close)", "FG", "", "Close",$B$2,A96, "all","", "","True","T")/100,"") -> 0.09993598735 | AC96: 0.84 | AD96: 0 | AG96: =IFERROR(RTD("cqg.rtd",,"StudyData", "Correlation("&$B$3&","&AG$2&",Period:="&$B$1&",InputChoice1:=Close,InputChoice2::=Close)", "FG", "", "Close",$B$2,A96, "all","", "","True","T")/100,"") -> 0.07755121531 | AI96: 0.84 | AJ96: 0 | AM96: =IFERROR(RTD("cqg.rtd",,"StudyData", "Correlation("&$B$3&","&AM$2&",Period:="&$B$1&",InputChoice1:=Close,InputChoice2::=Close)", "FG", "", "Close",$B$2,A96, "all","", "","True","T")/100,"") -> 0.08365216432 | AO96: 0.84 | AP96: 0 | AS96: =IFERROR(RTD("cqg.rtd",,"StudyData", "Correlation("&$B$3&","&AS$2&",Period:="&$B$1&",InputChoice1:=Close,InputChoice2::=Close)", "FG", "", "Close",$B$2,A96, "all","", "","True","T")/100,"") -> 0.03079282565 | AU96: 0.84 | AV96: 1 | AY96: =IFERROR(RTD("cqg.rtd",,"StudyData", "Correlation("&$B$3&","&AY$2&",Period:="&$B$1&",InputChoice1:=Close,InputChoice2::=Close)", "FG", "", "Close",$B$2,A96, "all","", "","True","T")/100,"") -> -0.4741013859 | BA96: 0.84 | BB96: 0 | BE96: =IFERROR(RTD("cqg.rtd",,"StudyData", "Correlation("&$B$3&","&BE$2&",Period:="&$B$1&",InputChoice1:=Close,InputChoice2::=Close)", "FG", "", "Close",$B$2,A96, "all","", "","True","T")/100,"") -> 0.03099916779 | BG96: 0.84 | BH96: 0
A97: -93 | C97: =IFERROR(RTD("cqg.rtd",,"StudyData", "Correlation("&$B$3&","&C$2&",Period:="&$B$1&",InputChoice1:=Close,InputChoice2:=Close)", "FG", "", "Close",$B$2,A97, "all","", "","True","T")/100,"") -> -0.03224961519 | E97: 0.86 | F97: 0 | I97: =IFERROR(RTD("cqg.rtd",,"StudyData", "Correlation("&$B$3&","&I$2&",Period:="&$B$1&",InputChoice1:=Close,InputChoice2::=Close)", "FG", "", "Close",$B$2,A97, "all","", "","True","T")/100,"") -> -0.02503586317 | K97: 0.86 | L97: 0 | O97: =IFERROR(RTD("cqg.rtd",,"StudyData", "Correlation("&$B$3&","&O$2&",Period:="&$B$1&",InputChoice1:=Close,InputChoice2::=Close)", "FG", "", "Close",$B$2,A97, "all","", "","True","T")/100,"") -> -0.04757707038 | Q97: 0.86 | R97: 0 | U97: =IFERROR(RTD("cqg.rtd",,"StudyData", "Correlation("&$B$3&","&U$2&",Period:="&$B$1&",InputChoice1:=Close,InputChoice2::=Close)", "FG", "", "Close",$B$2,A97, "all","", "","True","T")/100,"") -> 0.05826165046 | W97: 0.86 | X97: 2 | AA97: =IFERROR(RTD("cqg.rtd",,"StudyData", "Correlation("&$B$3&","&AA$2&",Period:="&$B$1&",InputChoice1:=Close,InputChoice2::=Close)", "FG", "", "Close",$B$2,A97, "all","", "","True","T")/100,"") -> -0.01186811424 | AC97: 0.86 | AD97: 0 | AG97: =IFERROR(RTD("cqg.rtd",,"StudyData", "Correlation("&$B$3&","&AG$2&",Period:="&$B$1&",InputChoice1:=Close,InputChoice2::=Close)", "FG", "", "Close",$B$2,A97, "all","", "","True","T")/100,"") -> -0.04867748504 | AI97: 0.86 | AJ97: 0 | AM97: =IFERROR(RTD("cqg.rtd",,"StudyData", "Correlation("&$B$3&","&AM$2&",Period:="&$B$1&",InputChoice1:=Close,InputChoice2::=Close)", "FG", "", "Close",$B$2,A97, "all","", "","True","T")/100,"") -> 0.01358481042 | AO97: 0.86 | AP97: 0 | AS97: =IFERROR(RTD("cqg.rtd",,"StudyData", "Correlation("&$B$3&","&AS$2&",Period:="&$B$1&",InputChoice1:=Close,InputChoice2::=Close)", "FG", "", "Close",$B$2,A97, "all","", "","True","T")/100,"") -> -0.03773590689 | AU97: 0.86 | AV97: 1 | AY97: =IFERROR(RTD("cqg.rtd",,"StudyData", "Correlation("&$B$3&","&AY$2&",Period:="&$B$1&",InputChoice1:=Close,InputChoice2::=Close)", "FG", "", "Close",$B$2,A97, "all","", "","True","T")/100,"") -> -0.4543213667 | BA97: 0.86 | BB97: 0 | BE97: =IFERROR(RTD("cqg.rtd",,"StudyData", "Correlation("&$B$3&","&BE$2&",Period:="&$B$1&",InputChoice1:=Close,InputChoice2::=Close)", "FG", "", "Close",$B$2,A97, "all","", "","True","T")/100,"") -> 0.1674958371 | BG97: 0.86 | BH97: 0
A98: -94 | C98: =IFERROR(RTD("cqg.rtd",,"StudyData", "Correlation("&$B$3&","&C$2&",Period:="&$B$1&",InputChoice1:=Close,InputChoice2:=Close)", "FG", "", "Close",$B$2,A98, "all","", "","True","T")/100,"") -> -0.08125280637 | E98: 0.88 | F98: 0 | I98: =IFERROR(RTD("cqg.rtd",,"StudyData", "Correlation("&$B$3&","&I$2&",Period:="&$B$1&",InputChoice1:=Close,InputChoice2::=Close)", "FG", "", "Close",$B$2,A98, "all","", "","True","T")/100,"") -> -0.09811906417 | K98: 0.88 | L98: 0 | O98: =IFERROR(RTD("cqg.rtd",,"StudyData", "Correlation("&$B$3&","&O$2&",Period:="&$B$1&",InputChoice1:=Close,InputChoice2::=Close)", "FG", "", "Close",$B$2,A98, "all","", "","True","T")/100,"") -> -0.05367578582 | Q98: 0.88 | R98: 0 | U98: =IFERROR(RTD("cqg.rtd",,"StudyData", "Correlation("&$B$3&","&U$2&",Period:="&$B$1&",InputChoice1:=Close,InputChoice2::=Close)", "FG", "", "Close",$B$2,A98, "all","", "","True","T")/100,"") -> 0.08331266186 | W98: 0.88 | X98: 0 | AA98: =IFERROR(RTD("cqg.rtd",,"StudyData", "Correlation("&$B$3&","&AA$2&",Period:="&$B$1&",InputChoice1:=Close,InputChoice2::=Close)", "FG", "", "Close",$B$2,A98, "all","", "","True","T")/100,"") -> -0.2351206046 | AC98: 0.88 | AD98: 0 | AG98: =IFERROR(RTD("cqg.rtd",,"StudyData", "Correlation("&$B$3&","&AG$2&",Period:="&$B$1&",InputChoice1:=Close,InputChoice2::=Close)", "FG", "", "Close",$B$2,A98, "all","", "","True","T")/100,"") -> -0.2182231203 | AI98: 0.88 | AJ98: 0 | AM98: =IFERROR(RTD("cqg.rtd",,"StudyData", "Correlation("&$B$3&","&AM$2&",Period:="&$B$1&",InputChoice1:=Close,InputChoice2::=Close)", "FG", "", "Close",$B$2,A98, "all","", "","True","T")/100,"") -> -0.1681806334 | AO98: 0.88 | AP98: 0 | AS98: =IFERROR(RTD("cqg.rtd",,"StudyData", "Correlation("&$B$3&","&AS$2&",Period:="&$B$1&",InputChoice1:=Close,InputChoice2::=Close)", "FG", "", "Close",$B$2,A98, "all","", "","True","T")/100,"") -> -0.09909725836 | AU98: 0.88 | AV98: 1 | AY98: =IFERROR(RTD("cqg.rtd",,"StudyData", "Correlation("&$B$3&","&AY$2&",Period:="&$B$1&",InputChoice1:=Close,InputChoice2::=Close)", "FG", "", "Close",$B$2,A98, "all","", "","True","T")/100,"") -> -0.2888197004 | BA98: 0.88 | BB98: 1 | BE98: =IFERROR(RTD("cqg.rtd",,"StudyData", "Correlation("&$B$3&","&BE$2&",Period:="&$B$1&",InputChoice1:=Close,InputChoice2::=Close)", "FG", "", "Close",$B$2,A98, "all","", "","True","T")/100,"") -> 0.07065820819 | BG98: 0.88 | BH98: 0
A99: -95 | C99: =IFERROR(RTD("cqg.rtd",,"StudyData", "Correlation("&$B$3&","&C$2&",Period:="&$B$1&",InputChoice1:=Close,InputChoice2:=Close)", "FG", "", "Close",$B$2,A99, "all","", "","True","T")/100,"") -> -0.1558274555 | E99: 0.9 | F99: 0 | I99: =IFERROR(RTD("cqg.rtd",,"StudyData", "Correlation("&$B$3&","&I$2&",Period:="&$B$1&",InputChoice1:=Close,InputChoice2::=Close)", "FG", "", "Close",$B$2,A99, "all","", "","True","T")/100,"") -> -0.1950635624 | K99: 0.9 | L99: 0 | O99: =IFERROR(RTD("cqg.rtd",,"StudyData", "Correlation("&$B$3&","&O$2&",Period:="&$B$1&",InputChoice1:=Close,InputChoice2::=Close)", "FG", "", "Close",$B$2,A99, "all","", "","True","T")/100,"") -> -0.127091012 | Q99: 0.9 | R99: 0 | U99: =IFERROR(RTD("cqg.rtd",,"StudyData", "Correlation("&$B$3&","&U$2&",Period:="&$B$1&",InputChoice1:=Close,InputChoice2::=Close)", "FG", "", "Close",$B$2,A99, "all","", "","True","T")/100,"") -> 0.1576450625 | W99: 0.9 | X99: 0 | AA99: =IFERROR(RTD("cqg.rtd",,"StudyData", "Correlation("&$B$3&","&AA$2&",Period:="&$B$1&",InputChoice1:=Close,InputChoice2::=Close)", "FG", "", "Close",$B$2,A99, "all","", "","True","T")/100,"") -> -0.44255645 | AC99: 0.9 | AD99: 0 | AG99: =IFERROR(RTD("cqg.rtd",,"StudyData", "Correlation("&$B$3&","&AG$2&",Period:="&$B$1&",InputChoice1:=Close,InputChoice2::=Close)", "FG", "", "Close",$B$2,A99, "all","", "","True","T")/100,"") -> -0.3763983008 | AI99: 0.9 | AJ99: 0 | AM99: =IFERROR(RTD("cqg.rtd",,"StudyData", "Correlation("&$B$3&","&AM$2&",Period:="&$B$1&",InputChoice1:=Close,InputChoice2::=Close)", "FG", "", "Close",$B$2,A99, "all","", "","True","T")/100,"") -> -0.3427493869 | AO99: 0.9 | AP99: 0 | AS99: =IFERROR(RTD("cqg.rtd",,"StudyData", "Correlation("&$B$3&","&AS$2&",Period:="&$B$1&",InputChoice1:=Close,InputChoice2::=Close)", "FG", "", "Close",$B$2,A99, "all","", "","True","T")/100,"") -> -0.195321749 | AU99: 0.9 | AV99: 0 | AY99: =IFERROR(RTD("cqg.rtd",,"StudyData", "Correlation("&$B$3&","&AY$2&",Period:="&$B$1&",InputChoice1:=Close,InputChoice2::=Close)", "FG", "", "Close",$B$2,A99, "all","", "","True","T")/100,"") -> -0.0183982498 | BA99: 0.9 | BB99: 0 | BE99: =IFERROR(RTD("cqg.rtd",,"StudyData", "Correlation("&$B$3&","&BE$2&",Period:="&$B$1&",InputChoice1:=Close,InputChoice2::=Close)", "FG", "", "Close",$B$2,A99, "all","", "","True","T")/100,"") -> 0.001007497481 | BG99: 0.9 | BH99: 0
